Workbook

Sheet RM (hidden)
A2: Olulisemad majandusnäitajad | B2: tegelik | C2: tegelik | D2: tegelik | E2: tegelik | F2: tegelik | G2: tegelik | H2: tegelik | I2: tegelik | J2: tegelik | K2: tegelik | L2: tegelik | M2: tegelik | N2: tegelik | O2: tegelik | P2: tegelik | Q2: prognoos | R2: prognoos | S2: prognoos | T2: prognoos | U2: prognoos | V2: prognoos | W2: prognoos | X2: prognoos | Y2: prognoos | Z2: prognoos | AA2: prognoos | AB2: prognoos | AC2: prognoos | AD2: prognoos | AE2: prognoos | AF2: prognoos
B3: 2000 | C3: 2001 | D3: 2002 | E3: 2003 | F3: 2004 | G3: 2005 | H3: 2006 | I3: 2007 | J3: 2008 | K3: 2009 | L3: 2010 | M3: 2011 | N3: 2012 | O3: 2013 | P3: 2014 | Q3: 2015 | R3: 2016 | S3: 2017 | T3: 2018 | U3: 2019 | V3: 2020 | W3: 2021 | X3: 2022 | Y3: 2023 | Z3: 2024 | AA3: 2025 | AB3: 2026 | AC3: 2027 | AD3: 2028 | AE3: 2029 | AF3: 2030 | AG3: 2031 | AH3: 2032 | AI3: 2033 | AJ3: 2034 | AK3: 2035 | AL3: 2036 | AM3: 2037 | AN3: 2038 | AO3: 2039 | AP3: 2040 | AQ3: 2041 | AR3: 2042 | AS3: 2043 | AT3: 2044 | AU3: 2045 | AV3: 2046 | AW3: 2047 | AX3: 2048 | AY3: 2049 | AZ3: 2050 | BA3: 2051 | BB3: 2052 | BC3: 2053 | BD3: 2054 | BE3: 2055 | BF3: 2056 | BG3: 2057 | BH3: 2058 | BI3: 2059 | BJ3: 2060
A4: SKP jooksevhindades (mln €) | B4: 6159.83458 | C4: 6970.86912 | D4: 7776.30522 | E4: 8718.89833 | F4: 9685.27416 | G4: 11181.73983 | H4: 13390.76938 | I4: 16069.403 | J4: 16235.06261 | K4: 13969.7244 | L4: 14371.12989 | M4: 16216.40228 | N4: 17415.1307 | O4: 18463.11701 | P4: 19712.67258 | Q4: 20994.13297 | R4: 22390.58097 | S4: 23924.57559 | T4: 25477.99522 | U4: 27089.5153 | V4: 28733.15949 | W4: 30432.77278 | X4: 32193.54802 | Y4: 34020.81123 | Z4: 35920.0142 | AA4: 37896.73439 | AB4: 39956.68029 | AC4: 41954.44104 | AD4: 44178.04079 | AE4: 46514.01543 | AF4: 48855.84247 | AG4: 51209.02321 | AH4: 53623.12308 | AI4: 56041.25996 | AJ4: 58453.79585 | AK4: 60890.90093 | AL4: 63386.13583 | AM4: 65954.09686 | AN4: 68564.53652 | AO4: 71230.55297 | AP4: 73962.53978 | AQ4: 76733.20456 | AR4: 79537.08365 | AS4: 82365.24412 | AT4: 85229.1522 | AU4: 88116.97963 | AV4: 90930.66399 | AW4: 93777.40346 | AX4: 96649.20041 | AY4: 99564.64267 | AZ4: 102526.2237 | BA4: 105562.963 | BB4: 108670.9527 | BC4: 111864.7776 | BD4: 115060.9372 | BE4: 118381.0555 | BF4: 121860.0847 | BG4: 125501.7566 | BH4: 129329.4352 | BI4: 133359.2994 | BJ4: 137607.7372
A5: SKP püsivhindades (mln €) | B5: 7914.53204 | C5: 8411.6948 | D5: 8963.53803 | E5: 9659.59142 | F5: 10272.28355 | G5: 11181.73983 | H5: 12310.79849 | I5: 13233.14862 | J5: 12683.79359 | K5: 10895.58939 | L5: 11175.06026 | M5: 12243.16411 | N5: 12725.41097 | O5: 12918.38867 | P5: 13388.93417 | Q5: 13862.86956 | R5: 14368.50416 | S5: 14920.99342 | T5: 15457.01519 | U5: 15980.83798 | V5: 16490.5468 | W5: 16999.24966 | X5: 17508.51875 | Y5: 18019.80214 | Z5: 18534.43114 | AA5: 19053.6291 | AB5: 19578.52089 | AC5: 20037.89909 | AD5: 20569.47921 | AE5: 21115.10714 | AF5: 21625.24779 | AG5: 22122.62849 | AH5: 22618.17537 | AI5: 23088.63342 | AJ5: 23531.93518 | AK5: 23961.92426 | AL5: 24392.58235 | AM5: 24819.86941 | AN5: 25241.86168 | AO5: 25658.85413 | AP5: 26069.4496 | AQ5: 26463.81709 | AR5: 26840.3341 | AS5: 27196.39554 | AT5: 27536.23957 | AU5: 27856.41153 | AV5: 28154.65355 | AW5: 28438.86678 | AX5: 28706.92049 | AY5: 28964.61354 | AZ5: 29212.70806 | BA5: 29459.31787 | BB5: 29702.8996 | BC5: 29946.97736 | BD5: 30198.63868 | BE5: 30460.8133 | BF5: 30741.18405 | BG5: 31039.07341 | BH5: 31358.56298 | BI5: 31701.65281 | BJ5: 32070.17145
A6: SKP reaalkasv | C6: 0.06281644417 | D6: 0.06560428583 | E6: 0.077653867 | F6: 0.06342836911 | G6: 0.0885349665 | H6: 0.1009734332 | I6: 0.07492203944 | J6: -0.04151355401 | K6: -0.1409833886 | L6: 0.02564990842 | M6: 0.09557924746 | N6: 0.03938907097 | O6: 0.01516475226 | P6: 0.03642447275 | Q6: 0.03539754439 | R6: 0.03647402143 | S6: 0.03845141077 | T6: 0.035924 | U6: 0.033889 | V6: 0.031895 | W6: 0.03084815 | X6: 0.0299583275 | Y6: 0.02920197837 | Z6: 0.02855908162 | AA6: 0.02801261938 | AB6: 0.02754812647 | AC6: 0.02346337626 | AD6: 0.02652873526 | AE6: 0.02652609355 | AF6: 0.02415998407 | AG6: 0.023 | AH6: 0.0224 | AI6: 0.0208 | AJ6: 0.0192 | AK6: 0.01827257627 | AL6: 0.01797260039 | AM6: 0.01751709018 | AN6: 0.01700219513 | AO6: 0.01651987729 | AP6: 0.01600209679 | AQ6: 0.01512757252 | AR6: 0.01422761543 | AS6: 0.01326590921 | AT6: 0.01249592192 | AU6: 0.01162729416 | AV6: 0.01070640477 | AW6: 0.01009471594 | AX6: 0.009425611529 | AY6: 0.008976687504 | AZ6: 0.008565434968 | BA6: 0.00844186741 | BB6: 0.008268410588 | BC6: 0.008217304011 | BD6: 0.008403563552 | BE6: 0.008681670064 | BF6: 0.00920430922 | BG6: 0.009690237047 | BH6: 0.01029314132 | BI6: 0.01094086582 | BJ6: 0.01162458778
A7: SKP nominaalkasv | C7: 0.131664987 | D7: 0.115543139 | E7: 0.1212134919 | F7: 0.1108369192 | G7: 0.1545093763 | H7: 0.1975568725 | I7: 0.2000358265 | J7: 0.01030900837 | K7: -0.139533691 | L7: 0.02873395913 | M7: 0.1284013438 | N7: 0.07392073774 | O7: 0.06017676965 | P7: 0.06767847327 | Q7: 0.06500693309 | R7: 0.06651610737 | S7: 0.068510711 | T7: 0.064929872 | U7: 0.0632514476 | V7: 0.06067455155 | W7: 0.05915163223 | X7: 0.05785786442 | Y7: 0.05675867738 | Z7: 0.0558247409 | AA7: 0.05503116403 | AB7: 0.05435681815 | AC7: 0.04999816652 | AD7: 0.05300034258 | AE7: 0.05287637471 | AF7: 0.05034669694 | AG7: 0.0481658 | AH7: 0.04714208 | AI7: 0.04509504 | AJ7: 0.04304928 | AK7: 0.04169284553 | AL7: 0.04097878116 | AM7: 0.04051297642 | AN7: 0.03957964387 | AO7: 0.03888331459 | AP7: 0.03835414292 | AQ7: 0.03746037911 | AR7: 0.03654062297 | AS7: 0.03555775921 | AT7: 0.0347708322 | AU7: 0.03388309463 | AV7: 0.03193123927 | AW7: 0.03130670498 | AX7: 0.03062354937 | AY7: 0.03016519794 | AZ7: 0.0297453091 | BA7: 0.02961914663 | BB7: 0.02944204721 | BC7: 0.0293898674 | BD7: 0.02857163482 | BE7: 0.02885530346 | BF7: 0.0293883954 | BG7: 0.02988404179 | BH7: 0.03049900415 | BI7: 0.03115968313 | BJ7: 0.03185707953
A8: Tarbijahinnaindeks | B8: 0.04 | C8: 0.058 | D8: 0.036 | E8: 0.013 | F8: 0.03 | G8: 0.041 | H8: 0.044 | I8: 0.066 | J8: 0.104 | K8: -0.001 | L8: 0.03 | M8: 0.05 | N8: 0.039 | O8: 0.028 | P8: 0.003 | Q8: 0.019 | R8: 0.025 | S8: 0.03 | T8: 0.03 | U8: 0.0284 | V8: 0.02789 | W8: 0.0274565 | X8: 0.027088025 | Y8: 0.02677482125 | Z8: 0.02650859806 | AA8: 0.02628230835 | AB8: 0.0260899621 | AC8: 0.02592646779 | AD8: 0.02578749762 | AE8: 0.02566937297 | AF8: 0.02556896703 | AG8: 0.0246 | AH8: 0.0242 | AI8: 0.0238 | AJ8: 0.0234 | AK8: 0.023 | AL8: 0.0226 | AM8: 0.0226 | AN8: 0.0222 | AO8: 0.022 | AP8: 0.022 | AQ8: 0.022 | AR8: 0.022 | AS8: 0.022 | AT8: 0.022 | AU8: 0.022 | AV8: 0.021 | AW8: 0.021 | AX8: 0.021 | AY8: 0.021 | AZ8: 0.021 | BA8: 0.021 | BB8: 0.021 | BC8: 0.021 | BD8: 0.02 | BE8: 0.02 | BF8: 0.02 | BG8: 0.02 | BH8: 0.02 | BI8: 0.02 | BJ8: 0.02
A9: Hõive (tuh inimest) | B9: 572.5 | C9: 577.7 | D9: 585.6 | E9: 594.3 | F9: 595.5 | G9: 607.4 | H9: 646.3 | I9: 655.3 | J9: 656.5 | K9: 595.8 | L9: 570.875 | M9: 609.05 | N9: 624.425 | O9: 632.5 | P9: 635 | Q9: 635 | R9: 635 | S9: 635 | T9: 633.73 | U9: 631.82881 | V9: 629.9333236 | W9: 628.0435236 | X9: 626.159393 | Y9: 624.2809148 | Z9: 622.4080721 | AA9: 620.5408479 | AB9: 618.6792253 | AC9: 614.6073206 | AD9: 612.5910494 | AE9: 610.7494916 | AF9: 607.6534724 | AG9: 605.5506115 | AH9: 602.4517995 | AI9: 599.3529875 | AJ9: 596.2541754 | AK9: 593.262219 | AL9: 590.0565514 | AM9: 586.8508838 | AN9: 583.5383606 | AO9: 579.798415 | AP9: 575.9516139 | AQ9: 571.784246 | AR9: 567.2963114 | AS9: 562.4878099 | AT9: 557.4655974 | AU9: 552.2296736 | AV9: 546.7800387 | AW9: 541.009837 | AX9: 535.0259241 | AY9: 529.1488668 | AZ9: 523.1649539 | BA9: 517.1810411 | BB9: 511.4108394 | BC9: 505.9612044 | BD9: 501.0458474 | BE9: 496.6647684 | BF9: 492.4974005 | BG9: 488.9711661 | BH9: 485.7654985 | BI9: 482.9872532 | BJ9: 480.4227191
A10: hõivekasv | C10: 0.009082969432 | D10: 0.01367491778 | E10: 0.01485655738 | F10: 0.002019182231 | G10: 0.01998320739 | H10: 0.06404346394 | I10: 0.01392542163 | J10: 0.001831222341 | K10: -0.09246001523 | L10: -0.04183450822 | M10: 0.06687103131 | N10: 0.02524423282 | O10: 0.01293189735 | P10: 0.00395256917 | Q10: 0 | R10: 0 | S10: 0 | T10: -0.002 | U10: -0.003 | V10: -0.003 | W10: -0.003 | X10: -0.003 | Y10: -0.003 | Z10: -0.003 | AA10: -0.003 | AB10: -0.003 | AC10: -0.006581608914 | AD10: -0.003280584548 | AE10: -0.003006178118 | AF10: -0.005069212812 | AG10: -0.003460625163 | AH10: -0.005117346038 | AI10: -0.005143667967 | AJ10: -0.005170262079 | AK10: -0.005017921147 | AL10: -0.005403458213 | AM10: -0.005432814198 | AN10: -0.005644573926 | AO10: -0.006409082586 | AP10: -0.00663472171 | AQ10: -0.007235621521 | AR10: -0.007849000187 | AS10: -0.008476172537 | AT10: -0.008928571429 | AU10: -0.009392371094 | AV10: -0.009868421053 | AW10: -0.01055305843 | AX10: -0.01106063599 | AY10: -0.01098462153 | AZ10: -0.0113085622 | BA10: -0.0114379085 | BB10: -0.01115702479 | BC10: -0.01065608023 | BD10: -0.009714889124 | BE10: -0.008743868629 | BF10: -0.00839070568 | BG10: -0.007159904535 | BH10: -0.006555944056 | BI10: -0.005719313682 | BJ10: -0.005309734513
A11: Tööpuudus | B11: 0.135718599 | C11: 0.1257566586 | D11: 0.1029411765 | E11: 0.1002271007 | F11: 0.09649522076 | G11: 0.07913887204 | H11: 0.05896913221 | I11: 0.04655899898 | J11: 0.0552597496 | K11: 0.137646548 | L11: 0.1688505496 | M11: 0.124865292 | N11: 0.1015467626 | O11: 0.0928648261 | P11: 0.08313827762 | Q11: 0.07901222386 | R11: 0.07489821846 | S11: 0.07079678617 | T11: 0.07097726824 | U11: 0.07113067801 | V11: 0.0712610763 | W11: 0.07137191486 | X11: 0.07146612763 | Y11: 0.07154620849 | Z11: 0.07161427721 | AA11: 0.07167213563 | AB11: 0.07172131529 | AC11: 0.07176311799 | AD11: 0.07179865029 | AE11: 0.07182885275 | AF11: 0.07185452484 | AG11: 0.07166907235 | AH11: 0.07150216512 | AI11: 0.07135194861 | AJ11: 0.07121675375 | AK11: 0.07109507837 | AL11: 0.07098557053 | AM11: 0.07088701348 | AN11: 0.07079831213 | AO11: 0.07071848092 | AP11: 0.07064663283 | AQ11: 0.07058196954 | AR11: 0.07052377259 | AS11: 0.07047139533 | AT11: 0.0704242558 | AU11: 0.07038183022 | AV11: 0.0703436472 | AW11: 0.07030928248 | AX11: 0.07027835423 | AY11: 0.07025051881 | AZ11: 0.07022546693 | BA11: 0.07020292023 | BB11: 0.07018262821 | BC11: 0.07016436539 | BD11: 0.07014792885 | BE11: 0.07013313596 | BF11: 0.07011982237 | BG11: 0.07010784013 | BH11: 0.07009705612 | BI11: 0.07008735051 | BJ11: 0.07007861546
A12: Tööviljakuse kasv | C12: 0.05324980835 | D12: 0.05122881818 | E12: 0.06187801533 | F12: 0.0612854404 | G12: 0.06720871345 | H12: 0.03470719997 | I12: 0.06015888004 | J12: -0.04326554752 | K12: -0.05346692612 | L12: 0.0704308569 | M12: 0.02690879714 | N12: 0.01379655471 | O12: 0.002204348506 | P12: 0.03234406144 | Q12: 0.03539754439 | R12: 0.03647402143 | S12: 0.03845141077 | T12: 0.038 | U12: 0.037 | V12: 0.035 | W12: 0.03395 | X12: 0.0330575 | Y12: 0.032298875 | Z12: 0.03165404375 | AA12: 0.03110593719 | AB12: 0.03064004661 | AC12: 0.03024403962 | AD12: 0.02990743368 | AE12: 0.02962131862 | AF12: 0.02937812083 | AG12: 0.02655251346 | AH12: 0.02765888613 | AI12: 0.02607780353 | AJ12: 0.02449691756 | AK12: 0.0234079567 | AL12: 0.02350305639 | AM12: 0.02307526802 | AN12: 0.02277532607 | AO12: 0.02307686139 | AP12: 0.02278801061 | AQ12: 0.02252618499 | AR12: 0.02225126581 | AS12: 0.02192794681 | AT12: 0.0216175068 | AU12: 0.02121896161 | AV12: 0.02077989053 | AW12: 0.02086799555 | AX12: 0.02071537271 | AY12: 0.02018301178 | AZ12: 0.02010131413 | BA12: 0.02010978984 | BB12: 0.01964461079 | BC12: 0.01907666674 | BD12: 0.01829619821 | BE12: 0.01757924934 | BF12: 0.01774389873 | BG12: 0.01697165703 | BH12: 0.016960276 | BI12: 0.01675601239 | BJ12: 0.01702471903
A13: Keskmine kuupalk (€) | B13: 313.6144594 | C13: 352.1531834 | D13: 392.6731686 | E13: 429.6780131 | F13: 465.7241829 | G13: 515.9587386 | H13: 601.2168778 | I13: 724.5024478 | J13: 825.2272059 | K13: 783.81246 | L13: 792.31271 | M13: 839 | N13: 887 | O13: 940.1620455 | P13: 998.3733263 | Q13: 1061.270846 | R13: 1130.253451 | S13: 1203.719925 | T13: 1284.446198 | U13: 1369.798676 | V13: 1457.282443 | W13: 1548.127461 | X13: 1642.62669 | Y13: 1741.083258 | Z13: 1843.81021 | AA13: 1951.130624 | AB13: 2063.378011 | AC13: 2180.896939 | AD13: 2304.043834 | AE13: 2433.187916 | AF13: 2568.712239 | AG13: 2709.66871 | AH13: 2853.11666 | AI13: 2998.365652 | AJ13: 3144.925598 | AK13: 3291.680145 | AL13: 3439.854117 | AM13: 3590.558365 | AN13: 3744.230514 | AO13: 3902.857867 | AP13: 4064.306525 | AQ13: 4225.835024 | AR13: 4392.146585 | AS13: 4563.36386 | AT13: 4743.419891 | AU13: 4927.995113 | AV13: 5122.214048 | AW13: 5327.771359 | AX13: 5538.916158 | AY13: 5757.986247 | AZ13: 5987.68199 | BA13: 6221.262078 | BB13: 6462.118045 | BC13: 6715.568922 | BD13: 6979.251289 | BE13: 7246.181752 | BF13: 7528.102828 | BG13: 7819.038486 | BH13: 8124.31648 | BI13: 8434.410363 | BJ13: 8761.392042
A14: palgakasv | C14: 0.1228856735 | D14: 0.1150635209 | E14: 0.09423828125 | F14: 0.08389112004 | G14: 0.1078633182 | H14: 0.1652421652 | I14: 0.2050600617 | J14: 0.1390261115 | K14: -0.05018587077 | L14: 0.01084474978 | M14: 0.05892533265 | N14: 0.05721096544 | O14: 0.078 | P14: 0.06 | Q14: 0.061 | R14: 0.064 | S14: 0.065 | T14: 0.066 | U14: 0.0664508 | V14: 0.06386615 | W14: 0.06233864817 | X14: 0.06104098739 | Y14: 0.05993849285 | Z14: 0.05900174614 | AA14: 0.05820578137 | AB14: 0.05752940636 | AC14: 0.05695462852 | AD14: 0.05646616917 | AE14: 0.05605105227 | AF14: 0.05569825606 | AG14: 0.05487437186 | AH14: 0.05293929473 | AI14: 0.05090888638 | AJ14: 0.0488799442 | AK14: 0.046663917 | AL14: 0.04501469323 | AM14: 0.04381123248 | AN14: 0.0427989558 | AO14: 0.04236580855 | AP14: 0.04136677878 | AQ14: 0.03974318819 | AR14: 0.03935590469 | AS14: 0.03898259574 | AT14: 0.03945686486 | AU14: 0.03891184559 | AV14: 0.03941134884 | AW14: 0.04013055856 | AX14: 0.03963097983 | AY14: 0.03955107512 | AZ14: 0.03989167974 | BA14: 0.03901010248 | BB14: 0.03871496866 | BC14: 0.0392210226 | BD14: 0.03926433781 | BE14: 0.03824628916 | BF14: 0.03890615578 | BG14: 0.03864661058 | BH14: 0.03904290717 | BI14: 0.03816861195 | BJ14: 0.03876758007
A15: Sotsiaalmaks (mln EUR) | B15: 664.0688712 | C15: 736.8949165 | D15: 818.9935833 | E15: 911.4314931 | F15: 1005.808559 | G15: 1158.911424 | H15: 1389.847277 | I15: 1742.723876 | J15: 2000.379728 | K15: 1794.912393 | L15: 1697.620199 | M15: 1801.433178 | N15: 1932.74691 | O15: 2065 | P15: 2225 | Q15: 2380 | R15: 2550 | S15: 2740 | T15: 2917.907849 | U15: 3102.469745 | V15: 3290.710705 | W15: 3485.361615 | X15: 3687.017194 | Y15: 3896.287414 | Z15: 4113.796649 | AA15: 4340.183667 | AB15: 4576.102242 | AC15: 4804.898963 | AD15: 5059.560255 | AE15: 5327.091458 | AF15: 5595.292918 | AG15: 5881.905346 | AH15: 6161.596063 | AI15: 6441.969387 | AJ15: 6721.917793 | AK15: 7000.284777 | AL15: 7275.871988 | AM15: 7553.376656 | AN15: 7832.192938 | AO15: 8111.686309 | AP15: 8391.195551 | AQ15: 8661.559872 | AR15: 8931.783217 | AS15: 9201.308707 | AT15: 9478.967399 | AU15: 9755.317214 | AV15: 10039.72373 | AW15: 10332.42184 | AX15: 10623.09353 | AY15: 10921.9424 | AZ15: 11229.19848 | BA15: 11533.80172 | BB15: 11846.66762 | BC15: 12180.11578 | BD15: 12535.38539 | BE15: 12901.01751 | BF15: 13290.48633 | BG15: 13705.28241 | BH15: 14147.01737 | BI15: 14602.98989 | BJ15: 15088.5685
Q16: THI 2014.a suvine majandusprognoos
A17: Kuni 2017. aastani RM suvine majandusprognoos 2013 (valminud 02.09.2013), mida on RM hinnangute kohaselt pikendatud aastani 2030 | O17: palga nominaalkasv 2014.a majandusprognoos
A18: Edasi on kasutatud Euroopa Liidu majanduspoliitika komitee (Economic Policy Committee) poolt kokku lepitud, kogu ELi kohta ühtsetel alustel loodud eeldusi eelarvepoliitika pikaajalise jätkusuutlikkuse hindamiseks.
A19: Allikad:
A20: Rahandusministeerium
A21: European Commission. The 2012 Ageing Report: Underlying Assumptions and Projection Methodologies.
A22: http://ec.europa.eu/economy_finance/publications/european_economy/2011/ee4_en.htm

Sheet EE_kum (hidden)
A1: 2013suvine.pr. | B1: 2000 | C1: 2001 | D1: 2002 | E1: 2003 | F1: 2004 | G1: 2005 | H1: 2006 | I1: 2007 | J1: 2008 | K1: 2009 | L1: 2010 | M1: 2011 | N1: 2012 | O1: 2013 | P1: 2014 | Q1: 2015 | R1: 2016 | S1: 2017 | T1: 2018 | U1: 2019 | V1: 2020 | W1: 2021 | X1: 2022 | Y1: 2023 | Z1: 2024 | AA1: 2025 | AB1: 2026 | AC1: 2027 | AD1: 2028 | AE1: 2029 | AF1: 2030 | AG1: 2031 | AH1: 2032 | AI1: 2033 | AJ1: 2034 | AK1: 2035 | AL1: 2036 | AM1: 2037 | AN1: 2038 | AO1: 2039 | AP1: 2040 | AQ1: 2041 | AR1: 2042 | AS1: 2043
A2: THI | B2: 0.04 | C2: 0.058 | D2: 0.036 | E2: 0.013 | F2: 0.03 | G2: 0.041 | H2: 0.044 | I2: 0.066 | J2: 0.104 | K2: -0.001 | L2: 0.03 | M2: 0.05 | N2: =+EE!C5 -> 0.039 | O2: =+EE!D5 -> 0.028 | P2: =+EE!E5 -> -0.001 | Q2: =+EE!F5 -> 0.002 | R2: =+EE!G5 -> 0.022 | S2: =+EE!H5 -> 0.027 | T2: =+EE!I5 -> 0.029 | U2: =+EE!J5 -> 0.026 | V2: =+EE!K5 -> 0.027 | W2: =+EE!L5 -> 0.027 | X2: =+EE!M5 -> 0.027 | Y2: =+EE!N5 -> 0.02656601875 | Z2: =+EE!O5 -> 0.02633111594 | AA2: =+EE!P5 -> 0.02613144855 | AB2: =+EE!Q5 -> 0.02596173126 | AC2: =+EE!#REF! ->  | AD2: =+EE!#REF! ->  | AE2: =+EE!#REF! ->  | AF2: =+EE!#REF! ->  | AG2: =+EE!#REF! ->  | AH2: =+EE!#REF! ->  | AI2: =+EE!#REF! ->  | AJ2: =+EE!#REF! ->  | AK2: =+EE!#REF! ->  | AL2: =+EE!#REF! ->  | AM2: =+EE!#REF! ->  | AN2: =+EE!#REF! ->  | AO2: =+EE!#REF! ->  | AP2: =+EE!#REF! ->  | AQ2: =+EE!#REF! ->  | AR2: =+EE!#REF! ->  | AS2: =+EE!#REF! -> 
A3: kum THI 2000 | B3: 1 | C3: =+B3*(1+C2) -> 1.058 | D3: =+C3*(1+D2) -> 1.096088 | E3: =+D3*(1+E2) -> 1.110337144 | F3: =+E3*(1+F2) -> 1.143647258 | G3: =+F3*(1+G2) -> 1.190536796 | H3: =+G3*(1+H2) -> 1.242920415 | I3: =+H3*(1+I2) -> 1.324953162 | J3: =+I3*(1+J2) -> 1.462748291 | K3: =+J3*(1+K2) -> 1.461285543 | L3: =+K3*(1+L2) -> 1.505124109 | M3: =+L3*(1+M2) -> 1.580380315 | N3: =+M3*(1+N2) -> 1.642015147 | O3: =+N3*(1+O2) -> 1.687991571 | P3: =+O3*(1+P2) -> 1.686303579 | Q3: =+P3*(1+Q2) -> 1.689676187 | R3: =+Q3*(1+R2) -> 1.726849063 | S3: =+R3*(1+S2) -> 1.773473987 | T3: =+S3*(1+T2) -> 1.824904733 | U3: =+T3*(1+U2) -> 1.872352256 | V3: =+U3*(1+V2) -> 1.922905767 | W3: =+V3*(1+W2) -> 1.974824223 | X3: =+W3*(1+X2) -> 2.028144477 | Y3: =+X3*(1+Y2) -> 2.082024201 | Z3: =+Y3*(1+Z2) -> 2.136846222 | AA3: =+Z3*(1+AA2) -> 2.192685109 | AB3: =+AA3*(1+AB2) -> 2.24961101 | AC3: =+AB3*(1+AC2) ->  | AD3: =+AC3*(1+AD2) ->  | AE3: =+AD3*(1+AE2) ->  | AF3: =+AE3*(1+AF2) ->  | AG3: =+AF3*(1+AG2) ->  | AH3: =+AG3*(1+AH2) ->  | AI3: =+AH3*(1+AI2) ->  | AJ3: =+AI3*(1+AJ2) ->  | AK3: =+AJ3*(1+AK2) ->  | AL3: =+AK3*(1+AL2) ->  | AM3: =+AL3*(1+AM2) ->  | AN3: =+AM3*(1+AN2) ->  | AO3: =+AN3*(1+AO2) ->  | AP3: =+AO3*(1+AP2) ->  | AQ3: =+AP3*(1+AQ2) ->  | AR3: =+AQ3*(1+AR2) ->  | AS3: =+AR3*(1+AS2) -> 
A4: kum THI 2001 | C4: 1 | D4: =+C4*(1+D2) -> 1.036 | E4: =+D4*(1+E2) -> 1.049468 | F4: =+E4*(1+F2) -> 1.08095204 | G4: =+F4*(1+G2) -> 1.125271074 | H4: =+G4*(1+H2) -> 1.174783001 | I4: =+H4*(1+I2) -> 1.252318679 | J4: =+I4*(1+J2) -> 1.382559822 | K4: =+J4*(1+K2) -> 1.381177262 | L4: =+K4*(1+L2) -> 1.42261258 | M4: =+L4*(1+M2) -> 1.493743209 | N4: =+M4*(1+N2) -> 1.551999194 | O4: =+N4*(1+O2) -> 1.595455171 | P4: =+O4*(1+P2) -> 1.593859716 | Q4: =+P4*(1+Q2) -> 1.597047435 | R4: =+Q4*(1+R2) -> 1.632182479 | S4: =+R4*(1+S2) -> 1.676251406 | T4: =+S4*(1+T2) -> 1.724862697 | U4: =+T4*(1+U2) -> 1.769709127 | V4: =+U4*(1+V2) -> 1.817491273 | W4: =+V4*(1+W2) -> 1.866563538 | X4: =+W4*(1+X2) -> 1.916960753 | Y4: =+X4*(1+Y2) -> 1.967886768 | Z4: =+Y4*(1+Z2) -> 2.019703423 | AA4: =+Z4*(1+AA2) -> 2.072481199 | AB4: =+AA4*(1+AB2) -> 2.126286399 | AC4: =+AB4*(1+AC2) ->  | AD4: =+AC4*(1+AD2) ->  | AE4: =+AD4*(1+AE2) ->  | AF4: =+AE4*(1+AF2) ->  | AG4: =+AF4*(1+AG2) ->  | AH4: =+AG4*(1+AH2) ->  | AI4: =+AH4*(1+AI2) ->  | AJ4: =+AI4*(1+AJ2) ->  | AK4: =+AJ4*(1+AK2) ->  | AL4: =+AK4*(1+AL2) ->  | AM4: =+AL4*(1+AM2) ->  | AN4: =+AM4*(1+AN2) ->  | AO4: =+AN4*(1+AO2) ->  | AP4: =+AO4*(1+AP2) ->  | AQ4: =+AP4*(1+AQ2) ->  | AR4: =+AQ4*(1+AR2) ->  | AS4: =+AR4*(1+AS2) -> 
A5: kum THI 2002 | D5: 1 | E5: =+D5*(1+E2) -> 1.013 | F5: =+E5*(1+F2) -> 1.04339 | G5: =+F5*(1+G2) -> 1.08616899 | H5: =+G5*(1+H2) -> 1.133960426 | I5: =+H5*(1+I2) -> 1.208801814 | J5: =+I5*(1+J2) -> 1.334517202 | K5: =+J5*(1+K2) -> 1.333182685 | L5: =+K5*(1+L2) -> 1.373178166 | M5: =+L5*(1+M2) -> 1.441837074 | N5: =+M5*(1+N2) -> 1.49806872 | O5: =+N5*(1+O2) -> 1.540014644 | P5: =+O5*(1+P2) -> 1.538474629 | Q5: =+P5*(1+Q2) -> 1.541551579 | R5: =+Q5*(1+R2) -> 1.575465713 | S5: =+R5*(1+S2) -> 1.618003288 | T5: =+S5*(1+T2) -> 1.664925383 | U5: =+T5*(1+U2) -> 1.708213443 | V5: =+U5*(1+V2) -> 1.754335206 | W5: =+V5*(1+W2) -> 1.801702256 | X5: =+W5*(1+X2) -> 1.850348217 | Y5: =+X5*(1+Y2) -> 1.899504603 | Z5: =+Y5*(1+Z2) -> 1.949520679 | AA5: =+Z5*(1+AA2) -> 2.000464478 | AB5: =+AA5*(1+AB2) -> 2.052399999 | AC5: =+AB5*(1+AC2) ->  | AD5: =+AC5*(1+AD2) ->  | AE5: =+AD5*(1+AE2) ->  | AF5: =+AE5*(1+AF2) ->  | AG5: =+AF5*(1+AG2) ->  | AH5: =+AG5*(1+AH2) ->  | AI5: =+AH5*(1+AI2) ->  | AJ5: =+AI5*(1+AJ2) ->  | AK5: =+AJ5*(1+AK2) ->  | AL5: =+AK5*(1+AL2) ->  | AM5: =+AL5*(1+AM2) ->  | AN5: =+AM5*(1+AN2) ->  | AO5: =+AN5*(1+AO2) ->  | AP5: =+AO5*(1+AP2) ->  | AQ5: =+AP5*(1+AQ2) ->  | AR5: =+AQ5*(1+AR2) ->  | AS5: =+AR5*(1+AS2) -> 
A6: kum THI 2003 | E6: 1 | F6: =+E6*(1+F2) -> 1.03 | G6: =+F6*(1+G2) -> 1.07223 | H6: =+G6*(1+H2) -> 1.11940812 | I6: =+H6*(1+I2) -> 1.193289056 | J6: =+I6*(1+J2) -> 1.317391118 | K6: =+J6*(1+K2) -> 1.316073727 | L6: =+K6*(1+L2) -> 1.355555938 | M6: =+L6*(1+M2) -> 1.423333735 | N6: =+M6*(1+N2) -> 1.478843751 | O6: =+N6*(1+O2) -> 1.520251376 | P6: =+O6*(1+P2) -> 1.518731125 | Q6: =+P6*(1+Q2) -> 1.521768587 | R6: =+Q6*(1+R2) -> 1.555247496 | S6: =+R6*(1+S2) -> 1.597239178 | T6: =+S6*(1+T2) -> 1.643559114 | U6: =+T6*(1+U2) -> 1.686291651 | V6: =+U6*(1+V2) -> 1.731821526 | W6: =+V6*(1+W2) -> 1.778580707 | X6: =+W6*(1+X2) -> 1.826602386 | Y6: =+X6*(1+Y2) -> 1.875127939 | Z6: =+Y6*(1+Z2) -> 1.924502151 | AA6: =+Z6*(1+AA2) -> 1.97479218 | AB6: =+AA6*(1+AB2) -> 2.026061203 | AC6: =+AB6*(1+AC2) ->  | AD6: =+AC6*(1+AD2) ->  | AE6: =+AD6*(1+AE2) ->  | AF6: =+AE6*(1+AF2) ->  | AG6: =+AF6*(1+AG2) ->  | AH6: =+AG6*(1+AH2) ->  | AI6: =+AH6*(1+AI2) ->  | AJ6: =+AI6*(1+AJ2) ->  | AK6: =+AJ6*(1+AK2) ->  | AL6: =+AK6*(1+AL2) ->  | AM6: =+AL6*(1+AM2) ->  | AN6: =+AM6*(1+AN2) ->  | AO6: =+AN6*(1+AO2) ->  | AP6: =+AO6*(1+AP2) ->  | AQ6: =+AP6*(1+AQ2) ->  | AR6: =+AQ6*(1+AR2) ->  | AS6: =+AR6*(1+AS2) -> 
A7: kum THI 2004 | F7: 1 | G7: =+F7*(1+G2) -> 1.041 | H7: =+G7*(1+H2) -> 1.086804 | I7: =+H7*(1+I2) -> 1.158533064 | J7: =+I7*(1+J2) -> 1.279020503 | K7: =+J7*(1+K2) -> 1.277741482 | L7: =+K7*(1+L2) -> 1.316073727 | M7: =+L7*(1+M2) -> 1.381877413 | N7: =+M7*(1+N2) -> 1.435770632 | O7: =+N7*(1+O2) -> 1.47597221 | P7: =+O7*(1+P2) -> 1.474496238 | Q7: =+P7*(1+Q2) -> 1.47744523 | R7: =+Q7*(1+R2) -> 1.509949025 | S7: =+R7*(1+S2) -> 1.550717649 | T7: =+S7*(1+T2) -> 1.595688461 | U7: =+T7*(1+U2) -> 1.637176361 | V7: =+U7*(1+V2) -> 1.681380122 | W7: =+V7*(1+W2) -> 1.726777386 | X7: =+W7*(1+X2) -> 1.773400375 | Y7: =+X7*(1+Y2) -> 1.820512563 | Z7: =+Y7*(1+Z2) -> 1.86844869 | AA7: =+Z7*(1+AA2) -> 1.917273961 | AB7: =+AA7*(1+AB2) -> 1.967049712 | AC7: =+AB7*(1+AC2) ->  | AD7: =+AC7*(1+AD2) ->  | AE7: =+AD7*(1+AE2) ->  | AF7: =+AE7*(1+AF2) ->  | AG7: =+AF7*(1+AG2) ->  | AH7: =+AG7*(1+AH2) ->  | AI7: =+AH7*(1+AI2) ->  | AJ7: =+AI7*(1+AJ2) ->  | AK7: =+AJ7*(1+AK2) ->  | AL7: =+AK7*(1+AL2) ->  | AM7: =+AL7*(1+AM2) ->  | AN7: =+AM7*(1+AN2) ->  | AO7: =+AN7*(1+AO2) ->  | AP7: =+AO7*(1+AP2) ->  | AQ7: =+AP7*(1+AQ2) ->  | AR7: =+AQ7*(1+AR2) ->  | AS7: =+AR7*(1+AS2) -> 
A8: kum THI 2005 | G8: 1 | H8: =+G8*(1+H2) -> 1.044 | I8: =+H8*(1+I2) -> 1.112904 | J8: =+I8*(1+J2) -> 1.228646016 | K8: =+J8*(1+K2) -> 1.22741737 | L8: =+K8*(1+L2) -> 1.264239891 | M8: =+L8*(1+M2) -> 1.327451886 | N8: =+M8*(1+N2) -> 1.379222509 | O8: =+N8*(1+O2) -> 1.417840739 | P8: =+O8*(1+P2) -> 1.416422899 | Q8: =+P8*(1+Q2) -> 1.419255744 | R8: =+Q8*(1+R2) -> 1.450479371 | S8: =+R8*(1+S2) -> 1.489642314 | T8: =+S8*(1+T2) -> 1.532841941 | U8: =+T8*(1+U2) -> 1.572695831 | V8: =+U8*(1+V2) -> 1.615158619 | W8: =+V8*(1+W2) -> 1.658767902 | X8: =+W8*(1+X2) -> 1.703554635 | Y8: =+X8*(1+Y2) -> 1.748811299 | Z8: =+Y8*(1+Z2) -> 1.794859452 | AA8: =+Z8*(1+AA2) -> 1.84176173 | AB8: =+AA8*(1+AB2) -> 1.889577053 | AC8: =+AB8*(1+AC2) ->  | AD8: =+AC8*(1+AD2) ->  | AE8: =+AD8*(1+AE2) ->  | AF8: =+AE8*(1+AF2) ->  | AG8: =+AF8*(1+AG2) ->  | AH8: =+AG8*(1+AH2) ->  | AI8: =+AH8*(1+AI2) ->  | AJ8: =+AI8*(1+AJ2) ->  | AK8: =+AJ8*(1+AK2) ->  | AL8: =+AK8*(1+AL2) ->  | AM8: =+AL8*(1+AM2) ->  | AN8: =+AM8*(1+AN2) ->  | AO8: =+AN8*(1+AO2) ->  | AP8: =+AO8*(1+AP2) ->  | AQ8: =+AP8*(1+AQ2) ->  | AR8: =+AQ8*(1+AR2) ->  | AS8: =+AR8*(1+AS2) -> 
A9: kum THI 2006 | H9: 1 | I9: =+H9*(1+I2) -> 1.066 | J9: =+I9*(1+J2) -> 1.176864 | K9: =+J9*(1+K2) -> 1.175687136 | L9: =+K9*(1+L2) -> 1.21095775 | M9: =+L9*(1+M2) -> 1.271505638 | N9: =+M9*(1+N2) -> 1.321094357 | O9: =+N9*(1+O2) -> 1.358084999 | P9: =+O9*(1+P2) -> 1.356726914 | Q9: =+P9*(1+Q2) -> 1.359440368 | R9: =+Q9*(1+R2) -> 1.389348056 | S9: =+R9*(1+S2) -> 1.426860454 | T9: =+S9*(1+T2) -> 1.468239407 | U9: =+T9*(1+U2) -> 1.506413632 | V9: =+U9*(1+V2) -> 1.5470868 | W9: =+V9*(1+W2) -> 1.588858143 | X9: =+W9*(1+X2) -> 1.631757313 | Y9: =+X9*(1+Y2) -> 1.675106609 | Z9: =+Y9*(1+Z2) -> 1.719214035 | AA9: =+Z9*(1+AA2) -> 1.764139588 | AB9: =+AA9*(1+AB2) -> 1.809939706 | AC9: =+AB9*(1+AC2) ->  | AD9: =+AC9*(1+AD2) ->  | AE9: =+AD9*(1+AE2) ->  | AF9: =+AE9*(1+AF2) ->  | AG9: =+AF9*(1+AG2) ->  | AH9: =+AG9*(1+AH2) ->  | AI9: =+AH9*(1+AI2) ->  | AJ9: =+AI9*(1+AJ2) ->  | AK9: =+AJ9*(1+AK2) ->  | AL9: =+AK9*(1+AL2) ->  | AM9: =+AL9*(1+AM2) ->  | AN9: =+AM9*(1+AN2) ->  | AO9: =+AN9*(1+AO2) ->  | AP9: =+AO9*(1+AP2) ->  | AQ9: =+AP9*(1+AQ2) ->  | AR9: =+AQ9*(1+AR2) ->  | AS9: =+AR9*(1+AS2) -> 
A10: kum THI 2007 | I10: 1 | J10: =I10*(1+J2) -> 1.104 | K10: =J10*(1+K2) -> 1.102896 | L10: =K10*(1+L2) -> 1.13598288 | M10: =L10*(1+M2) -> 1.192782024 | N10: =M10*(1+N2) -> 1.239300523 | O10: =N10*(1+O2) -> 1.274000938 | P10: =O10*(1+P2) -> 1.272726937 | Q10: =P10*(1+Q2) -> 1.275272391 | R10: =Q10*(1+R2) -> 1.303328383 | S10: =R10*(1+S2) -> 1.338518249 | T10: =S10*(1+T2) -> 1.377335279 | U10: =T10*(1+U2) -> 1.413145996 | V10: =U10*(1+V2) -> 1.451300938 | W10: =V10*(1+W2) -> 1.490486063 | X10: =W10*(1+X2) -> 1.530729187 | Y10: =X10*(1+Y2) -> 1.571394567 | Z10: =Y10*(1+Z2) -> 1.61277114 | AA10: =Z10*(1+AA2) -> 1.654915186 | AB10: =AA10*(1+AB2) -> 1.697879649 | AC10: =AB10*(1+AC2) ->  | AD10: =AC10*(1+AD2) ->  | AE10: =AD10*(1+AE2) ->  | AF10: =AE10*(1+AF2) ->  | AG10: =AF10*(1+AG2) ->  | AH10: =AG10*(1+AH2) ->  | AI10: =AH10*(1+AI2) ->  | AJ10: =AI10*(1+AJ2) ->  | AK10: =AJ10*(1+AK2) ->  | AL10: =AK10*(1+AL2) ->  | AM10: =AL10*(1+AM2) ->  | AN10: =AM10*(1+AN2) ->  | AO10: =AN10*(1+AO2) ->  | AP10: =AO10*(1+AP2) ->  | AQ10: =AP10*(1+AQ2) ->  | AR10: =AQ10*(1+AR2) ->  | AS10: =AR10*(1+AS2) -> 
A11: kum THI 2008 | J11: 1 | K11: =J11*(1+K2) -> 0.999 | L11: =K11*(1+L2) -> 1.02897 | M11: =L11*(1+M2) -> 1.0804185 | N11: =M11*(1+N2) -> 1.122554822 | O11: =N11*(1+O2) -> 1.153986357 | P11: =O11*(1+P2) -> 1.15283237 | Q11: =P11*(1+Q2) -> 1.155138035 | R11: =Q11*(1+R2) -> 1.180551072 | S11: =R11*(1+S2) -> 1.212425951 | T11: =S11*(1+T2) -> 1.247586303 | U11: =T11*(1+U2) -> 1.280023547 | V11: =U11*(1+V2) -> 1.314584183 | W11: =V11*(1+W2) -> 1.350077956 | X11: =W11*(1+X2) -> 1.386530061 | Y11: =X11*(1+Y2) -> 1.423364644 | Z11: =Y11*(1+Z2) -> 1.460843424 | AA11: =Z11*(1+AA2) -> 1.499017378 | AB11: =AA11*(1+AB2) -> 1.537934465 | AC11: =AB11*(1+AC2) ->  | AD11: =AC11*(1+AD2) ->  | AE11: =AD11*(1+AE2) ->  | AF11: =AE11*(1+AF2) ->  | AG11: =AF11*(1+AG2) ->  | AH11: =AG11*(1+AH2) ->  | AI11: =AH11*(1+AI2) ->  | AJ11: =AI11*(1+AJ2) ->  | AK11: =AJ11*(1+AK2) ->  | AL11: =AK11*(1+AL2) ->  | AM11: =AL11*(1+AM2) ->  | AN11: =AM11*(1+AN2) ->  | AO11: =AN11*(1+AO2) ->  | AP11: =AO11*(1+AP2) ->  | AQ11: =AP11*(1+AQ2) ->  | AR11: =AQ11*(1+AR2) ->  | AS11: =AR11*(1+AS2) -> 
A12: kum THI 2009 | K12: 1 | L12: =+K12*(1+L2) -> 1.03 | M12: =+L12*(1+M2) -> 1.0815 | N12: =+M12*(1+N2) -> 1.1236785 | O12: =+N12*(1+O2) -> 1.155141498 | P12: =+O12*(1+P2) -> 1.153986357 | Q12: =+P12*(1+Q2) -> 1.156294329 | R12: =+Q12*(1+R2) -> 1.181732804 | S12: =+R12*(1+S2) -> 1.21363959 | T12: =+S12*(1+T2) -> 1.248835138 | U12: =+T12*(1+U2) -> 1.281304852 | V12: =+U12*(1+V2) -> 1.315900083 | W12: =+V12*(1+W2) -> 1.351429385 | X12: =+W12*(1+X2) -> 1.387917979 | Y12: =+X12*(1+Y2) -> 1.424789434 | Z12: =+Y12*(1+Z2) -> 1.462305729 | AA12: =+Z12*(1+AA2) -> 1.500517896 | AB12: =+AA12*(1+AB2) -> 1.539473939 | AC12: =+AB12*(1+AC2) ->  | AD12: =+AC12*(1+AD2) ->  | AE12: =+AD12*(1+AE2) ->  | AF12: =+AE12*(1+AF2) ->  | AG12: =+AF12*(1+AG2) ->  | AH12: =+AG12*(1+AH2) ->  | AI12: =+AH12*(1+AI2) ->  | AJ12: =+AI12*(1+AJ2) ->  | AK12: =+AJ12*(1+AK2) ->  | AL12: =+AK12*(1+AL2) ->  | AM12: =+AL12*(1+AM2) ->  | AN12: =+AM12*(1+AN2) ->  | AO12: =+AN12*(1+AO2) ->  | AP12: =+AO12*(1+AP2) ->  | AQ12: =+AP12*(1+AQ2) ->  | AR12: =+AQ12*(1+AR2) ->  | AS12: =+AR12*(1+AS2) -> 
A13: kum THI 2010 | L13: 1 | M13: =L13*(1+M2) -> 1.05 | N13: =M13*(1+N2) -> 1.09095 | O13: =N13*(1+O2) -> 1.1214966 | P13: =O13*(1+P2) -> 1.120375103 | Q13: =P13*(1+Q2) -> 1.122615854 | R13: =Q13*(1+R2) -> 1.147313402 | S13: =R13*(1+S2) -> 1.178290864 | T13: =S13*(1+T2) -> 1.212461299 | U13: =T13*(1+U2) -> 1.243985293 | V13: =U13*(1+V2) -> 1.277572896 | W13: =V13*(1+W2) -> 1.312067364 | X13: =W13*(1+X2) -> 1.347493183 | Y13: =X13*(1+Y2) -> 1.383290712 | Z13: =Y13*(1+Z2) -> 1.4197143 | AA13: =Z13*(1+AA2) -> 1.456813492 | AB13: =AA13*(1+AB2) -> 1.494634892 | AC13: =AB13*(1+AC2) ->  | AD13: =AC13*(1+AD2) ->  | AE13: =AD13*(1+AE2) ->  | AF13: =AE13*(1+AF2) ->  | AG13: =AF13*(1+AG2) ->  | AH13: =AG13*(1+AH2) ->  | AI13: =AH13*(1+AI2) ->  | AJ13: =AI13*(1+AJ2) ->  | AK13: =AJ13*(1+AK2) ->  | AL13: =AK13*(1+AL2) ->  | AM13: =AL13*(1+AM2) ->  | AN13: =AM13*(1+AN2) ->  | AO13: =AN13*(1+AO2) ->  | AP13: =AO13*(1+AP2) ->  | AQ13: =AP13*(1+AQ2) ->  | AR13: =AQ13*(1+AR2) ->  | AS13: =AR13*(1+AS2) -> 
A14: kum THI 2011 | M14: 1 | N14: =M14*(1+N2) -> 1.039 | O14: =N14*(1+O2) -> 1.068092 | P14: =O14*(1+P2) -> 1.067023908 | Q14: =P14*(1+Q2) -> 1.069157956 | R14: =Q14*(1+R2) -> 1.092679431 | S14: =R14*(1+S2) -> 1.122181775 | T14: =S14*(1+T2) -> 1.154725047 | U14: =T14*(1+U2) -> 1.184747898 | V14: =U14*(1+V2) -> 1.216736091 | W14: =V14*(1+W2) -> 1.249587966 | X14: =W14*(1+X2) -> 1.283326841 | Y14: =X14*(1+Y2) -> 1.317419726 | Z14: =Y14*(1+Z2) -> 1.352108857 | AA14: =Z14*(1+AA2) -> 1.38744142 | AB14: =AA14*(1+AB2) -> 1.423461802 | AC14: =AB14*(1+AC2) ->  | AD14: =AC14*(1+AD2) ->  | AE14: =AD14*(1+AE2) ->  | AF14: =AE14*(1+AF2) ->  | AG14: =AF14*(1+AG2) ->  | AH14: =AG14*(1+AH2) ->  | AI14: =AH14*(1+AI2) ->  | AJ14: =AI14*(1+AJ2) ->  | AK14: =AJ14*(1+AK2) ->  | AL14: =AK14*(1+AL2) ->  | AM14: =AL14*(1+AM2) ->  | AN14: =AM14*(1+AN2) ->  | AO14: =AN14*(1+AO2) ->  | AP14: =AO14*(1+AP2) ->  | AQ14: =AP14*(1+AQ2) ->  | AR14: =AQ14*(1+AR2) ->  | AS14: =AR14*(1+AS2) -> 
A15: kum THI 2012 | N15: 1 | O15: =N15*(1+O2) -> 1.028 | P15: =O15*(1+P2) -> 1.026972 | Q15: =P15*(1+Q2) -> 1.029025944 | R15: =Q15*(1+R2) -> 1.051664515 | S15: =R15*(1+S2) -> 1.080059457 | T15: =S15*(1+T2) -> 1.111381181 | U15: =T15*(1+U2) -> 1.140277092 | V15: =U15*(1+V2) -> 1.171064573 | W15: =V15*(1+W2) -> 1.202683317 | X15: =W15*(1+X2) -> 1.235155766 | Y15: =X15*(1+Y2) -> 1.267968937 | Z15: =Y15*(1+Z2) -> 1.301355974 | AA15: =Z15*(1+AA2) -> 1.335362291 | AB15: =AA15*(1+AB2) -> 1.370030608 | AC15: =AB15*(1+AC2) ->  | AD15: =AC15*(1+AD2) ->  | AE15: =AD15*(1+AE2) ->  | AF15: =AE15*(1+AF2) ->  | AG15: =AF15*(1+AG2) ->  | AH15: =AG15*(1+AH2) ->  | AI15: =AH15*(1+AI2) ->  | AJ15: =AI15*(1+AJ2) ->  | AK15: =AJ15*(1+AK2) ->  | AL15: =AK15*(1+AL2) ->  | AM15: =AL15*(1+AM2) ->  | AN15: =AM15*(1+AN2) ->  | AO15: =AN15*(1+AO2) ->  | AP15: =AO15*(1+AP2) ->  | AQ15: =AP15*(1+AQ2) ->  | AR15: =AQ15*(1+AR2) ->  | AS15: =AR15*(1+AS2) -> 
A16: kum THI 2013 | O16: 1 | P16: =+O16*(1+P2) -> 0.999 | Q16: =+P16*(1+Q2) -> 1.000998 | R16: =+Q16*(1+R2) -> 1.023019956 | S16: =+R16*(1+S2) -> 1.050641495 | T16: =+S16*(1+T2) -> 1.081110098 | U16: =+T16*(1+U2) -> 1.109218961 | V16: =+U16*(1+V2) -> 1.139167873 | W16: =+V16*(1+W2) -> 1.169925405 | X16: =+W16*(1+X2) -> 1.201513391 | Y16: =+X16*(1+Y2) -> 1.233432818 | Z16: =+Y16*(1+Z2) -> 1.265910481 | AA16: =+Z16*(1+AA2) -> 1.298990556 | AB16: =+AA16*(1+AB2) -> 1.332714599 | AC16: =+AB16*(1+AC2) ->  | AD16: =+AC16*(1+AD2) ->  | AE16: =+AD16*(1+AE2) ->  | AF16: =+AE16*(1+AF2) ->  | AG16: =+AF16*(1+AG2) ->  | AH16: =+AG16*(1+AH2) ->  | AI16: =+AH16*(1+AI2) ->  | AJ16: =+AI16*(1+AJ2) ->  | AK16: =+AJ16*(1+AK2) ->  | AL16: =+AK16*(1+AL2) ->  | AM16: =+AL16*(1+AM2) ->  | AN16: =+AM16*(1+AN2) ->  | AO16: =+AN16*(1+AO2) ->  | AP16: =+AO16*(1+AP2) ->  | AQ16: =+AP16*(1+AQ2) ->  | AR16: =+AQ16*(1+AR2) ->  | AS16: =+AR16*(1+AS2) -> 
A17: kum THI 2014 | P17: 1 | Q17: =+P17*(1+Q2) -> 1.002 | R17: =+Q17*(1+R2) -> 1.024044 | S17: =+R17*(1+S2) -> 1.051693188 | T17: =+S17*(1+T2) -> 1.08219229 | U17: =+T17*(1+U2) -> 1.11032929 | V17: =+U17*(1+V2) -> 1.140308181 | W17: =+V17*(1+W2) -> 1.171096502 | X17: =+W17*(1+X2) -> 1.202716107 | Y17: =+X17*(1+Y2) -> 1.234667486 | Z17: =+Y17*(1+Z2) -> 1.267177659 | AA17: =+Z17*(1+AA2) -> 1.300290846 | AB17: =+AA17*(1+AB2) -> 1.334048648 | AC17: =+AB17*(1+AC2) ->  | AD17: =+AC17*(1+AD2) ->  | AE17: =+AD17*(1+AE2) ->  | AF17: =+AE17*(1+AF2) ->  | AG17: =+AF17*(1+AG2) ->  | AH17: =+AG17*(1+AH2) ->  | AI17: =+AH17*(1+AI2) ->  | AJ17: =+AI17*(1+AJ2) ->  | AK17: =+AJ17*(1+AK2) ->  | AL17: =+AK17*(1+AL2) ->  | AM17: =+AL17*(1+AM2) ->  | AN17: =+AM17*(1+AN2) ->  | AO17: =+AN17*(1+AO2) ->  | AP17: =+AO17*(1+AP2) ->  | AQ17: =+AP17*(1+AQ2) ->  | AR17: =+AQ17*(1+AR2) ->  | AS17: =+AR17*(1+AS2) -> 
A18: kum THI 2015 | Q18: 1 | R18: =+Q18*(1+R2) -> 1.022 | S18: =+R18*(1+S2) -> 1.049594 | T18: =+S18*(1+T2) -> 1.080032226 | U18: =+T18*(1+U2) -> 1.108113064 | V18: =+U18*(1+V2) -> 1.138032117 | W18: =+V18*(1+W2) -> 1.168758984 | X18: =+W18*(1+X2) -> 1.200315476 | Y18: =+X18*(1+Y2) -> 1.23220308 | Z18: =+Y18*(1+Z2) -> 1.264648362 | AA18: =+Z18*(1+AA2) -> 1.297695456 | AB18: =+AA18*(1+AB2) -> 1.331385876 | AC18: =+AB18*(1+AC2) ->  | AD18: =+AC18*(1+AD2) ->  | AE18: =+AD18*(1+AE2) ->  | AF18: =+AE18*(1+AF2) ->  | AG18: =+AF18*(1+AG2) ->  | AH18: =+AG18*(1+AH2) ->  | AI18: =+AH18*(1+AI2) ->  | AJ18: =+AI18*(1+AJ2) ->  | AK18: =+AJ18*(1+AK2) ->  | AL18: =+AK18*(1+AL2) ->  | AM18: =+AL18*(1+AM2) ->  | AN18: =+AM18*(1+AN2) ->  | AO18: =+AN18*(1+AO2) ->  | AP18: =+AO18*(1+AP2) ->  | AQ18: =+AP18*(1+AQ2) ->  | AR18: =+AQ18*(1+AR2) ->  | AS18: =+AR18*(1+AS2) -> 
A19: kum THI 2016 | R19: 1 | S19: =+R19*(1+S2) -> 1.027 | T19: =+S19*(1+T2) -> 1.056783 | U19: =+T19*(1+U2) -> 1.084259358 | V19: =+U19*(1+V2) -> 1.113534361 | W19: =+V19*(1+W2) -> 1.143599788 | X19: =+W19*(1+X2) -> 1.174476983 | Y19: =+X19*(1+Y2) -> 1.20567816 | Z19: =+Y19*(1+Z2) -> 1.237425012 | AA19: =+Z19*(1+AA2) -> 1.26976072 | AB19: =+AA19*(1+AB2) -> 1.302725906 | AC19: =+AB19*(1+AC2) ->  | AD19: =+AC19*(1+AD2) ->  | AE19: =+AD19*(1+AE2) ->  | AF19: =+AE19*(1+AF2) ->  | AG19: =+AF19*(1+AG2) ->  | AH19: =+AG19*(1+AH2) ->  | AI19: =+AH19*(1+AI2) ->  | AJ19: =+AI19*(1+AJ2) ->  | AK19: =+AJ19*(1+AK2) ->  | AL19: =+AK19*(1+AL2) ->  | AM19: =+AL19*(1+AM2) ->  | AN19: =+AM19*(1+AN2) ->  | AO19: =+AN19*(1+AO2) ->  | AP19: =+AO19*(1+AP2) ->  | AQ19: =+AP19*(1+AQ2) ->  | AR19: =+AQ19*(1+AR2) ->  | AS19: =+AR19*(1+AS2) -> 
A20: kum THI 2017 | S20: 1 | T20: =S20*(1+T2) -> 1.029 | U20: =T20*(1+U2) -> 1.055754 | V20: =U20*(1+V2) -> 1.084259358 | W20: =V20*(1+W2) -> 1.113534361 | X20: =W20*(1+X2) -> 1.143599788 | Y20: =X20*(1+Y2) -> 1.173980682 | Z20: =Y20*(1+Z2) -> 1.204892903 | AA20: =Z20*(1+AA2) -> 1.2363785 | AB20: =AA20*(1+AB2) -> 1.268477027 | AC20: =AB20*(1+AC2) ->  | AD20: =AC20*(1+AD2) ->  | AE20: =AD20*(1+AE2) ->  | AF20: =AE20*(1+AF2) ->  | AG20: =AF20*(1+AG2) ->  | AH20: =AG20*(1+AH2) ->  | AI20: =AH20*(1+AI2) ->  | AJ20: =AI20*(1+AJ2) ->  | AK20: =AJ20*(1+AK2) ->  | AL20: =AK20*(1+AL2) ->  | AM20: =AL20*(1+AM2) ->  | AN20: =AM20*(1+AN2) ->  | AO20: =AN20*(1+AO2) ->  | AP20: =AO20*(1+AP2) ->  | AQ20: =AP20*(1+AQ2) ->  | AR20: =AQ20*(1+AR2) ->  | AS20: =AR20*(1+AS2) -> 
A21: kum THI 2018 | T21: 1 | U21: =T21*(1+U2) -> 1.026 | V21: =U21*(1+V2) -> 1.053702 | W21: =V21*(1+W2) -> 1.082151954 | X21: =W21*(1+X2) -> 1.111370057 | Y21: =X21*(1+Y2) -> 1.140894735 | Z21: =Y21*(1+Z2) -> 1.170935766 | AA21: =Z21*(1+AA2) -> 1.201534014 | AB21: =AA21*(1+AB2) -> 1.232727917 | AC21: =AB21*(1+AC2) ->  | AD21: =AC21*(1+AD2) ->  | AE21: =AD21*(1+AE2) ->  | AF21: =AE21*(1+AF2) ->  | AG21: =AF21*(1+AG2) ->  | AH21: =AG21*(1+AH2) ->  | AI21: =AH21*(1+AI2) ->  | AJ21: =AI21*(1+AJ2) ->  | AK21: =AJ21*(1+AK2) ->  | AL21: =AK21*(1+AL2) ->  | AM21: =AL21*(1+AM2) ->  | AN21: =AM21*(1+AN2) ->  | AO21: =AN21*(1+AO2) ->  | AP21: =AO21*(1+AP2) ->  | AQ21: =AP21*(1+AQ2) ->  | AR21: =AQ21*(1+AR2) ->  | AS21: =AR21*(1+AS2) -> 
A22: kum THI 2019 | U22: 1 | V22: =+U22*(1+V2) -> 1.027 | W22: =+V22*(1+W2) -> 1.054729 | X22: =+W22*(1+X2) -> 1.083206683 | Y22: =+X22*(1+Y2) -> 1.111983172 | Z22: =+Y22*(1+Z2) -> 1.14126293 | AA22: =+Z22*(1+AA2) -> 1.171085783 | AB22: =+AA22*(1+AB2) -> 1.201489198 | AC22: =+AB22*(1+AC2) ->  | AD22: =+AC22*(1+AD2) ->  | AE22: =+AD22*(1+AE2) ->  | AF22: =+AE22*(1+AF2) ->  | AG22: =+AF22*(1+AG2) ->  | AH22: =+AG22*(1+AH2) ->  | AI22: =+AH22*(1+AI2) ->  | AJ22: =+AI22*(1+AJ2) ->  | AK22: =+AJ22*(1+AK2) ->  | AL22: =+AK22*(1+AL2) ->  | AM22: =+AL22*(1+AM2) ->  | AN22: =+AM22*(1+AN2) ->  | AO22: =+AN22*(1+AO2) ->  | AP22: =+AO22*(1+AP2) ->  | AQ22: =+AP22*(1+AQ2) ->  | AR22: =+AQ22*(1+AR2) ->  | AS22: =+AR22*(1+AS2) -> 
A23: kum THI 2020 | V23: 1 | W23: =+V23*(1+W2) -> 1.027 | X23: =+W23*(1+X2) -> 1.054729 | Y23: =+X23*(1+Y2) -> 1.08274895 | Z23: =+Y23*(1+Z2) -> 1.111258939 | AA23: =+Z23*(1+AA2) -> 1.140297744 | AB23: =+AA23*(1+AB2) -> 1.169901848 | AC23: =+AB23*(1+AC2) ->  | AD23: =+AC23*(1+AD2) ->  | AE23: =+AD23*(1+AE2) ->  | AF23: =+AE23*(1+AF2) ->  | AG23: =+AF23*(1+AG2) ->  | AH23: =+AG23*(1+AH2) ->  | AI23: =+AH23*(1+AI2) ->  | AJ23: =+AI23*(1+AJ2) ->  | AK23: =+AJ23*(1+AK2) ->  | AL23: =+AK23*(1+AL2) ->  | AM23: =+AL23*(1+AM2) ->  | AN23: =+AM23*(1+AN2) ->  | AO23: =+AN23*(1+AO2) ->  | AP23: =+AO23*(1+AP2) ->  | AQ23: =+AP23*(1+AQ2) ->  | AR23: =+AQ23*(1+AR2) ->  | AS23: =+AR23*(1+AS2) -> 
A24: kum THI 2021 | W24: 1 | X24: =+W24*(1+X2) -> 1.027 | Y24: =+X24*(1+Y2) -> 1.054283301 | Z24: =+Y24*(1+Z2) -> 1.082043757 | AA24: =+Z24*(1+AA2) -> 1.110319128 | AB24: =+AA24*(1+AB2) -> 1.139144935 | AC24: =+AB24*(1+AC2) ->  | AD24: =+AC24*(1+AD2) ->  | AE24: =+AD24*(1+AE2) ->  | AF24: =+AE24*(1+AF2) ->  | AG24: =+AF24*(1+AG2) ->  | AH24: =+AG24*(1+AH2) ->  | AI24: =+AH24*(1+AI2) ->  | AJ24: =+AI24*(1+AJ2) ->  | AK24: =+AJ24*(1+AK2) ->  | AL24: =+AK24*(1+AL2) ->  | AM24: =+AL24*(1+AM2) ->  | AN24: =+AM24*(1+AN2) ->  | AO24: =+AN24*(1+AO2) ->  | AP24: =+AO24*(1+AP2) ->  | AQ24: =+AP24*(1+AQ2) ->  | AR24: =+AQ24*(1+AR2) ->  | AS24: =+AR24*(1+AS2) -> 
A25: kum THI 2022 | X25: 1 | Y25: =+X25*(1+Y2) -> 1.026566019 | Z25: =+Y25*(1+Z2) -> 1.053596648 | AA25: =+Z25*(1+AA2) -> 1.081128654 | AB25: =+AA25*(1+AB2) -> 1.109196626 | AC25: =+AB25*(1+AC2) ->  | AD25: =+AC25*(1+AD2) ->  | AE25: =+AD25*(1+AE2) ->  | AF25: =+AE25*(1+AF2) ->  | AG25: =+AF25*(1+AG2) ->  | AH25: =+AG25*(1+AH2) ->  | AI25: =+AH25*(1+AI2) ->  | AJ25: =+AI25*(1+AJ2) ->  | AK25: =+AJ25*(1+AK2) ->  | AL25: =+AK25*(1+AL2) ->  | AM25: =+AL25*(1+AM2) ->  | AN25: =+AM25*(1+AN2) ->  | AO25: =+AN25*(1+AO2) ->  | AP25: =+AO25*(1+AP2) ->  | AQ25: =+AP25*(1+AQ2) ->  | AR25: =+AQ25*(1+AR2) ->  | AS25: =+AR25*(1+AS2) -> 
A26: kum THI 2023 | Y26: 1 | Z26: =+Y26*(1+Z2) -> 1.026331116 | AA26: =+Z26*(1+AA2) -> 1.053150635 | AB26: =+AA26*(1+AB2) -> 1.080492248 | AC26: =+AB26*(1+AC2) ->  | AD26: =+AC26*(1+AD2) ->  | AE26: =+AD26*(1+AE2) ->  | AF26: =+AE26*(1+AF2) ->  | AG26: =+AF26*(1+AG2) ->  | AH26: =+AG26*(1+AH2) ->  | AI26: =+AH26*(1+AI2) ->  | AJ26: =+AI26*(1+AJ2) ->  | AK26: =+AJ26*(1+AK2) ->  | AL26: =+AK26*(1+AL2) ->  | AM26: =+AL26*(1+AM2) ->  | AN26: =+AM26*(1+AN2) ->  | AO26: =+AN26*(1+AO2) ->  | AP26: =+AO26*(1+AP2) ->  | AQ26: =+AP26*(1+AQ2) ->  | AR26: =+AQ26*(1+AR2) ->  | AS26: =+AR26*(1+AS2) -> 
A27: kum THI 2024 | Z27: 1 | AA27: =+Z27*(1+AA2) -> 1.026131449 | AB27: =+AA27*(1+AB2) -> 1.052771597 | AC27: =+AB27*(1+AC2) ->  | AD27: =+AC27*(1+AD2) ->  | AE27: =+AD27*(1+AE2) ->  | AF27: =+AE27*(1+AF2) ->  | AG27: =+AF27*(1+AG2) ->  | AH27: =+AG27*(1+AH2) ->  | AI27: =+AH27*(1+AI2) ->  | AJ27: =+AI27*(1+AJ2) ->  | AK27: =+AJ27*(1+AK2) ->  | AL27: =+AK27*(1+AL2) ->  | AM27: =+AL27*(1+AM2) ->  | AN27: =+AM27*(1+AN2) ->  | AO27: =+AN27*(1+AO2) ->  | AP27: =+AO27*(1+AP2) ->  | AQ27: =+AP27*(1+AQ2) ->  | AR27: =+AQ27*(1+AR2) ->  | AS27: =+AR27*(1+AS2) -> 
A28: kum THI 2025 | AA28: 1 | AB28: =+AA28*(1+AB2) -> 1.025961731 | AC28: =+AB28*(1+AC2) ->  | AD28: =+AC28*(1+AD2) ->  | AE28: =+AD28*(1+AE2) ->  | AF28: =+AE28*(1+AF2) ->  | AG28: =+AF28*(1+AG2) ->  | AH28: =+AG28*(1+AH2) ->  | AI28: =+AH28*(1+AI2) ->  | AJ28: =+AI28*(1+AJ2) ->  | AK28: =+AJ28*(1+AK2) ->  | AL28: =+AK28*(1+AL2) ->  | AM28: =+AL28*(1+AM2) ->  | AN28: =+AM28*(1+AN2) ->  | AO28: =+AN28*(1+AO2) ->  | AP28: =+AO28*(1+AP2) ->  | AQ28: =+AP28*(1+AQ2) ->  | AR28: =+AQ28*(1+AR2) ->  | AS28: =+AR28*(1+AS2) -> 
A29: kum THI 2026 | AB29: 1 | AC29: =+AB29*(1+AC2) ->  | AD29: =+AC29*(1+AD2) ->  | AE29: =+AD29*(1+AE2) ->  | AF29: =+AE29*(1+AF2) ->  | AG29: =+AF29*(1+AG2) ->  | AH29: =+AG29*(1+AH2) ->  | AI29: =+AH29*(1+AI2) ->  | AJ29: =+AI29*(1+AJ2) ->  | AK29: =+AJ29*(1+AK2) ->  | AL29: =+AK29*(1+AL2) ->  | AM29: =+AL29*(1+AM2) ->  | AN29: =+AM29*(1+AN2) ->  | AO29: =+AN29*(1+AO2) ->  | AP29: =+AO29*(1+AP2) ->  | AQ29: =+AP29*(1+AQ2) ->  | AR29: =+AQ29*(1+AR2) ->  | AS29: =+AR29*(1+AS2) -> 
A30: kum THI 2027 | AC30: 1 | AD30: =+AC30*(1+AD2) ->  | AE30: =+AD30*(1+AE2) ->  | AF30: =+AE30*(1+AF2) ->  | AG30: =+AF30*(1+AG2) ->  | AH30: =+AG30*(1+AH2) ->  | AI30: =+AH30*(1+AI2) ->  | AJ30: =+AI30*(1+AJ2) ->  | AK30: =+AJ30*(1+AK2) ->  | AL30: =+AK30*(1+AL2) ->  | AM30: =+AL30*(1+AM2) ->  | AN30: =+AM30*(1+AN2) ->  | AO30: =+AN30*(1+AO2) ->  | AP30: =+AO30*(1+AP2) ->  | AQ30: =+AP30*(1+AQ2) ->  | AR30: =+AQ30*(1+AR2) ->  | AS30: =+AR30*(1+AS2) -> 
A31: kum THI 2028 | AD31: 1 | AE31: =AD31*(1+AE2) ->  | AF31: =AE31*(1+AF2) ->  | AG31: =AF31*(1+AG2) ->  | AH31: =AG31*(1+AH2) ->  | AI31: =AH31*(1+AI2) ->  | AJ31: =AI31*(1+AJ2) ->  | AK31: =AJ31*(1+AK2) ->  | AL31: =AK31*(1+AL2) ->  | AM31: =AL31*(1+AM2) ->  | AN31: =AM31*(1+AN2) ->  | AO31: =AN31*(1+AO2) ->  | AP31: =AO31*(1+AP2) ->  | AQ31: =AP31*(1+AQ2) ->  | AR31: =AQ31*(1+AR2) ->  | AS31: =AR31*(1+AS2) -> 
A32: kum THI 2029 | AE32: 1 | AF32: =AE32*(1+AF2) ->  | AG32: =AF32*(1+AG2) ->  | AH32: =AG32*(1+AH2) ->  | AI32: =AH32*(1+AI2) ->  | AJ32: =AI32*(1+AJ2) ->  | AK32: =AJ32*(1+AK2) ->  | AL32: =AK32*(1+AL2) ->  | AM32: =AL32*(1+AM2) ->  | AN32: =AM32*(1+AN2) ->  | AO32: =AN32*(1+AO2) ->  | AP32: =AO32*(1+AP2) ->  | AQ32: =AP32*(1+AQ2) ->  | AR32: =AQ32*(1+AR2) ->  | AS32: =AR32*(1+AS2) -> 
A33: kum THI 2030 | AF33: 1 | AG33: =AF33*(1+AG2) ->  | AH33: =AG33*(1+AH2) ->  | AI33: =AH33*(1+AI2) ->  | AJ33: =AI33*(1+AJ2) ->  | AK33: =AJ33*(1+AK2) ->  | AL33: =AK33*(1+AL2) ->  | AM33: =AL33*(1+AM2) ->  | AN33: =AM33*(1+AN2) ->  | AO33: =AN33*(1+AO2) ->  | AP33: =AO33*(1+AP2) ->  | AQ33: =AP33*(1+AQ2) ->  | AR33: =AQ33*(1+AR2) ->  | AS33: =AR33*(1+AS2) -> 
A34: kum THI 2031 | AG34: 1 | AH34: =AG34*(1+AH2) ->  | AI34: =AH34*(1+AI2) ->  | AJ34: =AI34*(1+AJ2) ->  | AK34: =AJ34*(1+AK2) ->  | AL34: =AK34*(1+AL2) ->  | AM34: =AL34*(1+AM2) ->  | AN34: =AM34*(1+AN2) ->  | AO34: =AN34*(1+AO2) ->  | AP34: =AO34*(1+AP2) ->  | AQ34: =AP34*(1+AQ2) ->  | AR34: =AQ34*(1+AR2) ->  | AS34: =AR34*(1+AS2) -> 
A35: kum THI 2032 | AH35: 1 | AI35: =AH35*(1+AI2) ->  | AJ35: =AI35*(1+AJ2) ->  | AK35: =AJ35*(1+AK2) ->  | AL35: =AK35*(1+AL2) ->  | AM35: =AL35*(1+AM2) ->  | AN35: =AM35*(1+AN2) ->  | AO35: =AN35*(1+AO2) ->  | AP35: =AO35*(1+AP2) ->  | AQ35: =AP35*(1+AQ2) ->  | AR35: =AQ35*(1+AR2) ->  | AS35: =AR35*(1+AS2) -> 
A36: kum THI 2033 | AI36: 1 | AJ36: =AI36*(1+AJ2) ->  | AK36: =AJ36*(1+AK2) ->  | AL36: =AK36*(1+AL2) ->  | AM36: =AL36*(1+AM2) ->  | AN36: =AM36*(1+AN2) ->  | AO36: =AN36*(1+AO2) ->  | AP36: =AO36*(1+AP2) ->  | AQ36: =AP36*(1+AQ2) ->  | AR36: =AQ36*(1+AR2) ->  | AS36: =AR36*(1+AS2) -> 
A37: kum THI 2034 | AJ37: 1 | AK37: =AJ37*(1+AK2) ->  | AL37: =AK37*(1+AL2) ->  | AM37: =AL37*(1+AM2) ->  | AN37: =AM37*(1+AN2) ->  | AO37: =AN37*(1+AO2) ->  | AP37: =AO37*(1+AP2) ->  | AQ37: =AP37*(1+AQ2) ->  | AR37: =AQ37*(1+AR2) ->  | AS37: =AR37*(1+AS2) -> 
A38: kum THI 2035 | AK38: 1 | AL38: =AK38*(1+AL2) ->  | AM38: =AL38*(1+AM2) ->  | AN38: =AM38*(1+AN2) ->  | AO38: =AN38*(1+AO2) ->  | AP38: =AO38*(1+AP2) ->  | AQ38: =AP38*(1+AQ2) ->  | AR38: =AQ38*(1+AR2) ->  | AS38: =AR38*(1+AS2) -> 
A39: kum THI 2036 | AL39: 1 | AM39: =AL39*(1+AM2) ->  | AN39: =AM39*(1+AN2) ->  | AO39: =AN39*(1+AO2) ->  | AP39: =AO39*(1+AP2) ->  | AQ39: =AP39*(1+AQ2) ->  | AR39: =AQ39*(1+AR2) ->  | AS39: =AR39*(1+AS2) -> 
A40: kum THI 2037 | AM40: 1 | AN40: =AM40*(1+AN2) ->  | AO40: =AN40*(1+AO$2) ->  | AP40: =AO40*(1+AP$2) ->  | AQ40: =AP40*(1+AQ$2) ->  | AR40: =AQ40*(1+AR$2) ->  | AS40: =AR40*(1+AS$2) -> 
A41: kum THI 2038 | AN41: 1 | AO41: =AN41*(1+AO$2) ->  | AP41: =AO41*(1+AP$2) ->  | AQ41: =AP41*(1+AQ$2) ->  | AR41: =AQ41*(1+AR$2) ->  | AS41: =AR41*(1+AS$2) -> 
A42: kum THI 2039 | AO42: 1 | AP42: =AO42*(1+AP$2) ->  | AQ42: =AP42*(1+AQ$2) ->  | AR42: =AQ42*(1+AR$2) ->  | AS42: =AR42*(1+AS$2) -> 
A43: kum THI 2040 | AP43: 1 | AQ43: =AP43*(1+AQ$2) ->  | AR43: =AQ43*(1+AR$2) ->  | AS43: =AR43*(1+AS$2) -> 
A44: kum THI 2041 | AQ44: 1 | AR44: =AQ44*(1+AR$2) ->  | AS44: =AR44*(1+AS$2) -> 
A45: kum THI 2042 | AR45: 1 | AS45: =AR45*(1+AS$2) -> 
A46: kum THI 2043 | AS46: 1
A47: kum THI 2044
A48: kum THI 2045
A49: kum THI 2046
A50: kum THI 2047
A51: kum THI 2048
A52: kum THI 2049
A53: kum THI 2050
A54: kum THI 2051
A55: kum THI 2052
A56: kum THI 2053

Sheet EE
A1: EELDUSED MAJANDUS- JA FINANTSANALÜÜSI KOOSTAMISEL
A2: INDIKAATOR | B2: Ühik | C2: 2012 | D2: 2013 | E2: 2014 | F2: 2015 | G2: 2016 | H2: 2017 | I2: 2018 | J2: 2019 | K2: 2020 | L2: 2021 | M2: 2022 | N2: 2023 | O2: 2024 | P2: 2025 | Q2: 2026
A3: Arvestusperiood | F3: 1 | G3: =+F3+1 -> 2 | H3: =+G3+1 -> 3 | I3: =+H3+1 -> 4 | J3: =+I3+1 -> 5 | K3: =+J3+1 -> 6 | L3: =+K3+1 -> 7 | M3: =+L3+1 -> 8 | N3: =+M3+1 -> 9 | O3: =+N3+1 -> 10 | P3: =+O3+1 -> 11 | Q3: =+P3+1 -> 12
A4: Makromajanduslikud eeldused (Prognoosiperioodil on kasutatud Rahandusministeeriumi prognoose)
A5: THI | B5: % | C5: 0.039 | D5: 0.028 | E5: -0.001 | F5: 0.002 | G5: 0.022 | H5: 0.027 | I5: 0.029 | J5: 0.026 | K5: 0.027 | L5: 0.027 | M5: 0.027 | N5: 0.02656601875 | O5: 0.02633111594 | P5: 0.02613144855 | Q5: 0.02596173126
A6: kum THI | F6: 1 | G6: =+F6*(1+G5) -> 1.022 | H6: =+G6*(1+H5) -> 1.049594 | I6: =+H6*(1+I5) -> 1.080032226 | J6: =+I6*(1+J5) -> 1.108113064 | K6: =+J6*(1+K5) -> 1.138032117 | L6: =+K6*(1+L5) -> 1.168758984 | M6: =+L6*(1+M5) -> 1.200315476 | N6: =+M6*(1+N5) -> 1.23220308 | O6: =+N6*(1+O5) -> 1.264648362 | P6: =+O6*(1+P5) -> 1.297695456 | Q6: =+P6*(1+Q5) -> 1.331385876
A7: Palga nominaalkasv | B7: % | C7: 0.04886769964 | D7: 0.07727272727 | E7: 0.05606540084 | F7: 0.04776280777 | G7: 0.05228585453 | H7: 0.06 | I7: 0.065 | J7: 0.064 | K7: 0.06334603756 | L7: 0.06220753193 | M7: 0.06123980214 | N7: 0.05996912939 | O7: 0.05902785375 | P7: 0.05822802094 | Q7: 0.05754834474
A8: Käibemaks | B8: % | C8: 0.2 | D8: 0.2 | E8: 0.2 | F8: 0.2 | G8: 0.2 | H8: 0.2 | I8: 0.2 | J8: 0.2 | K8: 0.2 | L8: 0.2 | M8: 0.2 | N8: 0.2 | O8: 0.2 | P8: 0.2 | Q8: 0.2
A9: Sotsiaalmajanduslikud eeldused:
A10: Rahvaarv Tahkuranna vallas | B10: in | C10: =+MAHUD!C2 -> 2341 | D10: =+MAHUD!D2 -> 2334 | E10: =+MAHUD!E2 -> 2320 | F10: =+MAHUD!F2 -> 2362 | G10: =+MAHUD!G2 -> 2385.62 | H10: =+MAHUD!H2 -> 2409.4762 | I10: =+MAHUD!I2 -> 2433.570962 | J10: =+MAHUD!J2 -> 2457.906672 | K10: =+MAHUD!K2 -> 2482.485738 | L10: =+MAHUD!L2 -> 2482.485738 | M10: =+MAHUD!M2 -> 2482.485738 | N10: =+MAHUD!N2 -> 2482.485738 | O10: =+MAHUD!O2 -> 2482.485738 | P10: =+MAHUD!P2 -> 2482.485738 | Q10: =+MAHUD!Q2 -> 2482.485738
A11: Leibkonna suurus Tahkuranna vallas | B11: in | C11: 2.44 | D11: =+C11 -> 2.44 | E11: =+D11 -> 2.44 | F11: =+E11 -> 2.44 | G11: =+F11 -> 2.44 | H11: =+G11 -> 2.44 | I11: =+H11 -> 2.44 | J11: =+I11 -> 2.44 | K11: =+J11 -> 2.44 | L11: =+K11 -> 2.44 | M11: =+L11 -> 2.44 | N11: =+M11 -> 2.44 | O11: =+N11 -> 2.44 | P11: =+O11 -> 2.44 | Q11: =+P11 -> 2.44
A12: Leibkonnaliikme aastane netosissetulek | B12: EUR/a | C12: =+STAT!G5*12 -> 4788 | D12: =+STAT!H5*12 -> 4906.8 | E12: =+D12*(1+E7) -> 5181.901709 | F12: =+E12*(1+F7) -> 5429.403884 | G12: =+F12*(1+G7) -> 5713.284906 | H12: =+G12*(1+H7) -> 6056.082 | I12: =+H12*(1+I7) -> 6449.72733 | J12: =+I12*(1+J7) -> 6862.509879 | K12: =+J12*(1+K7) -> 7297.222688 | L12: =+K12*(1+L7) -> 7751.164901 | M12: =+L12*(1+M7) -> 8225.844706 | N12: =+M12*(1+N7) -> 8719.141451 | O12: =+N12*(1+O7) -> 9233.813658 | P12: =+O12*(1+P7) -> 9771.480353 | Q12: =+P12*(1+Q7) -> 10333.81287
A13: Leibkonnaliikme kuine netosissetulek | B13: EUR/kuu | C13: =+C12/12 -> 399 | D13: =+D12/12 -> 408.9 | E13: =+E12/12 -> 431.8251424 | F13: =+F12/12 -> 452.4503237 | G13: =+G12/12 -> 476.1070755 | H13: =+H12/12 -> 504.6735 | I13: =+I12/12 -> 537.4772775 | J13: =+J12/12 -> 571.8758233 | K13: =+K12/12 -> 608.1018906 | L13: =+L12/12 -> 645.9304084 | M13: =+M12/12 -> 685.4870588 | N13: =+N12/12 -> 726.595121 | O13: =+O12/12 -> 769.4844715 | P13: =+P12/12 -> 814.2900294 | Q13: =+Q12/12 -> 861.1510727
A14: 4% leibkonnaliikme kuisest netosissetulekust | B14: EUR/kuu | C14: =+C13*4% -> 15.96 | D14: =+D13*4% -> 16.356 | E14: =+E13*4% -> 17.2730057 | F14: =+F13*4% -> 18.09801295 | G14: =+G13*4% -> 19.04428302 | H14: =+H13*4% -> 20.18694 | I14: =+I13*4% -> 21.4990911 | J14: =+J13*4% -> 22.87503293 | K14: =+K13*4% -> 24.32407563 | L14: =+L13*4% -> 25.83721634 | M14: =+M13*4% -> 27.41948235 | N14: =+N13*4% -> 29.06380484 | O14: =+O13*4% -> 30.77937886 | P14: =+P13*4% -> 32.57160118 | Q14: =+Q13*4% -> 34.44604291
A15: Leibkonnaliikme poolt tarbitav vee kogus | B15: m3/a | C15: =+MAHUD!C8*0.365 -> 25.49803922 | D15: =+MAHUD!D8*0.365 -> 22.35418672 | E15: =+MAHUD!E8*0.365 -> 25.69833948 | F15: =+MAHUD!F8*0.365 -> 25.69833948 | G15: =+MAHUD!G8*0.365 -> 25.69763146 | H15: =+MAHUD!H8*0.365 -> 25.69692662 | I15: =+MAHUD!I8*0.365 -> 25.64872042 | J15: =+MAHUD!J8*0.365 -> 25.64813585 | K15: =+MAHUD!K8*0.365 -> 25.64755384 | L15: =+MAHUD!L8*0.365 -> 25.64697439 | M15: =+MAHUD!M8*0.365 -> 25.64639747 | N15: =+MAHUD!N8*0.365 -> 25.64582306 | O15: =+MAHUD!O8*0.365 -> 25.64525116 | P15: =+MAHUD!P8*0.365 -> 25.64468174 | Q15: =+MAHUD!Q8*0.365 -> 26.00053979
A16: Leibkonnaliikme poolt tarbitava reovee kogus | B16: m3/a | C16: =+MAHUD!C9*0.365 -> 24.91234347 | D16: =+MAHUD!D9*0.365 -> 22.29370629 | E16: =+MAHUD!E9*0.365 -> 24.84108659 | F16: =+MAHUD!F9*0.365 -> 25.02985171 | G16: =+MAHUD!G9*0.365 -> 25.00415698 | H16: =+MAHUD!H9*0.365 -> 25.19892115 | I16: =+MAHUD!I9*0.365 -> 25.29405128 | J16: =+MAHUD!J9*0.365 -> 25.29435865 | K16: =+MAHUD!K9*0.365 -> 25.29466391 | L16: =+MAHUD!L9*0.365 -> 25.29496708 | M16: =+MAHUD!M9*0.365 -> 25.29526818 | N16: =+MAHUD!N9*0.365 -> 25.29556722 | O16: =+MAHUD!O9*0.365 -> 25.29586424 | P16: =+MAHUD!P9*0.365 -> 25.29622667 | Q16: =+MAHUD!Q9*0.365 -> 25.5393423
A17: Eeldused laenude arvestamisel ja diskonteerimisel
A18: Laenu pikkus | B18: a | C18: 20
A19: 6 kuu EURIBOR | B19: % | C19: 0.00186
A20: Reaalne diskonteerimismäär | B20: % | C20: 0.06
A21: Nominaalne diskonteerimismäär (2015-2044) | B21: % | C21: =(1+6%)*(1+AVERAGE(F5:Q5))-1 -> 0.08579247778
A22: Nominaalne diskonteerimismäär (2016-2045) | B22: % | C22: =(1+6%)*(1+AVERAGE(G5:Q5))-1 -> 0.08794452122
A23: Kulumi arvestuste aluseks olevad eluea pikkused vastavalt Määruse Lisale 2
A24: võrgud ja torustikud | B24: a | C24: 40
A25: reservuaarid ja mahutid | B25: a | C25: 40
A26: masinad ja seadmed | B26: a | C26: 15
A27: tootmishooned | B27: a | C27: 40
A28: Teenuste hinnad:
A29: 1. Tasu tarbitud vee eest: | B29: km-ta
A30: Uulu 1,26 eurot/m3 | B30: =1.26/1.2 -> 1.05
A31: Võiste 1,26 eurot/m3 | B31: =1.26/1.2 -> 1.05
A32: Pihla 1,26 eurot/m3 | B32: =1.26/1.2 -> 1.05
A33: Postitee 1,26 eurot/m3 | B33: =1.26/1.2 -> 1.05
A34: Reiu 1,26 eurot/m3 | B34: =1.26/1.2 -> 1.05
A35: 2. Tasu heitvee ärajuhtimise eest: | B35: km-ta
A36: Uulu 1,95 eurot/m3 | B36: =1.95/1.2 -> 1.625
A37: Võiste 1,95 eurot/m3 | B37: =1.95/1.2 -> 1.625
A38: Reiu 1,95 eurot/m3 | B38: =+B37 -> 1.625
A39: Postitee 1,95 eurot/m3 | B39: =1.95/1.2 -> 1.625 | C39: nn Suksumetsa
A40: Pihla 1,95 eurot/m3 | B40: =1.95/1.2 -> 1.625
A41: Hinnad sisaldavad 20% käibemaksu ja hakkasid kehtima 17.09.2014.a.

Sheet KKT (hidden)
A2: Saastetasumäärad saasteainete heitmisel veekogusse, põhjavette ja pinnasesse
A3: Aine | B3: Ühik | D3: 2002 | E3: 2003 | F3: 2004 | G3: 2005 | H3: 2006 | I3: 2007 | J3: 2008 | K3: 2009 | L3: 2010 | M3: 2011 | N3: 2012 | O3: 2013 | P3: 2014 | Q3: 2015 | R3: 2016 | S3: 2017 | T3: 2018 | U3: 2019 | V3: 2020 | W3: 2021 | X3: 2022 | Y3: 2023 | Z3: 2024 | AA3: 2025 | AB3: 2026 | AC3: 2027
A4: BHT7 | B4: EUR/t | D4: 3252 | E4: 3902 | F4: 4683 | G4: 5619 | H4: 11239 | I4: 13487 | J4: 16184 | K4: 19421 | L4: 21363 | M4: 1379 | N4: 1392 | O4: 1406 | P4: 1420 | Q4: 1435 | R4: =+Q4*(1+EE!G$5) -> 1466.57 | S4: =+R4*(1+EE!H$5) -> 1506.16739 | T4: =+S4*(1+EE!I$5) -> 1549.846244 | U4: =+T4*(1+EE!J$5) -> 1590.142247 | V4: =+U4*(1+EE!K$5) -> 1633.076087 | W4: =+V4*(1+EE!L$5) -> 1677.169142 | X4: =+W4*(1+EE!M$5) -> 1722.452709 | Y4: =+X4*(1+EE!N$5) -> 1768.211419 | Z4: =+Y4*(1+EE!O$5) -> 1814.770399 | AA4: =+Z4*(1+EE!P$5) -> 1862.192979 | AB4: =+AA4*(1+EE!Q$5) -> 1910.538732 | AC4: =+AB4*(1+EE!#REF!) -> 
A5: Püld | B5: EUR/t | D5: 4898 | E5: 5878 | F5: 7054 | G5: 8464 | H5: 16929 | I5: 20315 | J5: 24378 | K5: 29523 | L5: 43879 | M5: 4206 | N5: 5468 | O5: 7109 | P5: 9241 | Q5: 12014 | R5: =+Q5*(1+EE!G$5) -> 12278.308 | S5: =+R5*(1+EE!H$5) -> 12609.82232 | T5: =+S5*(1+EE!I$5) -> 12975.50716 | U5: =+T5*(1+EE!J$5) -> 13312.87035 | V5: =+U5*(1+EE!K$5) -> 13672.31785 | W5: =+V5*(1+EE!L$5) -> 14041.47043 | X5: =+W5*(1+EE!M$5) -> 14420.59013 | Y5: =+X5*(1+EE!N$5) -> 14803.6878 | Z5: =+Y5*(1+EE!O$5) -> 15193.48542 | AA5: =+Z5*(1+EE!P$5) -> 15590.5132 | AB5: =+AA5*(1+EE!Q$5) -> 15995.26992 | AC5: =+AB5*(1+EE!#REF!) -> 
A6: Nüld | B6: EUR/t | D6: 3068 | E6: 3682 | F6: 4418 | G6: 5302 | H6: 10604 | I6: 12725 | J6: 15270 | K6: 18324 | L6: 21988 | M6: 1616 | N6: 1858 | O6: 2137 | P6: 2457 | Q6: 2826 | R6: =+Q6*(1+EE!G$5) -> 2888.172 | S6: =+R6*(1+EE!H$5) -> 2966.152644 | T6: =+S6*(1+EE!I$5) -> 3052.171071 | U6: =+T6*(1+EE!J$5) -> 3131.527519 | V6: =+U6*(1+EE!K$5) -> 3216.078762 | W6: =+V6*(1+EE!L$5) -> 3302.912888 | X6: =+W6*(1+EE!M$5) -> 3392.091536 | Y6: =+X6*(1+EE!N$5) -> 3482.205903 | Z6: =+Y6*(1+EE!O$5) -> 3573.896271 | AA6: =+Z6*(1+EE!P$5) -> 3667.287357 | AB6: =+AA6*(1+EE!Q$5) -> 3762.496486 | AC6: =+AB6*(1+EE!#REF!) -> 
A7: heljum | B7: EUR/t | D7: 1644 | E7: 1973 | F7: 2367 | G7: 2841 | H7: 2841 | I7: 3409 | J7: 4091 | K7: 4909 | L7: 5399 | M7: 377.65 | N7: 415.42 | O7: 456.96 | P7: 502.66 | Q7: 552.89 | R7: =+Q7*(1+EE!G$5) -> 565.05358 | S7: =+R7*(1+EE!H$5) -> 580.3100267 | T7: =+S7*(1+EE!I$5) -> 597.1390174 | U7: =+T7*(1+EE!J$5) -> 612.6646319 | V7: =+U7*(1+EE!K$5) -> 629.2065769 | W7: =+V7*(1+EE!L$5) -> 646.1951545 | X7: =+W7*(1+EE!M$5) -> 663.6424237 | Y7: =+X7*(1+EE!N$5) -> 681.2727608 | Z7: =+Y7*(1+EE!O$5) -> 699.2114328 | AA7: =+Z7*(1+EE!P$5) -> 717.4828404 | AB7: =+AA7*(1+EE!Q$5) -> 736.1099371 | AC7: =+AB7*(1+EE!#REF!) -> 
A8: sulfaadid(SO42-) | B8: EUR/t | D8: 33 | E8: 34 | F8: 38 | G8: 40 | H8: 48 | I8: 58 | J8: 69 | K8: 83 | L8: 87 | M8: 5.81 | N8: 6.13 | O8: 6.45 | P8: 6.77 | Q8: 7.09 | R8: =+Q8*(1+EE!G$5) -> 7.24598 | S8: =+R8*(1+EE!H$5) -> 7.44162146 | T8: =+S8*(1+EE!I$5) -> 7.657428482 | U8: =+T8*(1+EE!J$5) -> 7.856521623 | V8: =+U8*(1+EE!K$5) -> 8.068647707 | W8: =+V8*(1+EE!L$5) -> 8.286501195 | X8: =+W8*(1+EE!M$5) -> 8.510236727 | Y8: =+X8*(1+EE!N$5) -> 8.736319835 | Z8: =+Y8*(1+EE!O$5) -> 8.966356886 | AA8: =+Z8*(1+EE!P$5) -> 9.20066078 | AB8: =+AA8*(1+EE!Q$5) -> 9.439525862 | AC8: =+AB8*(1+EE!#REF!) -> 
A9: fenoolid | B9: EUR/t | D9: 21810 | E9: 26172 | F9: 31406 | G9: 37688 | H9: 75375 | I9: 90450 | J9: 108540 | K9: 130250 | L9: 156299 | M9: 11731 | N9: 14077 | O9: 16893 | P9: 20272 | Q9: 24326 | R9: =+Q9*(1+EE!G$5) -> 24861.172 | S9: =+R9*(1+EE!H$5) -> 25532.42364 | T9: =+S9*(1+EE!I$5) -> 26272.86393 | U9: =+T9*(1+EE!J$5) -> 26955.95839 | V9: =+U9*(1+EE!K$5) -> 27683.76927 | W9: =+V9*(1+EE!L$5) -> 28431.23104 | X9: =+W9*(1+EE!M$5) -> 29198.87428 | Y9: =+X9*(1+EE!N$5) -> 29974.57212 | Z9: =+Y9*(1+EE!O$5) -> 30763.83605 | AA9: =+Z9*(1+EE!P$5) -> 31567.73965 | AB9: =+AA9*(1+EE!Q$5) -> 32387.29282 | AC9: =+AB9*(1+EE!#REF!) -> 
A10: nafta(jm vedelsaadused) | B10: EUR/t | D10: 5192 | E10: 6231 | F10: 7477 | G10: 8972 | H10: 17950 | I10: 21530 | J10: 25840 | K10: 31000 | L10: 35650 | M10: 2620 | N10: 3013 | O10: 3465 | P10: 3985 | Q10: 4582 | R10: =+Q10*(1+EE!G$5) -> 4682.804 | S10: =+R10*(1+EE!H$5) -> 4809.239708 | T10: =+S10*(1+EE!I$5) -> 4948.70766 | U10: =+T10*(1+EE!J$5) -> 5077.374059 | V10: =+U10*(1+EE!K$5) -> 5214.463158 | W10: =+V10*(1+EE!L$5) -> 5355.253664 | X10: =+W10*(1+EE!M$5) -> 5499.845512 | Y10: =+X10*(1+EE!N$5) -> 5645.954511 | Z10: =+Y10*(1+EE!O$5) -> 5794.618794 | AA10: =+Z10*(1+EE!P$5) -> 5946.040577 | AB10: =+AA10*(1+EE!Q$5) -> 6100.410085 | AC10: =+AB10*(1+EE!#REF!) -> 
A11: muud ohtlikud ained | B11: EUR/t | H11: 90450 | I11: 108500 | J11: 130000 | K11: 156000 | L11: 179400 | M11: 12039 | N11: 13844 | O11: 15921 | P11: 18309 | Q11: 21056 | R11: =+Q11*(1+EE!G$5) -> 21519.232 | S11: =+R11*(1+EE!H$5) -> 22100.25126 | T11: =+S11*(1+EE!I$5) -> 22741.15855 | U11: =+T11*(1+EE!J$5) -> 23332.42867 | V11: =+U11*(1+EE!K$5) -> 23962.40425 | W11: =+V11*(1+EE!L$5) -> 24609.38916 | X11: =+W11*(1+EE!M$5) -> 25273.84267 | Y11: =+X11*(1+EE!N$5) -> 25945.26805 | Z11: =+Y11*(1+EE!O$5) -> 26628.43591 | AA11: =+Z11*(1+EE!P$5) -> 27324.27551 | AB11: =+AA11*(1+EE!Q$5) -> 28033.66101 | AC11: =+AB11*(1+EE!#REF!) -> 
D12: aastad 2002--2010 kroonides
A13: Saastetasumäärasid suurendatakse: | L13: keskmine tasumäärade kasv: | N13: =SUM(N4:N11)/SUM(M4:M11)-1 -> 0.1795198511 | O13: =SUM(O4:O11)/SUM(N4:N11)-1 -> 0.1826855869 | P13: =SUM(P4:P11)/SUM(O4:O11)-1 -> 0.1856552281 | Q13: =SUM(Q4:Q11)/SUM(P4:P11)-1 -> 0.1887329177 | R13: =SUM(R4:R11)/SUM(Q4:Q11)-1 -> 0.022 | S13: =SUM(S4:S11)/SUM(R4:R11)-1 -> 0.027 | T13: =SUM(T4:T11)/SUM(S4:S11)-1 -> 0.029 | U13: =SUM(U4:U11)/SUM(T4:T11)-1 -> 0.026 | V13: =SUM(V4:V11)/SUM(U4:U11)-1 -> 0.027 | W13: =SUM(W4:W11)/SUM(V4:V11)-1 -> 0.027 | X13: =SUM(X4:X11)/SUM(W4:W11)-1 -> 0.027 | Y13: =SUM(Y4:Y11)/SUM(X4:X11)-1 -> 0.02656601875 | Z13: =SUM(Z4:Z11)/SUM(Y4:Y11)-1 -> 0.02633111594 | AA13: =SUM(AA4:AA11)/SUM(Z4:Z11)-1 -> 0.02613144855 | AB13: =SUM(AB4:AB11)/SUM(AA4:AA11)-1 -> 0.02596173126 | AC13: =SUM(AC4:AC11)/SUM(AB4:AB11)-1 -> 
A14: 1) 2,5 korda - kui saasteaineid heidetakse kaitsmata põhjaveega pinnasesse;
A15: 2) 1,5 korda - kui heitekoht asub linna, alevi või supelranna piirides või lähemal kui 200 meetrit kohaliku omavalitsuse otsusega määratud supelrannale või kui heitekoht on meri, piiriveekogu või lõheliste või karpkalaliste kudemis- või elupaigana kaitstav veekogu;
A16: 3) 1,2 korda - kui heitvesi juhitakse merre süvamerelaskme kaudu.
A17: 4) 1,5 korda - saaste süvamerelaskmest osalise või täieliku möödajuhtimise korral
A18: Vee erikasutusõiguse tasumäärad veevõtu eest pinnaveest või põhjaveekihist
A20: Vee erikasutusõiguse tasumäärad veevõtu eest pinnaveest või põhjaveekihist | B20: Ühik | C20: 2006 | D20: 2007 | E20: 2008 | F20: 2009 | G20: 2010 | H20: 2011 | I20: 2012 | J20: 2013 | K20: 2014 | L20: 2015 | M20: 2016 | N20: 2017 | O20: 2018 | P20: 2019 | Q20: 2020 | R20: 2021 | S20: 2022 | T20: 2023 | U20: 2024 | V20: 2025 | W20: 2026 | X20: 2027
A21: Tallinna veevarustussüsteemi kuuluvad veekogud | B21: EUR/1000m3 | C21: 350 | D21: 360 | E21: 380 | F21: 400 | G21: 440 | H21: 30.93 | I21: 34 | J21: 35.72 | K21: 37.51 | L21: 38.34 | M21: =+L21*(1+EE!G$5) -> 39.18348 | N21: =+M21*(1+EE!H$5) -> 40.24143396 | O21: =+N21*(1+EE!I$5) -> 41.40843554 | P21: =+O21*(1+EE!J$5) -> 42.48505487 | Q21: =+P21*(1+EE!K$5) -> 43.63215135 | R21: =+Q21*(1+EE!L$5) -> 44.81021944 | S21: =+R21*(1+EE!M$5) -> 46.02009536 | T21: =+S21*(1+EE!N$5) -> 47.24266608 | U21: =+T21*(1+EE!O$5) -> 48.4866182 | V21: =+U21*(1+EE!P$5) -> 49.75364376 | W21: =+V21*(1+EE!Q$5) -> 51.04533449 | X21: =+W21*(1+EE!#REF!) -> 
A22: Jahutusvee võtmine Tallinna veevarustussüsteemi kuuluvatest veekogudest | B22: EUR/1000m3 | C22: 60 | D22: 60 | E22: 70 | F22: 80 | G22: 88 | H22: 6.19 | I22: 6.77 | J22: 7.15 | K22: 7.47 | L22: 7.66 | M22: =+L22*(1+EE!G$5) -> 7.82852 | N22: =+M22*(1+EE!H$5) -> 8.03989004 | O22: =+N22*(1+EE!I$5) -> 8.273046851 | P22: =+O22*(1+EE!J$5) -> 8.488146069 | Q22: =+P22*(1+EE!K$5) -> 8.717326013 | R22: =+Q22*(1+EE!L$5) -> 8.952693816 | S22: =+R22*(1+EE!M$5) -> 9.194416549 | T22: =+S22*(1+EE!N$5) -> 9.438675591 | U22: =+T22*(1+EE!O$5) -> 9.687206452 | V22: =+U22*(1+EE!P$5) -> 9.940347189 | W22: =+V22*(1+EE!Q$5) -> 10.19841581 | X22: =+W22*(1+EE!#REF!) -> 
A23: Muud veekogud | B23: EUR/1000m3 | C23: 230 | D23: 250 | E23: 270 | F23: 300 | G23: 330 | H23: 23.19 | I23: 25.5 | J23: 26.77 | K23: 28.12 | L23: 29.52 | M23: =+L23*(1+EE!G$5) -> 30.16944 | N23: =+M23*(1+EE!H$5) -> 30.98401488 | O23: =+N23*(1+EE!I$5) -> 31.88255131 | P23: =+O23*(1+EE!J$5) -> 32.71149765 | Q23: =+P23*(1+EE!K$5) -> 33.59470808 | R23: =+Q23*(1+EE!L$5) -> 34.5017652 | S23: =+R23*(1+EE!M$5) -> 35.43331286 | T23: =+S23*(1+EE!N$5) -> 36.37463491 | U23: =+T23*(1+EE!O$5) -> 37.33241964 | V23: =+U23*(1+EE!P$5) -> 38.30796985 | W23: =+V23*(1+EE!Q$5) -> 39.30251107 | X23: =+W23*(1+EE!#REF!) -> 
A24: Jahutusvee võtmine muudest veekogudest | B24: EUR/1000m3 | C24: 25 | D24: 25 | E24: 25 | F24: 25 | G24: 25 | H24: 1.59 | I24: 1.59 | J24: =+I24 -> 1.59 | K24: =+J24 -> 1.59 | L24: =+K24 -> 1.59 | M24: =+L24*(1+EE!G$5) -> 1.62498 | N24: =+M24*(1+EE!H$5) -> 1.66885446 | O24: =+N24*(1+EE!I$5) -> 1.717251239 | P24: =+O24*(1+EE!J$5) -> 1.761899772 | Q24: =+P24*(1+EE!K$5) -> 1.809471065 | R24: =+Q24*(1+EE!L$5) -> 1.858326784 | S24: =+R24*(1+EE!M$5) -> 1.908501607 | T24: =+S24*(1+EE!N$5) -> 1.959202897 | U24: =+T24*(1+EE!O$5) -> 2.010790895 | V24: =+U24*(1+EE!P$5) -> 2.063335774 | W24: =+V24*(1+EE!Q$5) -> 2.116903543 | X24: =+W24*(1+EE!#REF!) -> 
A25: Põhjaveekihid: | B25: EUR/1000m3 | M25: =+L25*(1+EE!G$5) -> 0 | N25: =+M25*(1+EE!H$5) -> 0 | O25: =+N25*(1+EE!I$5) -> 0 | P25: =+O25*(1+EE!J$5) -> 0 | Q25: =+P25*(1+EE!K$5) -> 0 | R25: =+Q25*(1+EE!L$5) -> 0 | S25: =+R25*(1+EE!M$5) -> 0 | T25: =+S25*(1+EE!N$5) -> 0 | U25: =+T25*(1+EE!O$5) -> 0 | V25: =+U25*(1+EE!P$5) -> 0 | W25: =+V25*(1+EE!Q$5) -> 0 | X25: =+W25*(1+EE!#REF!) -> 
A26: kvaternaari põhjaveekiht (Q) | B26: EUR/1000m3 | C26: 480 | D26: 530 | E26: 580 | F26: 640 | G26: 704 | H26: 49.46 | I26: 54.45 | J26: 57.13 | K26: 60.01 | L26: 63.01 | M26: =+L26*(1+EE!G$5) -> 64.39622 | N26: =+M26*(1+EE!H$5) -> 66.13491794 | O26: =+N26*(1+EE!I$5) -> 68.05283056 | P26: =+O26*(1+EE!J$5) -> 69.82220415 | Q26: =+P26*(1+EE!K$5) -> 71.70740367 | R26: =+Q26*(1+EE!L$5) -> 73.64350357 | S26: =+R26*(1+EE!M$5) -> 75.63187816 | T26: =+S26*(1+EE!N$5) -> 77.64111606 | U26: =+T26*(1+EE!O$5) -> 79.68549328 | V26: =+U26*(1+EE!P$5) -> 81.76779065 | W26: =+V26*(1+EE!Q$5) -> 83.89062406 | X26: =+W26*(1+EE!#REF!) -> 
A27: ülem- ja keskdevoni põhjaveekiht (D3-2) | B27: EUR/1000m3 | C27: 640 | D27: 710 | E27: 780 | F27: 860 | G27: 946 | H27: 66.53 | I27: 73.17 | J27: 76.82 | K27: 80.65 | L27: 84.68 | M27: =+L27*(1+EE!G$5) -> 86.54296 | N27: =+M27*(1+EE!H$5) -> 88.87961992 | O27: =+N27*(1+EE!I$5) -> 91.4571289 | P27: =+O27*(1+EE!J$5) -> 93.83501425 | Q27: =+P27*(1+EE!K$5) -> 96.36855963 | R27: =+Q27*(1+EE!L$5) -> 98.97051074 | S27: =+R27*(1+EE!M$5) -> 101.6427145 | T27: =+S27*(1+EE!N$5) -> 104.3429568 | U27: =+T27*(1+EE!O$5) -> 107.0904233 | V27: =+U27*(1+EE!P$5) -> 109.8888512 | W27: =+V27*(1+EE!Q$5) -> 112.741756 | X27: =+W27*(1+EE!#REF!) -> 
A28: keskdevoni-siluri põhjaveekiht (D2-S) | B28: EUR/1000m3 | C28: 640 | D28: 710 | E28: 780 | F28: 860 | G28: =+G27 -> 946 | H28: =+H27 -> 66.53 | I28: =+I27 -> 73.17 | J28: =+J27 -> 76.82 | K28: =+K27 -> 80.65 | L28: =+L27 -> 84.68 | M28: =+L28*(1+EE!G$5) -> 86.54296 | N28: =+M28*(1+EE!H$5) -> 88.87961992 | O28: =+N28*(1+EE!I$5) -> 91.4571289 | P28: =+O28*(1+EE!J$5) -> 93.83501425 | Q28: =+P28*(1+EE!K$5) -> 96.36855963 | R28: =+Q28*(1+EE!L$5) -> 98.97051074 | S28: =+R28*(1+EE!M$5) -> 101.6427145 | T28: =+S28*(1+EE!N$5) -> 104.3429568 | U28: =+T28*(1+EE!O$5) -> 107.0904233 | V28: =+U28*(1+EE!P$5) -> 109.8888512 | W28: =+V28*(1+EE!Q$5) -> 112.741756 | X28: =+W28*(1+EE!#REF!) -> 
A29: siluri-ordoviitsiumi põhjaveekiht (S-O) | B29: EUR/1000m3 | C29: 640 | D29: 710 | E29: 780 | F29: 860 | G29: =+G28 -> 946 | H29: =+H28 -> 66.53 | I29: =+I28 -> 73.17 | J29: =+J28 -> 76.82 | K29: =+K28 -> 80.65 | L29: =+L28 -> 84.68 | M29: =+L29*(1+EE!G$5) -> 86.54296 | N29: =+M29*(1+EE!H$5) -> 88.87961992 | O29: =+N29*(1+EE!I$5) -> 91.4571289 | P29: =+O29*(1+EE!J$5) -> 93.83501425 | Q29: =+P29*(1+EE!K$5) -> 96.36855963 | R29: =+Q29*(1+EE!L$5) -> 98.97051074 | S29: =+R29*(1+EE!M$5) -> 101.6427145 | T29: =+S29*(1+EE!N$5) -> 104.3429568 | U29: =+T29*(1+EE!O$5) -> 107.0904233 | V29: =+U29*(1+EE!P$5) -> 109.8888512 | W29: =+V29*(1+EE!Q$5) -> 112.741756 | X29: =+W29*(1+EE!#REF!) -> 
A30: ordoviitsiumi-kambriumi põhjaveekiht (O-E) | B30: EUR/1000m3 | C30: 640 | D30: 710 | E30: 780 | F30: 860 | G30: =+G29 -> 946 | H30: =+H29 -> 66.53 | I30: =+I29 -> 73.17 | J30: =+J29 -> 76.82 | K30: =+K29 -> 80.65 | L30: =+L29 -> 84.68 | M30: =+L30*(1+EE!G$5) -> 86.54296 | N30: =+M30*(1+EE!H$5) -> 88.87961992 | O30: =+N30*(1+EE!I$5) -> 91.4571289 | P30: =+O30*(1+EE!J$5) -> 93.83501425 | Q30: =+P30*(1+EE!K$5) -> 96.36855963 | R30: =+Q30*(1+EE!L$5) -> 98.97051074 | S30: =+R30*(1+EE!M$5) -> 101.6427145 | T30: =+S30*(1+EE!N$5) -> 104.3429568 | U30: =+T30*(1+EE!O$5) -> 107.0904233 | V30: =+U30*(1+EE!P$5) -> 109.8888512 | W30: =+V30*(1+EE!Q$5) -> 112.741756 | X30: =+W30*(1+EE!#REF!) -> 
A31: kambriumi-vendi põhjaveekiht (E-V) | B31: EUR/1000m3 | C31: 720 | D31: 800 | E31: 880 | F31: 960 | G31: 1056 | H31: 74.26 | I31: 81.67 | J31: 85.76 | K31: 90.05 | L31: 94.52 | M31: =+L31*(1+EE!G$5) -> 96.59944 | N31: =+M31*(1+EE!H$5) -> 99.20762488 | O31: =+N31*(1+EE!I$5) -> 102.084646 | P31: =+O31*(1+EE!J$5) -> 104.7388468 | Q31: =+P31*(1+EE!K$5) -> 107.5667957 | R31: =+Q31*(1+EE!L$5) -> 110.4710991 | S31: =+R31*(1+EE!M$5) -> 113.4538188 | T31: =+S31*(1+EE!N$5) -> 116.4678351 | U31: =+T31*(1+EE!O$5) -> 119.5345632 | V31: =+U31*(1+EE!P$5) -> 122.6581745 | W31: =+V31*(1+EE!Q$5) -> 125.842593 | X31: =+W31*(1+EE!#REF!) -> 
A32: Kambriumi-vendi põhjaveekihi joogivee kvaliteediga vee kasutamisel tehnoloogiliseks otstarbeks, v.a toiduainete valmistamiseks | B32: EUR/1000m3 | C32: 1290 | D32: 1420 | E32: 1560 | F32: 1710 | G32: 1881 | H32: 132.23 | I32: 145.46 | J32: 152.74 | K32: 160.35 | L32: 168.4 | M32: =+L32*(1+EE!G$5) -> 172.1048 | N32: =+M32*(1+EE!H$5) -> 176.7516296 | O32: =+N32*(1+EE!I$5) -> 181.8774269 | P32: =+O32*(1+EE!J$5) -> 186.60624 | Q32: =+P32*(1+EE!K$5) -> 191.6446084 | R32: =+Q32*(1+EE!L$5) -> 196.8190129 | S32: =+R32*(1+EE!M$5) -> 202.1331262 | T32: =+S32*(1+EE!N$5) -> 207.5029986 | U32: =+T32*(1+EE!O$5) -> 212.9667841 | V32: =+U32*(1+EE!P$5) -> 218.5319147 | W32: =+V32*(1+EE!Q$5) -> 224.2053816 | X32: =+W32*(1+EE!#REF!) -> 
A33: Joogiks kasutatav mineraalvesi | B33: EUR/1000m3 | C33: 23100 | D33: 24300 | E33: 25500 | F33: 26700 | G33: 28000 | H33: 1853.43 | I33: 1981.26 | J33: 2109.08 | K33: 2204.95 | L33: 2300.81 | M33: =+L33*(1+EE!G$5) -> 2351.42782 | N33: =+M33*(1+EE!H$5) -> 2414.916371 | O33: =+N33*(1+EE!I$5) -> 2484.948946 | P33: =+O33*(1+EE!J$5) -> 2549.557618 | Q33: =+P33*(1+EE!K$5) -> 2618.395674 | R33: =+Q33*(1+EE!L$5) -> 2689.092357 | S33: =+R33*(1+EE!M$5) -> 2761.697851 | T33: =+S33*(1+EE!N$5) -> 2835.065168 | U33: =+T33*(1+EE!O$5) -> 2909.715598 | V33: =+U33*(1+EE!P$5) -> 2985.750681 | W33: =+V33*(1+EE!Q$5) -> 3063.265938 | X33: =+W33*(1+EE!#REF!) -> 
A34: Ravivannimineraalvesi | B34: EUR/1000m3 | C34: 2300 | D34: 2400 | E34: 2600 | F34: 2700 | G34: 2800 | H34: 191.73 | I34: 198.12 | J34: 210.9 | K34: 220.49 | L34: 230.08 | M34: =+L34*(1+EE!G$5) -> 235.14176 | N34: =+M34*(1+EE!H$5) -> 241.4905875 | O34: =+N34*(1+EE!I$5) -> 248.4938146 | P34: =+O34*(1+EE!J$5) -> 254.9546537 | Q34: =+P34*(1+EE!K$5) -> 261.8384294 | R34: =+Q34*(1+EE!L$5) -> 268.908067 | S34: =+R34*(1+EE!M$5) -> 276.1685848 | T34: =+S34*(1+EE!N$5) -> 283.5052846 | U34: =+T34*(1+EE!O$5) -> 290.9702951 | V34: =+U34*(1+EE!P$5) -> 298.5737704 | W34: =+V34*(1+EE!Q$5) -> 306.3252624 | X34: =+W34*(1+EE!#REF!) -> 
A35: Karjääridest väljapumbatav vesi | B35: EUR/1000m3 | C35: 150 | D35: 157 | E35: 173 | F35: 190 | G35: 209 | H35: 14.69 | I35: 16.16 | J35: 17 | K35: 17.83 | L35: 18.72 | M35: =+L35*(1+EE!G$5) -> 19.13184 | N35: =+M35*(1+EE!H$5) -> 19.64839968 | O35: =+N35*(1+EE!I$5) -> 20.21820327 | P35: =+O35*(1+EE!J$5) -> 20.74387656 | Q35: =+P35*(1+EE!K$5) -> 21.30396122 | R35: =+Q35*(1+EE!L$5) -> 21.87916818 | S35: =+R35*(1+EE!M$5) -> 22.46990572 | T35: =+S35*(1+EE!N$5) -> 23.06684165 | U35: =+T35*(1+EE!O$5) -> 23.67421733 | V35: =+U35*(1+EE!P$5) -> 24.29285893 | W35: =+V35*(1+EE!Q$5) -> 24.9235436 | X35: =+W35*(1+EE!#REF!) -> 
A36: Kaevandustest väljapumbatav vesi | B36: EUR/1000m3 | C36: 400 | D36: 440 | E36: 480 | F36: 530 | G36: 583 | H36: 40.96 | I36: 45.05 | J36: 47.35 | K36: 49.72 | L36: 52.21 | M36: =+L36*(1+EE!G$5) -> 53.35862 | N36: =+M36*(1+EE!H$5) -> 54.79930274 | O36: =+N36*(1+EE!I$5) -> 56.38848252 | P36: =+O36*(1+EE!J$5) -> 57.85458306 | Q36: =+P36*(1+EE!K$5) -> 59.41665681 | R36: =+Q36*(1+EE!L$5) -> 61.02090654 | S36: =+R36*(1+EE!M$5) -> 62.66847102 | T36: =+S36*(1+EE!N$5) -> 64.33332279 | U36: =+T36*(1+EE!O$5) -> 66.02729098 | V36: =+U36*(1+EE!P$5) -> 67.75267973 | W36: =+V36*(1+EE!Q$5) -> 69.5116566 | X36: =+W36*(1+EE!#REF!) -> 
C37: aastad 2006-2010 kroonides
A39: keskmine tasumäärade kasv: | K39: =+SUM(K21:K36)/SUM(J21:J36)-1 -> 0.04650037437 | L39: =+SUM(L21:L36)/SUM(K21:K36)-1 -> 0.04464349875 | M39: =+SUM(M21:M36)/SUM(L21:L36)-1 -> 0.022 | N39: =+SUM(N21:N36)/SUM(M21:M36)-1 -> 0.027 | O39: =+SUM(O21:O36)/SUM(N21:N36)-1 -> 0.029 | P39: =+SUM(P21:P36)/SUM(O21:O36)-1 -> 0.026 | Q39: =+SUM(Q21:Q36)/SUM(P21:P36)-1 -> 0.027 | R39: =+SUM(R21:R36)/SUM(Q21:Q36)-1 -> 0.027 | S39: =+SUM(S21:S36)/SUM(R21:R36)-1 -> 0.027 | T39: =+SUM(T21:T36)/SUM(S21:S36)-1 -> 0.02656601875 | U39: =+SUM(U21:U36)/SUM(T21:T36)-1 -> 0.02633111594 | V39: =+SUM(V21:V36)/SUM(U21:U36)-1 -> 0.02613144855 | W39: =+SUM(W21:W36)/SUM(V21:V36)-1 -> 0.02596173126 | X39: =+SUM(X21:X36)/SUM(W21:W36)-1 -> 
A40: keskmine kasv | K40: =+AVERAGE(K39,P13) -> 0.1160778012 | L40: =+AVERAGE(L39,Q13) -> 0.1166882082 | M40: =+AVERAGE(M39,R13) -> 0.022 | N40: =+AVERAGE(N39,S13) -> 0.027 | O40: =+AVERAGE(O39,T13) -> 0.029 | P40: =+AVERAGE(P39,U13) -> 0.026 | Q40: =+AVERAGE(Q39,V13) -> 0.027 | R40: =+AVERAGE(R39,W13) -> 0.027 | S40: =+AVERAGE(S39,X13) -> 0.027 | T40: =+AVERAGE(T39,Y13) -> 0.02656601875 | U40: =+AVERAGE(U39,Z13) -> 0.02633111594 | V40: =+AVERAGE(V39,AA13) -> 0.02613144855 | W40: =+AVERAGE(W39,AB13) -> 0.02596173126 | X40: =+AVERAGE(X39,AC13) -> 

Sheet Lekked_inf_liitujad
A1: Lekked | B1: Täna | C1: Peale I etappi | D1: Peale II etappi
A2: Uulu veevärk (Uulu ja Laadi külas) | B2: 0.25 | C2: =+B2 -> 0.25 | D2: =+C2 -> 0.25
A3: Pihla veevörk (Laadi küla Pihla elamurajoon) | B3: 0.03 | C3: =+B3 -> 0.03 | D3: =+C3 -> 0.03
A4: Võiste veevärk (Võiste alevik) | B4: 0.55 | C4: 0.2 | D4: 0.2
A5: Reiu veevärk (Reiu külas) | B5: 0.14 | C5: =+B5 -> 0.14 | D5: =+C5 -> 0.14
A6: Postitee, Kuukivi ja Kulla tee (Reiu külas) | B6: 0.16 | C6: =+B6 -> 0.16 | D6: =+C6 -> 0.16
A8: Infiltratsioon | B8: Täna* | C8: Peale I etappi | D8: Peale II etappi
A9: Uulu veevärk (Uulu ja Laadi külas) | B9: 0.2 | C9: =+B9 -> 0.2 | D9: =+C9 -> 0.2
A10: Pihla veevörk (Laadi küla Pihla elamurajoon) | B10: 0.2 | C10: =+B10 -> 0.2 | D10: =+C10 -> 0.2
A11: Võiste veevärk (Võiste alevik) | B11: 0.2 | C11: 0.2 | D11: 0.2
A12: Reiu veevärk (Reiu külas)
A13: Postitee, Kuukivi ja Kulla tee (Reiu külas) | B13: 0.2 | C13: =+B13 -> 0.2 | D13: =+C13 -> 0.2
A14: *Valdo eksperthinnang
A15: Eratarbijatest liitujad ÜV | B15: Ühik | C15: I etapi tulemusel | D15: II etapi tulemusel
A16: Uulu veevärk (Uulu ja Laadi külas) | B16: in
A17: Pihla veevörk (Laadi küla Pihla elamurajoon) | B17: in
A18: Võiste veevärk (Võiste alevik) | B18: in | C18: =6*2.5 -> 15 | D18: =6*2.5 -> 15
A19: Reiu veevärk (Reiu külas) | B19: in
A20: Postitee, Kuukivi ja Kulla tee (Reiu külas) | B20: in
A22: Eratarbijatest liitujad ÜK | B22: Ühik | C22: I etapi tulemusel | D22: II etapi tulemusel
A23: Uulu veevärk (Uulu ja Laadi külas) | B23: in
A24: Pihla veevörk (Laadi küla Pihla elamurajoon) | B24: in
A25: Võiste veevärk (Võiste alevik) | B25: in | C25: =20*2.5 -> 50 | D25: =70*2.5 -> 175
A26: Reiu veevärk (Reiu külas) | B26: in
A27: Postitee, Kuukivi ja Kulla tee (Reiu külas) | B27: in | D27: =12*2.5 -> 30

Sheet MAHUD
A1: Tahkuranna valla ÜVK-teenusalad kokku | B1: ühik | C1: 2012 | D1: 2013 | E1: 2014 | F1: 2015 | G1: 2016 | H1: 2017 | I1: 2018 | J1: 2019 | K1: 2020 | L1: 2021 | M1: 2022 | N1: 2023 | O1: 2024 | P1: 2025 | Q1: 2026
A2: Elanike arv Tahkuranna vallas kokku | B2: in | C2: 2341 | D2: 2334 | E2: 2320 | F2: 2362 | G2: =+F2*(1+G3) -> 2385.62 | H2: =+G2*(1+H3) -> 2409.4762 | I2: =+H2*(1+I3) -> 2433.570962 | J2: =+I2*(1+J3) -> 2457.906672 | K2: =+J2*(1+K3) -> 2482.485738 | L2: =+K2*(1+L3) -> 2482.485738 | M2: =+L2*(1+M3) -> 2482.485738 | N2: =+M2*(1+N3) -> 2482.485738 | O2: =+N2*(1+O3) -> 2482.485738 | P2: =+O2*(1+P3) -> 2482.485738 | Q2: =+P2*(1+Q3) -> 2482.485738
A3: muutus | B3: % | D3: =+D2/C2-1 -> -0.002990175139 | E3: =+E2/D2-1 -> -0.005998286204 | F3: =+F2/E2-1 -> 0.01810344828 | G3: 0.01 | H3: 0.01 | I3: 0.01 | J3: 0.01 | K3: 0.01 | L3: 0 | M3: 0 | N3: 0 | O3: 0 | P3: 0 | Q3: 0
A4: Ühisveega ühendatud elanikud | B4: in | C4: =+C27+C50+C74+C106+C125+C98 -> 1070 | D4: =+D27+D50+D74+D106+D125+D98 -> 1089 | E4: =+E27+E50+E74+E106+E125+E98 -> 1134 | F4: =+F27+F50+F74+F106+F125+F98 -> 1134 | G4: =+G27+G50+G74+G106+G125+G98 -> 1136.44 | H4: =+H27+H50+H74+H106+H125+H98 -> 1138.88 | I4: =+I27+I50+I74+I106+I125+I98 -> 1156.32 | J4: =+J27+J50+J74+J106+J125+J98 -> 1158.76 | K4: =+K27+K50+K74+K106+K125+K98 -> 1161.2 | L4: =+L27+L50+L74+L106+L125+L98 -> 1163.64 | M4: =+M27+M50+M74+M106+M125+M98 -> 1166.08 | N4: =+N27+N50+N74+N106+N125+N98 -> 1168.52 | O4: =+O27+O50+O74+O106+O125+O98 -> 1170.96 | P4: =+P27+P50+P74+P106+P125+P98 -> 1173.4 | Q4: =+Q27+Q50+Q74+Q106+Q125+Q98 -> 1239.4
A5: ühendatuse määr | B5: % | C5: =C4/C2 -> 0.4570696284 | D5: =D4/D2 -> 0.4665809769 | E5: =E4/E2 -> 0.4887931034 | F5: =F4/F2 -> 0.4801016088 | G5: =G4/G2 -> 0.4763709224 | H5: =H4/H2 -> 0.4726670469 | I5: =I4/I2 -> 0.4751535986 | J5: =J4/J2 -> 0.4714418222 | K5: =K4/K2 -> 0.4677569672 | L5: =L4/L2 -> 0.468739853 | M5: =M4/M2 -> 0.4697227388 | N5: =N4/N2 -> 0.4707056246 | O5: =O4/O2 -> 0.4716885104 | P5: =P4/P2 -> 0.4726713962 | Q5: =Q4/Q2 -> 0.4992576517
A6: Ühiskanalisatsiooniga ühendatud elanikud | B6: in | C6: =+C30+C53+C77+C109+C128+C101 -> 609 | D6: =+D30+D53+D77+D109+D128+D101 -> 622 | E6: =+E30+E53+E77+E109+E128+E101 -> 639 | F6: =+F30+F53+F77+F109+F128+F101 -> 639 | G6: =+G30+G53+G77+G109+G128+G101 -> 656.44 | H6: =+H30+H53+H77+H109+H128+H101 -> 687.88 | I6: =+I30+I53+I77+I109+I128+I101 -> 754.32 | J6: =+J30+J53+J77+J109+J128+J101 -> 756.76 | K6: =+K30+K53+K77+K109+K128+K101 -> 759.2 | L6: =+L30+L53+L77+L109+L128+L101 -> 761.64 | M6: =+M30+M53+M77+M109+M128+M101 -> 764.08 | N6: =+N30+N53+N77+N109+N128+N101 -> 766.52 | O6: =+O30+O53+O77+O109+O128+O101 -> 768.96 | P6: =+P30+P53+P77+P109+P128+P101 -> 771.96 | Q6: =+Q30+Q53+Q77+Q109+Q128+Q101 -> 997.96
A7: ühendatuse määr | B7: % | C7: =C6/C2 -> 0.2601452371 | D7: =D6/D2 -> 0.2664952871 | E7: =E6/E2 -> 0.2754310345 | F7: =F6/F2 -> 0.2705334462 | G7: =G6/G2 -> 0.2751653658 | H7: =H6/H2 -> 0.2854894354 | I7: =I6/I2 -> 0.3099642508 | J7: =J6/J2 -> 0.3078880125 | K7: =K6/K2 -> 0.3058225021 | L7: =L6/L2 -> 0.3068053879 | M7: =M6/M2 -> 0.3077882737 | N7: =N6/N2 -> 0.3087711596 | O7: =O6/O2 -> 0.3097540454 | P7: =P6/P2 -> 0.3109625115 | Q7: =Q6/Q2 -> 0.4020002953
A8: Tarbimine elaniku kohta vesi (OÜ Vesoka ÜV-süsteemis) | B8: l/päevas | C8: =C11/(C4-C98)/365*1000 -> 69.85764169 | D8: =D11/(D4-D98)/365*1000 -> 61.24434717 | E8: =E11/(E4-E98)/365*1000 -> 70.40640954 | F8: =F11/(F4-F98)/365*1000 -> 70.40640954 | G8: =G11/(G4-G98)/365*1000 -> 70.40446976 | H8: =H11/(H4-H98)/365*1000 -> 70.40253867 | I8: =I11/(I4-I98)/365*1000 -> 70.27046691 | J8: =J11/(J4-J98)/365*1000 -> 70.26886534 | K8: =K11/(K4-K98)/365*1000 -> 70.2672708 | L8: =L11/(L4-L98)/365*1000 -> 70.26568325 | M8: =M11/(M4-M98)/365*1000 -> 70.26410265 | N8: =N11/(N4-N98)/365*1000 -> 70.26252893 | O8: =O11/(O4-O98)/365*1000 -> 70.26096207 | P8: =P11/(P4-P98)/365*1000 -> 70.25940202 | Q8: =Q11/(Q4-Q98)/365*1000 -> 71.23435559
A9: Tarbimine elaniku kohta kanal (OÜ Vesoka ÜV-süsteemis) | B9: l/päevas | C9: =C16/(C6-C101)/365*1000 -> 68.25299581 | D9: =D16/(D6-D101)/365*1000 -> 61.07864738 | E9: =E16/(E6-E101)/365*1000 -> 68.05777147 | F9: =F16/(F6-F101)/365*1000 -> 68.5749362 | G9: =G16/(G6-G101)/365*1000 -> 68.50453966 | H9: =H16/(H6-H101)/365*1000 -> 69.03814015 | I9: =I16/(I6-I101)/365*1000 -> 69.29877062 | J9: =J16/(J6-J101)/365*1000 -> 69.29961275 | K9: =K16/(K6-K101)/365*1000 -> 69.30044908 | L9: =L16/(L6-L101)/365*1000 -> 69.30127968 | M9: =M16/(M6-M101)/365*1000 -> 69.3021046 | N9: =N16/(N6-N101)/365*1000 -> 69.3029239 | O9: =O16/(O6-O101)/365*1000 -> 69.30373764 | P9: =P16/(P6-P101)/365*1000 -> 69.30473061 | Q9: =Q16/(Q6-Q101)/365*1000 -> 69.97080083
A10: Müüdud vesi (OÜ Vesoka ÜV-süsteemis) | B10: m3/aastas | C10: =SUM(C11:C12) -> 29785 | D10: =SUM(D11:D12) -> 29575 | E10: =SUM(E11:E12) -> 31449 | F10: =SUM(F11:F12) -> 31449 | G10: =SUM(G11:G12) -> 31510.93473 | H10: =SUM(H11:H12) -> 31572.86945 | I10: =SUM(I11:I12) -> 31967.69238 | J10: =SUM(J11:J12) -> 32029.6271 | K10: =SUM(K11:K12) -> 32091.56183 | L10: =SUM(L11:L12) -> 32153.49656 | M10: =SUM(M11:M12) -> 32215.43128 | N10: =SUM(N11:N12) -> 32277.36601 | O10: =SUM(O11:O12) -> 32339.30074 | P10: =SUM(P11:P12) -> 32401.23546 | Q10: =SUM(Q11:Q12) -> 34517.04203
A11: Füüsilistele isikutele (sh korteriühistud) | B11: m3/aastas | C11: =+C36+C59+C83+C115+C134 -> 26008 | D11: =+D36+D59+D83+D115+D134 -> 23226 | E11: =+E36+E59+E83+E115+E134 -> 27857 | F11: =+F36+F59+F83+F115+F134 -> 27857 | G11: =+G36+G59+G83+G115+G134 -> 27918.93473 | H11: =+H36+H59+H83+H115+H134 -> 27980.86945 | I11: =+I36+I59+I83+I115+I134 -> 28375.69238 | J11: =+J36+J59+J83+J115+J134 -> 28437.6271 | K11: =+K36+K59+K83+K115+K134 -> 28499.56183 | L11: =+L36+L59+L83+L115+L134 -> 28561.49656 | M11: =+M36+M59+M83+M115+M134 -> 28623.43128 | N11: =+N36+N59+N83+N115+N134 -> 28685.36601 | O11: =+O36+O59+O83+O115+O134 -> 28747.30074 | P11: =+P36+P59+P83+P115+P134 -> 28809.23546 | Q11: =+Q36+Q59+Q83+Q115+Q134 -> 30925.04203
A12: Juriidilistele isikutele (va korteriühistud) | B12: m3/aastas | C12: =+C37+C60+C84+C116+C135 -> 3777 | D12: =+D37+D60+D84+D116+D135 -> 6349 | E12: =+E37+E60+E84+E116+E135 -> 3592 | F12: =+F37+F60+F84+F116+F135 -> 3592 | G12: =+G37+G60+G84+G116+G135 -> 3592 | H12: =+H37+H60+H84+H116+H135 -> 3592 | I12: =+I37+I60+I84+I116+I135 -> 3592 | J12: =+J37+J60+J84+J116+J135 -> 3592 | K12: =+K37+K60+K84+K116+K135 -> 3592 | L12: =+L37+L60+L84+L116+L135 -> 3592 | M12: =+M37+M60+M84+M116+M135 -> 3592 | N12: =+N37+N60+N84+N116+N135 -> 3592 | O12: =+O37+O60+O84+O116+O135 -> 3592 | P12: =+P37+P60+P84+P116+P135 -> 3592 | Q12: =+Q37+Q60+Q84+Q116+Q135 -> 3592
A13: Toodetud vesi (OÜ Vesoka ÜV-süsteemis) | B13: m3/aastas | C13: =+C38+C61+C85+C117+C136 -> 40374 | D13: =+D38+D61+D85+D117+D136 -> 43751 | E13: =+E38+E61+E85+E117+E136 -> 47862 | F13: =+F38+F61+F85+F117+F136 -> 47862 | G13: =+G38+G61+G85+G117+G136 -> 47934.05891 | H13: =+H38+H61+H85+H117+H136 -> 48006.11781 | I13: =+I38+I61+I85+I117+I136 -> 40311.53696 | J13: =+J38+J61+J85+J117+J136 -> 40383.59587 | K13: =+K38+K61+K85+K117+K136 -> 40455.65478 | L13: =+L38+L61+L85+L117+L136 -> 40527.71368 | M13: =+M38+M61+M85+M117+M136 -> 40599.77259 | N13: =+N38+N61+N85+N117+N136 -> 40671.83149 | O13: =+O38+O61+O85+O117+O136 -> 40743.8904 | P13: =+P38+P61+P85+P117+P136 -> 40815.9493 | Q13: =+Q38+Q61+Q85+Q117+Q136 -> 43360.52894
A14: Arvestamata vesi (OÜ Vesoka ÜV-süsteemis) | B14: % | C14: =+(C13-C10)/C13 -> 0.2622727498 | D14: =+(D13-D10)/D13 -> 0.3240154511 | E14: =+(E13-E10)/E13 -> 0.3429234048 | F14: =+(F13-F10)/F13 -> 0.3429234048 | G14: =+(G13-G10)/G13 -> 0.3426191012 | H14: =+(H13-H10)/H13 -> 0.3423157112 | I14: =+(I13-I10)/I13 -> 0.2069840352 | J14: =+(J13-J10)/J13 -> 0.2068654013 | K14: =+(K13-K10)/K13 -> 0.20674719 | L14: =+(L13-L10)/L13 -> 0.2066293991 | M14: =+(M13-M10)/M13 -> 0.2065120263 | N14: =+(N13-N10)/N13 -> 0.2063950694 | O14: =+(O13-O10)/O13 -> 0.2062785262 | P14: =+(P13-P10)/P13 -> 0.2061623945 | Q14: =+(Q13-Q10)/Q13 -> 0.2039524685
A15: Vastuvõetud reovesi (OÜ Vesoka ÜK-süsteemis) | B15: m3/aastas | C15: =SUM(C16:C17) -> 15994 | D15: =SUM(D16:D17) -> 14760 | E15: =SUM(E16:E17) -> 16964.8 | F15: =SUM(F16:F17) -> 17075.98266 | G15: =SUM(G16:G17) -> 17496.92096 | H15: =SUM(H16:H17) -> 24707.28783 | I15: =SUM(I16:I17) -> 26448.5062 | J15: =SUM(J16:J17) -> 26510.44092 | K15: =SUM(K16:K17) -> 26572.37565 | L15: =SUM(L16:L17) -> 26634.31037 | M15: =SUM(M16:M17) -> 26696.2451 | N15: =SUM(N16:N17) -> 26758.17983 | O15: =SUM(O16:O17) -> 26820.11455 | P15: =SUM(P16:P17) -> 26896.26381 | Q15: =SUM(Q16:Q17) -> 32843.67493
A16: Füüsilistelt isikutelt (sh korteriühistud) | B16: m3/aastas | C16: =+C41+C64+C88+C120+C139 -> 13926 | D16: =+D41+D64+D88+D120+D139 -> 12752 | E16: =+E41+E64+E88+E120+E139 -> 14631.4 | F16: =+F41+F64+F88+F120+F139 -> 14742.58266 | G16: =+G41+G64+G88+G120+G139 -> 15163.52096 | H16: =+H41+H64+H88+H120+H139 -> 16073.88783 | I16: =+I41+I64+I88+I120+I139 -> 17815.1062 | J16: =+J41+J64+J88+J120+J139 -> 17877.04092 | K16: =+K41+K64+K88+K120+K139 -> 17938.97565 | L16: =+L41+L64+L88+L120+L139 -> 18000.91037 | M16: =+M41+M64+M88+M120+M139 -> 18062.8451 | N16: =+N41+N64+N88+N120+N139 -> 18124.77983 | O16: =+O41+O64+O88+O120+O139 -> 18186.71455 | P16: =+P41+P64+P88+P120+P139 -> 18262.86381 | Q16: =+Q41+Q64+Q88+Q120+Q139 -> 24210.27493
A17: Juriidilistelt isikutelt (va korteriühistud) | B17: m3/aastas | C17: =+C42+C65+C89+C121+C140+C148 -> 2068 | D17: =+D42+D65+D89+D121+D140+D148 -> 2008 | E17: =+E42+E65+E89+E121+E140+E148 -> 2333.4 | F17: =+F42+F65+F89+F121+F140+F148 -> 2333.4 | G17: =+G42+G65+G89+G121+G140+G148 -> 2333.4 | H17: =+H42+H65+H89+H121+H140+H148 -> 8633.4 | I17: =+I42+I65+I89+I121+I140+I148 -> 8633.4 | J17: =+J42+J65+J89+J121+J140+J148 -> 8633.4 | K17: =+K42+K65+K89+K121+K140+K148 -> 8633.4 | L17: =+L42+L65+L89+L121+L140+L148 -> 8633.4 | M17: =+M42+M65+M89+M121+M140+M148 -> 8633.4 | N17: =+N42+N65+N89+N121+N140+N148 -> 8633.4 | O17: =+O42+O65+O89+O121+O140+O148 -> 8633.4 | P17: =+P42+P65+P89+P121+P140+P148 -> 8633.4 | Q17: =+Q42+Q65+Q89+Q121+Q140+Q148 -> 8633.4
A18: AS Pärnu Vesi ostetud ÜK teenusmahud | B18: m3/aastas | C18: =+C122+C149+C146 -> 3491 | D18: =+D122+D149+D146 -> 3690 | E18: =+E122+E149+E146 -> 4273 | F18: =+F122+F149+F146 -> 4442.039801 | G18: =+G122+G149+G146 -> 4503.974527 | H18: =+H122+H149+H146 -> 12089.48068 | I18: =+I122+I149+I146 -> 12640.84398 | J18: =+J122+J149+J146 -> 12702.77871 | K18: =+K122+K149+K146 -> 12764.71343 | L18: =+L122+L149+L146 -> 12826.64816 | M18: =+M122+M149+M146 -> 12888.58289 | N18: =+N122+N149+N146 -> 12950.51761 | O18: =+O122+O149+O146 -> 13012.45234 | P18: =+P122+P149+P146 -> 13088.60159 | Q18: =+Q122+Q149+Q146 -> 14871.51996
A19: Puhastatud heitvesi (OÜ Vesoka ÜK-süsteemis) | B19: m3/aastas | C19: =+C43+C66+C90+C141 -> 15628.75 | D19: =+D43+D66+D90+D141 -> 13837.5 | E19: =+E43+E66+E90+E141 -> 15864.75 | F19: =+F43+F66+F90+F141 -> 15792.42857 | G19: =+G43+G66+G90+G141 -> 16241.18304 | H19: =+H43+H66+H90+H141 -> 15772.25893 | I19: =+I43+I66+I90+I141 -> 17259.57777 | J19: =+J43+J66+J90+J141 -> 17259.57777 | K19: =+K43+K66+K90+K141 -> 17259.57777 | L19: =+L43+L66+L90+L141 -> 17259.57777 | M19: =+M43+M66+M90+M141 -> 17259.57777 | N19: =+N43+N66+N90+N141 -> 17259.57777 | O19: =+O43+O66+O90+O141 -> 17259.57777 | P19: =+P43+P66+P90+P141 -> 17259.57777 | Q19: =+Q43+Q66+Q90+Q141 -> 22465.19371 | R19: *Arvestuslik
A20: Infiltratsioon (OÜ Vesoka ÜK-süsteemis) | B20: % | C20: =+(C19-(C15-C18))/(C19) -> 0.2 | D20: =+(D19-(D15-D18))/(D19) -> 0.2 | E20: =+(E19-(E15-E18))/(E19) -> 0.2 | F20: =+(F19-(F15-F18))/(F19) -> 0.2 | G20: =+(G19-(G15-G18))/(G19) -> 0.2 | H20: =+(H19-(H15-H18))/(H19) -> 0.2 | I20: =+(I19-(I15-I18))/(I19) -> 0.2 | J20: =+(J19-(J15-J18))/(J19) -> 0.2 | K20: =+(K19-(K15-K18))/(K19) -> 0.2 | L20: =+(L19-(L15-L18))/(L19) -> 0.2 | M20: =+(M19-(M15-M18))/(M19) -> 0.2 | N20: =+(N19-(N15-N18))/(N19) -> 0.2 | O20: =+(O19-(O15-O18))/(O19) -> 0.2 | P20: =+(P19-(P15-P18))/(P19) -> 0.2 | Q20: =+(Q19-(Q15-Q18))/(Q19) -> 0.2
A21: Uulu veevärk (Uulu ja Laadi külas) | B21: ühik | C21: 2012 | D21: 2013 | E21: 2014 | F21: 2015 | G21: 2016 | H21: 2017 | I21: 2018 | J21: 2019 | K21: 2020 | L21: 2021 | M21: 2022 | N21: 2023 | O21: 2024 | P21: 2025 | Q21: 2026
A22: Elanike arv Uulu külas | B22: in | C22: 548 | D22: 549 | E22: 533 | F22: 541 | G22: =+F22 -> 541 | H22: =+G22 -> 541 | I22: =+H22 -> 541 | J22: =+I22 -> 541 | K22: =+J22 -> 541 | L22: =+K22 -> 541 | M22: =+L22 -> 541 | N22: =+M22 -> 541 | O22: =+N22 -> 541 | P22: =+O22 -> 541 | Q22: =+P22 -> 541
A23: muutus | B23: % | D23: =+(D22-C22)/C22 -> 0.001824817518 | E23: =+(E22-D22)/D22 -> -0.029143898 | F23: =+(F22-E22)/E22 -> 0.01500938086 | G23: =+(G22-F22)/F22 -> 0 | H23: =+(H22-G22)/G22 -> 0 | I23: =+(I22-H22)/H22 -> 0 | J23: =+(J22-I22)/I22 -> 0 | K23: =+(K22-J22)/J22 -> 0 | L23: =+(L22-K22)/K22 -> 0 | M23: =+(M22-L22)/L22 -> 0 | N23: =+(N22-M22)/M22 -> 0 | O23: =+(O22-N22)/N22 -> 0 | P23: =+(P22-O22)/O22 -> 0 | Q23: =+(Q22-P22)/P22 -> 0
A24: Elanike arv Laadi külas | B24: in | C24: 398 | D24: 389 | E24: 395 | F24: 402 | G24: =+F24*(1+G25) -> 409.1240506 | H24: =+G24*(1+H25) -> 416.3743503 | I24: =+H24*(1+I25) -> 423.7531362 | J24: =+I24*(1+J25) -> 431.2626855 | K24: =+J24*(1+K25) -> 438.9053153 | L24: =+K24 -> 438.9053153 | M24: =+L24 -> 438.9053153 | N24: =+M24 -> 438.9053153 | O24: =+N24 -> 438.9053153 | P24: =+O24 -> 438.9053153 | Q24: =+P24 -> 438.9053153
A25: muutus | B25: % | D25: =+(D24-C24)/C24 -> -0.02261306533 | E25: =+(E24-D24)/D24 -> 0.01542416452 | F25: =+(F24-E24)/E24 -> 0.01772151899 | G25: =+F25 -> 0.01772151899 | H25: =+G25 -> 0.01772151899 | I25: =+H25 -> 0.01772151899 | J25: =+I25 -> 0.01772151899 | K25: =+J25 -> 0.01772151899 | L25: =+(L24-K24)/K24 -> 0 | M25: =+(M24-L24)/L24 -> 0 | N25: =+(N24-M24)/M24 -> 0 | O25: =+(O24-N24)/N24 -> 0 | P25: =+(P24-O24)/O24 -> 0 | Q25: =+(Q24-P24)/P24 -> 0
A26: Elanike arv Uulu ja Laadi külades | B26: in | C26: =+SUM(C22,C24) -> 946 | D26: =+SUM(D22,D24) -> 938 | E26: =+SUM(E22,E24) -> 928 | F26: =+SUM(F22,F24) -> 943 | G26: =+SUM(G22,G24) -> 950.1240506 | H26: =+SUM(H22,H24) -> 957.3743503 | I26: =+SUM(I22,I24) -> 964.7531362 | J26: =+SUM(J22,J24) -> 972.2626855 | K26: =+SUM(K22,K24) -> 979.9053153 | L26: =+SUM(L22,L24) -> 979.9053153 | M26: =+SUM(M22,M24) -> 979.9053153 | N26: =+SUM(N22,N24) -> 979.9053153 | O26: =+SUM(O22,O24) -> 979.9053153 | P26: =+SUM(P22,P24) -> 979.9053153 | Q26: =+SUM(Q22,Q24) -> 979.9053153
A27: Ühisveega ühendatud elanikud | B27: in | C27: 450 | D27: 463 | E27: 468 | F27: =+E27+F28 -> 468 | G27: =+F27+G28 -> 468 | H27: =+G27+H28 -> 468 | I27: =+H27+I28 -> 468 | J27: =+I27+J28 -> 468 | K27: =+J27+K28 -> 468 | L27: =+K27+L28 -> 468 | M27: =+L27+M28 -> 468 | N27: =+M27+N28 -> 468 | O27: =+N27+O28 -> 468 | P27: =+O27+P28 -> 468 | Q27: =+P27+Q28 -> 468
A28: Uued liitujad ÜV-süsteemiga | B28: in | F28: 0 | G28: 0 | H28: 0 | I28: 0 | J28: 0 | K28: 0 | L28: 0 | M28: 0 | N28: 0 | O28: 0 | P28: 0 | Q28: 0
A29: ühendatuse määr | B29: % | C29: =C27/C26 -> 0.4756871036 | D29: =D27/D26 -> 0.4936034115 | E29: =E27/E26 -> 0.5043103448 | F29: =F27/F26 -> 0.4962884411 | G29: =G27/G26 -> 0.4925672597 | H29: =H27/H26 -> 0.4888369945 | I29: =I27/I26 -> 0.4850981898 | J29: =J27/J26 -> 0.481351395 | K29: =K27/K26 -> 0.4775971644 | L29: =L27/L26 -> 0.4775971644 | M29: =M27/M26 -> 0.4775971644 | N29: =N27/N26 -> 0.4775971644 | O29: =O27/O26 -> 0.4775971644 | P29: =P27/P26 -> 0.4775971644 | Q29: =Q27/Q26 -> 0.4775971644
A30: Ühiskanalisatsiooniga ühendatud elanikud | B30: in | C30: 268 | D30: 275 | E30: 280 | F30: =+E30+F31 -> 280 | G30: =+F30+G31 -> 295 | H30: =+G30+H31 -> 310 | I30: =+H30+I31 -> 310 | J30: =+I30+J31 -> 310 | K30: =+J30+K31 -> 310 | L30: =+K30+L31 -> 310 | M30: =+L30+M31 -> 310 | N30: =+M30+N31 -> 310 | O30: =+N30+O31 -> 310 | P30: =+O30+P31 -> 310 | Q30: =+P30+Q31 -> 310
A31: Uued liitujad ÜK-süsteemiga | B31: in | F31: 0 | G31: 15 | H31: 15 | I31: 0 | J31: 0 | K31: 0 | L31: 0 | M31: 0 | N31: 0 | O31: 0 | P31: 0 | Q31: 0
A32: ühendatuse määr | B32: % | C32: =C30/C26 -> 0.2832980973 | D32: =D30/D26 -> 0.2931769723 | E32: =E30/E26 -> 0.3017241379 | F32: =F30/F26 -> 0.2969247084 | G32: =G30/G26 -> 0.3104857727 | H32: =H30/H26 -> 0.3238022827 | I32: =I30/I26 -> 0.321325724 | J32: =J30/J26 -> 0.3188438728 | K32: =K30/K26 -> 0.3163570961 | L32: =L30/L26 -> 0.3163570961 | M32: =M30/M26 -> 0.3163570961 | N32: =N30/N26 -> 0.3163570961 | O32: =O30/O26 -> 0.3163570961 | P32: =P30/P26 -> 0.3163570961 | Q32: =Q30/Q26 -> 0.3163570961
A33: Tarbimine elaniku kohta vesi | B33: l/päevas | C33: =C36/C27/365*1000 -> 76.16438356 | D33: =D36/D27/365*1000 -> 65.72975532 | E33: =E36/E27/365*1000 -> 73.60379347 | F33: =+E33 -> 73.60379347 | G33: =+F33 -> 73.60379347 | H33: =+G33 -> 73.60379347 | I33: =+H33 -> 73.60379347 | J33: =+I33 -> 73.60379347 | K33: =+J33 -> 73.60379347 | L33: =+K33 -> 73.60379347 | M33: =+L33 -> 73.60379347 | N33: =+M33 -> 73.60379347 | O33: =+N33 -> 73.60379347 | P33: =+O33 -> 73.60379347 | Q33: =+P33 -> 73.60379347
A34: Tarbimine elaniku kohta kanal | B34: l/päevas | C34: =C41/C30/365*1000 -> 71.54978532 | D34: =D41/D30/365*1000 -> 58.09215442 | E34: =E41/E30/365*1000 -> 65.57142857 | F34: =+E34 -> 65.57142857 | G34: =+F34 -> 65.57142857 | H34: =+G34 -> 65.57142857 | I34: =+H34 -> 65.57142857 | J34: =+I34 -> 65.57142857 | K34: =+J34 -> 65.57142857 | L34: =+K34 -> 65.57142857 | M34: =+L34 -> 65.57142857 | N34: =+M34 -> 65.57142857 | O34: =+N34 -> 65.57142857 | P34: =+O34 -> 65.57142857 | Q34: =+P34 -> 65.57142857
A35: Müüdud vesi | B35: m3/aastas | C35: =SUM(C36:C37) -> 14995 | D35: =SUM(D36:D37) -> 16035 | E35: =SUM(E36:E37) -> 14826 | F35: =SUM(F36:F37) -> 14826 | G35: =SUM(G36:G37) -> 14826 | H35: =SUM(H36:H37) -> 14826 | I35: =SUM(I36:I37) -> 14826 | J35: =SUM(J36:J37) -> 14826 | K35: =SUM(K36:K37) -> 14826 | L35: =SUM(L36:L37) -> 14826 | M35: =SUM(M36:M37) -> 14826 | N35: =SUM(N36:N37) -> 14826 | O35: =SUM(O36:O37) -> 14826 | P35: =SUM(P36:P37) -> 14826 | Q35: =SUM(Q36:Q37) -> 14826
A36: Füüsilistele isikutele (sh korteriühistud) | B36: m3/aastas | C36: 12510 | D36: 11108 | E36: 12573 | F36: =+F27*F33*0.365 -> 12573 | G36: =+G27*G33*0.365 -> 12573 | H36: =+H27*H33*0.365 -> 12573 | I36: =+I27*I33*0.365 -> 12573 | J36: =+J27*J33*0.365 -> 12573 | K36: =+K27*K33*0.365 -> 12573 | L36: =+L27*L33*0.365 -> 12573 | M36: =+M27*M33*0.365 -> 12573 | N36: =+N27*N33*0.365 -> 12573 | O36: =+O27*O33*0.365 -> 12573 | P36: =+P27*P33*0.365 -> 12573 | Q36: =+Q27*Q33*0.365 -> 12573
A37: Juriidilistele isikutele (va korteriühistud) | B37: m3/aastas | C37: 2485 | D37: 4927 | E37: 2253 | F37: =+E37 -> 2253 | G37: =+F37 -> 2253 | H37: =+G37 -> 2253 | I37: =+H37 -> 2253 | J37: =+I37 -> 2253 | K37: =+J37 -> 2253 | L37: =+K37 -> 2253 | M37: =+L37 -> 2253 | N37: =+M37 -> 2253 | O37: =+N37 -> 2253 | P37: =+O37 -> 2253 | Q37: =+P37 -> 2253
A38: Toodetud vesi | B38: m3/aastas | C38: 19881 | D38: 19401 | E38: 19720 | F38: =+F35*100%/(1-F39) -> 19720 | G38: =+G35*100%/(1-G39) -> 19720 | H38: =+H35*100%/(1-H39) -> 19720 | I38: =+I35*100%/(1-I39) -> 19720 | J38: =+J35*100%/(1-J39) -> 19720 | K38: =+K35*100%/(1-K39) -> 19720 | L38: =+L35*100%/(1-L39) -> 19720 | M38: =+M35*100%/(1-M39) -> 19720 | N38: =+N35*100%/(1-N39) -> 19720 | O38: =+O35*100%/(1-O39) -> 19720 | P38: =+P35*100%/(1-P39) -> 19720 | Q38: =+Q35*100%/(1-Q39) -> 19720
A39: Arvestamata vesi | B39: % | C39: =+(C38-C35)/C38 -> 0.2457622856 | D39: =+(D38-D35)/D38 -> 0.1734962115 | E39: =+(E38-E35)/E38 -> 0.2481744422 | F39: =+E39 -> 0.2481744422 | G39: =+F39 -> 0.2481744422 | H39: =+G39 -> 0.2481744422 | I39: =+H39 -> 0.2481744422 | J39: =+I39 -> 0.2481744422 | K39: =+J39 -> 0.2481744422 | L39: =+K39 -> 0.2481744422 | M39: =+L39 -> 0.2481744422 | N39: =+M39 -> 0.2481744422 | O39: =+N39 -> 0.2481744422 | P39: =+O39 -> 0.2481744422 | Q39: =+P39 -> 0.2481744422
A40: Vastuvõetud reovesi | B40: m3/aastas | C40: =SUM(C41:C42) -> 8084 | D40: =SUM(D41:D42) -> 6789 | E40: =SUM(E41:E42) -> 8027.8 | F40: =SUM(F41:F42) -> 8027.8 | G40: =SUM(G41:G42) -> 8386.803571 | H40: =SUM(H41:H42) -> 8745.807143 | I40: =SUM(I41:I42) -> 8745.807143 | J40: =SUM(J41:J42) -> 8745.807143 | K40: =SUM(K41:K42) -> 8745.807143 | L40: =SUM(L41:L42) -> 8745.807143 | M40: =SUM(M41:M42) -> 8745.807143 | N40: =SUM(N41:N42) -> 8745.807143 | O40: =SUM(O41:O42) -> 8745.807143 | P40: =SUM(P41:P42) -> 8745.807143 | Q40: =SUM(Q41:Q42) -> 8745.807143
A41: Füüsilistelt isikutelt (sh korteriühistud) | B41: m3/aastas | C41: 6999 | D41: 5831 | E41: 6701.4 | F41: =+F30*F34*0.365 -> 6701.4 | G41: =+G30*G34*0.365 -> 7060.403571 | H41: =+H30*H34*0.365 -> 7419.407143 | I41: =+I30*I34*0.365 -> 7419.407143 | J41: =+J30*J34*0.365 -> 7419.407143 | K41: =+K30*K34*0.365 -> 7419.407143 | L41: =+L30*L34*0.365 -> 7419.407143 | M41: =+M30*M34*0.365 -> 7419.407143 | N41: =+N30*N34*0.365 -> 7419.407143 | O41: =+O30*O34*0.365 -> 7419.407143 | P41: =+P30*P34*0.365 -> 7419.407143 | Q41: =+Q30*Q34*0.365 -> 7419.407143
A42: Juriidilistelt isikutelt (va korteriühistud) | B42: m3/aastas | C42: 1085 | D42: 958 | E42: 1326.4 | F42: =+E42 -> 1326.4 | G42: =+F42 -> 1326.4 | H42: =+G42 -> 1326.4 | I42: =+H42 -> 1326.4 | J42: =+I42 -> 1326.4 | K42: =+J42 -> 1326.4 | L42: =+K42 -> 1326.4 | M42: =+L42 -> 1326.4 | N42: =+M42 -> 1326.4 | O42: =+N42 -> 1326.4 | P42: =+O42 -> 1326.4 | Q42: =+P42 -> 1326.4
A43: Puhastatud heitvesi | B43: m3/aastas | C43: =+SUM(C40,C44)*100%/(1-C47) -> 10105 | D43: =+SUM(D40,D44)*100%/(1-D47) -> 8486.25 | E43: =+SUM(E40,E44)*100%/(1-E47) -> 10034.75 | F43: =+SUM(F40,F44)*100%/(1-F47) -> 10034.75 | G43: =+SUM(G40,G44)*100%/(1-G47) -> 10483.50446 | H43: =+SUM(H40,H44)*100%/(1-H47) -> 10932.25893 | I43: =+SUM(I40,I44)*100%/(1-I47) -> 10932.25893 | J43: =+SUM(J40,J44)*100%/(1-J47) -> 10932.25893 | K43: =+SUM(K40,K44)*100%/(1-K47) -> 10932.25893 | L43: =+SUM(L40,L44)*100%/(1-L47) -> 10932.25893 | M43: =+SUM(M40,M44)*100%/(1-M47) -> 10932.25893 | N43: =+SUM(N40,N44)*100%/(1-N47) -> 10932.25893 | O43: =+SUM(O40,O44)*100%/(1-O47) -> 10932.25893 | P43: =+SUM(P40,P44)*100%/(1-P47) -> 10932.25893 | Q43: =+SUM(Q40,Q44)*100%/(1-Q47) -> 10932.25893 | R43: *Arvestuslik
A44: Purgitud heitvesi | B44: m3/aastas | C44: =SUM(C45:C46) -> 0 | D44: =SUM(D45:D46) -> 0 | E44: =SUM(E45:E46) -> 0 | F44: =SUM(F45:F46) -> 0 | G44: =SUM(G45:G46) -> 0 | H44: =SUM(H45:H46) -> 0 | I44: =SUM(I45:I46) -> 0 | J44: =SUM(J45:J46) -> 0 | K44: =SUM(K45:K46) -> 0 | L44: =SUM(L45:L46) -> 0 | M44: =SUM(M45:M46) -> 0 | N44: =SUM(N45:N46) -> 0 | O44: =SUM(O45:O46) -> 0 | P44: =SUM(P45:P46) -> 0 | Q44: =SUM(Q45:Q46) -> 0
A45: Füüsilistelt isikutelt (sh korteriühistud) | B45: m3/aastas | F45: =+E45 -> 0 | G45: =+F45 -> 0 | H45: =+G45 -> 0 | I45: =+H45 -> 0 | J45: =+I45 -> 0 | K45: =+J45 -> 0 | L45: =+K45 -> 0 | M45: =+L45 -> 0 | N45: =+M45 -> 0 | O45: =+N45 -> 0 | P45: =+O45 -> 0 | Q45: =+P45 -> 0
A46: Juriidilistelt isikutelt (va korteriühistud) | B46: m3/aastas | F46: =+E46 -> 0 | G46: =+F46 -> 0 | H46: =+G46 -> 0 | I46: =+H46 -> 0 | J46: =+I46 -> 0 | K46: =+J46 -> 0 | L46: =+K46 -> 0 | M46: =+L46 -> 0 | N46: =+M46 -> 0 | O46: =+N46 -> 0 | P46: =+O46 -> 0 | Q46: =+P46 -> 0
A47: Infiltratsioon | B47: % | C47: 0.2 | D47: 0.2 | E47: 0.2 | F47: 0.2 | G47: 0.2 | H47: 0.2 | I47: 0.2 | J47: 0.2 | K47: 0.2 | L47: 0.2 | M47: 0.2 | N47: 0.2 | O47: 0.2 | P47: 0.2 | Q47: 0.2 | R47: *Eksperthinnang
A48: Pihla veevärk (Laadi küla Pihla elamurajoonis, väljaspool RVKA'd) | B48: ühik | C48: 2012 | D48: 2013 | E48: 2014 | F48: 2015 | G48: 2016 | H48: 2017 | I48: 2018 | J48: 2019 | K48: 2020 | L48: 2021 | M48: 2022 | N48: 2023 | O48: 2024 | P48: 2025 | Q48: 2026
A49: Elanike arv Laadi külas | B49: in | C49: =+C24 -> 398 | D49: =+D24 -> 389 | E49: =+E24 -> 395 | F49: =+F24 -> 402 | G49: =+G24 -> 409.1240506 | H49: =+H24 -> 416.3743503 | I49: =+I24 -> 423.7531362 | J49: =+J24 -> 431.2626855 | K49: =+K24 -> 438.9053153 | L49: =+L24 -> 438.9053153 | M49: =+M24 -> 438.9053153 | N49: =+N24 -> 438.9053153 | O49: =+O24 -> 438.9053153 | P49: =+P24 -> 438.9053153 | Q49: =+Q24 -> 438.9053153
A50: Ühisveega ühendatud elanikud | B50: in | C50: 43 | D50: 42 | E50: 44 | F50: =+E50+F51 -> 44 | G50: =+F50+G51 -> 44 | H50: =+G50+H51 -> 44 | I50: =+H50+I51 -> 44 | J50: =+I50+J51 -> 44 | K50: =+J50+K51 -> 44 | L50: =+K50+L51 -> 44 | M50: =+L50+M51 -> 44 | N50: =+M50+N51 -> 44 | O50: =+N50+O51 -> 44 | P50: =+O50+P51 -> 44 | Q50: =+P50+Q51 -> 44
A51: Uued liitujad ÜV-süsteemiga | B51: in | F51: 0 | G51: 0 | H51: 0 | I51: 0 | J51: 0 | K51: 0 | L51: 0 | M51: 0 | N51: 0 | O51: 0 | P51: 0 | Q51: 0
A52: ühendatuse määr | B52: % | C52: =C50/C49 -> 0.108040201 | D52: =D50/D49 -> 0.1079691517 | E52: =E50/E49 -> 0.1113924051 | F52: =F50/F49 -> 0.1094527363 | G52: =G50/G49 -> 0.1075468429 | H52: =H50/H49 -> 0.1056741367 | I52: =I50/I49 -> 0.1038340398 | J52: =J50/J49 -> 0.1020259844 | K52: =K50/K49 -> 0.1002494125 | L52: =L50/L49 -> 0.1002494125 | M52: =M50/M49 -> 0.1002494125 | N52: =N50/N49 -> 0.1002494125 | O52: =O50/O49 -> 0.1002494125 | P52: =P50/P49 -> 0.1002494125 | Q52: =Q50/Q49 -> 0.1002494125
A53: Ühiskanalisatsiooniga ühendatud elanikud | B53: in | C53: 43 | D53: 42 | E53: 44 | F53: =+E53+F54 -> 44 | G53: =+F53+G54 -> 44 | H53: =+G53+H54 -> 44 | I53: =+H53+I54 -> 44 | J53: =+I53+J54 -> 44 | K53: =+J53+K54 -> 44 | L53: =+K53+L54 -> 44 | M53: =+L53+M54 -> 44 | N53: =+M53+N54 -> 44 | O53: =+N53+O54 -> 44 | P53: =+O53+P54 -> 44 | Q53: =+P53+Q54 -> 44
A54: Uued liitujad ÜK-süsteemiga | B54: in | F54: 0 | G54: 0 | H54: 0 | I54: 0 | J54: 0 | K54: 0 | L54: 0 | M54: 0 | N54: 0 | O54: 0 | P54: 0 | Q54: 0
A55: ühendatuse määr | B55: % | C55: =C53/C49 -> 0.108040201 | D55: =D53/D49 -> 0.1079691517 | E55: =E53/E49 -> 0.1113924051 | F55: =F53/F49 -> 0.1094527363 | G55: =G53/G49 -> 0.1075468429 | H55: =H53/H49 -> 0.1056741367 | I55: =I53/I49 -> 0.1038340398 | J55: =J53/J49 -> 0.1020259844 | K55: =K53/K49 -> 0.1002494125 | L55: =L53/L49 -> 0.1002494125 | M55: =M53/M49 -> 0.1002494125 | N55: =N53/N49 -> 0.1002494125 | O55: =O53/O49 -> 0.1002494125 | P55: =P53/P49 -> 0.1002494125 | Q55: =Q53/Q49 -> 0.1002494125
A56: Tarbimine elaniku kohta vesi | B56: l/päevas | C56: =C59/C50/365*1000 -> 79.83434215 | D56: =D59/D50/365*1000 -> 68.49315068 | E56: =E59/E50/365*1000 -> 82.37858032 | F56: =+E56 -> 82.37858032 | G56: =+F56 -> 82.37858032 | H56: =+G56 -> 82.37858032 | I56: =+H56 -> 82.37858032 | J56: =+I56 -> 82.37858032 | K56: =+J56 -> 82.37858032 | L56: =+K56 -> 82.37858032 | M56: =+L56 -> 82.37858032 | N56: =+M56 -> 82.37858032 | O56: =+N56 -> 82.37858032 | P56: =+O56 -> 82.37858032 | Q56: =+P56 -> 82.37858032
A57: Tarbimine elaniku kohta kanal | B57: l/päevas | C57: =C64/C53/365*1000 -> 70.53201657 | D57: =D64/D53/365*1000 -> 62.81800391 | E57: =E64/E53/365*1000 -> 76.15193026 | F57: =+E57 -> 76.15193026 | G57: =+F57 -> 76.15193026 | H57: =+G57 -> 76.15193026 | I57: =+H57 -> 76.15193026 | J57: =+I57 -> 76.15193026 | K57: =+J57 -> 76.15193026 | L57: =+K57 -> 76.15193026 | M57: =+L57 -> 76.15193026 | N57: =+M57 -> 76.15193026 | O57: =+N57 -> 76.15193026 | P57: =+O57 -> 76.15193026 | Q57: =+P57 -> 76.15193026
A58: Müüdud vesi | B58: m3/aastas | C58: =SUM(C59:C60) -> 1253 | D58: =SUM(D59:D60) -> 1050 | E58: =SUM(E59:E60) -> 1323 | F58: =SUM(F59:F60) -> 1323 | G58: =SUM(G59:G60) -> 1323 | H58: =SUM(H59:H60) -> 1323 | I58: =SUM(I59:I60) -> 1323 | J58: =SUM(J59:J60) -> 1323 | K58: =SUM(K59:K60) -> 1323 | L58: =SUM(L59:L60) -> 1323 | M58: =SUM(M59:M60) -> 1323 | N58: =SUM(N59:N60) -> 1323 | O58: =SUM(O59:O60) -> 1323 | P58: =SUM(P59:P60) -> 1323 | Q58: =SUM(Q59:Q60) -> 1323
A59: Füüsilistele isikutele (sh korteriühistud) | B59: m3/aastas | C59: 1253 | D59: 1050 | E59: 1323 | F59: =+F50*F56*0.365 -> 1323 | G59: =+G50*G56*0.365 -> 1323 | H59: =+H50*H56*0.365 -> 1323 | I59: =+I50*I56*0.365 -> 1323 | J59: =+J50*J56*0.365 -> 1323 | K59: =+K50*K56*0.365 -> 1323 | L59: =+L50*L56*0.365 -> 1323 | M59: =+M50*M56*0.365 -> 1323 | N59: =+N50*N56*0.365 -> 1323 | O59: =+O50*O56*0.365 -> 1323 | P59: =+P50*P56*0.365 -> 1323 | Q59: =+Q50*Q56*0.365 -> 1323
A60: Juriidilistele isikutele (va korteriühistud) | B60: m3/aastas | C60: 0 | D60: 0 | E60: 0 | F60: =+E60 -> 0 | G60: =+F60 -> 0 | H60: =+G60 -> 0 | I60: =+H60 -> 0 | J60: =+I60 -> 0 | K60: =+J60 -> 0 | L60: =+K60 -> 0 | M60: =+L60 -> 0 | N60: =+M60 -> 0 | O60: =+N60 -> 0 | P60: =+O60 -> 0 | Q60: =+P60 -> 0
A61: Toodetud vesi | B61: m3/aastas | C61: 1853 | D61: 1681 | E61: 1372 | F61: =+F58*100%/(1-F62) -> 1372 | G61: =+G58*100%/(1-G62) -> 1372 | H61: =+H58*100%/(1-H62) -> 1372 | I61: =+I58*100%/(1-I62) -> 1372 | J61: =+J58*100%/(1-J62) -> 1372 | K61: =+K58*100%/(1-K62) -> 1372 | L61: =+L58*100%/(1-L62) -> 1372 | M61: =+M58*100%/(1-M62) -> 1372 | N61: =+N58*100%/(1-N62) -> 1372 | O61: =+O58*100%/(1-O62) -> 1372 | P61: =+P58*100%/(1-P62) -> 1372 | Q61: =+Q58*100%/(1-Q62) -> 1372
A62: Arvestamata vesi | B62: % | C62: =+(C61-C58)/C61 -> 0.3237992445 | D62: =+(D61-D58)/D61 -> 0.3753718025 | E62: =+(E61-E58)/E61 -> 0.03571428571 | F62: =+E62 -> 0.03571428571 | G62: =+F62 -> 0.03571428571 | H62: =+G62 -> 0.03571428571 | I62: =+H62 -> 0.03571428571 | J62: =+I62 -> 0.03571428571 | K62: =+J62 -> 0.03571428571 | L62: =+K62 -> 0.03571428571 | M62: =+L62 -> 0.03571428571 | N62: =+M62 -> 0.03571428571 | O62: =+N62 -> 0.03571428571 | P62: =+O62 -> 0.03571428571 | Q62: =+P62 -> 0.03571428571
A63: Vastuvõetud reovesi | B63: m3/aastas | C63: =SUM(C64:C65) -> 1107 | D63: =SUM(D64:D65) -> 963 | E63: =SUM(E64:E65) -> 1223 | F63: =SUM(F64:F65) -> 1223 | G63: =SUM(G64:G65) -> 1223 | H63: =SUM(H64:H65) -> 1223 | I63: =SUM(I64:I65) -> 1223 | J63: =SUM(J64:J65) -> 1223 | K63: =SUM(K64:K65) -> 1223 | L63: =SUM(L64:L65) -> 1223 | M63: =SUM(M64:M65) -> 1223 | N63: =SUM(N64:N65) -> 1223 | O63: =SUM(O64:O65) -> 1223 | P63: =SUM(P64:P65) -> 1223 | Q63: =SUM(Q64:Q65) -> 1223
A64: Füüsilistelt isikutelt (sh korteriühistud) | B64: m3/aastas | C64: 1107 | D64: 963 | E64: 1223 | F64: =+F53*F57*0.365 -> 1223 | G64: =+G53*G57*0.365 -> 1223 | H64: =+H53*H57*0.365 -> 1223 | I64: =+I53*I57*0.365 -> 1223 | J64: =+J53*J57*0.365 -> 1223 | K64: =+K53*K57*0.365 -> 1223 | L64: =+L53*L57*0.365 -> 1223 | M64: =+M53*M57*0.365 -> 1223 | N64: =+N53*N57*0.365 -> 1223 | O64: =+O53*O57*0.365 -> 1223 | P64: =+P53*P57*0.365 -> 1223 | Q64: =+Q53*Q57*0.365 -> 1223
A65: Juriidilistelt isikutelt (va korteriühistud) | B65: m3/aastas | C65: 0 | D65: 0 | E65: 0 | F65: =+E65 -> 0 | G65: =+F65 -> 0 | H65: =+G65 -> 0 | I65: =+H65 -> 0 | J65: =+I65 -> 0 | K65: =+J65 -> 0 | L65: =+K65 -> 0 | M65: =+L65 -> 0 | N65: =+M65 -> 0 | O65: =+N65 -> 0 | P65: =+O65 -> 0 | Q65: =+P65 -> 0
A66: Puhastatud heitvesi | B66: m3/aastas | C66: =+SUM(C63,C67)*100%/(1-C70) -> 1383.75 | D66: =+SUM(D63,D67)*100%/(1-D70) -> 1203.75 | E66: =+SUM(E63,E67)*100%/(1-E70) -> 1528.75 | F66: =+SUM(F63,F67)*100%/(1-F70) -> 1528.75 | G66: =+SUM(G63,G67)*100%/(1-G70) -> 1528.75 | H66: =+SUM(H63,H67)*100%/(1-H70) -> 1528.75 | I66: =+SUM(I63,I67)*100%/(1-I70) -> 1528.75 | J66: =+SUM(J63,J67)*100%/(1-J70) -> 1528.75 | K66: =+SUM(K63,K67)*100%/(1-K70) -> 1528.75 | L66: =+SUM(L63,L67)*100%/(1-L70) -> 1528.75 | M66: =+SUM(M63,M67)*100%/(1-M70) -> 1528.75 | N66: =+SUM(N63,N67)*100%/(1-N70) -> 1528.75 | O66: =+SUM(O63,O67)*100%/(1-O70) -> 1528.75 | P66: =+SUM(P63,P67)*100%/(1-P70) -> 1528.75 | Q66: =+SUM(Q63,Q67)*100%/(1-Q70) -> 1528.75 | R66: *Arvestuslik
A67: Purgitud heitvesi | B67: m3/aastas | C67: =SUM(C68:C69) -> 0 | D67: =SUM(D68:D69) -> 0 | E67: =SUM(E68:E69) -> 0 | F67: =SUM(F68:F69) -> 0 | G67: =SUM(G68:G69) -> 0 | H67: =SUM(H68:H69) -> 0 | I67: =SUM(I68:I69) -> 0 | J67: =SUM(J68:J69) -> 0 | K67: =SUM(K68:K69) -> 0 | L67: =SUM(L68:L69) -> 0 | M67: =SUM(M68:M69) -> 0 | N67: =SUM(N68:N69) -> 0 | O67: =SUM(O68:O69) -> 0 | P67: =SUM(P68:P69) -> 0 | Q67: =SUM(Q68:Q69) -> 0
A68: Füüsilistelt isikutelt (sh korteriühistud) | B68: m3/aastas | F68: =+E68 -> 0 | G68: =+F68 -> 0 | H68: =+G68 -> 0 | I68: =+H68 -> 0 | J68: =+I68 -> 0 | K68: =+J68 -> 0 | L68: =+K68 -> 0 | M68: =+L68 -> 0 | N68: =+M68 -> 0 | O68: =+N68 -> 0 | P68: =+O68 -> 0 | Q68: =+P68 -> 0
A69: Juriidilistelt isikutelt (va korteriühistud) | B69: m3/aastas | F69: =+E69 -> 0 | G69: =+F69 -> 0 | H69: =+G69 -> 0 | I69: =+H69 -> 0 | J69: =+I69 -> 0 | K69: =+J69 -> 0 | L69: =+K69 -> 0 | M69: =+L69 -> 0 | N69: =+M69 -> 0 | O69: =+N69 -> 0 | P69: =+O69 -> 0 | Q69: =+P69 -> 0
A70: Infiltratsioon | B70: % | C70: 0.2 | D70: 0.2 | E70: 0.2 | F70: 0.2 | G70: 0.2 | H70: 0.2 | I70: 0.2 | J70: 0.2 | K70: 0.2 | L70: 0.2 | M70: 0.2 | N70: 0.2 | O70: 0.2 | P70: 0.2 | Q70: 0.2 | R70: *Eksperthinnang
A71: Võiste veevärk (Võiste alevikus, RVKA <2000) | B71: ühik | C71: 2012 | D71: 2013 | E71: 2014 | F71: 2015 | G71: 2016 | H71: 2017 | I71: 2018 | J71: 2019 | K71: 2020 | L71: 2021 | M71: 2022 | N71: 2023 | O71: 2024 | P71: 2025 | Q71: 2026
A72: Elanike arv Võiste alevikus | B72: in | C72: 511 | D72: 488 | E72: 473 | F72: 473 | G72: =+F72*(1+G73) -> 463.54 | H72: =+G72*(1+H73) -> 454.2692 | I72: =+H72*(1+I73) -> 445.183816 | J72: =+I72*(1+J73) -> 436.2801397 | K72: =+J72*(1+K73) -> 427.5545369 | L72: =+K72 -> 427.5545369 | M72: =+L72 -> 427.5545369 | N72: =+M72 -> 427.5545369 | O72: =+N72 -> 427.5545369 | P72: =+O72 -> 427.5545369 | Q72: =+P72 -> 427.5545369
A73: muutus | B73: % | D73: =+(D72-C72)/C72 -> -0.04500978474 | E73: =+(E72-D72)/D72 -> -0.03073770492 | F73: =+(F72-E72)/E72 -> 0 | G73: -0.02 | H73: -0.02 | I73: -0.02 | J73: -0.02 | K73: -0.02 | L73: =+(L72-K72)/K72 -> 0 | M73: =+(M72-L72)/L72 -> 0 | N73: =+(N72-M72)/M72 -> 0 | O73: =+(O72-N72)/N72 -> 0 | P73: =+(P72-O72)/O72 -> 0 | Q73: =+(Q72-P72)/P72 -> 0
A74: Ühisveega ühendatud elanikud | B74: in | C74: 291 | D74: 291 | E74: 322 | F74: =+E74+F75 -> 322 | G74: =+F74+G75 -> 322 | H74: =+G74+H75 -> 322 | I74: =+H74+I75 -> 337 | J74: =+I74+J75 -> 337 | K74: =+J74+K75 -> 337 | L74: =+K74+L75 -> 337 | M74: =+L74+M75 -> 337 | N74: =+M74+N75 -> 337 | O74: =+N74+O75 -> 337 | P74: =+O74+P75 -> 337 | Q74: =+P74+Q75 -> 352
A75: Uued liitujad ÜV-süsteemiga | B75: in | F75: 0 | G75: 0 | H75: 0 | I75: =+Lekked_inf_liitujad!C18 -> 15 | J75: 0 | K75: 0 | L75: 0 | M75: 0 | N75: 0 | O75: 0 | P75: 0 | Q75: =+Lekked_inf_liitujad!D18 -> 15
A76: ühendatuse määr | B76: % | C76: =C74/C72 -> 0.5694716243 | D76: =D74/D72 -> 0.5963114754 | E76: =E74/E72 -> 0.6807610994 | F76: =F74/F72 -> 0.6807610994 | G76: =G74/G72 -> 0.694654183 | H76: =H74/H72 -> 0.708830799 | I76: =I74/I72 -> 0.7569906809 | J76: =J74/J72 -> 0.7724394703 | K76: =K74/K72 -> 0.7882035411 | L76: =L74/L72 -> 0.7882035411 | M76: =M74/M72 -> 0.7882035411 | N76: =N74/N72 -> 0.7882035411 | O76: =O74/O72 -> 0.7882035411 | P76: =P74/P72 -> 0.7882035411 | Q76: =Q74/Q72 -> 0.8232867848
A77: Ühiskanalisatsiooniga ühendatud elanikud | B77: in | C77: 66 | D77: 66 | E77: 69 | F77: =+E77+F78 -> 69 | G77: =+F77+G78 -> 69 | H77: =+G77+H78 -> 69 | I77: =+H77+I78 -> 119 | J77: =+I77+J78 -> 119 | K77: =+J77+K78 -> 119 | L77: =+K77+L78 -> 119 | M77: =+L77+M78 -> 119 | N77: =+M77+N78 -> 119 | O77: =+N77+O78 -> 119 | P77: =+O77+P78 -> 119 | Q77: =+P77+Q78 -> 294
A78: Uued liitujad ÜK-süsteemiga | B78: in | F78: 0 | G78: 0 | H78: 0 | I78: =+Lekked_inf_liitujad!C25 -> 50 | J78: 0 | K78: 0 | L78: 0 | M78: 0 | N78: 0 | O78: 0 | P78: 0 | Q78: =+Lekked_inf_liitujad!D25 -> 175
A79: ühendatuse määr | B79: % | C79: =C77/C72 -> 0.1291585127 | D79: =D77/D72 -> 0.1352459016 | E79: =E77/E72 -> 0.1458773784 | F79: =F77/F72 -> 0.1458773784 | G79: =G77/G72 -> 0.1488544678 | H79: =H77/H72 -> 0.1518923141 | I79: =I77/I72 -> 0.2673053146 | J79: =J77/J72 -> 0.2727605251 | K79: =K77/K72 -> 0.2783270665 | L79: =L77/L72 -> 0.2783270665 | M79: =M77/M72 -> 0.2783270665 | N79: =N77/N72 -> 0.2783270665 | O79: =O77/O72 -> 0.2783270665 | P79: =P77/P72 -> 0.2783270665 | Q79: =Q77/Q72 -> 0.6876315759
A80: Tarbimine elaniku kohta vesi | B80: l/päevas | C80: =C83/C74/365*1000 -> 67.85293979 | D80: =D83/D74/365*1000 -> 55.22760439 | E80: =E83/E74/365*1000 -> 60.80149749 | F80: =+E80 -> 60.80149749 | G80: =+F80 -> 60.80149749 | H80: =+G80 -> 60.80149749 | I80: =+H80 -> 60.80149749 | J80: =+I80 -> 60.80149749 | K80: =+J80 -> 60.80149749 | L80: =+K80 -> 60.80149749 | M80: =+L80 -> 60.80149749 | N80: =+M80 -> 60.80149749 | O80: =+N80 -> 60.80149749 | P80: =+O80 -> 60.80149749 | Q80: =+P80 -> 60.80149749
A81: Tarbimine elaniku kohta kanal | B81: l/päevas | C81: =C88/C77/365*1000 -> 72.35367372 | D81: =D88/D77/365*1000 -> 66.16853466 | E81: =E88/E77/365*1000 -> 65.19753822 | F81: =+E81 -> 65.19753822 | G81: =+F81 -> 65.19753822 | H81: =+G81 -> 65.19753822 | I81: =+H81 -> 65.19753822 | J81: =+I81 -> 65.19753822 | K81: =+J81 -> 65.19753822 | L81: =+K81 -> 65.19753822 | M81: =+L81 -> 65.19753822 | N81: =+M81 -> 65.19753822 | O81: =+N81 -> 65.19753822 | P81: =+O81 -> 65.19753822 | Q81: =+P81 -> 65.19753822
A82: Müüdud vesi | B82: m3/aastas | C82: =SUM(C83:C84) -> 8499 | D82: =SUM(D83:D84) -> 7288 | E82: =SUM(E83:E84) -> 8485 | F82: =SUM(F83:F84) -> 8485 | G82: =SUM(G83:G84) -> 8485 | H82: =SUM(H83:H84) -> 8485 | I82: =SUM(I83:I84) -> 8817.888199 | J82: =SUM(J83:J84) -> 8817.888199 | K82: =SUM(K83:K84) -> 8817.888199 | L82: =SUM(L83:L84) -> 8817.888199 | M82: =SUM(M83:M84) -> 8817.888199 | N82: =SUM(N83:N84) -> 8817.888199 | O82: =SUM(O83:O84) -> 8817.888199 | P82: =SUM(P83:P84) -> 8817.888199 | Q82: =SUM(Q83:Q84) -> 9150.776398
A83: Füüsilistele isikutele (sh korteriühistud) | B83: m3/aastas | C83: 7207 | D83: 5866 | E83: 7146 | F83: =+F74*F80*0.365 -> 7146 | G83: =+G74*G80*0.365 -> 7146 | H83: =+H74*H80*0.365 -> 7146 | I83: =+I74*I80*0.365 -> 7478.888199 | J83: =+J74*J80*0.365 -> 7478.888199 | K83: =+K74*K80*0.365 -> 7478.888199 | L83: =+L74*L80*0.365 -> 7478.888199 | M83: =+M74*M80*0.365 -> 7478.888199 | N83: =+N74*N80*0.365 -> 7478.888199 | O83: =+O74*O80*0.365 -> 7478.888199 | P83: =+P74*P80*0.365 -> 7478.888199 | Q83: =+Q74*Q80*0.365 -> 7811.776398
A84: Juriidilistele isikutele (va korteriühistud) | B84: m3/aastas | C84: 1292 | D84: 1422 | E84: 1339 | F84: =+E84 -> 1339 | G84: =+F84 -> 1339 | H84: =+G84 -> 1339 | I84: =+H84 -> 1339 | J84: =+I84 -> 1339 | K84: =+J84 -> 1339 | L84: =+K84 -> 1339 | M84: =+L84 -> 1339 | N84: =+M84 -> 1339 | O84: =+N84 -> 1339 | P84: =+O84 -> 1339 | Q84: =+P84 -> 1339
A85: Toodetud vesi | B85: m3/aastas | C85: 11812 | D85: 15846 | E85: 18789 | F85: =+F82*100%/(1-F86) -> 18789 | G85: =+G82*100%/(1-G86) -> 18789 | H85: =+H82*100%/(1-H86) -> 18789 | I85: =+I82*100%/(1-I86) -> 11022.36025 | J85: =+J82*100%/(1-J86) -> 11022.36025 | K85: =+K82*100%/(1-K86) -> 11022.36025 | L85: =+L82*100%/(1-L86) -> 11022.36025 | M85: =+M82*100%/(1-M86) -> 11022.36025 | N85: =+N82*100%/(1-N86) -> 11022.36025 | O85: =+O82*100%/(1-O86) -> 11022.36025 | P85: =+P82*100%/(1-P86) -> 11022.36025 | Q85: =+Q82*100%/(1-Q86) -> 11438.4705
A86: Arvestamata vesi | B86: % | C86: =+(C85-C82)/C85 -> 0.2804774805 | D86: =+(D85-D82)/D85 -> 0.5400732046 | E86: =+(E85-E82)/E85 -> 0.5484059822 | F86: =+E86 -> 0.5484059822 | G86: =+F86 -> 0.5484059822 | H86: =+G86 -> 0.5484059822 | I86: =+Lekked_inf_liitujad!C4 -> 0.2 | J86: =+I86 -> 0.2 | K86: =+J86 -> 0.2 | L86: =+K86 -> 0.2 | M86: =+L86 -> 0.2 | N86: =+M86 -> 0.2 | O86: =+N86 -> 0.2 | P86: =+O86 -> 0.2 | Q86: =+P86 -> 0.2
A87: Vastuvõetud reovesi | B87: m3/aastas | C87: =SUM(C88:C89) -> 2726 | D87: =SUM(D88:D89) -> 2644 | E87: =SUM(E88:E89) -> 2649 | F87: =SUM(F88:F89) -> 2649 | G87: =SUM(G88:G89) -> 2649 | H87: =SUM(H88:H89) -> 2649 | I87: =SUM(I88:I89) -> 3838.855072 | J87: =SUM(J88:J89) -> 3838.855072 | K87: =SUM(K88:K89) -> 3838.855072 | L87: =SUM(L88:L89) -> 3838.855072 | M87: =SUM(M88:M89) -> 3838.855072 | N87: =SUM(N88:N89) -> 3838.855072 | O87: =SUM(O88:O89) -> 3838.855072 | P87: =SUM(P88:P89) -> 3838.855072 | Q87: =SUM(Q88:Q89) -> 8003.347826
A88: Füüsilistelt isikutelt (sh korteriühistud) | B88: m3/aastas | C88: 1743 | D88: 1594 | E88: 1642 | F88: =+F77*F81*0.365 -> 1642 | G88: =+G77*G81*0.365 -> 1642 | H88: =+H77*H81*0.365 -> 1642 | I88: =+I77*I81*0.365 -> 2831.855072 | J88: =+J77*J81*0.365 -> 2831.855072 | K88: =+K77*K81*0.365 -> 2831.855072 | L88: =+L77*L81*0.365 -> 2831.855072 | M88: =+M77*M81*0.365 -> 2831.855072 | N88: =+N77*N81*0.365 -> 2831.855072 | O88: =+O77*O81*0.365 -> 2831.855072 | P88: =+P77*P81*0.365 -> 2831.855072 | Q88: =+Q77*Q81*0.365 -> 6996.347826
A89: Juriidilistelt isikutelt (va korteriühistud) | B89: m3/aastas | C89: 983 | D89: 1050 | E89: 1007 | F89: =+E89 -> 1007 | G89: =+F89 -> 1007 | H89: =+G89 -> 1007 | I89: =+H89 -> 1007 | J89: =+I89 -> 1007 | K89: =+J89 -> 1007 | L89: =+K89 -> 1007 | M89: =+L89 -> 1007 | N89: =+M89 -> 1007 | O89: =+N89 -> 1007 | P89: =+O89 -> 1007 | Q89: =+P89 -> 1007
A90: Puhastatud heitvesi | B90: m3/aastas | C90: =+SUM(C87,C91)*100%/(1-C94) -> 3407.5 | D90: =+SUM(D87,D91)*100%/(1-D94) -> 3305 | E90: =+SUM(E87,E91)*100%/(1-E94) -> 3311.25 | F90: =+SUM(F87,F91)*100%/(1-F94) -> 3311.25 | G90: =+SUM(G87,G91)*100%/(1-G94) -> 3311.25 | H90: =+SUM(H87,H91)*100%/(1-H94) -> 3311.25 | I90: =+SUM(I87,I91)*100%/(1-I94) -> 4798.568841 | J90: =+SUM(J87,J91)*100%/(1-J94) -> 4798.568841 | K90: =+SUM(K87,K91)*100%/(1-K94) -> 4798.568841 | L90: =+SUM(L87,L91)*100%/(1-L94) -> 4798.568841 | M90: =+SUM(M87,M91)*100%/(1-M94) -> 4798.568841 | N90: =+SUM(N87,N91)*100%/(1-N94) -> 4798.568841 | O90: =+SUM(O87,O91)*100%/(1-O94) -> 4798.568841 | P90: =+SUM(P87,P91)*100%/(1-P94) -> 4798.568841 | Q90: =+SUM(Q87,Q91)*100%/(1-Q94) -> 10004.18478 | R90: *Arvestuslik
A91: Purgitud heitvesi | B91: m3/aastas | C91: =SUM(C92:C93) -> 0 | D91: =SUM(D92:D93) -> 0 | E91: =SUM(E92:E93) -> 0 | F91: =SUM(F92:F93) -> 0 | G91: =SUM(G92:G93) -> 0 | H91: =SUM(H92:H93) -> 0 | I91: =SUM(I92:I93) -> 0 | J91: =SUM(J92:J93) -> 0 | K91: =SUM(K92:K93) -> 0 | L91: =SUM(L92:L93) -> 0 | M91: =SUM(M92:M93) -> 0 | N91: =SUM(N92:N93) -> 0 | O91: =SUM(O92:O93) -> 0 | P91: =SUM(P92:P93) -> 0 | Q91: =SUM(Q92:Q93) -> 0
A92: Füüsilistelt isikutelt (sh korteriühistud) | B92: m3/aastas | F92: =+E92 -> 0 | G92: =+F92 -> 0 | H92: =+G92 -> 0 | I92: =+H92 -> 0 | J92: =+I92 -> 0 | K92: =+J92 -> 0 | L92: =+K92 -> 0 | M92: =+L92 -> 0 | N92: =+M92 -> 0 | O92: =+N92 -> 0 | P92: =+O92 -> 0 | Q92: =+P92 -> 0
A93: Juriidilistelt isikutelt (va korteriühistud) | B93: m3/aastas | F93: =+E93 -> 0 | G93: =+F93 -> 0 | H93: =+G93 -> 0 | I93: =+H93 -> 0 | J93: =+I93 -> 0 | K93: =+J93 -> 0 | L93: =+K93 -> 0 | M93: =+L93 -> 0 | N93: =+M93 -> 0 | O93: =+N93 -> 0 | P93: =+O93 -> 0 | Q93: =+P93 -> 0
A94: Infiltratsioon | B94: % | C94: 0.2 | D94: 0.2 | E94: 0.2 | F94: 0.2 | G94: 0.2 | H94: 0.2 | I94: 0.2 | J94: 0.2 | K94: 0.2 | L94: 0.2 | M94: 0.2 | N94: 0.2 | O94: 0.2 | P94: 0.2 | Q94: 0.2 | R94: *Eksperthinnang
A95: Kalevi pst (Reiu küla) (AS Pärnu Vesi ÜVK-süsteem) | B95: ühik | C95: 2012 | D95: 2013 | E95: 2014 | F95: 2015 | G95: 2016 | H95: 2017 | I95: 2018 | J95: 2019 | K95: 2020 | L95: 2021 | M95: 2022 | N95: 2023 | O95: 2024 | P95: 2025 | Q95: 2026
A96: Elanike arv Reiu külas | B96: in | C96: 500 | D96: 501 | E96: 491 | F96: 508 | G96: =+F96*(1+G97) -> 511.556 | H96: =+G96*(1+H97) -> 515.136892 | I96: =+H96*(1+I97) -> 518.7428502 | J96: =+I96*(1+J97) -> 522.3740502 | K96: =+J96*(1+K97) -> 526.0306685 | L96: =+K96*(1+L97) -> 526.0306685 | M96: =+L96*(1+M97) -> 526.0306685 | N96: =+M96*(1+N97) -> 526.0306685 | O96: =+N96*(1+O97) -> 526.0306685 | P96: =+O96*(1+P97) -> 526.0306685 | Q96: =+P96*(1+Q97) -> 526.0306685
A97: muutus | B97: % | D97: =+(D96-C96)/C96 -> 0.002 | E97: =+(E96-D96)/D96 -> -0.01996007984 | F97: =+(F96-E96)/E96 -> 0.03462321792 | G97: 0.007 | H97: 0.007 | I97: 0.007 | J97: 0.007 | K97: 0.007 | L97: 0 | M97: 0 | N97: 0 | O97: 0 | P97: 0 | Q97: 0
A98: Ühisveega ühendatud elanikud | B98: in | C98: 50 | D98: 50 | E98: 50 | F98: 50 | G98: =+F98+G99 -> 50 | H98: =+G98+H99 -> 50 | I98: =+H98+I99 -> 50 | J98: =+I98+J99 -> 50 | K98: =+J98+K99 -> 50 | L98: =+K98+L99 -> 50 | M98: =+L98+M99 -> 50 | N98: =+M98+N99 -> 50 | O98: =+N98+O99 -> 50 | P98: =+O98+P99 -> 50 | Q98: =+P98+Q99 -> 50
A99: Uued liitujad ÜV-süsteemiga | B99: in | F99: 0 | G99: 0 | H99: 0 | I99: 0 | J99: 0 | K99: 0 | L99: 0 | M99: 0 | N99: 0 | O99: 0 | P99: 0 | Q99: 0
A100: ühendatuse määr | B100: % | C100: =C98/C96 -> 0.1 | D100: =D98/D96 -> 0.0998003992 | E100: =E98/E96 -> 0.1018329939 | F100: =F98/F96 -> 0.09842519685 | G100: =G98/G96 -> 0.09774100978 | H100: =H98/H96 -> 0.09706157873 | I100: =I98/I96 -> 0.09638687064 | J100: =J98/J96 -> 0.09571685267 | K100: =K98/K96 -> 0.09505149222 | L100: =L98/L96 -> 0.09505149222 | M100: =M98/M96 -> 0.09505149222 | N100: =N98/N96 -> 0.09505149222 | O100: =O98/O96 -> 0.09505149222 | P100: =P98/P96 -> 0.09505149222 | Q100: =Q98/Q96 -> 0.09505149222
A101: Ühiskanalisatsiooniga ühendatud elanikud | B101: in | C101: 50 | D101: 50 | E101: 50 | F101: 50 | G101: =+F101+G102 -> 50 | H101: =+G101+H102 -> 50 | I101: =+H101+I102 -> 50 | J101: =+I101+J102 -> 50 | K101: =+J101+K102 -> 50 | L101: =+K101+L102 -> 50 | M101: =+L101+M102 -> 50 | N101: =+M101+N102 -> 50 | O101: =+N101+O102 -> 50 | P101: =+O101+P102 -> 50 | Q101: =+P101+Q102 -> 50
A102: Uued liitujad ÜK-süsteemiga | B102: in | F102: 0 | G102: 0 | H102: 0 | I102: 0 | J102: 0 | K102: 0 | L102: 0 | M102: 0 | N102: 0 | O102: 0 | P102: 0 | Q102: 0
A103: Tõllapulga (Reiu) veevärk (Reiu külas) | B103: ühik | C103: 2012 | D103: 2013 | E103: 2014 | F103: 2015 | G103: 2016 | H103: 2017 | I103: 2018 | J103: 2019 | K103: 2020 | L103: 2021 | M103: 2022 | N103: 2023 | O103: 2024 | P103: 2025 | Q103: 2026
A104: Elanike arv Reiu külas | B104: in | C104: 500 | D104: 501 | E104: 491 | F104: 508 | G104: =+F104*(1+G105) -> 511.556 | H104: =+G104*(1+H105) -> 515.136892 | I104: =+H104*(1+I105) -> 518.7428502 | J104: =+I104*(1+J105) -> 522.3740502 | K104: =+J104*(1+K105) -> 526.0306685 | L104: =+K104*(1+L105) -> 526.0306685 | M104: =+L104*(1+M105) -> 526.0306685 | N104: =+M104*(1+N105) -> 526.0306685 | O104: =+N104*(1+O105) -> 526.0306685 | P104: =+O104*(1+P105) -> 526.0306685 | Q104: =+P104*(1+Q105) -> 526.0306685
A105: muutus | B105: % | D105: =+(D104-C104)/C104 -> 0.002 | E105: =+(E104-D104)/D104 -> -0.01996007984 | F105: =+(F104-E104)/E104 -> 0.03462321792 | G105: 0.007 | H105: 0.007 | I105: 0.007 | J105: 0.007 | K105: 0.007 | L105: 0 | M105: 0 | N105: 0 | O105: 0 | P105: 0 | Q105: 0
A106: Ühisveega ühendatud elanikud | B106: in | C106: 191 | D106: 196 | E106: 201 | F106: =+E106+F107 -> 201 | G106: =+F106+G107 -> 203.44 | H106: =+G106+H107 -> 205.88 | I106: =+H106+I107 -> 208.32 | J106: =+I106+J107 -> 210.76 | K106: =+J106+K107 -> 213.2 | L106: =+K106+L107 -> 215.64 | M106: =+L106+M107 -> 218.08 | N106: =+M106+N107 -> 220.52 | O106: =+N106+O107 -> 222.96 | P106: =+O106+P107 -> 225.4 | Q106: =+P106+Q107 -> 225.4
A107: Uued liitujad ÜV-süsteemiga | B107: in | F107: 0 | G107: =1*EE!G11 -> 2.44 | H107: =+G107 -> 2.44 | I107: =+H107 -> 2.44 | J107: =+I107 -> 2.44 | K107: =+J107 -> 2.44 | L107: =+K107 -> 2.44 | M107: =+L107 -> 2.44 | N107: =+M107 -> 2.44 | O107: =+N107 -> 2.44 | P107: =+O107 -> 2.44 | Q107: 0
A108: ühendatuse määr | B108: % | C108: =C106/C104 -> 0.382 | D108: =D106/D104 -> 0.3912175649 | E108: =E106/E104 -> 0.4093686354 | F108: =F106/F104 -> 0.3956692913 | G108: =G106/G104 -> 0.3976886206 | H108: =H106/H104 -> 0.3996607566 | I108: =I106/I104 -> 0.4015862578 | J108: =J106/J104 -> 0.4034656774 | K108: =K106/K104 -> 0.4052995628 | L108: =L106/L104 -> 0.4099380757 | M108: =M106/M104 -> 0.4145765885 | N108: =N106/N104 -> 0.4192151013 | O108: =O106/O104 -> 0.4238536141 | P108: =P106/P104 -> 0.4284921269 | Q108: =Q106/Q104 -> 0.4284921269
A109: Ühiskanalisatsiooniga ühendatud elanikud | B109: in | C109: 165 | D109: 170 | E109: 175 | F109: =+E109+F110 -> 175 | G109: =+F109+G110 -> 177.44 | H109: =+G109+H110 -> 179.88 | I109: =+H109+I110 -> 182.32 | J109: =+I109+J110 -> 184.76 | K109: =+J109+K110 -> 187.2 | L109: =+K109+L110 -> 189.64 | M109: =+L109+M110 -> 192.08 | N109: =+M109+N110 -> 194.52 | O109: =+N109+O110 -> 196.96 | P109: =+O109+P110 -> 199.96 | Q109: =+P109+Q110 -> 199.96
A110: Uued liitujad ÜK-süsteemiga | B110: in | F110: 0 | G110: =+G107 -> 2.44 | H110: =+H107 -> 2.44 | I110: =+I107 -> 2.44 | J110: =+J107 -> 2.44 | K110: =+K107 -> 2.44 | L110: =+L107 -> 2.44 | M110: =+M107 -> 2.44 | N110: =+N107 -> 2.44 | O110: =+O107 -> 2.44 | P110: =+ROUNDUP(P107,0) -> 3 | Q110: =+Q107 -> 0
A111: ühendatuse määr | B111: % | C111: =C109/C104 -> 0.33 | D111: =D109/D104 -> 0.3393213573 | E111: =E109/E104 -> 0.3564154786 | F111: =F109/F104 -> 0.344488189 | G111: =G109/G104 -> 0.3468632955 | H111: =H109/H104 -> 0.3491887356 | I111: =I109/I104 -> 0.3514650851 | J111: =J109/J104 -> 0.353692914 | K111: =K109/K104 -> 0.3558727869 | L111: =L109/L104 -> 0.3605112997 | M111: =M109/M104 -> 0.3651498125 | N111: =N109/N104 -> 0.3697883253 | O111: =O109/O104 -> 0.3744268382 | P111: =P109/P104 -> 0.3801299277 | Q111: =Q109/Q104 -> 0.3801299277
A112: Tarbimine elaniku kohta vesi | B112: l/päevas | C112: =C115/C106/365*1000 -> 50.69210356 | D112: =D115/D106/365*1000 -> 52.13866368 | E112: =E115/E106/365*1000 -> 69.54269747 | F112: =+E112 -> 69.54269747 | G112: =+F112 -> 69.54269747 | H112: =+G112 -> 69.54269747 | I112: =+H112 -> 69.54269747 | J112: =+I112 -> 69.54269747 | K112: =+J112 -> 69.54269747 | L112: =+K112 -> 69.54269747 | M112: =+L112 -> 69.54269747 | N112: =+M112 -> 69.54269747 | O112: =+N112 -> 69.54269747 | P112: =+O112 -> 69.54269747 | Q112: =+P112 -> 69.54269747
A113: Tarbimine elaniku kohta kanal | B113: l/päevas | C113: =C120/C109/365*1000 -> 57.96596098 | D113: =D120/D109/365*1000 -> 59.46817083 | E113: =E120/E109/365*1000 -> 66.8962818 | F113: =+F112 -> 69.54269747 | G113: =+F113 -> 69.54269747 | H113: =+G113 -> 69.54269747 | I113: =+H113 -> 69.54269747 | J113: =+I113 -> 69.54269747 | K113: =+J113 -> 69.54269747 | L113: =+K113 -> 69.54269747 | M113: =+L113 -> 69.54269747 | N113: =+M113 -> 69.54269747 | O113: =+N113 -> 69.54269747 | P113: =+O113 -> 69.54269747 | Q113: =+P113 -> 69.54269747
A114: Müüdud vesi | B114: m3/aastas | C114: =SUM(C115:C116) -> 3534 | D114: =SUM(D115:D116) -> 3730 | E114: =SUM(E115:E116) -> 5102 | F114: =SUM(F115:F116) -> 5102 | G114: =SUM(G115:G116) -> 5163.934726 | H114: =SUM(H115:H116) -> 5225.869453 | I114: =SUM(I115:I116) -> 5287.804179 | J114: =SUM(J115:J116) -> 5349.738905 | K114: =SUM(K115:K116) -> 5411.673632 | L114: =SUM(L115:L116) -> 5473.608358 | M114: =SUM(M115:M116) -> 5535.543085 | N114: =SUM(N115:N116) -> 5597.477811 | O114: =SUM(O115:O116) -> 5659.412537 | P114: =SUM(P115:P116) -> 5721.347264 | Q114: =SUM(Q115:Q116) -> 5721.347264
A115: Füüsilistele isikutele (sh korteriühistud) | B115: m3/aastas | C115: 3534 | D115: 3730 | E115: 5102 | F115: =+F106*F112*0.365 -> 5102 | G115: =+G106*G112*0.365 -> 5163.934726 | H115: =+H106*H112*0.365 -> 5225.869453 | I115: =+I106*I112*0.365 -> 5287.804179 | J115: =+J106*J112*0.365 -> 5349.738905 | K115: =+K106*K112*0.365 -> 5411.673632 | L115: =+L106*L112*0.365 -> 5473.608358 | M115: =+M106*M112*0.365 -> 5535.543085 | N115: =+N106*N112*0.365 -> 5597.477811 | O115: =+O106*O112*0.365 -> 5659.412537 | P115: =+P106*P112*0.365 -> 5721.347264 | Q115: =+Q106*Q112*0.365 -> 5721.347264
A116: Juriidilistele isikutele (va korteriühistud) | B116: m3/aastas | C116: 0 | D116: 0 | E116: 0 | F116: =+E116 -> 0 | G116: =+F116 -> 0 | H116: =+G116 -> 0 | I116: =+H116 -> 0 | J116: =+I116 -> 0 | K116: =+J116 -> 0 | L116: =+K116 -> 0 | M116: =+L116 -> 0 | N116: =+M116 -> 0 | O116: =+N116 -> 0 | P116: =+O116 -> 0 | Q116: =+P116 -> 0
A117: Toodetud vesi | B117: m3/aastas | C117: 5039 | D117: 5085 | E117: 5936 | F117: =+F114*100%/(1-F118) -> 5936 | G117: =+G114*100%/(1-G118) -> 6008.058905 | H117: =+H114*100%/(1-H118) -> 6080.117811 | I117: =+I114*100%/(1-I118) -> 6152.176716 | J117: =+J114*100%/(1-J118) -> 6224.235622 | K117: =+K114*100%/(1-K118) -> 6296.294527 | L117: =+L114*100%/(1-L118) -> 6368.353433 | M117: =+M114*100%/(1-M118) -> 6440.412338 | N117: =+N114*100%/(1-N118) -> 6512.471244 | O117: =+O114*100%/(1-O118) -> 6584.530149 | P117: =+P114*100%/(1-P118) -> 6656.589055 | Q117: =+Q114*100%/(1-Q118) -> 6656.589055
A118: Arvestamata vesi | B118: % | C118: =+(C117-C114)/C117 -> 0.2986703711 | D118: =+(D117-D114)/D117 -> 0.2664700098 | E118: =+(E117-E114)/E117 -> 0.1404986523 | F118: =+E118 -> 0.1404986523 | G118: =+F118 -> 0.1404986523 | H118: =+G118 -> 0.1404986523 | I118: =+H118 -> 0.1404986523 | J118: =+I118 -> 0.1404986523 | K118: =+J118 -> 0.1404986523 | L118: =+K118 -> 0.1404986523 | M118: =+L118 -> 0.1404986523 | N118: =+M118 -> 0.1404986523 | O118: =+N118 -> 0.1404986523 | P118: =+O118 -> 0.1404986523 | Q118: =+P118 -> 0.1404986523
A119: Vastuvõetud reovesi | B119: m3/aastas | C119: =SUM(C120:C121) -> 3491 | D119: =SUM(D120:D121) -> 3690 | E119: =SUM(E120:E121) -> 4273 | F119: =SUM(F120:F121) -> 4442.039801 | G119: =SUM(G120:G121) -> 4503.974527 | H119: =SUM(H120:H121) -> 4565.909254 | I119: =SUM(I120:I121) -> 4627.84398 | J119: =SUM(J120:J121) -> 4689.778706 | K119: =SUM(K120:K121) -> 4751.713433 | L119: =SUM(L120:L121) -> 4813.648159 | M119: =SUM(M120:M121) -> 4875.582886 | N119: =SUM(N120:N121) -> 4937.517612 | O119: =SUM(O120:O121) -> 4999.452338 | P119: =SUM(P120:P121) -> 5075.601592 | Q119: =SUM(Q120:Q121) -> 5075.601592
A120: Füüsilistelt isikutelt (sh korteriühistud) | B120: m3/aastas | C120: 3491 | D120: 3690 | E120: 4273 | F120: =+F109*F113*0.365 -> 4442.039801 | G120: =+G109*G113*0.365 -> 4503.974527 | H120: =+H109*H113*0.365 -> 4565.909254 | I120: =+I109*I113*0.365 -> 4627.84398 | J120: =+J109*J113*0.365 -> 4689.778706 | K120: =+K109*K113*0.365 -> 4751.713433 | L120: =+L109*L113*0.365 -> 4813.648159 | M120: =+M109*M113*0.365 -> 4875.582886 | N120: =+N109*N113*0.365 -> 4937.517612 | O120: =+O109*O113*0.365 -> 4999.452338 | P120: =+P109*P113*0.365 -> 5075.601592 | Q120: =+Q109*Q113*0.365 -> 5075.601592
A121: Juriidilistelt isikutelt (va korteriühistud) | B121: m3/aastas | C121: 0 | D121: 0 | E121: 0 | F121: =+E121 -> 0 | G121: =+F121 -> 0 | H121: =+G121 -> 0 | I121: =+H121 -> 0 | J121: =+I121 -> 0 | K121: =+J121 -> 0 | L121: =+K121 -> 0 | M121: =+L121 -> 0 | N121: =+M121 -> 0 | O121: =+N121 -> 0 | P121: =+O121 -> 0 | Q121: =+P121 -> 0
A122: AS Pärnu Vesi ostetud ÜK teenusmahud | B122: m3/aastas | C122: 3491 | D122: 3690 | E122: 4273 | F122: =+F119 -> 4442.039801 | G122: =+G119 -> 4503.974527 | H122: =+H119 -> 4565.909254 | I122: =+I119 -> 4627.84398 | J122: =+J119 -> 4689.778706 | K122: =+K119 -> 4751.713433 | L122: =+L119 -> 4813.648159 | M122: =+M119 -> 4875.582886 | N122: =+N119 -> 4937.517612 | O122: =+O119 -> 4999.452338 | P122: =+P119 -> 5075.601592 | Q122: =+Q119 -> 5075.601592
A123: Postitee, Kuukivi ja Kulla tee (nn Suksumetsa ehk Reiu II veevärk) (Reiu külas) | B123: ühik | C123: 2012 | D123: 2013 | E123: 2014 | F123: 2015 | G123: 2016 | H123: 2017 | I123: 2018 | J123: 2019 | K123: 2020 | L123: 2021 | M123: 2022 | N123: 2023 | O123: 2024 | P123: 2025 | Q123: 2026
A124: Elanike arv Reiu külas | B124: in | C124: =+C104 -> 500 | D124: =+D104 -> 501 | E124: =+E104 -> 491 | F124: =+F104 -> 508 | G124: =+G104 -> 511.556 | H124: =+H104 -> 515.136892 | I124: =+I104 -> 518.7428502 | J124: =+J104 -> 522.3740502 | K124: =+K104 -> 526.0306685 | L124: =+L104 -> 526.0306685 | M124: =+M104 -> 526.0306685 | N124: =+N104 -> 526.0306685 | O124: =+O104 -> 526.0306685 | P124: =+P104 -> 526.0306685 | Q124: =+Q104 -> 526.0306685
A125: Ühisveega ühendatud elanikud | B125: in | C125: 45 | D125: 47 | E125: 49 | F125: =+E125+F126 -> 49 | G125: =+F125+G126 -> 49 | H125: =+G125+H126 -> 49 | I125: =+H125+I126 -> 49 | J125: =+I125+J126 -> 49 | K125: =+J125+K126 -> 49 | L125: =+K125+L126 -> 49 | M125: =+L125+M126 -> 49 | N125: =+M125+N126 -> 49 | O125: =+N125+O126 -> 49 | P125: =+O125+P126 -> 49 | Q125: =+P125+Q126 -> 100
A126: Uued liitujad ÜV-süsteemiga | B126: in | F126: 0 | G126: 0 | H126: 0 | I126: 0 | J126: 0 | K126: 0 | L126: 0 | M126: 0 | N126: 0 | O126: 0 | P126: 0 | Q126: 51
A127: ühendatuse määr | B127: % | C127: =C125/C124 -> 0.09 | D127: =D125/D124 -> 0.09381237525 | E127: =E125/E124 -> 0.09979633401 | F127: =F125/F124 -> 0.09645669291 | G127: =G125/G124 -> 0.09578618959 | H127: =H125/H124 -> 0.09512034716 | I127: =I125/I124 -> 0.09445913322 | J127: =J125/J124 -> 0.09380251561 | K127: =K125/K124 -> 0.09315046238 | L127: =L125/L124 -> 0.09315046238 | M127: =M125/M124 -> 0.09315046238 | N127: =N125/N124 -> 0.09315046238 | O127: =O125/O124 -> 0.09315046238 | P127: =P125/P124 -> 0.09315046238 | Q127: =Q125/Q124 -> 0.1901029844
A128: Ühiskanalisatsiooniga ühendatud elanikud | B128: in | C128: 17 | D128: 19 | E128: 21 | F128: =+E128+F129 -> 21 | G128: =+F128+G129 -> 21 | H128: =+G128+H129 -> 35 | I128: =+H128+I129 -> 49 | J128: =+I128+J129 -> 49 | K128: =+J128+K129 -> 49 | L128: =+K128+L129 -> 49 | M128: =+L128+M129 -> 49 | N128: =+M128+N129 -> 49 | O128: =+N128+O129 -> 49 | P128: =+O128+P129 -> 49 | Q128: =+P128+Q129 -> 100
A129: Uued liitujad ÜK-süsteemiga | B129: in | F129: 0 | G129: 0 | H129: 14 | I129: 14 | J129: 0 | K129: 0 | L129: 0 | M129: 0 | N129: 0 | O129: 0 | P129: 0 | Q129: =+Lekked_inf_liitujad!D27+21 -> 51
A130: ühendatuse määr | B130: % | C130: =C128/C124 -> 0.034 | D130: =D128/D124 -> 0.0379241517 | E130: =E128/E124 -> 0.04276985743 | F130: =F128/F124 -> 0.04133858268 | G130: =G128/G124 -> 0.04105122411 | H130: =H128/H124 -> 0.06794310511 | I130: =I128/I124 -> 0.09445913322 | J130: =J128/J124 -> 0.09380251561 | K130: =K128/K124 -> 0.09315046238 | L130: =L128/L124 -> 0.09315046238 | M130: =M128/M124 -> 0.09315046238 | N130: =N128/N124 -> 0.09315046238 | O130: =O128/O124 -> 0.09315046238 | P130: =P128/P124 -> 0.09315046238 | Q130: =Q128/Q124 -> 0.1901029844
A131: Tarbimine elaniku kohta vesi | B131: l/päevas | C131: =C134/C125/365*1000 -> 91.56773212 | D131: =D134/D125/365*1000 -> 85.8058875 | E131: =E134/E125/365*1000 -> 95.77858541 | F131: =+E131 -> 95.77858541 | G131: =+F131 -> 95.77858541 | H131: =+G131 -> 95.77858541 | I131: =+H131 -> 95.77858541 | J131: =+I131 -> 95.77858541 | K131: =+J131 -> 95.77858541 | L131: =+K131 -> 95.77858541 | M131: =+L131 -> 95.77858541 | N131: =+M131 -> 95.77858541 | O131: =+N131 -> 95.77858541 | P131: =+O131 -> 95.77858541 | Q131: =+P131 -> 95.77858541
A132: Tarbimine elaniku kohta kanal | B132: l/päevas | C132: =C139/C128/365*1000 -> 94.43996777 | D132: =D139/D128/365*1000 -> 97.18817592 | E132: =E139/E128/365*1000 -> 103.3268102 | F132: =+F131 -> 95.77858541 | G132: =+F132 -> 95.77858541 | H132: =+G132 -> 95.77858541 | I132: =+H132 -> 95.77858541 | J132: =+I132 -> 95.77858541 | K132: =+J132 -> 95.77858541 | L132: =+K132 -> 95.77858541 | M132: =+L132 -> 95.77858541 | N132: =+M132 -> 95.77858541 | O132: =+N132 -> 95.77858541 | P132: =+O132 -> 95.77858541 | Q132: =+P132 -> 95.77858541
A133: Müüdud vesi | B133: m3/aastas | C133: =SUM(C134:C135) -> 1504 | D133: =SUM(D134:D135) -> 1472 | E133: =SUM(E134:E135) -> 1713 | F133: =SUM(F134:F135) -> 1713 | G133: =SUM(G134:G135) -> 1713 | H133: =SUM(H134:H135) -> 1713 | I133: =SUM(I134:I135) -> 1713 | J133: =SUM(J134:J135) -> 1713 | K133: =SUM(K134:K135) -> 1713 | L133: =SUM(L134:L135) -> 1713 | M133: =SUM(M134:M135) -> 1713 | N133: =SUM(N134:N135) -> 1713 | O133: =SUM(O134:O135) -> 1713 | P133: =SUM(P134:P135) -> 1713 | Q133: =SUM(Q134:Q135) -> 3495.918367
A134: Füüsilistele isikutele (sh korteriühistud) | B134: m3/aastas | C134: 1504 | D134: 1472 | E134: 1713 | F134: =+F125*F131*0.365 -> 1713 | G134: =+G125*G131*0.365 -> 1713 | H134: =+H125*H131*0.365 -> 1713 | I134: =+I125*I131*0.365 -> 1713 | J134: =+J125*J131*0.365 -> 1713 | K134: =+K125*K131*0.365 -> 1713 | L134: =+L125*L131*0.365 -> 1713 | M134: =+M125*M131*0.365 -> 1713 | N134: =+N125*N131*0.365 -> 1713 | O134: =+O125*O131*0.365 -> 1713 | P134: =+P125*P131*0.365 -> 1713 | Q134: =+Q125*Q131*0.365 -> 3495.918367
A135: Juriidilistele isikutele (va korteriühistud) | B135: m3/aastas | C135: 0 | D135: 0 | E135: 0 | F135: =+E135 -> 0 | G135: =+F135 -> 0 | H135: =+G135 -> 0 | I135: =+H135 -> 0 | J135: =+I135 -> 0 | K135: =+J135 -> 0 | L135: =+K135 -> 0 | M135: =+L135 -> 0 | N135: =+M135 -> 0 | O135: =+N135 -> 0 | P135: =+O135 -> 0 | Q135: =+P135 -> 0
A136: Toodetud vesi | B136: m3/aastas | C136: 1789 | D136: 1738 | E136: 2045 | F136: =+F133*100%/(1-F137) -> 2045 | G136: =+G133*100%/(1-G137) -> 2045 | H136: =+H133*100%/(1-H137) -> 2045 | I136: =+I133*100%/(1-I137) -> 2045 | J136: =+J133*100%/(1-J137) -> 2045 | K136: =+K133*100%/(1-K137) -> 2045 | L136: =+L133*100%/(1-L137) -> 2045 | M136: =+M133*100%/(1-M137) -> 2045 | N136: =+N133*100%/(1-N137) -> 2045 | O136: =+O133*100%/(1-O137) -> 2045 | P136: =+P133*100%/(1-P137) -> 2045 | Q136: =+Q133*100%/(1-Q137) -> 4173.469388
A137: Arvestamata vesi | B137: % | C137: =+(C136-C133)/C136 -> 0.1593068753 | D137: =+(D136-D133)/D136 -> 0.1530494822 | E137: =+(E136-E133)/E136 -> 0.1623471883 | F137: =+E137 -> 0.1623471883 | G137: =+F137 -> 0.1623471883 | H137: =+G137 -> 0.1623471883 | I137: =+H137 -> 0.1623471883 | J137: =+I137 -> 0.1623471883 | K137: =+J137 -> 0.1623471883 | L137: =+K137 -> 0.1623471883 | M137: =+L137 -> 0.1623471883 | N137: =+M137 -> 0.1623471883 | O137: =+N137 -> 0.1623471883 | P137: =+O137 -> 0.1623471883 | Q137: =+P137 -> 0.1623471883
A138: Vastuvõetud reovesi | B138: m3/aastas | C138: =SUM(C139:C140) -> 586 | D138: =SUM(D139:D140) -> 674 | E138: =SUM(E139:E140) -> 792 | F138: =SUM(F139:F140) -> 734.1428571 | G138: =SUM(G139:G140) -> 734.1428571 | H138: =SUM(H139:H140) -> 1223.571429 | I138: =SUM(I139:I140) -> 1713 | J138: =SUM(J139:J140) -> 1713 | K138: =SUM(K139:K140) -> 1713 | L138: =SUM(L139:L140) -> 1713 | M138: =SUM(M139:M140) -> 1713 | N138: =SUM(N139:N140) -> 1713 | O138: =SUM(O139:O140) -> 1713 | P138: =SUM(P139:P140) -> 1713 | Q138: =SUM(Q139:Q140) -> 3495.918367
A139: Füüsilistelt isikutelt (sh korteriühistud) | B139: m3/aastas | C139: 586 | D139: 674 | E139: 792 | F139: =+F128*F132*0.365 -> 734.1428571 | G139: =+G128*G132*0.365 -> 734.1428571 | H139: =+H128*H132*0.365 -> 1223.571429 | I139: =+I128*I132*0.365 -> 1713 | J139: =+J128*J132*0.365 -> 1713 | K139: =+K128*K132*0.365 -> 1713 | L139: =+L128*L132*0.365 -> 1713 | M139: =+M128*M132*0.365 -> 1713 | N139: =+N128*N132*0.365 -> 1713 | O139: =+O128*O132*0.365 -> 1713 | P139: =+P128*P132*0.365 -> 1713 | Q139: =+Q128*Q132*0.365 -> 3495.918367
A140: Juriidilistelt isikutelt (va korteriühistud) | B140: m3/aastas | C140: 0 | D140: 0 | E140: 0 | F140: =+E140 -> 0 | G140: =+F140 -> 0 | H140: =+G140 -> 0 | I140: =+H140 -> 0 | J140: =+I140 -> 0 | K140: =+J140 -> 0 | L140: =+K140 -> 0 | M140: =+L140 -> 0 | N140: =+M140 -> 0 | O140: =+N140 -> 0 | P140: =+O140 -> 0 | Q140: =+P140 -> 0
A141: Puhastatud heitvesi | B141: m3/aastas | C141: =+SUM(C138,C142)*100%/(1-C145) -> 732.5 | D141: =+SUM(D138,D142)*100%/(1-D145) -> 842.5 | E141: =+SUM(E138,E142)*100%/(1-E145) -> 990 | F141: =+SUM(F138,F142)*100%/(1-F145) -> 917.6785714 | G141: =+SUM(G138,G142)*100%/(1-G145) -> 917.6785714
A142: Purgitud heitvesi | B142: m3/aastas | C142: =SUM(C143:C144) -> 0 | D142: =SUM(D143:D144) -> 0 | E142: =SUM(E143:E144) -> 0 | F142: =SUM(F143:F144) -> 0 | G142: =SUM(G143:G144) -> 0 | H142: =SUM(H143:H144) -> 0 | I142: =SUM(I143:I144) -> 0 | J142: =SUM(J143:J144) -> 0 | K142: =SUM(K143:K144) -> 0 | L142: =SUM(L143:L144) -> 0 | M142: =SUM(M143:M144) -> 0 | N142: =SUM(N143:N144) -> 0 | O142: =SUM(O143:O144) -> 0 | P142: =SUM(P143:P144) -> 0 | Q142: =SUM(Q143:Q144) -> 0
A143: Füüsilistelt isikutelt (sh korteriühistud) | B143: m3/aastas | F143: =+E143 -> 0 | G143: =+F143 -> 0 | H143: =+G143 -> 0 | I143: =+H143 -> 0 | J143: =+I143 -> 0 | K143: =+J143 -> 0 | L143: =+K143 -> 0 | M143: =+L143 -> 0 | N143: =+M143 -> 0 | O143: =+N143 -> 0 | P143: =+O143 -> 0 | Q143: =+P143 -> 0
A144: Juriidilistelt isikutelt (va korteriühistud) | B144: m3/aastas | F144: =+E144 -> 0 | G144: =+F144 -> 0 | H144: =+G144 -> 0 | I144: =+H144 -> 0 | J144: =+I144 -> 0 | K144: =+J144 -> 0 | L144: =+K144 -> 0 | M144: =+L144 -> 0 | N144: =+M144 -> 0 | O144: =+N144 -> 0 | P144: =+O144 -> 0 | Q144: =+P144 -> 0
A145: Infiltratsioon | B145: % | C145: 0.2 | D145: 0.2 | E145: 0.2 | F145: 0.2 | G145: 0.2 | H145: 0.2 | I145: 0.2 | J145: 0.2 | K145: 0.2 | L145: 0.2 | M145: 0.2 | N145: 0.2 | O145: 0.2 | P145: 0.2 | Q145: 0.2
A146: AS Pärnu Vesi ostetud ÜK teenusmahud | B146: m3/aastas | H146: =+H138 -> 1223.571429 | I146: =+I138 -> 1713 | J146: =+J138 -> 1713 | K146: =+K138 -> 1713 | L146: =+L138 -> 1713 | M146: =+M138 -> 1713 | N146: =+N138 -> 1713 | O146: =+O138 -> 1713 | P146: =+P138 -> 1713 | Q146: =+Q138 -> 3495.918367
A147: Lottemaa | B147: ühik | C147: 2012 | D147: 2013 | E147: 2014 | F147: 2015 | G147: 2016 | H147: 2017 | I147: 2018 | J147: 2019 | K147: 2020 | L147: 2021 | M147: 2022 | N147: 2023 | O147: 2024 | P147: 2025 | Q147: 2026
A148: Vastuvõetud heitvee mahud (jur) | B148: m3/aastas | H148: =+II_ALT!D8 -> 6300 | I148: =+II_ALT!E8 -> 6300 | J148: =+II_ALT!F8 -> 6300 | K148: =+II_ALT!G8 -> 6300 | L148: =+II_ALT!H8 -> 6300 | M148: =+II_ALT!I8 -> 6300 | N148: =+II_ALT!J8 -> 6300 | O148: =+II_ALT!K8 -> 6300 | P148: =+II_ALT!L8 -> 6300 | Q148: =+II_ALT!M8 -> 6300
A149: AS Pärnu Vesi ostetud ÜK teenusmahud | B149: m3/aastas | H149: =+H148 -> 6300 | I149: =+I148 -> 6300 | J149: =+J148 -> 6300 | K149: =+K148 -> 6300 | L149: =+L148 -> 6300 | M149: =+M148 -> 6300 | N149: =+N148 -> 6300 | O149: =+O148 -> 6300 | P149: =+P148 -> 6300 | Q149: =+Q148 -> 6300

Sheet LAEN
A1: Lisanduv laen | B1: Ühik | C1: 2013 | D1: 2014 | E1: 2015 | F1: 2016 | G1: 2017 | H1: 2018 | I1: 2019 | J1: 2020 | K1: 2021 | L1: 2022 | M1: 2023 | N1: 2024 | O1: 2025 | P1: 2026
A2: Pikaajaline laen (01.01) | B2: EUR | E2: 0 | F2: =+E6 -> 8409.090909 | G2: =+F6 -> 103467.6818 | H2: =+G6 -> 91971.27273 | I2: =+H6 -> 80474.86364 | J2: =+I6 -> 68978.45455 | K2: =+J6 -> 57482.04545 | L2: =+K6 -> 45985.63636 | M2: =+L6 -> 34489.22727 | N2: =+M6 -> 22992.81818 | O2: =+N6 -> 11496.40909 | P2: =+O6 -> 2.546585165e-11
A3: Lisanduv laen | B3: EUR | E3: =+INV!I48*0.5 -> 9250 | F3: =+INV!J48*0.5 -> 106555 | G3: 0 | H3: 0 | I3: 0 | J3: 0 | K3: 0 | L3: 0 | M3: 0 | N3: 0 | O3: 0 | P3: 0
A4: Laenu tagasimakse | B4: EUR | E4: 0 | F4: =E4+E3/11 -> 840.9090909 | G4: =F4+F3/10 -> 11496.40909 | H4: =G4+G3/9 -> 11496.40909 | I4: =+H4 -> 11496.40909 | J4: =+I4 -> 11496.40909 | K4: =+J4 -> 11496.40909 | L4: =+K4 -> 11496.40909 | M4: =+L4 -> 11496.40909 | N4: =+M4 -> 11496.40909 | O4: =+N4 -> 11496.40909 | P4: =+O4 -> 11496.40909
A5: Lühiajalised kohustused (31.12) | B5: EUR | E5: =+F4 -> 840.9090909 | F5: =+G4 -> 11496.40909 | G5: =+H4 -> 11496.40909 | H5: =+I4 -> 11496.40909 | I5: =+J4 -> 11496.40909 | J5: =+K4 -> 11496.40909 | K5: =+L4 -> 11496.40909 | L5: =+M4 -> 11496.40909 | M5: =+N4 -> 11496.40909 | N5: =+O4 -> 11496.40909 | O5: =+P4 -> 11496.40909 | P5: 0
A6: Pikaajalised kohustused (31.12) | B6: EUR | E6: =+E2+E3-E5 -> 8409.090909 | F6: =+F2+F3-F5 -> 103467.6818 | G6: =+G2+G3-G5 -> 91971.27273 | H6: =+H2+H3-H5 -> 80474.86364 | I6: =+I2+I3-I5 -> 68978.45455 | J6: =+J2+J3-J5 -> 57482.04545 | K6: =+K2+K3-K5 -> 45985.63636 | L6: =+L2+L3-L5 -> 34489.22727 | M6: =+M2+M3-M5 -> 22992.81818 | N6: =+N2+N3-N5 -> 11496.40909 | O6: =+O2+O3-O5 -> 2.546585165e-11 | P6: =+P2+P3-P5 -> 2.546585165e-11
A7: Intress | E7: =+SUM(D5:E6)/2*5% -> 231.25 | F7: =+SUM(E5:F6)/2*5% -> 3105.352273 | G7: =+SUM(F5:G6)/2*5% -> 5460.794318 | H7: =+SUM(G5:H6)/2*5% -> 4885.973864 | I7: =+SUM(H5:I6)/2*5% -> 4311.153409 | J7: =+SUM(I5:J6)/2*5% -> 3736.332955 | K7: =+SUM(J5:K6)/2*5% -> 3161.5125 | L7: =+SUM(K5:L6)/2*5% -> 2586.692045 | M7: =+SUM(L5:M6)/2*5% -> 2011.871591 | N7: =+SUM(M5:N6)/2*5% -> 1437.051136 | O7: =+SUM(N5:O6)/2*5% -> 862.2306818 | P7: =+SUM(O5:P6)/2*5% -> 287.4102273

Sheet ÜVK_KULUD
A1: OÜ VESOKA | C1: 2013 | E1: 2014 | G1: 2015 | H1: prognoos | I1: KULUDE JAGAMINE LISA 2
C2: Vesi | D2: Kanal | E2: vesi | F2: kanal | G2: vesi | H2: kanal
A4: 1.Tulud | C4: 27360 | D4: 23865 | E4: 21984 | F4: 26774 | G4: 24500 | H4: 27400
A6: 2.Otsekulud
A7: Kulum | C7: 952 | D7: 1704 | E7: 952 | F7: 1704 | G7: 952 | H7: 1704
A8: Elekter | C8: 3855 | D8: 3685 | E8: 3724 | F8: 3652 | G8: 3820 | H8: 3740 | I8: Energiakulud
A9: Materjalid | C9: 480 | D9: 259 | E9: 443 | F9: 1174 | G9: 500 | H9: 1100 | I9: Seadmete hoolduse teenus ja materjalid
A10: Ostetud teenused | C10: 2329 | D10: 7539 | E10: 136 | F10: 5960 | G10: 300 | H10: 6200 | I10: Ülalpidamiskulud | J10: sh AS Pärnu vesi kulu
A11: Analüüsid | C11: 308 | D11: 1239 | E11: 908 | F11: 863 | G11: 900 | H11: 900 | I11: Ülalpidamiskulud
A12: Vee erikasutus | C12: 3361 | E12: 3860 | G12: 4100 | I12: Keskkonnatasud
A13: Vee saastetasu | D13: 1261 | F13: 1204 | H13: 1350 | I13: Keskkonnatasud
A15: Otsekulud kokku | C15: 11285 | D15: 15687 | E15: 10023 | F15: 14557 | G15: 10572 | H15: 14994
A16: Üldkulude jaotus | C16: 14567 | D16: 10925 | E16: 16295 | F16: 12221 | G16: 16648 | H16: 12486
A18: Kulud kokku | C18: 25852 | D18: 26612 | E18: 26318 | F18: 26778 | G18: 27220 | H18: 27480

Sheet Üldkulud
A1: OÜ VESOKA | B1: 2014 | C1: 2015 | D1: 2014 | F1: 2015 | H1: KULUDE JAGAMINE LISA 2
A2: Ettevõtte üldkulud | D2: vesi | E2: kanal | F2: vesi | G2: kanal
A3: Töötasu ja sots.maksud | B3: 29700 | C3: 30700 | D3: =+B3*0.4 -> 11880 | E3: =+B3*0.3 -> 8910 | F3: =+C3*0.4 -> 12280 | G3: =+C3*0.3 -> 9210 | H3: Tööjõu- ja personalikulud
A4: Koolitus ja teatmikud | B4: 953 | C4: 450 | D4: =+B4*0.4 -> 381.2 | E4: =+B4*0.3 -> 285.9 | F4: =+C4*0.4 -> 180 | G4: =+C4*0.3 -> 135 | H4: Administratiivkulud
A5: Materjalid | B5: 930 | C5: 940 | D5: =+B5*0.4 -> 372 | E5: =+B5*0.3 -> 279 | F5: =+C5*0.4 -> 376 | G5: =+C5*0.3 -> 282 | H5: Administratiivkulud
A6: Ostetud teenus | B6: 1102 | C6: 1200 | D6: =+B6*0.4 -> 440.8 | E6: =+B6*0.3 -> 330.6 | F6: =+C6*0.4 -> 480 | G6: =+C6*0.3 -> 360 | H6: Administratiivkulud
A7: Telefon | B7: 204 | C7: 200 | D7: =+B7*0.4 -> 81.6 | E7: =+B7*0.3 -> 61.2 | F7: =+C7*0.4 -> 80 | G7: =+C7*0.3 -> 60 | H7: Administratiivkulud
A8: Autotransport | B8: =5936-OPV!H13 -> 4848.5 | C8: =6230-OPV!I13 -> 5142.5 | D8: =+B8*0.4 -> 1939.4 | E8: =+B8*0.3 -> 1454.55 | F8: =+C8*0.4 -> 2057 | G8: =+C8*0.3 -> 1542.75 | H8: Seadmete hoolduse teenus ja materjalid | I8: NB! Kulum välja võetud!
A9: Trahv saastetasult | B9: 1246 | C9: 1200 | D9: =+B9*0.4 -> 498.4 | E9: =+B9*0.3 -> 373.8 | F9: =+C9*0.4 -> 480 | G9: =+C9*0.3 -> 360 | H9: Administratiivkulud
A10: Muu äri ja finantskulu | B10: 667 | C10: 700 | D10: =+B10*0.4 -> 266.8 | E10: =+B10*0.3 -> 200.1 | F10: =+C10*0.4 -> 280 | G10: =+C10*0.3 -> 210 | H10: Administratiivkulud
A12: Üldkulud kokku | B12: =+SUM(B3:B10) -> 39650.5 | C12: =+SUM(C3:C10) -> 40532.5 | D12: =+SUM(D3:D10) -> 15860.2 | E12: =+SUM(E3:E10) -> 11895.15 | F12: =+SUM(F3:F10) -> 16213 | G12: =+SUM(G3:G10) -> 12159.75
A14: Üldkuludest jaotatakse veele 40% ja kanalisatsioonile 30%.
A15: Lukksepa töötasu ja transprdikulud on arvestatud üldkulude hulka
A17: Autotranspordi kulude hulka on arvestatud veoauto amorti kulu ja liisitud Citroen kasutusrendi makse 130 EUR kuus

Sheet KULUD
A1: ÜV-teenuskulud | B1: Ühik | C1: 2014 | D1: 2015 | E1: 2016 | F1: 2017 | G1: 2018 | H1: 2019 | I1: 2020 | J1: 2021 | K1: 2022 | L1: 2023 | M1: 2024 | N1: 2025 | O1: 2026
A2: MAHUD
A3: Toodetud vesi | B3: m3 | C3: =+MAHUD!E13 -> 47862 | D3: =+MAHUD!F13 -> 47862 | E3: =+MAHUD!G13 -> 47934.05891 | F3: =+MAHUD!H13 -> 48006.11781 | G3: =+MAHUD!I13 -> 40311.53696 | H3: =+MAHUD!J13 -> 40383.59587 | I3: =+MAHUD!K13 -> 40455.65478 | J3: =+MAHUD!L13 -> 40527.71368 | K3: =+MAHUD!M13 -> 40599.77259 | L3: =+MAHUD!N13 -> 40671.83149 | M3: =+MAHUD!O13 -> 40743.8904 | N3: =+MAHUD!P13 -> 40815.9493 | O3: =+MAHUD!Q13 -> 43360.52894
A4: ÜHIKKULU
A5: Energiakulud | B5: EUR/m3 | C5: =+C8/C3 -> 0.07780702854 | D5: =+D8/D3 -> 0.07981279512 | E5: =+D5*(1+EE!G$5) -> 0.08156867661 | F5: =+E5*(1+EE!H$5) -> 0.08377103088 | G5: =+F5*(1+EE!I$5) -> 0.08620039078 | H5: =+G5*(1+EE!J$5) -> 0.08844160094 | I5: =+H5*(1+EE!K$5) -> 0.09082952416 | J5: =+I5*(1+EE!L$5) -> 0.09328192131 | K5: =+J5*(1+EE!M$5) -> 0.09580053319 | L5: =+K5*(1+EE!N$5) -> 0.09834557195 | M5: =+L5*(1+EE!O$5) -> 0.1009351206 | N5: =+M5*(1+EE!P$5) -> 0.1035727015 | O5: =+N5*(1+EE!Q$5) -> 0.1062616282
A6: Keskkonnatasud | B6: EUR/m3 | C6: =+C9/C3 -> 0.08064853119 | D6: =+D9/D3 -> 0.08566294764 | E6: =+D6*(1+EE!G$5) -> 0.08754753249 | F6: =+E6*(1+EE!H$5) -> 0.08991131587 | G6: =+F6*(1+EE!I$5) -> 0.09251874403 | H6: =+G6*(1+EE!J$5) -> 0.09492423137 | I6: =+H6*(1+EE!K$5) -> 0.09748718562 | J6: =+I6*(1+EE!L$5) -> 0.1001193396 | K6: =+J6*(1+EE!M$5) -> 0.1028225618 | L6: =+K6*(1+EE!N$5) -> 0.1055541479 | M6: =+L6*(1+EE!O$5) -> 0.1083335064 | N6: =+M6*(1+EE!P$5) -> 0.1111644179 | O6: =+N6*(1+EE!Q$5) -> 0.1140504386
A7: MUUTUVKULUD (tarbimise mahtudest sõltuvad)
A8: Energiakulud | B8: EUR | C8: =+ÜVK_KULUD!E8 -> 3724 | D8: =+ÜVK_KULUD!G8 -> 3820 | E8: =+E3*E5 -> 3909.91775 | F8: =+F3*F5 -> 4021.521978 | G8: =+G3*G5 -> 3474.870239 | H8: =+H3*H5 -> 3571.58987 | I8: =+I3*I5 -> 3674.567873 | J8: =+J3*J5 -> 3780.502999 | K8: =+K3*K5 -> 3889.479861 | L8: =+L3*L5 -> 3999.89453 | M8: =+M3*M5 -> 4112.489491 | N8: =+N3*N5 -> 4227.418134 | O8: =+O3*O5 -> 4607.560403
A9: Keskkonnatasud | B9: EUR | C9: =+ÜVK_KULUD!E12 -> 3860 | D9: =+ÜVK_KULUD!G12 -> 4100 | E9: =+E3*E6 -> 4196.508579 | F9: =+F3*F6 -> 4316.293222 | G9: =+G3*G6 -> 3729.57277 | H9: =+H3*H6 -> 3833.381798 | I9: =+I3*I6 -> 3943.907926 | J9: =+J3*J6 -> 4057.60793 | K9: =+K3*K6 -> 4174.572626 | L9: =+L3*L6 -> 4293.080517 | M9: =+M3*M6 -> 4413.928512 | N9: =+N3*N6 -> 4537.281244 | O9: =+O3*O6 -> 4945.287344
A10: PÜSIKULUD
A11: Seadmete hoolduse teenus ja materjalid | B11: EUR | C11: =+ÜVK_KULUD!E9+Üldkulud!D8 -> 2382.4 | D11: =+ÜVK_KULUD!G9+Üldkulud!F8 -> 2557 | E11: =+D11*(1+EE!G$5) -> 2613.254 | F11: =+E11*(1+EE!H$5) -> 2683.811858 | G11: =+F11*(1+EE!I$5) -> 2761.642402 | H11: =+G11*(1+EE!J$5) -> 2833.445104 | I11: =+H11*(1+EE!K$5) -> 2909.948122 | J11: =+I11*(1+EE!L$5) -> 2988.516721 | K11: =+J11*(1+EE!M$5) -> 3069.206673 | L11: =+K11*(1+EE!N$5) -> 3150.743275 | M11: =+L11*(1+EE!O$5) -> 3233.705861 | N11: =+M11*(1+EE!P$5) -> 3318.20728 | O11: =+N11*(1+EE!Q$5) -> 3404.353685
A12: Tööjõu- ja personalikulud | B12: EUR | C12: =+Üldkulud!D3 -> 11880 | D12: =+Üldkulud!F3 -> 12280 | E12: =+D12*(1+EE!G$5) -> 12550.16 | F12: =+E12*(1+EE!H$5) -> 12889.01432 | G12: =+F12*(1+EE!I$5) -> 13262.79574 | H12: =+G12*(1+EE!J$5) -> 13607.62842 | I12: =+H12*(1+EE!K$5) -> 13975.03439 | J12: =+I12*(1+EE!L$5) -> 14352.36032 | K12: =+J12*(1+EE!M$5) -> 14739.87405 | L12: =+K12*(1+EE!N$5) -> 15131.45382 | M12: =+L12*(1+EE!O$5) -> 15529.88188 | N12: =+M12*(1+EE!P$5) -> 15935.70019 | O12: =+N12*(1+EE!Q$5) -> 16349.41856
A13: Administratiivkulud | B13: EUR | C13: =+SUM(Üldkulud!D4:D7,Üldkulud!D9:D10) -> 2040.8 | D13: =+SUM(Üldkulud!F4:F7,Üldkulud!F9:F10) -> 1876 | E13: =+D13*(1+EE!G$5) -> 1917.272 | F13: =+E13*(1+EE!H$5) -> 1969.038344 | G13: =+F13*(1+EE!I$5) -> 2026.140456 | H13: =+G13*(1+EE!J$5) -> 2078.820108 | I13: =+H13*(1+EE!K$5) -> 2134.948251 | J13: =+I13*(1+EE!L$5) -> 2192.591854 | K13: =+J13*(1+EE!M$5) -> 2251.791834 | L13: =+K13*(1+EE!N$5) -> 2311.612978 | M13: =+L13*(1+EE!O$5) -> 2372.480327 | N13: =+M13*(1+EE!P$5) -> 2434.476675 | O13: =+N13*(1+EE!Q$5) -> 2497.679904
A14: Ülalpidamiskulud | B14: EUR | C14: =+SUM(ÜVK_KULUD!E10:E11) -> 1044 | D14: =+SUM(ÜVK_KULUD!G10:G11) -> 1200 | E14: =+D14*(1+EE!G$5) -> 1226.4 | F14: =+E14*(1+EE!H$5) -> 1259.5128 | G14: =+F14*(1+EE!I$5) -> 1296.038671 | H14: =+G14*(1+EE!J$5) -> 1329.735677 | I14: =+H14*(1+EE!K$5) -> 1365.63854 | J14: =+I14*(1+EE!L$5) -> 1402.51078 | K14: =+J14*(1+EE!M$5) -> 1440.378572 | L14: =+K14*(1+EE!N$5) -> 1478.643696 | M14: =+L14*(1+EE!O$5) -> 1517.578034 | N14: =+M14*(1+EE!P$5) -> 1557.234547 | O14: =+N14*(1+EE!Q$5) -> 1597.663051
A15: KONTROLL | C15: =+SUM(C8:C14)=SUM(Üldkulud!D3:D10)+SUM(ÜVK_KULUD!E7:E12)-ÜVK_KULUD!E7 -> TRUE | D15: =+SUM(D8:D14)=SUM(Üldkulud!F3:F10)+SUM(ÜVK_KULUD!G7:G12)-ÜVK_KULUD!G7 -> TRUE
A16: ÜK-teenuskulud | B16: Ühik | C16: 2014 | D16: 2015 | E16: 2016 | F16: 2017 | G16: 2018 | H16: 2019 | I16: 2020 | J16: 2021 | K16: 2022 | L16: 2023 | M16: 2024 | N16: 2025 | O16: 2026
A17: MAHUD
A18: Vastuvõetud reoveemaht | B18: m3 | C18: =+MAHUD!E15 -> 16964.8 | D18: =+MAHUD!F15 -> 17075.98266 | E18: =+MAHUD!G15 -> 17496.92096 | F18: =+MAHUD!H15 -> 24707.28783 | G18: =+MAHUD!I15 -> 26448.5062 | H18: =+MAHUD!J15 -> 26510.44092 | I18: =+MAHUD!K15 -> 26572.37565 | J18: =+MAHUD!L15 -> 26634.31037 | K18: =+MAHUD!M15 -> 26696.2451 | L18: =+MAHUD!N15 -> 26758.17983 | M18: =+MAHUD!O15 -> 26820.11455 | N18: =+MAHUD!P15 -> 26896.26381 | O18: =+MAHUD!Q15 -> 32843.67493
A19: AS Pärnu Vesi ÜK-teenusmahud | B19: m3 | C19: =+MAHUD!E18 -> 4273 | D19: =+MAHUD!F18 -> 4442.039801 | E19: =+MAHUD!G18 -> 4503.974527 | F19: =+MAHUD!H18 -> 12089.48068 | G19: =+MAHUD!I18 -> 12640.84398 | H19: =+MAHUD!J18 -> 12702.77871 | I19: =+MAHUD!K18 -> 12764.71343 | J19: =+MAHUD!L18 -> 12826.64816 | K19: =+MAHUD!M18 -> 12888.58289 | L19: =+MAHUD!N18 -> 12950.51761 | M19: =+MAHUD!O18 -> 13012.45234 | N19: =+MAHUD!P18 -> 13088.60159 | O19: =+MAHUD!Q18 -> 14871.51996
A20: Puhastatud heitvesi | B20: m3 | C20: =+MAHUD!E19 -> 15864.75 | D20: =+MAHUD!F19 -> 15792.42857 | E20: =+MAHUD!G19 -> 16241.18304 | F20: =+MAHUD!H19 -> 15772.25893 | G20: =+MAHUD!I19 -> 17259.57777 | H20: =+MAHUD!J19 -> 17259.57777 | I20: =+MAHUD!K19 -> 17259.57777 | J20: =+MAHUD!L19 -> 17259.57777 | K20: =+MAHUD!M19 -> 17259.57777 | L20: =+MAHUD!N19 -> 17259.57777 | M20: =+MAHUD!O19 -> 17259.57777 | N20: =+MAHUD!P19 -> 17259.57777 | O20: =+MAHUD!Q19 -> 22465.19371
A21: ÜHIKKULU
A22: Energiakulud | B22: EUR/m3 | C22: =+C26/C18 -> 0.2152692634 | D22: =+D26/D18 -> 0.2190210704 | E22: =+D22*(1+EE!G$5) -> 0.223839534 | F22: =+E22*(1+EE!H$5) -> 0.2298832014 | G22: =+F22*(1+EE!I$5) -> 0.2365498142 | H22: =+G22*(1+EE!J$5) -> 0.2427001094 | I22: =+H22*(1+EE!K$5) -> 0.2492530123 | J22: =+I22*(1+EE!L$5) -> 0.2559828437 | K22: =+J22*(1+EE!M$5) -> 0.2628943804 | L22: =+K22*(1+EE!N$5) -> 0.2698784375 | M22: =+L22*(1+EE!O$5) -> 0.2769846379 | N22: =+M22*(1+EE!P$5) -> 0.2842226477 | O22: =+N22*(1+EE!Q$5) -> 0.2916015597
A23: Keskkonnatasud | B23: EUR/m3 | C23: =+C27/C20 -> 0.07589152051 | D23: =+D27/D20 -> 0.08548400228 | E23: =+D23*(1+EE!G$5) -> 0.08736465033 | F23: =+E23*(1+EE!H$5) -> 0.08972349589 | G23: =+F23*(1+EE!I$5) -> 0.09232547727 | H23: =+G23*(1+EE!J$5) -> 0.09472593968 | I23: =+H23*(1+EE!K$5) -> 0.09728354005 | J23: =+I23*(1+EE!L$5) -> 0.09991019563 | K23: =+J23*(1+EE!M$5) -> 0.1026077709 | L23: =+K23*(1+EE!N$5) -> 0.1053336509 | M23: =+L23*(1+EE!O$5) -> 0.1081072035 | N23: =+M23*(1+EE!P$5) -> 0.1109322013 | O23: =+N23*(1+EE!Q$5) -> 0.1138121933
A24: Kaupade ja teenuste vahendamiskulud | B24: EUR/m3 | C24: =+D24 -> 0.83 | D24: 0.83 | E24: =+D24*(1+EE!G$5) -> 0.84826 | F24: =+E24*(1+EE!H$5) -> 0.87116302 | G24: =+F24*(1+EE!I$5) -> 0.8964267476 | H24: =+G24*(1+EE!J$5) -> 0.919733843 | I24: =+H24*(1+EE!K$5) -> 0.9445666568 | J24: =+I24*(1+EE!L$5) -> 0.9700699565 | K24: =+J24*(1+EE!M$5) -> 0.9962618453 | L24: =+K24*(1+EE!N$5) -> 1.022728556 | M24: =+L24*(1+EE!O$5) -> 1.04965814 | N24: =+M24*(1+EE!P$5) -> 1.077087228 | O24: =+N24*(1+EE!Q$5) -> 1.105050277
A25: MUUTUVKULUD (tarbimise mahtudest sõltuvad)
A26: Energiakulud | B26: EUR | C26: =+ÜVK_KULUD!F8 -> 3652 | D26: =+ÜVK_KULUD!H8 -> 3740 | E26: =+E18*E22 -> 3916.502632 | F26: =+F18*F22 -> 5679.790422 | G26: =+G18*G22 -> 6256.389227 | H26: =+H18*H22 -> 6434.086911 | I26: =+I18*I22 -> 6623.244675 | J26: =+J18*J22 -> 6817.926509 | K26: =+K18*K22 -> 7018.292816 | L26: =+L18*L22 -> 7221.455762 | M26: =+M18*M22 -> 7428.759718 | N26: =+N18*N22 -> 7644.527313 | O26: =+O18*O22 -> 9577.266836
A27: Keskkonnatasud | B27: EUR | C27: =+ÜVK_KULUD!F13 -> 1204 | D27: =+ÜVK_KULUD!H13 -> 1350 | E27: =+E20*E23 -> 1418.905277 | F27: =+F20*F23 -> 1415.142209 | G27: =+G20*G23 -> 1593.498755 | H27: =+H20*H23 -> 1634.929723 | I27: =+I20*I23 -> 1679.072825 | J27: =+J20*J23 -> 1724.407791 | K27: =+K20*K23 -> 1770.966802 | L27: =+L20*L23 -> 1818.014339 | M27: =+M20*M23 -> 1865.884685 | N27: =+N20*N23 -> 1914.642955 | O27: =+O20*O23 -> 2556.812969
A28: Kaupade ja teenuste vahendamiskulud | B28: EUR | C28: =+C19*C24 -> 3546.59 | D28: =+D19*D24 -> 3686.893035 | E28: =+E19*E24 -> 3820.541433 | F28: =+F19*F24 -> 10531.9085 | G28: =+G19*G24 -> 11331.59066 | H28: =+H19*H24 -> 11683.17548 | I28: =+I19*I24 -> 12057.12269 | J28: =+J19*J24 -> 12442.74602 | K28: =+K19*K24 -> 12840.40337 | L28: =+L19*L24 -> 13244.86418 | M28: =+M19*M24 -> 13658.62652 | N28: =+N19*N24 -> 14097.56561 | O28: =+O19*O24 -> 16433.77725
A29: PÜSIKULUD
A30: Seadmete hoolduse teenus ja materjalid | B30: EUR | C30: =+Üldkulud!E8+ÜVK_KULUD!F9 -> 2628.55 | D30: =+Üldkulud!G8+ÜVK_KULUD!H9 -> 2642.75 | E30: =+D30*(1+EE!G$5) -> 2700.8905 | F30: =+E30*(1+EE!H$5) -> 2773.814544 | G30: =+F30*(1+EE!I$5) -> 2854.255165 | H30: =+G30*(1+EE!J$5) -> 2928.4658 | I30: =+H30*(1+EE!K$5) -> 3007.534376 | J30: =+I30*(1+EE!L$5) -> 3088.737804 | K30: =+J30*(1+EE!M$5) -> 3172.133725 | L30: =+K30*(1+EE!N$5) -> 3256.404689 | M30: =+L30*(1+EE!O$5) -> 3342.149458 | N30: =+M30*(1+EE!P$5) -> 3429.484665 | O30: =+N30*(1+EE!Q$5) -> 3518.520024
A31: Tööjõu- ja personalikulud | B31: EUR | C31: =+Üldkulud!E3 -> 8910 | D31: =+Üldkulud!G3 -> 9210 | E31: =+D31*(1+EE!G$5) -> 9412.62 | F31: =+E31*(1+EE!H$5) -> 9666.76074 | G31: =+F31*(1+EE!I$5) -> 9947.096801 | H31: =+G31*(1+EE!J$5) -> 10205.72132 | I31: =+H31*(1+EE!K$5) -> 10481.27579 | J31: =+I31*(1+EE!L$5) -> 10764.27024 | K31: =+J31*(1+EE!M$5) -> 11054.90554 | L31: =+K31*(1+EE!N$5) -> 11348.59036 | M31: =+L31*(1+EE!O$5) -> 11647.41141 | N31: =+M31*(1+EE!P$5) -> 11951.77515 | O31: =+N31*(1+EE!Q$5) -> 12262.06392
A32: Administratiivkulud | B32: EUR | C32: =+SUM(Üldkulud!E4:E7,Üldkulud!E9:E10) -> 1530.6 | D32: =+SUM(Üldkulud!G4:G7,Üldkulud!G9:G10) -> 1407 | E32: =+D32*(1+EE!G$5) -> 1437.954 | F32: =+E32*(1+EE!H$5) -> 1476.778758 | G32: =+F32*(1+EE!I$5) -> 1519.605342 | H32: =+G32*(1+EE!J$5) -> 1559.115081 | I32: =+H32*(1+EE!K$5) -> 1601.211188 | J32: =+I32*(1+EE!L$5) -> 1644.44389 | K32: =+J32*(1+EE!M$5) -> 1688.843875 | L32: =+K32*(1+EE!N$5) -> 1733.709733 | M32: =+L32*(1+EE!O$5) -> 1779.360245 | N32: =+M32*(1+EE!P$5) -> 1825.857506 | O32: =+N32*(1+EE!Q$5) -> 1873.259928
A33: Ülalpidamiskulud | B33: EUR | C33: =+SUM(ÜVK_KULUD!F10:F11)-KULUD!C28 -> 3276.41 | D33: =+SUM(ÜVK_KULUD!H10:H11)-KULUD!D28 -> 3413.106965 | E33: =+D33*(1+EE!G$5) -> 3488.195318 | F33: =+E33*(1+EE!H$5) -> 3582.376592 | G33: =+F33*(1+EE!I$5) -> 3686.265513 | H33: =+G33*(1+EE!J$5) -> 3782.108417 | I33: =+H33*(1+EE!K$5) -> 3884.225344 | J33: =+I33*(1+EE!L$5) -> 3989.099428 | K33: =+J33*(1+EE!M$5) -> 4096.805113 | L33: =+K33*(1+EE!N$5) -> 4205.640914 | M33: =+L33*(1+EE!O$5) -> 4316.380133 | N33: =+M33*(1+EE!P$5) -> 4429.173398 | O33: =+N33*(1+EE!Q$5) -> 4544.162407
A34: KONTROLL | C34: =+SUM(C26:C33)=SUM(Üldkulud!E3:E10)+SUM(ÜVK_KULUD!F7:F13)-ÜVK_KULUD!F7 -> TRUE | D34: =+SUM(D26:D33)=SUM(Üldkulud!G3:G10)+SUM(ÜVK_KULUD!H7:H13)-ÜVK_KULUD!H7 -> TRUE

Sheet ÜVKAK_FIN
A1: FINANTSANALÜÜS | B1: Ühik | C1: 2014 | D1: 2015 | E1: 2016 | F1: 2017 | G1: 2018 | H1: 2019 | I1: 2020 | J1: 2021 | K1: 2022 | L1: 2023 | M1: 2024 | N1: 2025 | O1: 2026
A2: MAHUD
A3: Elanike vesi | B3: m3/a | C3: =+MAHUD!E11 -> 27857 | D3: =+MAHUD!F11 -> 27857 | E3: =+MAHUD!G11 -> 27918.93473 | F3: =+MAHUD!H11 -> 27980.86945 | G3: =+MAHUD!I11 -> 28375.69238 | H3: =+MAHUD!J11 -> 28437.6271 | I3: =+MAHUD!K11 -> 28499.56183 | J3: =+MAHUD!L11 -> 28561.49656 | K3: =+MAHUD!M11 -> 28623.43128 | L3: =+MAHUD!N11 -> 28685.36601 | M3: =+MAHUD!O11 -> 28747.30074 | N3: =+MAHUD!P11 -> 28809.23546 | O3: =+MAHUD!Q11 -> 30925.04203
A4: Juriidiliste isikute vesi | B4: m3/a | C4: =+MAHUD!E12 -> 3592 | D4: =+MAHUD!F12 -> 3592 | E4: =+MAHUD!G12 -> 3592 | F4: =+MAHUD!H12 -> 3592 | G4: =+MAHUD!I12 -> 3592 | H4: =+MAHUD!J12 -> 3592 | I4: =+MAHUD!K12 -> 3592 | J4: =+MAHUD!L12 -> 3592 | K4: =+MAHUD!M12 -> 3592 | L4: =+MAHUD!N12 -> 3592 | M4: =+MAHUD!O12 -> 3592 | N4: =+MAHUD!P12 -> 3592 | O4: =+MAHUD!Q12 -> 3592
A5: Elanike kanal | B5: m3/a | C5: =+MAHUD!E16 -> 14631.4 | D5: =+MAHUD!F16 -> 14742.58266 | E5: =+MAHUD!G16 -> 15163.52096 | F5: =+MAHUD!H16 -> 16073.88783 | G5: =+MAHUD!I16 -> 17815.1062 | H5: =+MAHUD!J16 -> 17877.04092 | I5: =+MAHUD!K16 -> 17938.97565 | J5: =+MAHUD!L16 -> 18000.91037 | K5: =+MAHUD!M16 -> 18062.8451 | L5: =+MAHUD!N16 -> 18124.77983 | M5: =+MAHUD!O16 -> 18186.71455 | N5: =+MAHUD!P16 -> 18262.86381 | O5: =+MAHUD!Q16 -> 24210.27493
A6: Juriidiliste isikute kanal | B6: m3/a | C6: =+MAHUD!E17 -> 2333.4 | D6: =+MAHUD!F17 -> 2333.4 | E6: =+MAHUD!G17 -> 2333.4 | F6: =+MAHUD!H17 -> 8633.4 | G6: =+MAHUD!I17 -> 8633.4 | H6: =+MAHUD!J17 -> 8633.4 | I6: =+MAHUD!K17 -> 8633.4 | J6: =+MAHUD!L17 -> 8633.4 | K6: =+MAHUD!M17 -> 8633.4 | L6: =+MAHUD!N17 -> 8633.4 | M6: =+MAHUD!O17 -> 8633.4 | N6: =+MAHUD!P17 -> 8633.4 | O6: =+MAHUD!Q17 -> 8633.4
A7: VESI KOKKU | B7: m3/a | C7: =SUM(C3:C4) -> 31449 | D7: =SUM(D3:D4) -> 31449 | E7: =SUM(E3:E4) -> 31510.93473 | F7: =SUM(F3:F4) -> 31572.86945 | G7: =SUM(G3:G4) -> 31967.69238 | H7: =SUM(H3:H4) -> 32029.6271 | I7: =SUM(I3:I4) -> 32091.56183 | J7: =SUM(J3:J4) -> 32153.49656 | K7: =SUM(K3:K4) -> 32215.43128 | L7: =SUM(L3:L4) -> 32277.36601 | M7: =SUM(M3:M4) -> 32339.30074 | N7: =SUM(N3:N4) -> 32401.23546 | O7: =SUM(O3:O4) -> 34517.04203
A8: KANAL KOKKU | B8: m3/a | C8: =SUM(C5:C6) -> 16964.8 | D8: =SUM(D5:D6) -> 17075.98266 | E8: =SUM(E5:E6) -> 17496.92096 | F8: =SUM(F5:F6) -> 24707.28783 | G8: =SUM(G5:G6) -> 26448.5062 | H8: =SUM(H5:H6) -> 26510.44092 | I8: =SUM(I5:I6) -> 26572.37565 | J8: =SUM(J5:J6) -> 26634.31037 | K8: =SUM(K5:K6) -> 26696.2451 | L8: =SUM(L5:L6) -> 26758.17983 | M8: =SUM(M5:M6) -> 26820.11455 | N8: =SUM(N5:N6) -> 26896.26381 | O8: =SUM(O5:O6) -> 32843.67493
A10: Tariifi muutus võrreldes eelmise aastaga VESI | B10: EUR | F10: 0.22 | H10: 0.1 | J10: 0.05 | L10: 0.04
A11: Tariifi muutus võrreldes eelmise aastaga KANAL | B11: EUR | E11: =+E10*$D$15/$D$14 -> 0 | F11: =+F10*$D$15/$D$14 -> 0.3404761905 | G11: =+G10*$D$15/$D$14 -> 0 | H11: =+H10*$D$15/$D$14 -> 0.1547619048 | I11: =+I10*$D$15/$D$14 -> 0 | J11: =+J10*$D$15/$D$14 -> 0.07738095238 | K11: =+K10*$D$15/$D$14 -> 0 | L11: =+L10*$D$15/$D$14 -> 0.0619047619 | M11: =+M10*$D$15/$D$14 -> 0 | N11: =+N10*$D$15/$D$14 -> 0 | O11: =+O10*$D$15/$D$14 -> 0
A12: TEENUSHINNAD
A13: Elanike vesi | B13: EUR/m3 | D13: =+EE!B30 -> 1.05 | E13: =+D13+E10 -> 1.05 | F13: =+E13+F10 -> 1.27 | G13: =+F13+G10 -> 1.27 | H13: =+G13+H10 -> 1.37 | I13: =+H13+I10 -> 1.37 | J13: =+I13+J10 -> 1.42 | K13: =+J13+K10 -> 1.42 | L13: =+K13+L10 -> 1.46 | M13: =+L13+M10 -> 1.46 | N13: =+M13+N10 -> 1.46 | O13: =+N13+O10 -> 1.46
A14: Juriidiliste isikute vesi | B14: EUR/m3 | D14: =+D13 -> 1.05 | E14: =+E13 -> 1.05 | F14: =+F13 -> 1.27 | G14: =+G13 -> 1.27 | H14: =+H13 -> 1.37 | I14: =+I13 -> 1.37 | J14: =+J13 -> 1.42 | K14: =+K13 -> 1.42 | L14: =+L13 -> 1.46 | M14: =+M13 -> 1.46 | N14: =+N13 -> 1.46 | O14: =+O13 -> 1.46
A15: Elanike kanal | B15: EUR/m3 | D15: =+EE!B36 -> 1.625 | E15: =+D15+E11 -> 1.625 | F15: =+E15+F11 -> 1.96547619 | G15: =+F15+G11 -> 1.96547619 | H15: =+G15+H11 -> 2.120238095 | I15: =+H15+I11 -> 2.120238095 | J15: =+I15+J11 -> 2.197619048 | K15: =+J15+K11 -> 2.197619048 | L15: =+K15+L11 -> 2.25952381 | M15: =+L15+M11 -> 2.25952381 | N15: =+M15+N11 -> 2.25952381 | O15: =+N15+O11 -> 2.25952381
A16: Juriidiliste isikute kanal | B16: EUR/m3 | D16: =+D15 -> 1.625 | E16: =+E15 -> 1.625 | F16: =+F15 -> 1.96547619 | G16: =+G15 -> 1.96547619 | H16: =+H15 -> 2.120238095 | I16: =+I15 -> 2.120238095 | J16: =+J15 -> 2.197619048 | K16: =+K15 -> 2.197619048 | L16: =+L15 -> 2.25952381 | M16: =+M15 -> 2.25952381 | N16: =+N15 -> 2.25952381 | O16: =+O15 -> 2.25952381
A18: Tariifi muutus võrreldes eelmise aastaga
A19: Elanike vesi | B19: % | E19: =E13/D13-1 -> 0 | F19: =F13/E13-1 -> 0.2095238095 | G19: =G13/F13-1 -> 0 | H19: =H13/G13-1 -> 0.07874015748 | I19: =I13/H13-1 -> 0 | J19: =J13/I13-1 -> 0.03649635036 | K19: =K13/J13-1 -> 0 | L19: =L13/K13-1 -> 0.02816901408 | M19: =M13/L13-1 -> 0 | N19: =N13/M13-1 -> 0 | O19: =O13/N13-1 -> 0
A20: Juriidiliste isikute vesi | B20: % | E20: =E14/D14-1 -> 0 | F20: =F14/E14-1 -> 0.2095238095 | G20: =G14/F14-1 -> 0 | H20: =H14/G14-1 -> 0.07874015748 | I20: =I14/H14-1 -> 0 | J20: =J14/I14-1 -> 0.03649635036 | K20: =K14/J14-1 -> 0 | L20: =L14/K14-1 -> 0.02816901408 | M20: =M14/L14-1 -> 0 | N20: =N14/M14-1 -> 0 | O20: =O14/N14-1 -> 0
A21: Elanike kanal | B21: % | E21: =E15/D15-1 -> 0 | F21: =F15/E15-1 -> 0.2095238095 | G21: =G15/F15-1 -> 0 | H21: =H15/G15-1 -> 0.07874015748 | I21: =I15/H15-1 -> 0 | J21: =J15/I15-1 -> 0.03649635036 | K21: =K15/J15-1 -> 0 | L21: =L15/K15-1 -> 0.02816901408 | M21: =M15/L15-1 -> 0 | N21: =N15/M15-1 -> 0 | O21: =O15/N15-1 -> 0
A22: Juriidiliste isikute kanal | B22: % | E22: =E16/D16-1 -> 0 | F22: =F16/E16-1 -> 0.2095238095 | G22: =G16/F16-1 -> 0 | H22: =H16/G16-1 -> 0.07874015748 | I22: =I16/H16-1 -> 0 | J22: =J16/I16-1 -> 0.03649635036 | K22: =K16/J16-1 -> 0 | L22: =L16/K16-1 -> 0.02816901408 | M22: =M16/L16-1 -> 0 | N22: =N16/M16-1 -> 0 | O22: =O16/N16-1 -> 0
A24: MÜÜGITULUD
A25: Elanike vesi | B25: EUR | D25: =+D3*D13 -> 29249.85 | E25: =+E3*E13 -> 29314.88146 | F25: =+F3*F13 -> 35535.7042 | G25: =+G3*G13 -> 36037.12932 | H25: =+H3*H13 -> 38959.54913 | I25: =+I3*I13 -> 39044.39971 | J25: =+J3*J13 -> 40557.32511 | K25: =+K3*K13 -> 40645.27242 | L25: =+L3*L13 -> 41880.63437 | M25: =+M3*M13 -> 41971.05907 | N25: =+N3*N13 -> 42061.48378 | O25: =+O3*O13 -> 45150.56136
A26: Juriidiliste isikute vesi | B26: EUR | D26: =+D4*D14 -> 3771.6 | E26: =+E4*E14 -> 3771.6 | F26: =+F4*F14 -> 4561.84 | G26: =+G4*G14 -> 4561.84 | H26: =+H4*H14 -> 4921.04 | I26: =+I4*I14 -> 4921.04 | J26: =+J4*J14 -> 5100.64 | K26: =+K4*K14 -> 5100.64 | L26: =+L4*L14 -> 5244.32 | M26: =+M4*M14 -> 5244.32 | N26: =+N4*N14 -> 5244.32 | O26: =+O4*O14 -> 5244.32
A27: Elanike kanal | B27: EUR | D27: =+D5*D15 -> 23956.69682 | E27: =+E5*E15 -> 24640.72155 | F27: =+F5*F15 -> 31592.84381 | G27: =+G5*G15 -> 35015.16706 | H27: =+H5*H15 -> 37903.58319 | I27: =+I5*I15 -> 38034.89956 | J27: =+J5*J15 -> 39559.14351 | K27: =+K5*K15 -> 39695.25245 | L27: =+L5*L15 -> 40953.37156 | M27: =+M5*M15 -> 41093.31455 | N27: =+N5*N15 -> 41265.3756 | O27: =+O5*O15 -> 54703.69264
A28: Juriidiliste isikute kanal | B28: EUR | D28: =+D6*D16 -> 3791.775 | E28: =+E6*E16 -> 3791.775 | F28: =+F6*F16 -> 16968.74214 | G28: =+G6*G16 -> 16968.74214 | H28: =+H6*H16 -> 18304.86357 | I28: =+I6*I16 -> 18304.86357 | J28: =+J6*J16 -> 18972.92429 | K28: =+K6*K16 -> 18972.92429 | L28: =+L6*L16 -> 19507.37286 | M28: =+M6*M16 -> 19507.37286 | N28: =+N6*N16 -> 19507.37286 | O28: =+O6*O16 -> 19507.37286
A29: Tulud vee- ja kanalisatsiooni-teenuse müügist | B29: EUR | D29: =SUM(D25:D28) -> 60769.92182 | E29: =SUM(E25:E28) -> 61518.97802 | F29: =SUM(F25:F28) -> 88659.13016 | G29: =SUM(G25:G28) -> 92582.87852 | H29: =SUM(H25:H28) -> 100089.0359 | I29: =SUM(I25:I28) -> 100305.2028 | J29: =SUM(J25:J28) -> 104190.0329 | K29: =SUM(K25:K28) -> 104414.0892 | L29: =SUM(L25:L28) -> 107585.6988 | M29: =SUM(M25:M28) -> 107816.0665 | N29: =SUM(N25:N28) -> 108078.5522 | O29: =SUM(O25:O28) -> 124605.9469
A30: Muud nimetamata veemaj. tulud | B30: EUR | D30: 0 | E30: 0 | F30: 0 | G30: 0 | H30: 0 | I30: 0 | J30: 0 | K30: 0 | L30: 0 | M30: 0 | N30: 0 | O30: 0
A31: Muud tulud kokku | B31: EUR | D31: =+SUM(D30:D30) -> 0 | E31: =+SUM(E30:E30) -> 0 | F31: =+SUM(F30:F30) -> 0 | G31: =+SUM(G30:G30) -> 0 | H31: =+SUM(H30:H30) -> 0 | I31: =+SUM(I30:I30) -> 0 | J31: =+SUM(J30:J30) -> 0 | K31: =+SUM(K30:K30) -> 0 | L31: =+SUM(L30:L30) -> 0 | M31: =+SUM(M30:M30) -> 0 | N31: =+SUM(N30:N30) -> 0 | O31: =+SUM(O30:O30) -> 0
A32: TULUD KOKKU | B32: EUR | D32: =+D29+D31 -> 60769.92182 | E32: =+E29+E31 -> 61518.97802 | F32: =+F29+F31 -> 88659.13016 | G32: =+G29+G31 -> 92582.87852 | H32: =+H29+H31 -> 100089.0359 | I32: =+I29+I31 -> 100305.2028 | J32: =+J29+J31 -> 104190.0329 | K32: =+K29+K31 -> 104414.0892 | L32: =+L29+L31 -> 107585.6988 | M32: =+M29+M31 -> 107816.0665 | N32: =+N29+N31 -> 108078.5522 | O32: =+O29+O31 -> 124605.9469
A34: TEGEVUSKULUD
A35: ÜV-teenus
A36: Energiakulud | B36: EUR | D36: =+KULUD!D8 -> 3820 | E36: =+KULUD!E8 -> 3909.91775 | F36: =+KULUD!F8 -> 4021.521978 | G36: =+KULUD!G8 -> 3474.870239 | H36: =+KULUD!H8 -> 3571.58987 | I36: =+KULUD!I8 -> 3674.567873 | J36: =+KULUD!J8 -> 3780.502999 | K36: =+KULUD!K8 -> 3889.479861 | L36: =+KULUD!L8 -> 3999.89453 | M36: =+KULUD!M8 -> 4112.489491 | N36: =+KULUD!N8 -> 4227.418134 | O36: =+KULUD!O8 -> 4607.560403
A37: Keskkonnatasud | B37: EUR | D37: =+KULUD!D9 -> 4100 | E37: =+KULUD!E9 -> 4196.508579 | F37: =+KULUD!F9 -> 4316.293222 | G37: =+KULUD!G9 -> 3729.57277 | H37: =+KULUD!H9 -> 3833.381798 | I37: =+KULUD!I9 -> 3943.907926 | J37: =+KULUD!J9 -> 4057.60793 | K37: =+KULUD!K9 -> 4174.572626 | L37: =+KULUD!L9 -> 4293.080517 | M37: =+KULUD!M9 -> 4413.928512 | N37: =+KULUD!N9 -> 4537.281244 | O37: =+KULUD!O9 -> 4945.287344
A38: Kaupade ja teenuste vahendamiskulud | B38: EUR | D38: 0 | E38: 0 | F38: 0 | G38: 0 | H38: 0 | I38: 0 | J38: 0 | K38: 0 | L38: 0 | M38: 0 | N38: 0 | O38: 0
A39: Seadmete hoolduse teenus ja materjalid | B39: EUR | D39: =+KULUD!D11 -> 2557 | E39: =+KULUD!E11 -> 2613.254 | F39: =+KULUD!F11 -> 2683.811858 | G39: =+KULUD!G11 -> 2761.642402 | H39: =+KULUD!H11 -> 2833.445104 | I39: =+KULUD!I11 -> 2909.948122 | J39: =+KULUD!J11 -> 2988.516721 | K39: =+KULUD!K11 -> 3069.206673 | L39: =+KULUD!L11 -> 3150.743275 | M39: =+KULUD!M11 -> 3233.705861 | N39: =+KULUD!N11 -> 3318.20728 | O39: =+KULUD!O11 -> 3404.353685
A40: Tööjõu- ja personalikulud | B40: EUR | D40: =+KULUD!D12 -> 12280 | E40: =+KULUD!E12 -> 12550.16 | F40: =+KULUD!F12 -> 12889.01432 | G40: =+KULUD!G12 -> 13262.79574 | H40: =+KULUD!H12 -> 13607.62842 | I40: =+KULUD!I12 -> 13975.03439 | J40: =+KULUD!J12 -> 14352.36032 | K40: =+KULUD!K12 -> 14739.87405 | L40: =+KULUD!L12 -> 15131.45382 | M40: =+KULUD!M12 -> 15529.88188 | N40: =+KULUD!N12 -> 15935.70019 | O40: =+KULUD!O12 -> 16349.41856
A41: Administratiivkulud | B41: EUR | D41: =+KULUD!D13 -> 1876 | E41: =+KULUD!E13 -> 1917.272 | F41: =+KULUD!F13 -> 1969.038344 | G41: =+KULUD!G13 -> 2026.140456 | H41: =+KULUD!H13 -> 2078.820108 | I41: =+KULUD!I13 -> 2134.948251 | J41: =+KULUD!J13 -> 2192.591854 | K41: =+KULUD!K13 -> 2251.791834 | L41: =+KULUD!L13 -> 2311.612978 | M41: =+KULUD!M13 -> 2372.480327 | N41: =+KULUD!N13 -> 2434.476675 | O41: =+KULUD!O13 -> 2497.679904
A42: Ülalpidamiskulud | B42: EUR | D42: =+KULUD!D14 -> 1200 | E42: =+KULUD!E14 -> 1226.4 | F42: =+KULUD!F14 -> 1259.5128 | G42: =+KULUD!G14 -> 1296.038671 | H42: =+KULUD!H14 -> 1329.735677 | I42: =+KULUD!I14 -> 1365.63854 | J42: =+KULUD!J14 -> 1402.51078 | K42: =+KULUD!K14 -> 1440.378572 | L42: =+KULUD!L14 -> 1478.643696 | M42: =+KULUD!M14 -> 1517.578034 | N42: =+KULUD!N14 -> 1557.234547 | O42: =+KULUD!O14 -> 1597.663051
A43: ÜK-teenus
A44: Energiakulud | B44: EUR | D44: =+KULUD!D26 -> 3740 | E44: =+KULUD!E26 -> 3916.502632 | F44: =+KULUD!F26 -> 5679.790422 | G44: =+KULUD!G26 -> 6256.389227 | H44: =+KULUD!H26 -> 6434.086911 | I44: =+KULUD!I26 -> 6623.244675 | J44: =+KULUD!J26 -> 6817.926509 | K44: =+KULUD!K26 -> 7018.292816 | L44: =+KULUD!L26 -> 7221.455762 | M44: =+KULUD!M26 -> 7428.759718 | N44: =+KULUD!N26 -> 7644.527313 | O44: =+KULUD!O26 -> 9577.266836
A45: Keskkonnatasud | B45: EUR | D45: =+KULUD!D27 -> 1350 | E45: =+KULUD!E27 -> 1418.905277 | F45: =+KULUD!F27 -> 1415.142209 | G45: =+KULUD!G27 -> 1593.498755 | H45: =+KULUD!H27 -> 1634.929723 | I45: =+KULUD!I27 -> 1679.072825 | J45: =+KULUD!J27 -> 1724.407791 | K45: =+KULUD!K27 -> 1770.966802 | L45: =+KULUD!L27 -> 1818.014339 | M45: =+KULUD!M27 -> 1865.884685 | N45: =+KULUD!N27 -> 1914.642955 | O45: =+KULUD!O27 -> 2556.812969
A46: Kaupade ja teenuste vahendamiskulud | B46: EUR | D46: =+KULUD!D28 -> 3686.893035 | E46: =+KULUD!E28 -> 3820.541433 | F46: =+KULUD!F28 -> 10531.9085 | G46: =+KULUD!G28 -> 11331.59066 | H46: =+KULUD!H28 -> 11683.17548 | I46: =+KULUD!I28 -> 12057.12269 | J46: =+KULUD!J28 -> 12442.74602 | K46: =+KULUD!K28 -> 12840.40337 | L46: =+KULUD!L28 -> 13244.86418 | M46: =+KULUD!M28 -> 13658.62652 | N46: =+KULUD!N28 -> 14097.56561 | O46: =+KULUD!O28 -> 16433.77725
A47: Seadmete hoolduse teenus ja materjalid | B47: EUR | D47: =+KULUD!D30 -> 2642.75 | E47: =+KULUD!E30 -> 2700.8905 | F47: =+KULUD!F30 -> 2773.814544 | G47: =+KULUD!G30 -> 2854.255165 | H47: =+KULUD!H30 -> 2928.4658 | I47: =+KULUD!I30 -> 3007.534376 | J47: =+KULUD!J30 -> 3088.737804 | K47: =+KULUD!K30 -> 3172.133725 | L47: =+KULUD!L30 -> 3256.404689 | M47: =+KULUD!M30 -> 3342.149458 | N47: =+KULUD!N30 -> 3429.484665 | O47: =+KULUD!O30 -> 3518.520024
A48: Tööjõu- ja personalikulud | B48: EUR | D48: =+KULUD!D31 -> 9210 | E48: =+KULUD!E31 -> 9412.62 | F48: =+KULUD!F31 -> 9666.76074 | G48: =+KULUD!G31 -> 9947.096801 | H48: =+KULUD!H31 -> 10205.72132 | I48: =+KULUD!I31 -> 10481.27579 | J48: =+KULUD!J31 -> 10764.27024 | K48: =+KULUD!K31 -> 11054.90554 | L48: =+KULUD!L31 -> 11348.59036 | M48: =+KULUD!M31 -> 11647.41141 | N48: =+KULUD!N31 -> 11951.77515 | O48: =+KULUD!O31 -> 12262.06392
A49: Administratiivkulud | B49: EUR | D49: =+KULUD!D32 -> 1407 | E49: =+KULUD!E32 -> 1437.954 | F49: =+KULUD!F32 -> 1476.778758 | G49: =+KULUD!G32 -> 1519.605342 | H49: =+KULUD!H32 -> 1559.115081 | I49: =+KULUD!I32 -> 1601.211188 | J49: =+KULUD!J32 -> 1644.44389 | K49: =+KULUD!K32 -> 1688.843875 | L49: =+KULUD!L32 -> 1733.709733 | M49: =+KULUD!M32 -> 1779.360245 | N49: =+KULUD!N32 -> 1825.857506 | O49: =+KULUD!O32 -> 1873.259928
A50: Ülalpidamiskulud | B50: EUR | D50: =+KULUD!D33 -> 3413.106965 | E50: =+KULUD!E33 -> 3488.195318 | F50: =+KULUD!F33 -> 3582.376592 | G50: =+KULUD!G33 -> 3686.265513 | H50: =+KULUD!H33 -> 3782.108417 | I50: =+KULUD!I33 -> 3884.225344 | J50: =+KULUD!J33 -> 3989.099428 | K50: =+KULUD!K33 -> 4096.805113 | L50: =+KULUD!L33 -> 4205.640914 | M50: =+KULUD!M33 -> 4316.380133 | N50: =+KULUD!N33 -> 4429.173398 | O50: =+KULUD!O33 -> 4544.162407
A51: KULUD (va kulum) KOKKU | B51: EUR | D51: =+SUM(D36:D50) -> 51282.75 | E51: =+SUM(E36:E50) -> 52609.12149 | F51: =+SUM(F36:F50) -> 62265.76429 | G51: =+SUM(G36:G50) -> 63739.76173 | H51: =+SUM(H36:H50) -> 65482.20371 | I51: =+SUM(I36:I50) -> 67337.732 | J51: =+SUM(J36:J50) -> 69245.72229 | K51: =+SUM(K36:K50) -> 71207.65485 | L51: =+SUM(L36:L50) -> 73194.1088 | M51: =+SUM(M36:M50) -> 75218.63629 | N51: =+SUM(N36:N50) -> 77303.34466 | O51: =+SUM(O36:O50) -> 84167.82628
D52: =+D51=SUM(KULUD!D8:D14,KULUD!D26:D33) -> TRUE | E52: =+E51=SUM(KULUD!E8:E14,KULUD!E26:E33) -> TRUE | F52: =+F51=SUM(KULUD!F8:F14,KULUD!F26:F33) -> TRUE | G52: =+G51=SUM(KULUD!G8:G14,KULUD!G26:G33) -> TRUE | H52: =+H51=SUM(KULUD!H8:H14,KULUD!H26:H33) -> TRUE | I52: =+I51=SUM(KULUD!I8:I14,KULUD!I26:I33) -> TRUE | J52: =+J51=SUM(KULUD!J8:J14,KULUD!J26:J33) -> TRUE | K52: =+K51=SUM(KULUD!K8:K14,KULUD!K26:K33) -> TRUE | L52: =+L51=SUM(KULUD!L8:L14,KULUD!L26:L33) -> TRUE | M52: =+M51=SUM(KULUD!M8:M14,KULUD!M26:M33) -> TRUE | N52: =+N51=SUM(KULUD!N8:N14,KULUD!N26:N33) -> TRUE | O52: =+O51=SUM(KULUD!O8:O14,KULUD!O26:O33) -> TRUE
A53: RAHAVOOG OPEREERIMISTEGEVUSEST | B53: EUR | D53: =D32-D51 -> 9487.171819 | E53: =E32-E51 -> 8909.856527 | F53: =F32-F51 -> 26393.36587 | G53: =G32-G51 -> 28843.11679 | H53: =H32-H51 -> 34606.83219 | I53: =I32-I51 -> 32967.47084 | J53: =J32-J51 -> 34944.31062 | K53: =K32-K51 -> 33206.43431 | L53: =L32-L51 -> 34391.59 | M53: =M32-M51 -> 32597.4302 | N53: =N32-N51 -> 30775.20757 | O53: =O32-O51 -> 40438.12057
A54: Hinda lülitatav kulum | B54: EUR | D54: =+'Kulum&INV'!D11+'Kulum&INV'!D43 -> 3417.2455 | E54: =+'Kulum&INV'!E11+'Kulum&INV'!E43 -> 15885.96873 | F54: =+'Kulum&INV'!F11+'Kulum&INV'!F43 -> 19822.03913 | G54: =+'Kulum&INV'!G11+'Kulum&INV'!G43 -> 28573.37246 | H54: =+'Kulum&INV'!H11+'Kulum&INV'!H43 -> 28573.37246 | I54: =+'Kulum&INV'!I11+'Kulum&INV'!I43 -> 28573.37246 | J54: =+'Kulum&INV'!J11+'Kulum&INV'!J43 -> 28129.30646 | K54: =+'Kulum&INV'!K11+'Kulum&INV'!K43 -> 27812.12246 | L54: =+'Kulum&INV'!L11+'Kulum&INV'!L43 -> 27185.63396 | M54: =+'Kulum&INV'!M11+'Kulum&INV'!M43 -> 26867.77796 | N54: =+'Kulum&INV'!N11+'Kulum&INV'!N43 -> 26866.66796 | O54: =+'Kulum&INV'!O11+'Kulum&INV'!O43 -> 31424.0013
A55: KASUM (KA mõistes) | B55: EUR | D55: =+D53-D54 -> 6069.926319 | E55: =+E53-E54 -> -6976.1122 | F55: =+F53-F54 -> 6571.32674 | G55: =+G53-G54 -> 269.744326 | H55: =+H53-H54 -> 6033.459727 | I55: =+I53-I54 -> 4394.098378 | J55: =+J53-J54 -> 6815.004158 | K55: =+K53-K54 -> 5394.311843 | L55: =+L53-L54 -> 7205.956035 | M55: =+M53-M54 -> 5729.652234 | N55: =+N53-N54 -> 3908.53961 | O55: =+O53-O54 -> 9014.119274
A56: Kasum | B56: % | D56: =+D55/D32 -> 0.09988372764 | E56: =+E55/E32 -> -0.1133977258 | F56: =+F55/F32 -> 0.07411900758 | G56: =+G55/G32 -> 0.002913544386 | H56: =+H55/H32 -> 0.06028092561 | I56: =+I55/I32 -> 0.04380728271 | J56: =+J55/J32 -> 0.06540936755 | K56: =+K55/K32 -> 0.0516626816 | L56: =+L55/L32 -> 0.06697875383 | M56: =+M55/M32 -> 0.05314284245 | N56: =+N55/N32 -> 0.0361638783 | O56: =+O55/O32 -> 0.07234100379
A58: TASKUKOHASUS | B58: Ühik | C58: =+C1 -> 2014 | D58: =+D1 -> 2015 | E58: =+E1 -> 2016 | F58: =+F1 -> 2017 | G58: =+G1 -> 2018 | H58: =+H1 -> 2019 | I58: =+I1 -> 2020 | J58: =+J1 -> 2021 | K58: =+K1 -> 2022 | L58: =+L1 -> 2023 | M58: =+M1 -> 2024 | N58: =+N1 -> 2025 | O58: =+O1 -> 2026
A59: Leibkonnaliikme netosissetulek | B59: EUR/a | D59: =+EE!F12 -> 5429.403884 | E59: =+EE!G12 -> 5713.284906 | F59: =+EE!H12 -> 6056.082 | G59: =+EE!I12 -> 6449.72733 | H59: =+EE!J12 -> 6862.509879 | I59: =+EE!K12 -> 7297.222688 | J59: =+EE!L12 -> 7751.164901 | K59: =+EE!M12 -> 8225.844706 | L59: =+EE!N12 -> 8719.141451 | M59: =+EE!O12 -> 9233.813658 | N59: =+EE!P12 -> 9771.480353 | O59: =+EE!Q12 -> 10333.81287
A60: Leibkonnaliikme poolt tarbitava vee kogus | B60: m3 | D60: =+EE!F15 -> 25.69833948 | E60: =+EE!G15 -> 25.69763146 | F60: =+EE!H15 -> 25.69692662 | G60: =+EE!I15 -> 25.64872042 | H60: =+EE!J15 -> 25.64813585 | I60: =+EE!K15 -> 25.64755384 | J60: =+EE!L15 -> 25.64697439 | K60: =+EE!M15 -> 25.64639747 | L60: =+EE!N15 -> 25.64582306 | M60: =+EE!O15 -> 25.64525116 | N60: =+EE!P15 -> 25.64468174 | O60: =+EE!Q15 -> 26.00053979
A61: Leibkonnaliikme poolt tarbitava reovee kogus | B61: m3 | D61: =+EE!F16 -> 25.02985171 | E61: =+EE!G16 -> 25.00415698 | F61: =+EE!H16 -> 25.19892115 | G61: =+EE!I16 -> 25.29405128 | H61: =+EE!J16 -> 25.29435865 | I61: =+EE!K16 -> 25.29466391 | J61: =+EE!L16 -> 25.29496708 | K61: =+EE!M16 -> 25.29526818 | L61: =+EE!N16 -> 25.29556722 | M61: =+EE!O16 -> 25.29586424 | N61: =+EE!P16 -> 25.29622667 | O61: =+EE!Q16 -> 25.5393423
A62: Kulu veele ja kanalisatsioonile pereliikme kohta | B62: EUR/a | D62: =+D60*D13*(1+EE!F$8)+D61*D15*(1+EE!F$8) -> 81.18811859 | E62: =+E60*E13*(1+EE!G$8)+E61*E15*(1+EE!G$8) -> 81.13712174 | F62: =+F60*F13*(1+EE!H$8)+F61*F15*(1+EE!H$8) -> 98.59557162 | G62: =+G60*G13*(1+EE!I$8)+G61*G15*(1+EE!I$8) -> 98.74647658 | H62: =+H60*H13*(1+EE!J$8)+H61*H15*(1+EE!J$8) -> 106.5216107 | I62: =+I60*I13*(1+EE!K$8)+I61*I15*(1+EE!K$8) -> 106.5214306 | J62: =+J60*J13*(1+EE!L$8)+J61*J15*(1+EE!L$8) -> 110.4088861 | K62: =+K60*K13*(1+EE!M$8)+K61*K15*(1+EE!M$8) -> 110.4086971 | L62: =+L60*L13*(1+EE!N$8)+L61*L15*(1+EE!N$8) -> 113.5186057 | M62: =+M60*M13*(1+EE!O$8)+M61*M15*(1+EE!O$8) -> 113.5184091 | N62: =+N60*N13*(1+EE!P$8)+N61*N15*(1+EE!P$8) -> 113.5183941 | O62: =+O60*O13*(1+EE!Q$8)+O61*O15*(1+EE!Q$8) -> 114.8010481
A63: Vee- ja kanalisatsiooniteenuse eest makstava kulu osakaal leibkonnaliikme netosissetulekust | B63: % | D63: =+D62/D59 -> 0.01495341299 | E63: =+E62/E59 -> 0.01420148357 | F63: =+F62/F59 -> 0.01628042216 | G63: =+G62/G59 -> 0.01531017848 | H63: =+H62/H59 -> 0.01552225244 | I63: =+I62/I59 -> 0.01459753047 | J63: =+J62/J59 -> 0.01424416685 | K63: =+K62/K59 -> 0.01342217134 | L63: =+L62/L59 -> 0.01301947059 | M63: =+M62/M59 -> 0.012293773 | N63: =+N62/N59 -> 0.01161731795 | O63: =+O62/O59 -> 0.0111092633
A65: VEEMAJANDUSALASE TEGEVUSE FINANTSILINE JÄTKUSUUTLIKKUS
A66: Jätkusuutlikkuse analüüs | B66: Ühik | C66: =+C1 -> 2014 | D66: =+D1 -> 2015 | E66: =+E1 -> 2016 | F66: =+F1 -> 2017 | G66: =+G1 -> 2018 | H66: =+H1 -> 2019 | I66: =+I1 -> 2020 | J66: =+J1 -> 2021 | K66: =+K1 -> 2022 | L66: =+L1 -> 2023 | M66: =+M1 -> 2024 | N66: =+N1 -> 2025 | O66: =+O1 -> 2026
A67: Toetus (ÜF/KIK) | B67: EUR | D67: =+INV!I47 -> 74000 | E67: =+INV!J47 -> 852440 | F67: =+INV!K47 -> 476440 | G67: =+INV!L47 -> 0 | H67: =+INV!M47 -> 99405.71429 | I67: =+INV!N47 -> 99405.71429 | J67: =+INV!O47 -> 99405.71429 | K67: =+INV!P47 -> 99405.71429 | L67: =+INV!Q47 -> 99405.71429 | M67: =+INV!R47 -> 99405.71429 | N67: =+INV!S47 -> 99405.71429 | O67: =+INV!T47 -> 0
A68: Omavahendid | B68: EUR | D68: 0 | E68: 0 | F68: 0 | G68: 0 | H68: 0 | I68: 0 | J68: 0 | K68: 0 | L68: 0 | M68: 0 | N68: 0 | O68: 0
A69: Võetav laen/Kap.rent | B69: EUR | D69: =+LAEN!E3 -> 9250 | E69: =+LAEN!F3 -> 106555 | F69: =+LAEN!G3 -> 0 | G69: =+LAEN!H3 -> 0 | H69: =+LAEN!I3 -> 0 | I69: =+LAEN!J3 -> 0 | J69: =+LAEN!K3 -> 0 | K69: =+LAEN!L3 -> 0 | L69: =+LAEN!M3 -> 0 | M69: =+LAEN!N3 -> 0 | N69: =+LAEN!O3 -> 0 | O69: =+LAEN!P3 -> 0
A70: Kolmandate osapoolte toetus | B70: EUR | D70: =+INV!I48-ÜVKAK_FIN!D69 -> 9250 | E70: =+INV!J48-ÜVKAK_FIN!E69 -> 106555 | F70: =+INV!K48-ÜVKAK_FIN!F69 -> 119110 | G70: =+INV!L48-ÜVKAK_FIN!G69 -> 0 | H70: =+SUM(INV!M15:M17)*0.2 -> 4065.714286 | I70: =+SUM(INV!N15:N17)*0.2 -> 4065.714286 | J70: =+SUM(INV!O15:O17)*0.2 -> 4065.714286 | K70: =+SUM(INV!P15:P17)*0.2 -> 4065.714286 | L70: =+SUM(INV!Q15:Q17)*0.2 -> 4065.714286 | M70: =+SUM(INV!R15:R17)*0.2 -> 4065.714286 | N70: =+SUM(INV!S15:S17)*0.2 -> 4065.714286 | O70: =+INV!T48-ÜVKAK_FIN!O69 -> 0
A71: Tegevustulud (s.h.muud tulud) | B71: EUR | D71: =+D32 -> 60769.92182 | E71: =+E32 -> 61518.97802 | F71: =+F32 -> 88659.13016 | G71: =+G32 -> 92582.87852 | H71: =+H32 -> 100089.0359 | I71: =+I32 -> 100305.2028 | J71: =+J32 -> 104190.0329 | K71: =+K32 -> 104414.0892 | L71: =+L32 -> 107585.6988 | M71: =+M32 -> 107816.0665 | N71: =+N32 -> 108078.5522 | O71: =+O32 -> 124605.9469
A72: Kokku laekumised | B72: EUR | D72: =SUM(D67:D71) -> 153269.9218 | E72: =SUM(E67:E71) -> 1127068.978 | F72: =SUM(F67:F71) -> 684209.1302 | G72: =SUM(G67:G71) -> 92582.87852 | H72: =SUM(H67:H71) -> 203560.4645 | I72: =SUM(I67:I71) -> 203776.6314 | J72: =SUM(J67:J71) -> 207661.4615 | K72: =SUM(K67:K71) -> 207885.5177 | L72: =SUM(L67:L71) -> 211057.1274 | M72: =SUM(M67:M71) -> 211287.4951 | N72: =SUM(N67:N71) -> 211549.9808 | O72: =SUM(O67:O71) -> 124605.9469
A73: Kokku investeeringud | B73: EUR | D73: =+INV!I44 -> 92500 | E73: =+INV!J44 -> 1065550 | F73: =+INV!K44 -> 595550 | G73: =+INV!L44 -> 0 | H73: =+INV!M44 -> 124257.1429 | I73: =+INV!N44 -> 124257.1429 | J73: =+INV!O44 -> 124257.1429 | K73: =+INV!P44 -> 124257.1429 | L73: =+INV!Q44 -> 124257.1429 | M73: =+INV!R44 -> 124257.1429 | N73: =+INV!S44 -> 124257.1429 | O73: =+INV!T44 -> 0
A74: Intressikulud | B74: EUR | D74: =+LAEN!E7 -> 231.25 | E74: =+LAEN!F7 -> 3105.352273 | F74: =+LAEN!G7 -> 5460.794318 | G74: =+LAEN!H7 -> 4885.973864 | H74: =+LAEN!I7 -> 4311.153409 | I74: =+LAEN!J7 -> 3736.332955 | J74: =+LAEN!K7 -> 3161.5125 | K74: =+LAEN!L7 -> 2586.692045 | L74: =+LAEN!M7 -> 2011.871591 | M74: =+LAEN!N7 -> 1437.051136 | N74: =+LAEN!O7 -> 862.2306818 | O74: =+LAEN!P7 -> 287.4102273
A75: Laenude tagasimaksmine | B75: EUR | D75: =+LAEN!E4 -> 0 | E75: =+LAEN!F4 -> 840.9090909 | F75: =+LAEN!G4 -> 11496.40909 | G75: =+LAEN!H4 -> 11496.40909 | H75: =+LAEN!I4 -> 11496.40909 | I75: =+LAEN!J4 -> 11496.40909 | J75: =+LAEN!K4 -> 11496.40909 | K75: =+LAEN!L4 -> 11496.40909 | L75: =+LAEN!M4 -> 11496.40909 | M75: =+LAEN!N4 -> 11496.40909 | N75: =+LAEN!O4 -> 11496.40909 | O75: =+LAEN!P4 -> 11496.40909
A76: Tegevuskulud | B76: EUR | D76: =+D51 -> 51282.75 | E76: =+E51 -> 52609.12149 | F76: =+F51 -> 62265.76429 | G76: =+G51 -> 63739.76173 | H76: =+H51 -> 65482.20371 | I76: =+I51 -> 67337.732 | J76: =+J51 -> 69245.72229 | K76: =+K51 -> 71207.65485 | L76: =+L51 -> 73194.1088 | M76: =+M51 -> 75218.63629 | N76: =+N51 -> 77303.34466 | O76: =+O51 -> 84167.82628
A77: Kokku väljamaksed | B77: EUR | D77: =SUM(D73:D76) -> 144014 | E77: =SUM(E73:E76) -> 1122105.383 | F77: =SUM(F73:F76) -> 674772.9677 | G77: =SUM(G73:G76) -> 80122.14469 | H77: =SUM(H73:H76) -> 205546.9091 | I77: =SUM(I73:I76) -> 206827.6169 | J77: =SUM(J73:J76) -> 208160.7867 | K77: =SUM(K73:K76) -> 209547.8988 | L77: =SUM(L73:L76) -> 210959.5323 | M77: =SUM(M73:M76) -> 212409.2394 | N77: =SUM(N73:N76) -> 213919.1273 | O77: =SUM(O73:O76) -> 95951.6456
A78: Kokku rahavoog | B78: EUR | D78: =D72-D77 -> 9255.921819 | E78: =E72-E77 -> 4963.595163 | F78: =F72-F77 -> 9436.162459 | G78: =G72-G77 -> 12460.73383 | H78: =H72-H77 -> -1986.444597 | I78: =I72-I77 -> -3050.985491 | J78: =J72-J77 -> -499.3252565 | K78: =K72-K77 -> -1662.381117 | L78: =L72-L77 -> 97.59502989 | M78: =M72-M77 -> -1121.744317 | N78: =N72-N77 -> -2369.146486 | O78: =O72-O77 -> 28654.30125
A79: Kumulatiivne rahavoog | B79: EUR | D79: =C79+D78 -> 9255.921819 | E79: =D79+E78 -> 14219.51698 | F79: =E79+F78 -> 23655.67944 | G79: =F79+G78 -> 36116.41328 | H79: =G79+H78 -> 34129.96868 | I79: =H79+I78 -> 31078.98319 | J79: =I79+J78 -> 30579.65793 | K79: =J79+K78 -> 28917.27681 | L79: =K79+L78 -> 29014.87184 | M79: =L79+M78 -> 27893.12753 | N79: =M79+N78 -> 25523.98104 | O79: =N79+O78 -> 54178.28229
A80: DSCR | D80: =+D53/SUM(D74:D75) -> 41.02560787 | E80: =+E53/SUM(E74:E75) -> 2.257796863 | F80: =+F53/SUM(F74:F75) -> 1.556469262 | G80: =+G53/SUM(G74:G75) -> 1.760617907 | H80: =+H53/SUM(H74:H75) -> 2.18925797 | I80: =+I53/SUM(I74:I75) -> 2.164250582 | J80: =+J53/SUM(J74:J75) -> 2.383988098 | K80: =+K53/SUM(K74:K75) -> 2.357892199 | L80: =+L53/SUM(L74:L75) -> 2.545963532 | M80: =+M53/SUM(M74:M75) -> 2.520395132 | N80: =+N53/SUM(N74:N75) -> 2.490177571 | O80: =+O53/SUM(O74:O75) -> 3.431665021

Sheet Kulum&INV
A1: ÜV-teenuse kulumi arvestus (jooksevhinnas) | B1: Kulum
B2: Ühik | D2: 2015 | E2: 2016 | F2: 2017 | G2: 2018 | H2: 2019 | I2: 2020 | J2: 2021 | K2: 2022 | L2: 2023 | M2: 2024 | N2: 2025 | O2: 2026
A3: Kategooria
A4: Olemasoleva põhivara kulum | B4: tuh EUR | D4: =+SUM(D5:D6) -> 1374.7185 | E4: =+SUM(E5:E6) -> 18010.00959 | F4: =+SUM(F5:F6) -> 23969.86534 | G4: =+SUM(G5:G6) -> 23969.86534 | H4: =+SUM(H5:H6) -> 23969.86534 | I4: =+SUM(I5:I6) -> 23969.86534 | J4: =+SUM(J5:J6) -> 23716.11334 | K4: =+SUM(K5:K6) -> 23534.86534 | L4: =+SUM(L5:L6) -> 22908.37684 | M4: =+SUM(M5:M6) -> 22590.52084 | N4: =+SUM(N5:N6) -> 22589.41084 | O4: =+SUM(O5:O6) -> 22589.41084
A5: Omavahendite arvelt soetatud pv | B5: tuh EUR | D5: =+OPV!I3+OPV!I13*0.4 -> 1374.7185 | E5: =+OPV!J3+OPV!J13*0.4+VALD_ÜVKPV_31122014!AG53 -> 9627.737159 | F5: =+OPV!K3+OPV!K13*0.4+VALD_ÜVKPV_31122014!AH53 -> 10205.24618 | G5: =+OPV!L3+OPV!L13*0.4+VALD_ÜVKPV_31122014!AI53 -> 10205.24618 | H5: =+OPV!M3+OPV!M13*0.4+VALD_ÜVKPV_31122014!AJ53 -> 10205.24618 | I5: =+OPV!N3+OPV!N13*0.4+VALD_ÜVKPV_31122014!AK53 -> 10205.24618 | J5: =+OPV!O3+OPV!O13*0.4+VALD_ÜVKPV_31122014!AL53 -> 9951.494184 | K5: =+OPV!P3+OPV!P13*0.4+VALD_ÜVKPV_31122014!AM53 -> 9770.246184 | L5: =+OPV!Q3+OPV!Q13*0.4+VALD_ÜVKPV_31122014!AN53 -> 9143.757684 | M5: =+OPV!R3+OPV!R13*0.4+VALD_ÜVKPV_31122014!AO53 -> 8825.901684 | N5: =+OPV!S3+OPV!S13*0.4+VALD_ÜVKPV_31122014!AP53 -> 8824.791684 | O5: =+OPV!T3+OPV!T13*0.4+VALD_ÜVKPV_31122014!AQ53 -> 8824.791684
A6: Toetuste abil soetatud pv | B6: tuh EUR | D6: 0 | E6: =+VALD_ÜVKPV_31122014!AS53 -> 8382.272432 | F6: =+VALD_ÜVKPV_31122014!AT53 -> 13764.61916 | G6: =+VALD_ÜVKPV_31122014!AU53 -> 13764.61916 | H6: =+VALD_ÜVKPV_31122014!AV53 -> 13764.61916 | I6: =+VALD_ÜVKPV_31122014!AW53 -> 13764.61916 | J6: =+VALD_ÜVKPV_31122014!AX53 -> 13764.61916 | K6: =+VALD_ÜVKPV_31122014!AY53 -> 13764.61916 | L6: =+VALD_ÜVKPV_31122014!AZ53 -> 13764.61916 | M6: =+VALD_ÜVKPV_31122014!BA53 -> 13764.61916 | N6: =+VALD_ÜVKPV_31122014!BB53 -> 13764.61916 | O6: =+VALD_ÜVKPV_31122014!BC53 -> 13764.61916
A7: ÜVK AK INV PR seotud põhivara kulum | B7: tuh EUR | D7: =+SUM(D8:D9) -> 0 | E7: =+SUM(E8:E9) -> 0 | F7: =+SUM(F8:F9) -> 0 | G7: =+SUM(G8:G9) -> 8993.75 | H7: =+SUM(H8:H9) -> 8993.75 | I7: =+SUM(I8:I9) -> 8993.75 | J7: =+SUM(J8:J9) -> 8993.75 | K7: =+SUM(K8:K9) -> 8993.75 | L7: =+SUM(L8:L9) -> 8993.75 | M7: =+SUM(M8:M9) -> 8993.75 | N7: =+SUM(N8:N9) -> 8993.75 | O7: =+SUM(O8:O9) -> 10712.5
A8: Omavahendite arvelt soetatud pv | B8: tuh EUR | D8: =+INV!V50 -> 0 | E8: =+INV!W50 -> 0 | F8: =+INV!X50 -> 0 | G8: =+INV!Y50 -> 1798.75 | H8: =+INV!Z50 -> 1798.75 | I8: =+INV!AA50 -> 1798.75 | J8: =+INV!AB50 -> 1798.75 | K8: =+INV!AC50 -> 1798.75 | L8: =+INV!AD50 -> 1798.75 | M8: =+INV!AE50 -> 1798.75 | N8: =+INV!AF50 -> 1798.75 | O8: =+INV!AG50 -> 2142.5
A9: Toetuste abil soetatud pv | B9: tuh EUR | D9: =+INV!V49 -> 0 | E9: =+INV!W49 -> 0 | F9: =+INV!X49 -> 0 | G9: =+INV!Y49 -> 7195 | H9: =+INV!Z49 -> 7195 | I9: =+INV!AA49 -> 7195 | J9: =+INV!AB49 -> 7195 | K9: =+INV!AC49 -> 7195 | L9: =+INV!AD49 -> 7195 | M9: =+INV!AE49 -> 7195 | N9: =+INV!AF49 -> 7195 | O9: =+INV!AG49 -> 8570
A10: KULUM KOKKU | B10: tuh EUR | D10: =+D4+D7 -> 1374.7185 | E10: =+E4+E7 -> 18010.00959 | F10: =+F4+F7 -> 23969.86534 | G10: =+G4+G7 -> 32963.61534 | H10: =+H4+H7 -> 32963.61534 | I10: =+I4+I7 -> 32963.61534 | J10: =+J4+J7 -> 32709.86334 | K10: =+K4+K7 -> 32528.61534 | L10: =+L4+L7 -> 31902.12684 | M10: =+M4+M7 -> 31584.27084 | N10: =+N4+N7 -> 31583.16084 | O10: =+O4+O7 -> 33301.91084
A11: Omavahendite arvelt soetatud pv | B11: tuh EUR | D11: =+D5+D8 -> 1374.7185 | E11: =+E5+E8 -> 9627.737159 | F11: =+F5+F8 -> 10205.24618 | G11: =+G5+G8 -> 12003.99618 | H11: =+H5+H8 -> 12003.99618 | I11: =+I5+I8 -> 12003.99618 | J11: =+J5+J8 -> 11750.24418 | K11: =+K5+K8 -> 11568.99618 | L11: =+L5+L8 -> 10942.50768 | M11: =+M5+M8 -> 10624.65168 | N11: =+N5+N8 -> 10623.54168 | O11: =+O5+O8 -> 10967.29168
A12: Toetuste abil soetatud pv | B12: tuh EUR | D12: =+D6+D9 -> 0 | E12: =+E6+E9 -> 8382.272432 | F12: =+F6+F9 -> 13764.61916 | G12: =+G6+G9 -> 20959.61916 | H12: =+H6+H9 -> 20959.61916 | I12: =+I6+I9 -> 20959.61916 | J12: =+J6+J9 -> 20959.61916 | K12: =+K6+K9 -> 20959.61916 | L12: =+L6+L9 -> 20959.61916 | M12: =+M6+M9 -> 20959.61916 | N12: =+N6+N9 -> 20959.61916 | O12: =+O6+O9 -> 22334.61916
A13: ÜV-teenuse investeeringute arvestus (jooksevhinnas) | B13: Investeeringud
B14: Ühik | D14: 2015 | E14: 2016 | F14: 2017 | G14: 2018 | H14: 2019 | I14: 2020 | J14: 2021 | K14: 2022 | L14: 2023 | M14: 2024 | N14: 2025 | O14: 2026
A15: Kategooria
A16: Olemasoleva põhivara asendamine | B16: tuh EUR | D16: =+SUM(D17:D18) -> 0 | E16: =+SUM(E17:E18) -> 0 | F16: =+SUM(F17:F18) -> 0 | G16: =+SUM(G17:G18) -> 0 | H16: =+SUM(H17:H18) -> 0 | I16: =+SUM(I17:I18) -> 0 | J16: =+SUM(J17:J18) -> 0 | K16: =+SUM(K17:K18) -> 0 | L16: =+SUM(L17:L18) -> 0 | M16: =+SUM(M17:M18) -> 0 | N16: =+SUM(N17:N18) -> 0 | O16: =+SUM(O17:O18) -> 0
A17: Omavahendite arvelt soetatud pv | B17: tuh EUR | D17: 0 | E17: 0 | F17: 0 | G17: 0 | H17: 0 | I17: 0 | J17: 0 | K17: 0 | L17: 0 | M17: 0 | N17: 0 | O17: 0
A18: Toetuste abil soetatud pv | B18: tuh EUR | D18: 0 | E18: 0 | F18: 0 | G18: 0 | H18: 0 | I18: 0 | J18: 0 | K18: 0 | L18: 0 | M18: 0 | N18: 0 | O18: 0
A19: ÜVK AK INV PR seonduvalt | B19: tuh EUR | D19: =+SUM(D20:D21) -> 0 | E19: =+SUM(E20:E21) -> 164875 | F19: =+SUM(F20:F21) -> 164875 | G19: =+SUM(G20:G21) -> 0 | H19: =+SUM(H20:H21) -> 9821.428571 | I19: =+SUM(I20:I21) -> 9821.428571 | J19: =+SUM(J20:J21) -> 9821.428571 | K19: =+SUM(K20:K21) -> 9821.428571 | L19: =+SUM(L20:L21) -> 9821.428571 | M19: =+SUM(M20:M21) -> 9821.428571 | N19: =+SUM(N20:N21) -> 9821.428571 | O19: =+SUM(O20:O21) -> 0
A20: Omavahendite arvelt soetatud pv | B20: tuh EUR | D20: =+INV!I50 -> 0 | E20: =+INV!J50 -> 32975 | F20: =+INV!K50 -> 32975 | G20: =+INV!L50 -> 0 | H20: =+INV!M50 -> 1964.285714 | I20: =+INV!N50 -> 1964.285714 | J20: =+INV!O50 -> 1964.285714 | K20: =+INV!P50 -> 1964.285714 | L20: =+INV!Q50 -> 1964.285714 | M20: =+INV!R50 -> 1964.285714 | N20: =+INV!S50 -> 1964.285714 | O20: =+INV!T50 -> 0
A21: Toetuste abil soetatud pv | B21: tuh EUR | D21: =+INV!I49 -> 0 | E21: =+INV!J49 -> 131900 | F21: =+INV!K49 -> 131900 | G21: =+INV!L49 -> 0 | H21: =+INV!M49 -> 7857.142857 | I21: =+INV!N49 -> 7857.142857 | J21: =+INV!O49 -> 7857.142857 | K21: =+INV!P49 -> 7857.142857 | L21: =+INV!Q49 -> 7857.142857 | M21: =+INV!R49 -> 7857.142857 | N21: =+INV!S49 -> 7857.142857 | O21: =+INV!T49 -> 0
A22: INESTEERINGUD KOKKU | B22: tuh EUR | D22: =D16+D19 -> 0 | E22: =E16+E19 -> 164875 | F22: =F16+F19 -> 164875 | G22: =G16+G19 -> 0 | H22: =H16+H19 -> 9821.428571 | I22: =I16+I19 -> 9821.428571 | J22: =J16+J19 -> 9821.428571 | K22: =K16+K19 -> 9821.428571 | L22: =L16+L19 -> 9821.428571 | M22: =M16+M19 -> 9821.428571 | N22: =N16+N19 -> 9821.428571 | O22: =O16+O19 -> 0
A23: Omavahendite arvelt soetatud pv | B23: tuh EUR | D23: =+D17+D20 -> 0 | E23: =+E17+E20 -> 32975 | F23: =+F17+F20 -> 32975 | G23: =+G17+G20 -> 0 | H23: =+H17+H20 -> 1964.285714 | I23: =+I17+I20 -> 1964.285714 | J23: =+J17+J20 -> 1964.285714 | K23: =+K17+K20 -> 1964.285714 | L23: =+L17+L20 -> 1964.285714 | M23: =+M17+M20 -> 1964.285714 | N23: =+N17+N20 -> 1964.285714 | O23: =+O17+O20 -> 0
A24: Toetuste abil soetatud pv | B24: tuh EUR | D24: =+D18+D21 -> 0 | E24: =+E18+E21 -> 131900 | F24: =+F18+F21 -> 131900 | G24: =+G18+G21 -> 0 | H24: =+H18+H21 -> 7857.142857 | I24: =+I18+I21 -> 7857.142857 | J24: =+J18+J21 -> 7857.142857 | K24: =+K18+K21 -> 7857.142857 | L24: =+L18+L21 -> 7857.142857 | M24: =+M18+M21 -> 7857.142857 | N24: =+N18+N21 -> 7857.142857 | O24: =+O18+O21 -> 0
A25: KA põhjendatud tulukuse arvestus ÜV-teenusele | B25: Ühik | C25: 2014 | D25: 2015 | E25: 2016 | F25: 2017 | G25: 2018 | H25: 2019 | I25: 2020 | J25: 2021 | K25: 2022 | L25: 2023 | M25: 2024 | N25: 2025 | O25: 2026
A26: Põhivara jääkväärtus | B26: tuh EUR | C26: =+OPV!E3+OPV!E13*0.4 -> 10622.228 | D26: =+C26+D23-D11+VALD_ÜVKPV_31122014!X53 -> 190647.5094 | E26: =+D26+E23-E11+VALD_ÜVKPV_31122014!AA53 -> 231031.2892 | F26: =+E26+F23-F11 -> 253801.043 | G26: =+F26+G23-G11 -> 241797.0468 | H26: =+G26+H23-H11+VALD_ÜVKPV_31122014!AD53 -> 231757.3363 | I26: =+H26+I23-I11 -> 221717.6258 | J26: =+I26+J23-J11 -> 211931.6674 | K26: =+J26+K23-K11 -> 202326.9569 | L26: =+K26+L23-L11 -> 193348.7349 | M26: =+L26+M23-M11 -> 184688.369 | N26: =+M26+N23-N11 -> 176029.113 | O26: =+N26+O23-O11 -> 165061.8213
A27: Käibekapital | B27: tuh EUR | D27: =5%*D30 -> 1869.593662 | E27: =5%*E30 -> 2419.539917 | F27: =5%*F30 -> 2545.257901 | G27: =5%*G30 -> 2574.114545 | H27: =5%*H30 -> 2582.759412 | I27: =5%*I30 -> 2593.705536 | J27: =5%*J30 -> 2593.636167 | K27: =5%*K30 -> 2598.743467 | L27: =5%*L30 -> 2583.637951 | M27: =5%*M30 -> 2585.575372 | N27: =5%*N30 -> 2604.178043 | O27: =5%*O30 -> 2662.092484
A28: Põhjendatud tulukus (regul.vara*WACC) | B28: tuh EUR | D28: =+(D26+D27)*5.29% -> 10184.15475 | E28: =+(E26+E27)*5.29% -> 12349.54886 | F28: =+(F26+F27)*5.29% -> 13560.71932 | G28: =+(G26+G27)*5.29% -> 12927.23443 | H28: =+(H26+H27)*5.29% -> 12396.59106 | I28: =+(I26+I27)*5.29% -> 11866.06943 | J28: =+(J26+J27)*5.29% -> 11348.38856 | K28: =+(K26+K27)*5.29% -> 10840.56955 | L28: =+(L26+L27)*5.29% -> 10364.82253 | M28: =+(M26+M27)*5.29% -> 9906.791656 | N28: =+(N26+N27)*5.29% -> 9449.701096 | O28: =+(O26+O27)*5.29% -> 8872.59504
A29: Lubatud müügitulu | B29: tuh EUR | D29: =+D28+SUM(ÜVKAK_FIN!D36:D42)+D11 -> 37391.87325 | E29: =+E28+SUM(ÜVKAK_FIN!E36:E42)+E11 -> 48390.79835 | F29: =+F28+SUM(ÜVKAK_FIN!F36:F42)+F11 -> 50905.15802 | G29: =+G28+SUM(ÜVKAK_FIN!G36:G42)+G11 -> 51482.29089 | H29: =+H28+SUM(ÜVKAK_FIN!H36:H42)+H11 -> 51655.18823 | I29: =+I28+SUM(ÜVKAK_FIN!I36:I42)+I11 -> 51874.11072 | J29: =+J28+SUM(ÜVKAK_FIN!J36:J42)+J11 -> 51872.72335 | K29: =+K28+SUM(ÜVKAK_FIN!K36:K42)+K11 -> 51974.86935 | L29: =+L28+SUM(ÜVKAK_FIN!L36:L42)+L11 -> 51672.75903 | M29: =+M28+SUM(ÜVKAK_FIN!M36:M42)+M11 -> 51711.50745 | N29: =+N28+SUM(ÜVKAK_FIN!N36:N42)+N11 -> 52083.56085 | O29: =+O28+SUM(ÜVKAK_FIN!O36:O42)+O11 -> 53241.84967
A30: Lubatud müügitulu (paste value) | B30: tuh EUR | D30: 37391.87325 | E30: 48390.79835 | F30: 50905.15802 | G30: 51482.29089 | H30: 51655.18823 | I30: 51874.11072 | J30: 51872.72335 | K30: 51974.86935 | L30: 51672.75903 | M30: 51711.50745 | N30: 52083.56085 | O30: 53241.84967 | P30: ctrl+u
A31: Prognoositud müügitulu | B31: tuh EUR | D31: =SUM(ÜVKAK_FIN!D25:D26) -> 33021.45 | E31: =SUM(ÜVKAK_FIN!E25:E26) -> 33086.48146 | F31: =SUM(ÜVKAK_FIN!F25:F26) -> 40097.5442 | G31: =SUM(ÜVKAK_FIN!G25:G26) -> 40598.96932 | H31: =SUM(ÜVKAK_FIN!H25:H26) -> 43880.58913 | I31: =SUM(ÜVKAK_FIN!I25:I26) -> 43965.43971 | J31: =SUM(ÜVKAK_FIN!J25:J26) -> 45657.96511 | K31: =SUM(ÜVKAK_FIN!K25:K26) -> 45745.91242 | L31: =SUM(ÜVKAK_FIN!L25:L26) -> 47124.95437 | M31: =SUM(ÜVKAK_FIN!M25:M26) -> 47215.37907 | N31: =SUM(ÜVKAK_FIN!N25:N26) -> 47305.80378 | O31: =SUM(ÜVKAK_FIN!O25:O26) -> 50394.88136
A32: VAHE PROGNOOSITUD TULUDEGA | B32: tuh EUR | D32: =+D29-D31 -> 4370.42325 | E32: =+E29-E31 -> 15304.31688 | F32: =+F29-F31 -> 10807.61382 | G32: =+G29-G31 -> 10883.32157 | H32: =+H29-H31 -> 7774.599097 | I32: =+I29-I31 -> 7908.671011 | J32: =+J29-J31 -> 6214.758236 | K32: =+K29-K31 -> 6228.956926 | L32: =+L29-L31 -> 4547.804651 | M32: =+M29-M31 -> 4496.128375 | N32: =+N29-N31 -> 4777.757078 | O32: =+O29-O31 -> 2846.968309
A33: ÜK-teenuse kulumi arvestus (jooksevhinnas) | B33: Kulum
B34: Ühik | D34: 2015 | E34: 2016 | F34: 2017 | G34: 2018 | H34: 2019 | I34: 2020 | J34: 2021 | K34: 2022 | L34: 2023 | M34: 2024 | N34: 2025 | O34: 2026
A35: Kategooria
A36: Olemasoleva põhivara kulum | B36: tuh EUR | D36: =+SUM(D37:D38) -> 2042.527 | E36: =+SUM(E37:E38) -> 6258.231568 | F36: =+SUM(F37:F38) -> 9289.425545 | G36: =+SUM(G37:G38) -> 9406.925545 | H36: =+SUM(H37:H38) -> 9406.925545 | I36: =+SUM(I37:I38) -> 9406.925545 | J36: =+SUM(J37:J38) -> 9216.611545 | K36: =+SUM(K37:K38) -> 9080.675545 | L36: =+SUM(L37:L38) -> 9080.675545 | M36: =+SUM(M37:M38) -> 9080.675545 | N36: =+SUM(N37:N38) -> 9080.675545 | O36: =+SUM(O37:O38) -> 9080.675545
A37: Omavahendite arvelt soetatud pv | B37: tuh EUR | D37: =+SUM(OPV!I4:I8)+OPV!I13*0.3 -> 2042.527 | E37: =+SUM(OPV!J4:J8)+OPV!J13*0.3+VALD_ÜVKPV_31122014!AG54 -> 6258.231568 | F37: =+SUM(OPV!K4:K8)+OPV!K13*0.3+VALD_ÜVKPV_31122014!AH54 -> 6595.959611 | G37: =+SUM(OPV!L4:L8)+OPV!L13*0.3+VALD_ÜVKPV_31122014!AI54 -> 6595.959611 | H37: =+SUM(OPV!M4:M8)+OPV!M13*0.3+VALD_ÜVKPV_31122014!AJ54 -> 6595.959611 | I37: =+SUM(OPV!N4:N8)+OPV!N13*0.3+VALD_ÜVKPV_31122014!AK54 -> 6595.959611 | J37: =+SUM(OPV!O4:O8)+OPV!O13*0.3+VALD_ÜVKPV_31122014!AL54 -> 6405.645611 | K37: =+SUM(OPV!P4:P8)+OPV!P13*0.3+VALD_ÜVKPV_31122014!AM54 -> 6269.709611 | L37: =+SUM(OPV!Q4:Q8)+OPV!Q13*0.3+VALD_ÜVKPV_31122014!AN54 -> 6269.709611 | M37: =+SUM(OPV!R4:R8)+OPV!R13*0.3+VALD_ÜVKPV_31122014!AO54 -> 6269.709611 | N37: =+SUM(OPV!S4:S8)+OPV!S13*0.3+VALD_ÜVKPV_31122014!AP54 -> 6269.709611 | O37: =+SUM(OPV!T4:T8)+OPV!T13*0.3+VALD_ÜVKPV_31122014!AQ54 -> 6269.709611
A38: Toetuste abil soetatud pv | B38: tuh EUR | D38: 0 | E38: =+VALD_ÜVKPV_31122014!AS54 -> 0 | F38: =+VALD_ÜVKPV_31122014!AT54 -> 2693.465934 | G38: =+VALD_ÜVKPV_31122014!AU54 -> 2810.965934 | H38: =+VALD_ÜVKPV_31122014!AV54 -> 2810.965934 | I38: =+VALD_ÜVKPV_31122014!AW54 -> 2810.965934 | J38: =+VALD_ÜVKPV_31122014!AX54 -> 2810.965934 | K38: =+VALD_ÜVKPV_31122014!AY54 -> 2810.965934 | L38: =+VALD_ÜVKPV_31122014!AZ54 -> 2810.965934 | M38: =+VALD_ÜVKPV_31122014!BA54 -> 2810.965934 | N38: =+VALD_ÜVKPV_31122014!BB54 -> 2810.965934 | O38: =+VALD_ÜVKPV_31122014!BC54 -> 2810.965934
A39: ÜVK AK INV PR seotud põhivara kulum | B39: tuh EUR | D39: =+SUM(D40:D41) -> 0 | E39: =+SUM(E40:E41) -> 0 | F39: =+SUM(F40:F41) -> 15104.16667 | G39: =+SUM(G40:G41) -> 49867.08333 | H39: =+SUM(H40:H41) -> 49867.08333 | I39: =+SUM(I40:I41) -> 49867.08333 | J39: =+SUM(J40:J41) -> 49867.08333 | K39: =+SUM(K40:K41) -> 49867.08333 | L39: =+SUM(L40:L41) -> 49867.08333 | M39: =+SUM(M40:M41) -> 49867.08333 | N39: =+SUM(N40:N41) -> 49867.08333 | O39: =+SUM(O40:O41) -> 70935
A40: Omavahendite arvelt soetatud pv | B40: tuh EUR | D40: =+INV!V52 -> 0 | E40: =+INV!W52 -> 0 | F40: =+INV!X52 -> 3020.833333 | G40: =+INV!Y52 -> 9973.416667 | H40: =+INV!Z52 -> 9973.416667 | I40: =+INV!AA52 -> 9973.416667 | J40: =+INV!AB52 -> 9973.416667 | K40: =+INV!AC52 -> 9973.416667 | L40: =+INV!AD52 -> 9973.416667 | M40: =+INV!AE52 -> 9973.416667 | N40: =+INV!AF52 -> 9973.416667 | O40: =+INV!AG52 -> 14187
A41: Toetuste abil soetatud pv | B41: tuh EUR | D41: =+INV!V51 -> 0 | E41: =+INV!W51 -> 0 | F41: =+INV!X51 -> 12083.33333 | G41: =+INV!Y51 -> 39893.66667 | H41: =+INV!Z51 -> 39893.66667 | I41: =+INV!AA51 -> 39893.66667 | J41: =+INV!AB51 -> 39893.66667 | K41: =+INV!AC51 -> 39893.66667 | L41: =+INV!AD51 -> 39893.66667 | M41: =+INV!AE51 -> 39893.66667 | N41: =+INV!AF51 -> 39893.66667 | O41: =+INV!AG51 -> 56748
A42: KULUM KOKKU | B42: tuh EUR | D42: =+D36+D39 -> 2042.527 | E42: =+E36+E39 -> 6258.231568 | F42: =+F36+F39 -> 24393.59221 | G42: =+G36+G39 -> 59274.00888 | H42: =+H36+H39 -> 59274.00888 | I42: =+I36+I39 -> 59274.00888 | J42: =+J36+J39 -> 59083.69488 | K42: =+K36+K39 -> 58947.75888 | L42: =+L36+L39 -> 58947.75888 | M42: =+M36+M39 -> 58947.75888 | N42: =+N36+N39 -> 58947.75888 | O42: =+O36+O39 -> 80015.67555
A43: Omavahendite arvelt soetatud pv | B43: tuh EUR | D43: =+D37+D40 -> 2042.527 | E43: =+E37+E40 -> 6258.231568 | F43: =+F37+F40 -> 9616.792944 | G43: =+G37+G40 -> 16569.37628 | H43: =+H37+H40 -> 16569.37628 | I43: =+I37+I40 -> 16569.37628 | J43: =+J37+J40 -> 16379.06228 | K43: =+K37+K40 -> 16243.12628 | L43: =+L37+L40 -> 16243.12628 | M43: =+M37+M40 -> 16243.12628 | N43: =+N37+N40 -> 16243.12628 | O43: =+O37+O40 -> 20456.70961
A44: Toetuste abil soetatud pv | B44: tuh EUR | D44: =+D38+D41 -> 0 | E44: =+E38+E41 -> 0 | F44: =+F38+F41 -> 14776.79927 | G44: =+G38+G41 -> 42704.6326 | H44: =+H38+H41 -> 42704.6326 | I44: =+I38+I41 -> 42704.6326 | J44: =+J38+J41 -> 42704.6326 | K44: =+K38+K41 -> 42704.6326 | L44: =+L38+L41 -> 42704.6326 | M44: =+M38+M41 -> 42704.6326 | N44: =+N38+N41 -> 42704.6326 | O44: =+O38+O41 -> 59558.96593
A45: ÜK-teenuse investeeringute arvestus (jooksevhinnas) | B45: Investeeringud
B46: Ühik | D46: 2015 | E46: 2016 | F46: 2017 | G46: 2018 | H46: 2019 | I46: 2020 | J46: 2021 | K46: 2022 | L46: 2023 | M46: 2024 | N46: 2025 | O46: 2026
A47: Kategooria
A48: Olemasoleva põhivara asendamine | B48: tuh EUR | D48: =+SUM(D49:D50) -> 0 | E48: =+SUM(E49:E50) -> 0 | F48: =+SUM(F49:F50) -> 0 | G48: =+SUM(G49:G50) -> 0 | H48: =+SUM(H49:H50) -> 0 | I48: =+SUM(I49:I50) -> 0 | J48: =+SUM(J49:J50) -> 0 | K48: =+SUM(K49:K50) -> 0 | L48: =+SUM(L49:L50) -> 0 | M48: =+SUM(M49:M50) -> 0 | N48: =+SUM(N49:N50) -> 0 | O48: =+SUM(O49:O50) -> 0
A49: Omavahendite arvelt soetatud pv | B49: tuh EUR | D49: 0 | E49: 0 | F49: 0 | G49: 0 | H49: 0 | I49: 0 | J49: 0 | K49: 0 | L49: 0 | M49: 0 | N49: 0 | O49: 0
A50: Toetuste abil soetatud pv | B50: tuh EUR | D50: 0 | E50: 0 | F50: 0 | G50: 0 | H50: 0 | I50: 0 | J50: 0 | K50: 0 | L50: 0 | M50: 0 | N50: 0 | O50: 0
A51: ÜVK AK INV PR seonduvalt | B51: tuh EUR | D51: =+SUM(D52:D53) -> 92500 | E51: =+SUM(E52:E53) -> 900675 | F51: =+SUM(F52:F53) -> 430675 | G51: =+SUM(G52:G53) -> 0 | H51: =+SUM(H52:H53) -> 114435.7143 | I51: =+SUM(I52:I53) -> 114435.7143 | J51: =+SUM(J52:J53) -> 114435.7143 | K51: =+SUM(K52:K53) -> 114435.7143 | L51: =+SUM(L52:L53) -> 114435.7143 | M51: =+SUM(M52:M53) -> 114435.7143 | N51: =+SUM(N52:N53) -> 114435.7143 | O51: =+SUM(O52:O53) -> 0
A52: Omavahendite arvelt soetatud pv | B52: tuh EUR | D52: =+INV!I52 -> 18500 | E52: =+INV!J52 -> 180135 | F52: =+INV!K52 -> 86135 | G52: =+INV!L52 -> 0 | H52: =+INV!M52 -> 22887.14286 | I52: =+INV!N52 -> 22887.14286 | J52: =+INV!O52 -> 22887.14286 | K52: =+INV!P52 -> 22887.14286 | L52: =+INV!Q52 -> 22887.14286 | M52: =+INV!R52 -> 22887.14286 | N52: =+INV!S52 -> 22887.14286 | O52: =+INV!T52 -> 0
A53: Toetuste abil soetatud pv | B53: tuh EUR | D53: =+INV!I51 -> 74000 | E53: =+INV!J51 -> 720540 | F53: =+INV!K51 -> 344540 | G53: =+INV!L51 -> 0 | H53: =+INV!M51 -> 91548.57143 | I53: =+INV!N51 -> 91548.57143 | J53: =+INV!O51 -> 91548.57143 | K53: =+INV!P51 -> 91548.57143 | L53: =+INV!Q51 -> 91548.57143 | M53: =+INV!R51 -> 91548.57143 | N53: =+INV!S51 -> 91548.57143 | O53: =+INV!T51 -> 0
A54: INESTEERINGUD KOKKU | B54: tuh EUR | D54: =D48+D51 -> 92500 | E54: =E48+E51 -> 900675 | F54: =F48+F51 -> 430675 | G54: =G48+G51 -> 0 | H54: =H48+H51 -> 114435.7143 | I54: =I48+I51 -> 114435.7143 | J54: =J48+J51 -> 114435.7143 | K54: =K48+K51 -> 114435.7143 | L54: =L48+L51 -> 114435.7143 | M54: =M48+M51 -> 114435.7143 | N54: =N48+N51 -> 114435.7143 | O54: =O48+O51 -> 0
A55: Omavahendite arvelt soetatud pv | B55: tuh EUR | D55: =+D49+D52 -> 18500 | E55: =+E49+E52 -> 180135 | F55: =+F49+F52 -> 86135 | G55: =+G49+G52 -> 0 | H55: =+H49+H52 -> 22887.14286 | I55: =+I49+I52 -> 22887.14286 | J55: =+J49+J52 -> 22887.14286 | K55: =+K49+K52 -> 22887.14286 | L55: =+L49+L52 -> 22887.14286 | M55: =+M49+M52 -> 22887.14286 | N55: =+N49+N52 -> 22887.14286 | O55: =+O49+O52 -> 0
A56: Toetuste abil soetatud pv | B56: tuh EUR | D56: =+D50+D53 -> 74000 | E56: =+E50+E53 -> 720540 | F56: =+F50+F53 -> 344540 | G56: =+G50+G53 -> 0 | H56: =+H50+H53 -> 91548.57143 | I56: =+I50+I53 -> 91548.57143 | J56: =+J50+J53 -> 91548.57143 | K56: =+K50+K53 -> 91548.57143 | L56: =+L50+L53 -> 91548.57143 | M56: =+M50+M53 -> 91548.57143 | N56: =+N50+N53 -> 91548.57143 | O56: =+O50+O53 -> 0
A57: KA põhjendatud tulukuse arvestus ÜK-teenusele | B57: Ühik | C57: 2014 | D57: 2015 | E57: 2016 | F57: 2017 | G57: 2018 | H57: 2019 | I57: 2020 | J57: 2021 | K57: 2022 | L57: 2023 | M57: 2024 | N57: 2025 | O57: 2026
A58: Põhivara jääkväärtus | B58: tuh EUR | C58: =+SUM(OPV!E4:E8)+OPV!E13*0.3 -> 29267.806 | D58: =+C58+D55-D43+VALD_ÜVKPV_31122014!X54 -> 123688.8672 | E58: =+D58+E55-E43+VALD_ÜVKPV_31122014!AA54 -> 306322.3703 | F58: =+E58+F55-F43 -> 382840.5774 | G58: =+F58+G55-G43 -> 366271.2011 | H58: =+G58+H55-H43+VALD_ÜVKPV_31122014!AD54 -> 372588.9677 | I58: =+H58+I55-I43+(VALD_ÜVKPV_31122014!F51*(1-VALD_ÜVKPV_31122014!G51)-5*((VALD_ÜVKPV_31122014!F51*(1-VALD_ÜVKPV_31122014!G51))/40)) -> 420520.7353 | J58: =+I58+J55-J43 -> 427028.8159 | K58: =+J58+K55-K43 -> 433672.8324 | L58: =+K58+L55-L43 -> 440316.849 | M58: =+L58+M55-M43 -> 446960.8656 | N58: =+M58+N55-N43 -> 453604.8822 | O58: =+N58+O55-O43 -> 433148.1726
A59: Käibekapital | B59: tuh EUR | D59: =5%*D62 -> 1706.284025 | E59: =5%*E62 -> 2439.366831 | F59: =5%*F62 -> 3258.400031 | G59: =5%*G62 -> 3666.388812 | H59: =5%*H62 -> 3735.226444 | I59: =5%*I62 -> 3917.793066 | J59: =5%*J62 -> 3982.559787 | K59: =5%*K62 -> 4052.056206 | L59: =5%*L62 -> 4129.14998 | M59: =5%*M62 -> 4207.425051 | N59: =5%*N62 -> 4287.934143 | O59: =5%*O62 -> 4719.288081
A60: Põhjendatud tulukus (regul.vara*WACC) | B60: tuh EUR | D60: =+(D58+D59)*5.29% -> 6633.403502 | E60: =+(E58+E59)*5.29% -> 16333.49589 | F60: =+(F58+F59)*5.29% -> 20424.6359 | G60: =+(G58+G59)*5.29% -> 19569.69851 | H60: =+(H58+H59)*5.29% -> 19907.54987 | I60: =+(I58+I59)*5.29% -> 22452.79815 | J60: =+(J58+J59)*5.29% -> 22800.50177 | K60: =+(K58+K59)*5.29% -> 23155.64661 | L60: =+(L58+L59)*5.29% -> 23511.19335 | M60: =+(M58+M59)*5.29% -> 23866.80258 | N60: =+(N58+N59)*5.29% -> 24222.52998 | O60: =+(O58+O59)*5.29% -> 23163.18867
A61: Lubatud müügitulu | B61: tuh EUR | D61: =+D60+SUM(ÜVKAK_FIN!D44:D50)+D43 -> 34125.6805 | E61: =+E60+SUM(ÜVKAK_FIN!E44:E50)+E43 -> 48787.33662 | F61: =+F60+SUM(ÜVKAK_FIN!F44:F50)+F43 -> 65168.00061 | G61: =+G60+SUM(ÜVKAK_FIN!G44:G50)+G43 -> 73327.77624 | H61: =+H60+SUM(ÜVKAK_FIN!H44:H50)+H43 -> 74704.52887 | I61: =+I60+SUM(ÜVKAK_FIN!I44:I50)+I43 -> 78355.86132 | J61: =+J60+SUM(ÜVKAK_FIN!J44:J50)+J43 -> 79651.19573 | K61: =+K60+SUM(ÜVKAK_FIN!K44:K50)+K43 -> 81041.12412 | L61: =+L60+SUM(ÜVKAK_FIN!L44:L50)+L43 -> 82582.99961 | M61: =+M60+SUM(ÜVKAK_FIN!M44:M50)+M43 -> 84148.50103 | N61: =+N60+SUM(ÜVKAK_FIN!N44:N50)+N43 -> 85758.68285 | O61: =+O60+SUM(ÜVKAK_FIN!O44:O50)+O43 -> 94385.76162
A62: Lubatud müügitulu (paste value) | B62: tuh EUR | D62: 34125.6805 | E62: 48787.33662 | F62: 65168.00061 | G62: 73327.77624 | H62: 74704.52887 | I62: 78355.86132 | J62: 79651.19573 | K62: 81041.12412 | L62: 82582.99961 | M62: 84148.50103 | N62: 85758.68285 | O62: 94385.76162 | P62: ctrl+i
A63: Prognoositud müügitulu | B63: tuh EUR | D63: =+SUM(ÜVKAK_FIN!D27:D28) -> 27748.47182 | E63: =+SUM(ÜVKAK_FIN!E27:E28) -> 28432.49655 | F63: =+SUM(ÜVKAK_FIN!F27:F28) -> 48561.58595 | G63: =+SUM(ÜVKAK_FIN!G27:G28) -> 51983.9092 | H63: =+SUM(ÜVKAK_FIN!H27:H28) -> 56208.44676 | I63: =+SUM(ÜVKAK_FIN!I27:I28) -> 56339.76313 | J63: =+SUM(ÜVKAK_FIN!J27:J28) -> 58532.0678 | K63: =+SUM(ÜVKAK_FIN!K27:K28) -> 58668.17673 | L63: =+SUM(ÜVKAK_FIN!L27:L28) -> 60460.74442 | M63: =+SUM(ÜVKAK_FIN!M27:M28) -> 60600.68741 | N63: =+SUM(ÜVKAK_FIN!N27:N28) -> 60772.74846 | O63: =+SUM(ÜVKAK_FIN!O27:O28) -> 74211.06549
A64: VAHE PROGNOOSITUD TULUDEGA | B64: tuh EUR | D64: =+D61-D63 -> 6377.208683 | E64: =+E61-E63 -> 20354.84007 | F64: =+F61-F63 -> 16606.41466 | G64: =+G61-G63 -> 21343.86704 | H64: =+H61-H63 -> 18496.08211 | I64: =+I61-I63 -> 22016.09819 | J64: =+J61-J63 -> 21119.12794 | K64: =+K61-K63 -> 22372.94739 | L64: =+L61-L63 -> 22122.25519 | M64: =+M61-M63 -> 23547.81362 | N64: =+N61-N63 -> 24985.93439 | O64: =+O61-O63 -> 20174.69612

Sheet OPV
A1: Põhivara nimetus | B1: Aasta | C1: Alg- maksumus | D1: Akum. kulum | E1: Jääkmaksumus seisuga 31.12.2014 | F1: Tegevusala | G1: Amort. % | H1: Aastane kulum | I1: 2015 | J1: 2016 | K1: 2017 | L1: 2018 | M1: 2019 | N1: 2020 | O1: 2021 | P1: 2022 | Q1: 2023 | R1: 2024 | S1: 2025 | T1: 2026 | U1: JVRT | V1: Asendus.inv 2024
I2: Kulumiarvestus --> | V2: Asendus.inv 2024
A3: Reiu küla survetrass | B3: 2006 | C3: 18794.37 | D3: 10963.39 | E3: 7830.98 | F3: Reiu vesi | G3: 5 | H3: =+C3*G3/100 -> 939.7185 | I3: =+$H3 -> 939.7185 | J3: =+$H3 -> 939.7185 | K3: =+$H3 -> 939.7185 | L3: =+$H3 -> 939.7185 | M3: =+$H3 -> 939.7185 | N3: =+$H3 -> 939.7185 | O3: =+$H3 -> 939.7185 | P3: =+$H3 -> 939.7185 | Q3: =626.49-313.26 -> 313.23 | R3: =+V3/40 -> 0 | S3: =+R3 -> 0 | T3: =+S3 -> 0 | U3: =+E3-SUM(I3:T3)+V3 -> 0.002 | V3: 0
A4: Võiste biopuhasti-trassid | B4: 2010 | C4: 13252.25 | D4: 2760.88 | E4: 10491.37 | F4: Võiste kanal | G4: 5 | H4: =+C4*G4/100 -> 662.6125 | I4: =+$H4 -> 662.6125 | J4: =+$H4 -> 662.6125 | K4: =+$H4 -> 662.6125 | L4: =+$H4 -> 662.6125 | M4: =+$H4 -> 662.6125 | N4: =+$H4 -> 662.6125 | O4: =+$H4 -> 662.6125 | P4: =+$H4 -> 662.6125 | Q4: =+$H4 -> 662.6125 | R4: =+$H4 -> 662.6125 | S4: =+$H4 -> 662.6125 | T4: =+$H4 -> 662.6125 | U4: =+E4-SUM(I4:T4) -> 2540.02
A5: Uulu biopuhasti | B5: 2010 | C5: 11208 | D5: 2335 | E5: 8873 | F5: Uulu kanal | G5: 5 | H5: =+C5*G5/100 -> 560.4 | I5: =+$H5 -> 560.4 | J5: =+$H5 -> 560.4 | K5: =+$H5 -> 560.4 | L5: =+$H5 -> 560.4 | M5: =+$H5 -> 560.4 | N5: =+$H5 -> 560.4 | O5: =+$H5 -> 560.4 | P5: =+$H5 -> 560.4 | Q5: =+$H5 -> 560.4 | R5: =+$H5 -> 560.4 | S5: =+$H5 -> 560.4 | T5: =+$H5 -> 560.4 | U5: =+E5-SUM(I5:T5) -> 2148.2
A6: Reiu ülepumpla-trassid | B6: 2010 | C6: 902.77 | D6: 188.08 | E6: 714.69 | F6: Reiu kanal | G6: 5 | H6: =+C6*G6/100 -> 45.1385 | I6: =+$H6 -> 45.1385 | J6: =+$H6 -> 45.1385 | K6: =+$H6 -> 45.1385 | L6: =+$H6 -> 45.1385 | M6: =+$H6 -> 45.1385 | N6: =+$H6 -> 45.1385 | O6: =+$H6 -> 45.1385 | P6: =+$H6 -> 45.1385 | Q6: =+$H6 -> 45.1385 | R6: =+$H6 -> 45.1385 | S6: =+$H6 -> 45.1385 | T6: =+$H6 -> 45.1385 | U6: =+E6-SUM(I6:T6) -> 173.028
A7: Uulu kanalis.trassid | B7: 2010 | C7: 7669.4 | D7: 1597.79 | E7: 6071.61 | F7: Uulu kanal | G7: 5 | H7: =+C7*G7/100 -> 383.47 | I7: =+$H7 -> 383.47 | J7: =+$H7 -> 383.47 | K7: =+$H7 -> 383.47 | L7: =+$H7 -> 383.47 | M7: =+$H7 -> 383.47 | N7: =+$H7 -> 383.47 | O7: =+$H7 -> 383.47 | P7: =+$H7 -> 383.47 | Q7: =+$H7 -> 383.47 | R7: =+$H7 -> 383.47 | S7: =+$H7 -> 383.47 | T7: =+$H7 -> 383.47 | U7: =+E7-SUM(I7:T7) -> 1469.97
A8: Uulu kanalis.trassid | B8: 2010 | C8: 1293.12 | D8: 269.42 | E8: 1023.7 | F8: Uulu kanal | G8: 5 | H8: =+C8*G8/100 -> 64.656 | I8: =+$H8 -> 64.656 | J8: =+$H8 -> 64.656 | K8: =+$H8 -> 64.656 | L8: =+$H8 -> 64.656 | M8: =+$H8 -> 64.656 | N8: =+$H8 -> 64.656 | O8: =+$H8 -> 64.656 | P8: =+$H8 -> 64.656 | Q8: =+$H8 -> 64.656 | R8: =+$H8 -> 64.656 | S8: =+$H8 -> 64.656 | T8: =+$H8 -> 64.656 | U8: =+E8-SUM(I8:T8) -> 247.828
A9: Kokku rajatised | C9: 53119.91 | D9: 18114.56 | E9: 35005.35
A10: Murutraktor John Deere | B10: 2007 | C10: 2653.93 | D10: 2853.93 | E10: 0 | F10: haljastus | G10: 25
A11: Murutraktor John Deere | B11: 2014 | C11: 5842.5 | D11: 681.63 | E11: 5160.87 | F11: haljastus | G11: 20
A12: Kokku masinad | C12: 8496.43 | D12: 3535.56 | E12: 5160.87
A13: Veoauto VW T4 | B13: 2014 | C13: 7250 | D13: 271.88 | E13: 6978.12 | F13: üldkulu | G13: 15 | H13: =+C13*G13/100 -> 1087.5 | I13: =+$H13 -> 1087.5 | J13: =+$H13 -> 1087.5 | K13: =+$H13 -> 1087.5 | L13: =+$H13 -> 1087.5 | M13: =+$H13 -> 1087.5 | N13: =+$H13 -> 1087.5 | O13: =+$H13-634.38 -> 453.12 | P13: =+V13*G13/100 -> 0 | Q13: =+P13 -> 0 | R13: =+Q13 -> 0 | S13: =+R13 -> 0 | T13: =+S13 -> 0 | U13: =+E13-SUM(I13:T13)+V13 -> 0 | V13: 0
A14: Kokku transpordivahendid | C14: 7250 | D14: 271.88 | E14: 6978.12
A15: KOKKU | C15: 68866.34 | D15: 21922 | E15: 47144.34 | I15: =+SUM(I3:I14) -> 3743.4955 | J15: =+SUM(J3:J14) -> 3743.4955 | K15: =+SUM(K3:K14) -> 3743.4955 | L15: =+SUM(L3:L14) -> 3743.4955 | M15: =+SUM(M3:M14) -> 3743.4955 | N15: =+SUM(N3:N14) -> 3743.4955 | O15: =+SUM(O3:O14) -> 3109.1155 | P15: =+SUM(P3:P14) -> 2655.9955 | Q15: =+SUM(Q3:Q14) -> 2029.507 | R15: =+SUM(R3:R14) -> 1716.277 | S15: =+SUM(S3:S14) -> 1716.277 | T15: =+SUM(T3:T14) -> 1716.277
A16: sh ÜV | I16: =+I3 -> 939.7185 | J16: =+J3 -> 939.7185 | K16: =+K3 -> 939.7185 | L16: =+L3 -> 939.7185 | M16: =+M3 -> 939.7185 | N16: =+N3 -> 939.7185 | O16: =+O3 -> 939.7185 | P16: =+P3 -> 939.7185 | Q16: =+Q3 -> 313.23 | R16: =+R3 -> 0 | S16: =+S3 -> 0 | T16: =+T3 -> 0
A17: sh ÜK | I17: =+SUM(I4:I8) -> 1716.277 | J17: =+SUM(J4:J8) -> 1716.277 | K17: =+SUM(K4:K8) -> 1716.277 | L17: =+SUM(L4:L8) -> 1716.277 | M17: =+SUM(M4:M8) -> 1716.277 | N17: =+SUM(N4:N8) -> 1716.277 | O17: =+SUM(O4:O8) -> 1716.277 | P17: =+SUM(P4:P8) -> 1716.277 | Q17: =+SUM(Q4:Q8) -> 1716.277 | R17: =+SUM(R4:R8) -> 1716.277 | S17: =+SUM(S4:S8) -> 1716.277 | T17: =+SUM(T4:T8) -> 1716.277
A18: sh üldkulude ÜV | I18: =0.4*I13 -> 435 | J18: =0.4*J13 -> 435 | K18: =0.4*K13 -> 435 | L18: =0.4*L13 -> 435 | M18: =0.4*M13 -> 435 | N18: =0.4*N13 -> 435 | O18: =0.4*O13 -> 181.248 | P18: =0.4*P13 -> 0 | Q18: =0.4*Q13 -> 0 | R18: =0.4*R13 -> 0 | S18: =0.4*S13 -> 0 | T18: =0.4*T13 -> 0
A19: sh üldkulude ÜK | I19: =0.3*I13 -> 326.25 | J19: =0.3*J13 -> 326.25 | K19: =0.3*K13 -> 326.25 | L19: =0.3*L13 -> 326.25 | M19: =0.3*M13 -> 326.25 | N19: =0.3*N13 -> 326.25 | O19: =0.3*O13 -> 135.936 | P19: =0.3*P13 -> 0 | Q19: =0.3*Q13 -> 0 | R19: =0.3*R13 -> 0 | S19: =0.3*S13 -> 0 | T19: =0.3*T13 -> 0

Sheet VALD_ÜVKPV_31122014
AG1: omaosaluse kulumiarvestus -> | AS1: sihtfin. Kulumiarvestus ->
A2: id | B2: toot_nr | C2: nimi | D2: kuup | E2: ekspl | F2: alg_m | G2: Toetus (%) | H2: amort% | I2: epk | J2: mjm1 | K2: jytk1 | L2: jpk1 | M2: a.kulum | N2: kum.amort | O2: jääkvrt | P2: objnr21 | Q2: talnimi1 | R2: ravonimi1 | S2: ravonimi2 | T2: tulnud1 | U2: Rahastatud, KIK keskkonnaprogramm | V2: Antakse üle OÜ Vesika | W2: vrt 2015 | X2: sh omaosa | Y2: sh sihtfin | Z2: vrt 2016 | AA2: sh omaosa | AB2: sh sihtfin | AC2: vrt 2019 | AD2: sh omaosa | AE2: sh sihtfin | AF2: UUS ELUIGA | AG2: 2016 | AH2: 2017 | AI2: 2018 | AJ2: 2019 | AK2: 2020 | AL2: 2021 | AM2: 2022 | AN2: 2023 | AO2: 2024 | AP2: 2025 | AQ2: 2026 | AR2: JVRT | AS2: 2016 | AT2: 2017 | AU2: 2018 | AV2: 2019 | AW2: 2020 | AX2: 2021 | AY2: 2022 | AZ2: 2023 | BA2: 2024 | BB2: 2025 | BC2: 2026 | BD2: JVRT
A3: 206 | B3: 625 | C3: KULLA REOVEEPUMPLA | D3: 31.12.2007 | E3: 31.12.2007 | F3: 9816.83 | H3: 5 | I3: 2945.04 | J3: 6871.79 | K3: 0 | L3: 449.94 | M3: =+F3*H3/100 -> 490.8415 | N3: 3435.88 | O3: =+F3-N3 -> 6380.95 | Q3: Veevarustus | T3: 29.01.2008 10.05.2012 | V3: 2015-12-31 | W3: =+O3-(F3*(H3/100)) -> 5890.1085 | X3: =+W3*(1-G3) -> 5890.1085 | Y3: =+W3-X3 -> 0 | AF3: =15*0.5+40*0.5 -> 27.5 | AG3: =+$F3*(1-$G3)*(1/$AF3) -> 356.9756364 | AH3: =+$F3*(1-$G3)*(1/$AF3) -> 356.9756364 | AI3: =+$F3*(1-$G3)*(1/$AF3) -> 356.9756364 | AJ3: =+$F3*(1-$G3)*(1/$AF3) -> 356.9756364 | AK3: =+$F3*(1-$G3)*(1/$AF3) -> 356.9756364 | AL3: =+$F3*(1-$G3)*(1/$AF3) -> 356.9756364 | AM3: =+$F3*(1-$G3)*(1/$AF3) -> 356.9756364 | AN3: =+$F3*(1-$G3)*(1/$AF3) -> 356.9756364 | AO3: =+$F3*(1-$G3)*(1/$AF3) -> 356.9756364 | AP3: =+$F3*(1-$G3)*(1/$AF3) -> 356.9756364 | AQ3: =+$F3*(1-$G3)*(1/$AF3) -> 356.9756364 | AR3: =+X3-SUM(AG3:AQ3) -> 1963.3765 | AS3: =+$F3*$G3*(1/$AF3) -> 0 | AT3: =+$F3*$G3*(1/$AF3) -> 0 | AU3: =+$F3*$G3*(1/$AF3) -> 0 | AV3: =+$F3*$G3*(1/$AF3) -> 0 | AW3: =+$F3*$G3*(1/$AF3) -> 0 | AX3: =+$F3*$G3*(1/$AF3) -> 0 | AY3: =+$F3*$G3*(1/$AF3) -> 0 | AZ3: =+$F3*$G3*(1/$AF3) -> 0 | BA3: =+$F3*$G3*(1/$AF3) -> 0 | BB3: =+$F3*$G3*(1/$AF3) -> 0 | BC3: =+$F3*$G3*(1/$AF3) -> 0 | BD3: =+Y3-SUM(AS3:BC3) -> 0
A4: 114 | B4: 231 | C4: KULLA TIIK | D4: 31.12.2005 | E4: 1.12.2005 | F4: 1278.23 | H4: 3 | I4: 310 | J4: 968.23 | K4: 0 | L4: 35.15 | M4: =+F4*H4/100 -> 38.3469 | N4: 348.35 | O4: =+F4-N4 -> 929.88 | Q4: Veevarustus | R4: Vara soetus (deebet) (raha väljaminek) | T4: 02.03.2006 10.05.2012 | V4: 2015-12-31 | W4: =+O4-(F4*(H4/100)) -> 891.5331 | X4: =+W4*(1-G4) -> 891.5331 | Y4: =+W4-X4 -> 0 | AF4: 40 | AG4: =+$F4*(1-$G4)*(1/$AF4) -> 31.95575 | AH4: =+$F4*(1-$G4)*(1/$AF4) -> 31.95575 | AI4: =+$F4*(1-$G4)*(1/$AF4) -> 31.95575 | AJ4: =+$F4*(1-$G4)*(1/$AF4) -> 31.95575 | AK4: =+$F4*(1-$G4)*(1/$AF4) -> 31.95575 | AL4: =+$F4*(1-$G4)*(1/$AF4) -> 31.95575 | AM4: =+$F4*(1-$G4)*(1/$AF4) -> 31.95575 | AN4: =+$F4*(1-$G4)*(1/$AF4) -> 31.95575 | AO4: =+$F4*(1-$G4)*(1/$AF4) -> 31.95575 | AP4: =+$F4*(1-$G4)*(1/$AF4) -> 31.95575 | AQ4: =+$F4*(1-$G4)*(1/$AF4) -> 31.95575 | AR4: =+X4-SUM(AG4:AQ4) -> 540.01985 | AS4: =+$F4*$G4*(1/$AF4) -> 0 | AT4: =+$F4*$G4*(1/$AF4) -> 0 | AU4: =+$F4*$G4*(1/$AF4) -> 0 | AV4: =+$F4*$G4*(1/$AF4) -> 0 | AW4: =+$F4*$G4*(1/$AF4) -> 0 | AX4: =+$F4*$G4*(1/$AF4) -> 0 | AY4: =+$F4*$G4*(1/$AF4) -> 0 | AZ4: =+$F4*$G4*(1/$AF4) -> 0 | BA4: =+$F4*$G4*(1/$AF4) -> 0 | BB4: =+$F4*$G4*(1/$AF4) -> 0 | BC4: =+$F4*$G4*(1/$AF4) -> 0 | BD4: =+Y4-SUM(AS4:BC4) -> 0
A5: 327 | B5: 686 | C5: KULLA VEEVÕTUKOHT | D5: 31.12.2012 | E5: 31.12.2012 | F5: 4190 | H5: 5 | I5: 209.5 | J5: 3980.5 | K5: 0 | L5: 192.04 | M5: =+F5*H5/100 -> 209.5 | N5: 419 | O5: =+F5-N5 -> 3771 | Q5: Muu majandus | R5: Vara soetus (deebet) (raha väljaminek) | T5: 26.02.2013 26.02.2013 | V5: 2015-12-31 | W5: =+O5-(F5*(H5/100)) -> 3561.5 | X5: =+W5*(1-G5) -> 3561.5 | Y5: =+W5-X5 -> 0 | AF5: 40 | AG5: =+$F5*(1-$G5)*(1/$AF5) -> 104.75 | AH5: =+$F5*(1-$G5)*(1/$AF5) -> 104.75 | AI5: =+$F5*(1-$G5)*(1/$AF5) -> 104.75 | AJ5: =+$F5*(1-$G5)*(1/$AF5) -> 104.75 | AK5: =+$F5*(1-$G5)*(1/$AF5) -> 104.75 | AL5: =+$F5*(1-$G5)*(1/$AF5) -> 104.75 | AM5: =+$F5*(1-$G5)*(1/$AF5) -> 104.75 | AN5: =+$F5*(1-$G5)*(1/$AF5) -> 104.75 | AO5: =+$F5*(1-$G5)*(1/$AF5) -> 104.75 | AP5: =+$F5*(1-$G5)*(1/$AF5) -> 104.75 | AQ5: =+$F5*(1-$G5)*(1/$AF5) -> 104.75 | AR5: =+X5-SUM(AG5:AQ5) -> 2409.25 | AS5: =+$F5*$G5*(1/$AF5) -> 0 | AT5: =+$F5*$G5*(1/$AF5) -> 0 | AU5: =+$F5*$G5*(1/$AF5) -> 0 | AV5: =+$F5*$G5*(1/$AF5) -> 0 | AW5: =+$F5*$G5*(1/$AF5) -> 0 | AX5: =+$F5*$G5*(1/$AF5) -> 0 | AY5: =+$F5*$G5*(1/$AF5) -> 0 | AZ5: =+$F5*$G5*(1/$AF5) -> 0 | BA5: =+$F5*$G5*(1/$AF5) -> 0 | BB5: =+$F5*$G5*(1/$AF5) -> 0 | BC5: =+$F5*$G5*(1/$AF5) -> 0 | BD5: =+Y5-SUM(AS5:BC5) -> 0
A6: 147 | B6: 614 | C6: LAADI KÜLA KANALISATSIOON | D6: 31.12.2006 | E6: 31.12.2006 | F6: 100837.75 | H6: 5 | I6: 41613.35 | J6: 59224.4 | K6: 0 | L6: 4621.73 | M6: =+F6*H6/100 -> 5041.8875 | N6: 46655.24 | O6: =+F6-N6 -> 54182.51 | Q6: Veevarustus | R6: Vara soetus (deebet) (raha väljaminek) | T6: 19.01.2007 10.05.2012 | V6: 2015-12-31 | W6: =+O6-(F6*(H6/100)) -> 49140.6225 | X6: =+W6*(1-G6) -> 49140.6225 | Y6: =+W6-X6 -> 0 | AF6: 40 | AG6: =+$F6*(1-$G6)*(1/$AF6) -> 2520.94375 | AH6: =+$F6*(1-$G6)*(1/$AF6) -> 2520.94375 | AI6: =+$F6*(1-$G6)*(1/$AF6) -> 2520.94375 | AJ6: =+$F6*(1-$G6)*(1/$AF6) -> 2520.94375 | AK6: =+$F6*(1-$G6)*(1/$AF6) -> 2520.94375 | AL6: =+$F6*(1-$G6)*(1/$AF6) -> 2520.94375 | AM6: =+$F6*(1-$G6)*(1/$AF6) -> 2520.94375 | AN6: =+$F6*(1-$G6)*(1/$AF6) -> 2520.94375 | AO6: =+$F6*(1-$G6)*(1/$AF6) -> 2520.94375 | AP6: =+$F6*(1-$G6)*(1/$AF6) -> 2520.94375 | AQ6: =+$F6*(1-$G6)*(1/$AF6) -> 2520.94375 | AR6: =+X6-SUM(AG6:AQ6) -> 21410.24125 | AS6: =+$F6*$G6*(1/$AF6) -> 0 | AT6: =+$F6*$G6*(1/$AF6) -> 0 | AU6: =+$F6*$G6*(1/$AF6) -> 0 | AV6: =+$F6*$G6*(1/$AF6) -> 0 | AW6: =+$F6*$G6*(1/$AF6) -> 0 | AX6: =+$F6*$G6*(1/$AF6) -> 0 | AY6: =+$F6*$G6*(1/$AF6) -> 0 | AZ6: =+$F6*$G6*(1/$AF6) -> 0 | BA6: =+$F6*$G6*(1/$AF6) -> 0 | BB6: =+$F6*$G6*(1/$AF6) -> 0 | BC6: =+$F6*$G6*(1/$AF6) -> 0 | BD6: =+Y6-SUM(AS6:BC6) -> 0
A7: 146 | B7: 613 | C7: LAADI KÜLA VEETRASS | D7: 31.12.2006 | E7: 31.12.2006 | F7: 37334.18 | H7: 5 | I7: 14933.68 | J7: 22400.5 | K7: 0 | L7: 1711.15 | M7: =+F7*H7/100 -> 1866.709 | N7: 16800.39 | O7: =+F7-N7 -> 20533.79 | Q7: Veevarustus | R7: Vara soetus (deebet) (raha väljaminek) | T7: 19.01.2007 10.05.2012 | V7: 2015-12-31 | W7: =+O7-(F7*(H7/100)) -> 18667.081 | X7: =+W7*(1-G7) -> 18667.081 | Y7: =+W7-X7 -> 0 | AF7: 40 | AG7: =+$F7*(1-$G7)*(1/$AF7) -> 933.3545 | AH7: =+$F7*(1-$G7)*(1/$AF7) -> 933.3545 | AI7: =+$F7*(1-$G7)*(1/$AF7) -> 933.3545 | AJ7: =+$F7*(1-$G7)*(1/$AF7) -> 933.3545 | AK7: =+$F7*(1-$G7)*(1/$AF7) -> 933.3545 | AL7: =+$F7*(1-$G7)*(1/$AF7) -> 933.3545 | AM7: =+$F7*(1-$G7)*(1/$AF7) -> 933.3545 | AN7: =+$F7*(1-$G7)*(1/$AF7) -> 933.3545 | AO7: =+$F7*(1-$G7)*(1/$AF7) -> 933.3545 | AP7: =+$F7*(1-$G7)*(1/$AF7) -> 933.3545 | AQ7: =+$F7*(1-$G7)*(1/$AF7) -> 933.3545 | AR7: =+X7-SUM(AG7:AQ7) -> 8400.1815 | AS7: =+$F7*$G7*(1/$AF7) -> 0 | AT7: =+$F7*$G7*(1/$AF7) -> 0 | AU7: =+$F7*$G7*(1/$AF7) -> 0 | AV7: =+$F7*$G7*(1/$AF7) -> 0 | AW7: =+$F7*$G7*(1/$AF7) -> 0 | AX7: =+$F7*$G7*(1/$AF7) -> 0 | AY7: =+$F7*$G7*(1/$AF7) -> 0 | AZ7: =+$F7*$G7*(1/$AF7) -> 0 | BA7: =+$F7*$G7*(1/$AF7) -> 0 | BB7: =+$F7*$G7*(1/$AF7) -> 0 | BC7: =+$F7*$G7*(1/$AF7) -> 0 | BD7: =+Y7-SUM(AS7:BC7) -> 0
A8: 410 | B8: 716 | C8: MÕISA TEE VEEVÕTUKOHT | D8: 31.12.2014 | E8: 31.12.2014 | F8: 3000 | H8: 5 | I8: 0 | J8: 0 | K8: 0 | L8: 0 | M8: =+F8*H8/100 -> 150 | N8: 12.5 | O8: =+F8-N8 -> 2987.5 | R8: Vara soetus (deebet) (raha väljaminek) | T8: 21.04.2015 21.04.2015 | V8: 2015-12-31 | W8: =+O8-(F8*(H8/100)) -> 2837.5 | X8: =+W8*(1-G8) -> 2837.5 | Y8: =+W8-X8 -> 0 | AF8: 40 | AG8: =+$F8*(1-$G8)*(1/$AF8) -> 75 | AH8: =+$F8*(1-$G8)*(1/$AF8) -> 75 | AI8: =+$F8*(1-$G8)*(1/$AF8) -> 75 | AJ8: =+$F8*(1-$G8)*(1/$AF8) -> 75 | AK8: =+$F8*(1-$G8)*(1/$AF8) -> 75 | AL8: =+$F8*(1-$G8)*(1/$AF8) -> 75 | AM8: =+$F8*(1-$G8)*(1/$AF8) -> 75 | AN8: =+$F8*(1-$G8)*(1/$AF8) -> 75 | AO8: =+$F8*(1-$G8)*(1/$AF8) -> 75 | AP8: =+$F8*(1-$G8)*(1/$AF8) -> 75 | AQ8: =+$F8*(1-$G8)*(1/$AF8) -> 75 | AR8: =+X8-SUM(AG8:AQ8) -> 2012.5 | AS8: =+$F8*$G8*(1/$AF8) -> 0 | AT8: =+$F8*$G8*(1/$AF8) -> 0 | AU8: =+$F8*$G8*(1/$AF8) -> 0 | AV8: =+$F8*$G8*(1/$AF8) -> 0 | AW8: =+$F8*$G8*(1/$AF8) -> 0 | AX8: =+$F8*$G8*(1/$AF8) -> 0 | AY8: =+$F8*$G8*(1/$AF8) -> 0 | AZ8: =+$F8*$G8*(1/$AF8) -> 0 | BA8: =+$F8*$G8*(1/$AF8) -> 0 | BB8: =+$F8*$G8*(1/$AF8) -> 0 | BC8: =+$F8*$G8*(1/$AF8) -> 0 | BD8: =+Y8-SUM(AS8:BC8) -> 0
A9: 205 | B9: 624 | C9: NÕMMETEE TRASSID +VEEVARUSTUS | D9: 31.12.2007 | E9: 31.12.2007 | F9: 20040.07 | H9: 5 | I9: 6012 | J9: 14028.07 | K9: 0 | L9: 918.5 | M9: =+F9*H9/100 -> 1002.0035 | N9: 7014 | O9: =+F9-N9 -> 13026.07 | Q9: Veevarustus | T9: 29.01.2008 10.05.2012 | V9: 2015-12-31 | W9: =+O9-(F9*(H9/100)) -> 12024.0665 | X9: =+W9*(1-G9) -> 12024.0665 | Y9: =+W9-X9 -> 0 | AF9: 40 | AG9: =+$F9*(1-$G9)*(1/$AF9) -> 501.00175 | AH9: =+$F9*(1-$G9)*(1/$AF9) -> 501.00175 | AI9: =+$F9*(1-$G9)*(1/$AF9) -> 501.00175 | AJ9: =+$F9*(1-$G9)*(1/$AF9) -> 501.00175 | AK9: =+$F9*(1-$G9)*(1/$AF9) -> 501.00175 | AL9: =+$F9*(1-$G9)*(1/$AF9) -> 501.00175 | AM9: =+$F9*(1-$G9)*(1/$AF9) -> 501.00175 | AN9: =+$F9*(1-$G9)*(1/$AF9) -> 501.00175 | AO9: =+$F9*(1-$G9)*(1/$AF9) -> 501.00175 | AP9: =+$F9*(1-$G9)*(1/$AF9) -> 501.00175 | AQ9: =+$F9*(1-$G9)*(1/$AF9) -> 501.00175 | AR9: =+X9-SUM(AG9:AQ9) -> 6513.04725 | AS9: =+$F9*$G9*(1/$AF9) -> 0 | AT9: =+$F9*$G9*(1/$AF9) -> 0 | AU9: =+$F9*$G9*(1/$AF9) -> 0 | AV9: =+$F9*$G9*(1/$AF9) -> 0 | AW9: =+$F9*$G9*(1/$AF9) -> 0 | AX9: =+$F9*$G9*(1/$AF9) -> 0 | AY9: =+$F9*$G9*(1/$AF9) -> 0 | AZ9: =+$F9*$G9*(1/$AF9) -> 0 | BA9: =+$F9*$G9*(1/$AF9) -> 0 | BB9: =+$F9*$G9*(1/$AF9) -> 0 | BC9: =+$F9*$G9*(1/$AF9) -> 0 | BD9: =+Y9-SUM(AS9:BC9) -> 0
A10: 149 | B10: 616 | C10: POSTITEE KANALISATSIOON | D10: 31.12.2006 | E10: 31.12.2006 | F10: 15866.71 | H10: 5 | I10: 6346.72 | J10: 9519.99 | K10: 0 | L10: 727.23 | M10: =+F10*H10/100 -> 793.3355 | N10: 7140.06 | O10: =+F10-N10 -> 8726.65 | Q10: Veevarustus | T10: 22.01.2007 10.05.2012 | V10: 2015-12-31 | W10: =+O10-(F10*(H10/100)) -> 7933.3145 | X10: =+W10*(1-G10) -> 7933.3145 | Y10: =+W10-X10 -> 0 | AF10: 40 | AG10: =+$F10*(1-$G10)*(1/$AF10) -> 396.66775 | AH10: =+$F10*(1-$G10)*(1/$AF10) -> 396.66775 | AI10: =+$F10*(1-$G10)*(1/$AF10) -> 396.66775 | AJ10: =+$F10*(1-$G10)*(1/$AF10) -> 396.66775 | AK10: =+$F10*(1-$G10)*(1/$AF10) -> 396.66775 | AL10: =+$F10*(1-$G10)*(1/$AF10) -> 396.66775 | AM10: =+$F10*(1-$G10)*(1/$AF10) -> 396.66775 | AN10: =+$F10*(1-$G10)*(1/$AF10) -> 396.66775 | AO10: =+$F10*(1-$G10)*(1/$AF10) -> 396.66775 | AP10: =+$F10*(1-$G10)*(1/$AF10) -> 396.66775 | AQ10: =+$F10*(1-$G10)*(1/$AF10) -> 396.66775 | AR10: =+X10-SUM(AG10:AQ10) -> 3569.96925 | AS10: =+$F10*$G10*(1/$AF10) -> 0 | AT10: =+$F10*$G10*(1/$AF10) -> 0 | AU10: =+$F10*$G10*(1/$AF10) -> 0 | AV10: =+$F10*$G10*(1/$AF10) -> 0 | AW10: =+$F10*$G10*(1/$AF10) -> 0 | AX10: =+$F10*$G10*(1/$AF10) -> 0 | AY10: =+$F10*$G10*(1/$AF10) -> 0 | AZ10: =+$F10*$G10*(1/$AF10) -> 0 | BA10: =+$F10*$G10*(1/$AF10) -> 0 | BB10: =+$F10*$G10*(1/$AF10) -> 0 | BC10: =+$F10*$G10*(1/$AF10) -> 0 | BD10: =+Y10-SUM(AS10:BC10) -> 0
A11: 148 | B11: 615 | C11: POSTITEE VESI | D11: 31.12.2006 | E11: 31.12.2006 | F11: 3694.09 | H11: 5 | I11: 1477.6 | J11: 2216.49 | K11: 0 | L11: 169.31 | M11: =+F11*H11/100 -> 184.7045 | N11: 1662.3 | O11: =+F11-N11 -> 2031.79 | Q11: Veevarustus | R11: Vara soetus (deebet) (raha väljaminek) | T11: 22.01.2007 10.05.2012 | V11: 2015-12-31 | W11: =+O11-(F11*(H11/100)) -> 1847.0855 | X11: =+W11*(1-G11) -> 1847.0855 | Y11: =+W11-X11 -> 0 | AF11: 40 | AG11: =+$F11*(1-$G11)*(1/$AF11) -> 92.35225 | AH11: =+$F11*(1-$G11)*(1/$AF11) -> 92.35225 | AI11: =+$F11*(1-$G11)*(1/$AF11) -> 92.35225 | AJ11: =+$F11*(1-$G11)*(1/$AF11) -> 92.35225 | AK11: =+$F11*(1-$G11)*(1/$AF11) -> 92.35225 | AL11: =+$F11*(1-$G11)*(1/$AF11) -> 92.35225 | AM11: =+$F11*(1-$G11)*(1/$AF11) -> 92.35225 | AN11: =+$F11*(1-$G11)*(1/$AF11) -> 92.35225 | AO11: =+$F11*(1-$G11)*(1/$AF11) -> 92.35225 | AP11: =+$F11*(1-$G11)*(1/$AF11) -> 92.35225 | AQ11: =+$F11*(1-$G11)*(1/$AF11) -> 92.35225 | AR11: =+X11-SUM(AG11:AQ11) -> 831.21075 | AS11: =+$F11*$G11*(1/$AF11) -> 0 | AT11: =+$F11*$G11*(1/$AF11) -> 0 | AU11: =+$F11*$G11*(1/$AF11) -> 0 | AV11: =+$F11*$G11*(1/$AF11) -> 0 | AW11: =+$F11*$G11*(1/$AF11) -> 0 | AX11: =+$F11*$G11*(1/$AF11) -> 0 | AY11: =+$F11*$G11*(1/$AF11) -> 0 | AZ11: =+$F11*$G11*(1/$AF11) -> 0 | BA11: =+$F11*$G11*(1/$AF11) -> 0 | BB11: =+$F11*$G11*(1/$AF11) -> 0 | BC11: =+$F11*$G11*(1/$AF11) -> 0 | BD11: =+Y11-SUM(AS11:BC11) -> 0
A12: 238 | B12: 653 | C12: PURUKÜLA TEE VEETRASS | D12: 30.06.2009 | E12: 30.06.2009 | F12: 14699.68 | G12: =9979.04/F12 -> 0.6788610364 | H12: 5 | I12: 3307.41 | J12: 11392.27 | K12: 0 | L12: 673.73 | M12: =+F12*H12/100 -> 734.984 | N12: 4042.39 | O12: =+F12-N12 -> 10657.29 | Q12: Veevarustus | R12: Vara soetus (deebet) (raha väljaminek) | T12: 28.07.2009 10.05.2012 | U12: KIK 2009 projekt 9, toetus 9979.04 | V12: 2015-12-31 | W12: =+O12-(F12*(H12/100)) -> 9922.306 | X12: =+W12*(1-G12) -> 3186.439065 | Y12: =+W12-X12 -> 6735.866935 | AF12: 40 | AG12: =+$F12*(1-$G12)*(1/$AF12) -> 118.016 | AH12: =+$F12*(1-$G12)*(1/$AF12) -> 118.016 | AI12: =+$F12*(1-$G12)*(1/$AF12) -> 118.016 | AJ12: =+$F12*(1-$G12)*(1/$AF12) -> 118.016 | AK12: =+$F12*(1-$G12)*(1/$AF12) -> 118.016 | AL12: =+$F12*(1-$G12)*(1/$AF12) -> 118.016 | AM12: =+$F12*(1-$G12)*(1/$AF12) -> 118.016 | AN12: =+$F12*(1-$G12)*(1/$AF12) -> 118.016 | AO12: =+$F12*(1-$G12)*(1/$AF12) -> 118.016 | AP12: =+$F12*(1-$G12)*(1/$AF12) -> 118.016 | AQ12: =+$F12*(1-$G12)*(1/$AF12) -> 118.016 | AR12: =+X12-SUM(AG12:AQ12) -> 1888.263065 | AS12: =+$F12*$G12*(1/$AF12) -> 249.476 | AT12: =+$F12*$G12*(1/$AF12) -> 249.476 | AU12: =+$F12*$G12*(1/$AF12) -> 249.476 | AV12: =+$F12*$G12*(1/$AF12) -> 249.476 | AW12: =+$F12*$G12*(1/$AF12) -> 249.476 | AX12: =+$F12*$G12*(1/$AF12) -> 249.476 | AY12: =+$F12*$G12*(1/$AF12) -> 249.476 | AZ12: =+$F12*$G12*(1/$AF12) -> 249.476 | BA12: =+$F12*$G12*(1/$AF12) -> 249.476 | BB12: =+$F12*$G12*(1/$AF12) -> 249.476 | BC12: =+$F12*$G12*(1/$AF12) -> 249.476 | BD12: =+Y12-SUM(AS12:BC12) -> 3991.630935
A13: 268 | B13: 39 | C13: PUURKAEV REIU K. Tõllapulga tee3 | D13: 30.06.2010 | E13: 30.06.2010 | F13: 13566.95 | G13: =13024.44/F13 -> 0.960012383 | H13: 5 | I13: 2374.23 | J13: 11192.72 | K13: 0 | L13: 621.82 | M13: =+F13*H13/100 -> 678.3475 | N13: 3052.58 | O13: =+F13-N13 -> 10514.37 | Q13: Veevarustus | T13: 27.07.2010 10.05.2012 | U13: KIK 2010 projekt 14, toetus 13024.44 | V13: 2015-12-31 | W13: =+O13-(F13*(H13/100)) -> 9836.0225 | X13: =+W13*(1-G13) -> 393.3191002 | Y13: =+W13-X13 -> 9442.7034 | AF13: 40 | AG13: =+$F13*(1-$G13)*(1/$AF13) -> 13.56275 | AH13: =+$F13*(1-$G13)*(1/$AF13) -> 13.56275 | AI13: =+$F13*(1-$G13)*(1/$AF13) -> 13.56275 | AJ13: =+$F13*(1-$G13)*(1/$AF13) -> 13.56275 | AK13: =+$F13*(1-$G13)*(1/$AF13) -> 13.56275 | AL13: =+$F13*(1-$G13)*(1/$AF13) -> 13.56275 | AM13: =+$F13*(1-$G13)*(1/$AF13) -> 13.56275 | AN13: =+$F13*(1-$G13)*(1/$AF13) -> 13.56275 | AO13: =+$F13*(1-$G13)*(1/$AF13) -> 13.56275 | AP13: =+$F13*(1-$G13)*(1/$AF13) -> 13.56275 | AQ13: =+$F13*(1-$G13)*(1/$AF13) -> 13.56275 | AR13: =+X13-SUM(AG13:AQ13) -> 244.1288502 | AS13: =+$F13*$G13*(1/$AF13) -> 325.611 | AT13: =+$F13*$G13*(1/$AF13) -> 325.611 | AU13: =+$F13*$G13*(1/$AF13) -> 325.611 | AV13: =+$F13*$G13*(1/$AF13) -> 325.611 | AW13: =+$F13*$G13*(1/$AF13) -> 325.611 | AX13: =+$F13*$G13*(1/$AF13) -> 325.611 | AY13: =+$F13*$G13*(1/$AF13) -> 325.611 | AZ13: =+$F13*$G13*(1/$AF13) -> 325.611 | BA13: =+$F13*$G13*(1/$AF13) -> 325.611 | BB13: =+$F13*$G13*(1/$AF13) -> 325.611 | BC13: =+$F13*$G13*(1/$AF13) -> 325.611 | BD13: =+Y13-SUM(AS13:BC13) -> 5860.9824
A14: 352 | B14: 679 | C14: PUURKAEV Männikutee | D14: 31.12.2011 | E14: 31.12.2011 | F14: 4000 | H14: 5 | I14: 411 | J14: 3589 | K14: 0 | L14: 183.33 | M14: =+F14*H14/100 -> 200 | N14: 611 | O14: =+F14-N14 -> 3389 | T14: 12.03.2013 | V14: 2015-12-31 | W14: =+O14-(F14*(H14/100)) -> 3189 | X14: =+W14*(1-G14) -> 3189 | Y14: =+W14-X14 -> 0 | AF14: 40 | AG14: =+$F14*(1-$G14)*(1/$AF14) -> 100 | AH14: =+$F14*(1-$G14)*(1/$AF14) -> 100 | AI14: =+$F14*(1-$G14)*(1/$AF14) -> 100 | AJ14: =+$F14*(1-$G14)*(1/$AF14) -> 100 | AK14: =+$F14*(1-$G14)*(1/$AF14) -> 100 | AL14: =+$F14*(1-$G14)*(1/$AF14) -> 100 | AM14: =+$F14*(1-$G14)*(1/$AF14) -> 100 | AN14: =+$F14*(1-$G14)*(1/$AF14) -> 100 | AO14: =+$F14*(1-$G14)*(1/$AF14) -> 100 | AP14: =+$F14*(1-$G14)*(1/$AF14) -> 100 | AQ14: =+$F14*(1-$G14)*(1/$AF14) -> 100 | AR14: =+X14-SUM(AG14:AQ14) -> 2089 | AS14: =+$F14*$G14*(1/$AF14) -> 0 | AT14: =+$F14*$G14*(1/$AF14) -> 0 | AU14: =+$F14*$G14*(1/$AF14) -> 0 | AV14: =+$F14*$G14*(1/$AF14) -> 0 | AW14: =+$F14*$G14*(1/$AF14) -> 0 | AX14: =+$F14*$G14*(1/$AF14) -> 0 | AY14: =+$F14*$G14*(1/$AF14) -> 0 | AZ14: =+$F14*$G14*(1/$AF14) -> 0 | BA14: =+$F14*$G14*(1/$AF14) -> 0 | BB14: =+$F14*$G14*(1/$AF14) -> 0 | BC14: =+$F14*$G14*(1/$AF14) -> 0 | BD14: =+Y14-SUM(AS14:BC14) -> 0
A15: 161 | B15: 39 | C15: PUURKAEV REIU KÜLAS v.Töllapulga tee 3 | D15: 31.12.2003 | E15: 1.12.2003 | F15: 6033.26 | H15: 5 | I15: 3083.08 | J15: 2950.18 | K15: 0 | L15: 276.52 | M15: =+F15*H15/100 -> 301.663 | N15: 3384.74 | O15: =+F15-N15 -> 2648.52 | Q15: Veevarustus | R15: Vara soetus (deebet) (raha väljaminek) | T15: 12.02.2007 10.05.2012 | V15: 2015-12-31 | W15: =+O15-(F15*(H15/100)) -> 2346.857 | X15: =+W15*(1-G15) -> 2346.857 | Y15: =+W15-X15 -> 0 | AF15: 40 | AG15: =+$F15*(1-$G15)*(1/$AF15) -> 150.8315 | AH15: =+$F15*(1-$G15)*(1/$AF15) -> 150.8315 | AI15: =+$F15*(1-$G15)*(1/$AF15) -> 150.8315 | AJ15: =+$F15*(1-$G15)*(1/$AF15) -> 150.8315 | AK15: =+$F15*(1-$G15)*(1/$AF15) -> 150.8315 | AL15: =+$F15*(1-$G15)*(1/$AF15) -> 150.8315 | AM15: =+$F15*(1-$G15)*(1/$AF15) -> 150.8315 | AN15: =+$F15*(1-$G15)*(1/$AF15) -> 150.8315 | AO15: =+$F15*(1-$G15)*(1/$AF15) -> 150.8315 | AP15: =+$F15*(1-$G15)*(1/$AF15) -> 150.8315 | AQ15: =+$F15*(1-$G15)*(1/$AF15) -> 150.8315 | AR15: =+X15-SUM(AG15:AQ15) -> 687.7105 | AS15: =+$F15*$G15*(1/$AF15) -> 0 | AT15: =+$F15*$G15*(1/$AF15) -> 0 | AU15: =+$F15*$G15*(1/$AF15) -> 0 | AV15: =+$F15*$G15*(1/$AF15) -> 0 | AW15: =+$F15*$G15*(1/$AF15) -> 0 | AX15: =+$F15*$G15*(1/$AF15) -> 0 | AY15: =+$F15*$G15*(1/$AF15) -> 0 | AZ15: =+$F15*$G15*(1/$AF15) -> 0 | BA15: =+$F15*$G15*(1/$AF15) -> 0 | BB15: =+$F15*$G15*(1/$AF15) -> 0 | BC15: =+$F15*$G15*(1/$AF15) -> 0 | BD15: =+Y15-SUM(AS15:BC15) -> 0
A16: 115 | B16: 210 | C16: PUURKAEV REIUS uus | D16: 31.12.2005 | E16: 1.12.2005 | F16: 12650.67 | H16: 5 | I16: 5060.24 | J16: 7590.43 | K16: 0 | L16: 579.82 | M16: =+F16*H16/100 -> 632.5335 | N16: 5692.77 | O16: =+F16-N16 -> 6957.9 | Q16: Veevarustus | R16: Vara soetus (deebet) (raha väljaminek) | T16: 03.03.2006 10.05.2012 | V16: 2015-12-31 | W16: =+O16-(F16*(H16/100)) -> 6325.3665 | X16: =+W16*(1-G16) -> 6325.3665 | Y16: =+W16-X16 -> 0 | AF16: 40 | AG16: =+$F16*(1-$G16)*(1/$AF16) -> 316.26675 | AH16: =+$F16*(1-$G16)*(1/$AF16) -> 316.26675 | AI16: =+$F16*(1-$G16)*(1/$AF16) -> 316.26675 | AJ16: =+$F16*(1-$G16)*(1/$AF16) -> 316.26675 | AK16: =+$F16*(1-$G16)*(1/$AF16) -> 316.26675 | AL16: =+$F16*(1-$G16)*(1/$AF16) -> 316.26675 | AM16: =+$F16*(1-$G16)*(1/$AF16) -> 316.26675 | AN16: =+$F16*(1-$G16)*(1/$AF16) -> 316.26675 | AO16: =+$F16*(1-$G16)*(1/$AF16) -> 316.26675 | AP16: =+$F16*(1-$G16)*(1/$AF16) -> 316.26675 | AQ16: =+$F16*(1-$G16)*(1/$AF16) -> 316.26675 | AR16: =+X16-SUM(AG16:AQ16) -> 2846.43225 | AS16: =+$F16*$G16*(1/$AF16) -> 0 | AT16: =+$F16*$G16*(1/$AF16) -> 0 | AU16: =+$F16*$G16*(1/$AF16) -> 0 | AV16: =+$F16*$G16*(1/$AF16) -> 0 | AW16: =+$F16*$G16*(1/$AF16) -> 0 | AX16: =+$F16*$G16*(1/$AF16) -> 0 | AY16: =+$F16*$G16*(1/$AF16) -> 0 | AZ16: =+$F16*$G16*(1/$AF16) -> 0 | BA16: =+$F16*$G16*(1/$AF16) -> 0 | BB16: =+$F16*$G16*(1/$AF16) -> 0 | BC16: =+$F16*$G16*(1/$AF16) -> 0 | BD16: =+Y16-SUM(AS16:BC16) -> 0
A17: 81 | B17: 210 | C17: PUURKAEV REIUS uus | D17: 31.12.2004 | E17: 1.12.2004 | F17: 6391.16 | H17: 5 | I17: 2556.48 | J17: 3834.68 | K17: 0 | L17: 292.93 | M17: =+F17*H17/100 -> 319.558 | N17: 2876.04 | O17: =+F17-N17 -> 3515.12 | Q17: Pr. KIK Võiste vesi alga.2004 | R17: Vara soetus (deebet) (raha väljaminek) | T17: 27.01.2005 06.03.2013 | V17: 2015-12-31 | W17: =+O17-(F17*(H17/100)) -> 3195.562 | X17: =+W17*(1-G17) -> 3195.562 | Y17: =+W17-X17 -> 0 | AF17: 40 | AG17: =+$F17*(1-$G17)*(1/$AF17) -> 159.779 | AH17: =+$F17*(1-$G17)*(1/$AF17) -> 159.779 | AI17: =+$F17*(1-$G17)*(1/$AF17) -> 159.779 | AJ17: =+$F17*(1-$G17)*(1/$AF17) -> 159.779 | AK17: =+$F17*(1-$G17)*(1/$AF17) -> 159.779 | AL17: =+$F17*(1-$G17)*(1/$AF17) -> 159.779 | AM17: =+$F17*(1-$G17)*(1/$AF17) -> 159.779 | AN17: =+$F17*(1-$G17)*(1/$AF17) -> 159.779 | AO17: =+$F17*(1-$G17)*(1/$AF17) -> 159.779 | AP17: =+$F17*(1-$G17)*(1/$AF17) -> 159.779 | AQ17: =+$F17*(1-$G17)*(1/$AF17) -> 159.779 | AR17: =+X17-SUM(AG17:AQ17) -> 1437.993 | AS17: =+$F17*$G17*(1/$AF17) -> 0 | AT17: =+$F17*$G17*(1/$AF17) -> 0 | AU17: =+$F17*$G17*(1/$AF17) -> 0 | AV17: =+$F17*$G17*(1/$AF17) -> 0 | AW17: =+$F17*$G17*(1/$AF17) -> 0 | AX17: =+$F17*$G17*(1/$AF17) -> 0 | AY17: =+$F17*$G17*(1/$AF17) -> 0 | AZ17: =+$F17*$G17*(1/$AF17) -> 0 | BA17: =+$F17*$G17*(1/$AF17) -> 0 | BB17: =+$F17*$G17*(1/$AF17) -> 0 | BC17: =+$F17*$G17*(1/$AF17) -> 0 | BD17: =+Y17-SUM(AS17:BC17) -> 0
A18: 296 | B18: 671 | C18: REIU KÜLA REIU TEE VEE-JA KAN.TRASSID | D18: 26.10.2011 | E18: 26.10.2011 | F18: 176834.34 | G18: =295143.43/(F18+F29) -> 0.9031001673 | H18: 5 | I18: 19893.87 | J18: 156940.47 | K18: 0 | L18: 8104.91 | M18: =+F18*H18/100 -> 8841.717 | N18: 28735.59 | O18: =+F18-N18 -> 148098.75 | T18: 26.10.2011 10.05.2012 | U18: KIK 2010-2011 projekt 31, toetus 295143.43 | V18: 2016-12-31 | Z18: =+O18-(2*(F18*(H18/100))) -> 130415.316 | AA18: =+Z18*(1-G18) -> 12637.22231 | AB18: =+Z18-AA18 -> 117778.0937 | AF18: 40 | AH18: =+$F18*(1-$G18)*(1/$AF18) -> 428.3804493 | AI18: =+$F18*(1-$G18)*(1/$AF18) -> 428.3804493 | AJ18: =+$F18*(1-$G18)*(1/$AF18) -> 428.3804493 | AK18: =+$F18*(1-$G18)*(1/$AF18) -> 428.3804493 | AL18: =+$F18*(1-$G18)*(1/$AF18) -> 428.3804493 | AM18: =+$F18*(1-$G18)*(1/$AF18) -> 428.3804493 | AN18: =+$F18*(1-$G18)*(1/$AF18) -> 428.3804493 | AO18: =+$F18*(1-$G18)*(1/$AF18) -> 428.3804493 | AP18: =+$F18*(1-$G18)*(1/$AF18) -> 428.3804493 | AQ18: =+$F18*(1-$G18)*(1/$AF18) -> 428.3804493 | AR18: =+AA18-SUM(AG18:AQ18) -> 8353.417816 | AT18: =+$F18*$G18*(1/$AF18) -> 3992.478051 | AU18: =+$F18*$G18*(1/$AF18) -> 3992.478051 | AV18: =+$F18*$G18*(1/$AF18) -> 3992.478051 | AW18: =+$F18*$G18*(1/$AF18) -> 3992.478051 | AX18: =+$F18*$G18*(1/$AF18) -> 3992.478051 | AY18: =+$F18*$G18*(1/$AF18) -> 3992.478051 | AZ18: =+$F18*$G18*(1/$AF18) -> 3992.478051 | BA18: =+$F18*$G18*(1/$AF18) -> 3992.478051 | BB18: =+$F18*$G18*(1/$AF18) -> 3992.478051 | BC18: =+$F18*$G18*(1/$AF18) -> 3992.478051 | BD18: =+AB18-SUM(AS18:BC18) -> 77853.31318
A19: 21 | B19: 21 | C19: SOTS.MAJA VEETRASS | D19: 31.12.2003 | E19: 1.12.2001 | F19: 1357.48 | H19: 5 | I19: 624.38 | J19: 733.1 | K19: 0 | L19: 62.21 | M19: =+F19*H19/100 -> 67.874 | N19: 692.25 | O19: =+F19-N19 -> 665.23 | Q19: Sotsiaalmaja | R19: Vara soetus (deebet) (raha väljaminek) | T19: 15.09.2004 10.05.2012 | V19: 2015-12-31 | W19: =+O19-(F19*(H19/100)) -> 597.356 | X19: =+W19*(1-G19) -> 597.356 | Y19: =+W19-X19 -> 0 | AF19: 40 | AG19: =+$F19*(1-$G19)*(1/$AF19) -> 33.937 | AH19: =+$F19*(1-$G19)*(1/$AF19) -> 33.937 | AI19: =+$F19*(1-$G19)*(1/$AF19) -> 33.937 | AJ19: =+$F19*(1-$G19)*(1/$AF19) -> 33.937 | AK19: =+$F19*(1-$G19)*(1/$AF19) -> 33.937 | AL19: =+$F19*(1-$G19)*(1/$AF19) -> 33.937 | AM19: =+$F19*(1-$G19)*(1/$AF19) -> 33.937 | AN19: =+$F19*(1-$G19)*(1/$AF19) -> 33.937 | AO19: =+$F19*(1-$G19)*(1/$AF19) -> 33.937 | AP19: =+$F19*(1-$G19)*(1/$AF19) -> 33.937 | AQ19: =+$F19*(1-$G19)*(1/$AF19) -> 33.937 | AR19: =+X19-SUM(AG19:AQ19) -> 224.049 | AS19: =+$F19*$G19*(1/$AF19) -> 0 | AT19: =+$F19*$G19*(1/$AF19) -> 0 | AU19: =+$F19*$G19*(1/$AF19) -> 0 | AV19: =+$F19*$G19*(1/$AF19) -> 0 | AW19: =+$F19*$G19*(1/$AF19) -> 0 | AX19: =+$F19*$G19*(1/$AF19) -> 0 | AY19: =+$F19*$G19*(1/$AF19) -> 0 | AZ19: =+$F19*$G19*(1/$AF19) -> 0 | BA19: =+$F19*$G19*(1/$AF19) -> 0 | BB19: =+$F19*$G19*(1/$AF19) -> 0 | BC19: =+$F19*$G19*(1/$AF19) -> 0 | BD19: =+Y19-SUM(AS19:BC19) -> 0
A20: 237 | B20: 212 | C20: SUKSUMETSA PUMBAMAJA | D20: 30.06.2009 | E20: 30.06.2009 | F20: 9238.43 | G20: =7940.74/F20 -> 0.8595334922 | H20: 5 | I20: 2078.64 | J20: 7159.79 | K20: 0 | L20: 423.43 | M20: =+F20*H20/100 -> 461.9215 | N20: 2540.56 | O20: =+F20-N20 -> 6697.87 | R20: Vara soetus (deebet) (raha väljaminek) | T20: 06.07.2009 10.05.2012 | U20: KIK 2009 projekt 17, toetus 7940.74 | V20: 2015-12-31 | W20: =+O20-(F20*(H20/100)) -> 6235.9485 | X20: =+W20*(1-G20) -> 875.9419088 | Y20: =+W20-X20 -> 5360.006591 | AF20: =15*0.5+40*0.5 -> 27.5 | AG20: =+$F20*(1-$G20)*(1/$AF20) -> 47.18872727 | AH20: =+$F20*(1-$G20)*(1/$AF20) -> 47.18872727 | AI20: =+$F20*(1-$G20)*(1/$AF20) -> 47.18872727 | AJ20: =+$F20*(1-$G20)*(1/$AF20) -> 47.18872727 | AK20: =+$F20*(1-$G20)*(1/$AF20) -> 47.18872727 | AL20: =+$F20*(1-$G20)*(1/$AF20) -> 47.18872727 | AM20: =+$F20*(1-$G20)*(1/$AF20) -> 47.18872727 | AN20: =+$F20*(1-$G20)*(1/$AF20) -> 47.18872727 | AO20: =+$F20*(1-$G20)*(1/$AF20) -> 47.18872727 | AP20: =+$F20*(1-$G20)*(1/$AF20) -> 47.18872727 | AQ20: =+$F20*(1-$G20)*(1/$AF20) -> 47.18872727 | AR20: =+X20-SUM(AG20:AQ20) -> 356.8659088 | AS20: =+$F20*$G20*(1/$AF20) -> 288.7541818 | AT20: =+$F20*$G20*(1/$AF20) -> 288.7541818 | AU20: =+$F20*$G20*(1/$AF20) -> 288.7541818 | AV20: =+$F20*$G20*(1/$AF20) -> 288.7541818 | AW20: =+$F20*$G20*(1/$AF20) -> 288.7541818 | AX20: =+$F20*$G20*(1/$AF20) -> 288.7541818 | AY20: =+$F20*$G20*(1/$AF20) -> 288.7541818 | AZ20: =+$F20*$G20*(1/$AF20) -> 288.7541818 | BA20: =+$F20*$G20*(1/$AF20) -> 288.7541818 | BB20: =+$F20*$G20*(1/$AF20) -> 288.7541818 | BC20: =+$F20*$G20*(1/$AF20) -> 288.7541818 | BD20: =+Y20-SUM(AS20:BC20) -> 2183.710591
A21: 80 | B21: 212 | C21: SUKSUMETSA PUMBAMAJA | D21: 31.12.2004 | E21: 1.12.2004 | F21: 6604.57 | H21: 5 | I21: 2641.84 | J21: 3962.73 | K21: 0 | L21: 302.71 | M21: =+F21*H21/100 -> 330.2285 | N21: 2972.07 | O21: =+F21-N21 -> 3632.5 | Q21: Veevarustus | R21: Vara soetus (deebet) (raha väljaminek) | T21: 27.01.2005 10.05.2012 | V21: 2015-12-31 | W21: =+O21-(F21*(H21/100)) -> 3302.2715 | X21: =+W21*(1-G21) -> 3302.2715 | Y21: =+W21-X21 -> 0 | AF21: =15*0.5+40*0.5 -> 27.5 | AG21: =+$F21*(1-$G21)*(1/$AF21) -> 240.1661818 | AH21: =+$F21*(1-$G21)*(1/$AF21) -> 240.1661818 | AI21: =+$F21*(1-$G21)*(1/$AF21) -> 240.1661818 | AJ21: =+$F21*(1-$G21)*(1/$AF21) -> 240.1661818 | AK21: =+$F21*(1-$G21)*(1/$AF21) -> 240.1661818 | AL21: =+$F21*(1-$G21)*(1/$AF21) -> 240.1661818 | AM21: =+$F21*(1-$G21)*(1/$AF21) -> 240.1661818 | AN21: =+$F21*(1-$G21)*(1/$AF21) -> 240.1661818 | AO21: =+$F21*(1-$G21)*(1/$AF21) -> 240.1661818 | AP21: =+$F21*(1-$G21)*(1/$AF21) -> 240.1661818 | AQ21: =+$F21*(1-$G21)*(1/$AF21) -> 240.1661818 | AR21: =+X21-SUM(AG21:AQ21) -> 660.4435 | AS21: =+$F21*$G21*(1/$AF21) -> 0 | AT21: =+$F21*$G21*(1/$AF21) -> 0 | AU21: =+$F21*$G21*(1/$AF21) -> 0 | AV21: =+$F21*$G21*(1/$AF21) -> 0 | AW21: =+$F21*$G21*(1/$AF21) -> 0 | AX21: =+$F21*$G21*(1/$AF21) -> 0 | AY21: =+$F21*$G21*(1/$AF21) -> 0 | AZ21: =+$F21*$G21*(1/$AF21) -> 0 | BA21: =+$F21*$G21*(1/$AF21) -> 0 | BB21: =+$F21*$G21*(1/$AF21) -> 0 | BC21: =+$F21*$G21*(1/$AF21) -> 0 | BD21: =+Y21-SUM(AS21:BC21) -> 0
A22: 74 | B22: 201 | C22: SUKSUMETSA VEETRASS | D22: 31.12.2004 | E22: 1.12.2004 | F22: 3802.74 | H22: 5 | I22: 1521.12 | J22: 2281.62 | K22: 0 | L22: 174.3 | M22: =+F22*H22/100 -> 190.137 | N22: 1711.26 | O22: =+F22-N22 -> 2091.48 | Q22: Pr. KIK Võiste vesi alga.2004 | R22: Vara soetus (deebet) (raha väljaminek) | T22: 27.01.2005 10.05.2012 | V22: 2015-12-31 | W22: =+O22-(F22*(H22/100)) -> 1901.343 | X22: =+W22*(1-G22) -> 1901.343 | Y22: =+W22-X22 -> 0 | AF22: 40 | AG22: =+$F22*(1-$G22)*(1/$AF22) -> 95.0685 | AH22: =+$F22*(1-$G22)*(1/$AF22) -> 95.0685 | AI22: =+$F22*(1-$G22)*(1/$AF22) -> 95.0685 | AJ22: =+$F22*(1-$G22)*(1/$AF22) -> 95.0685 | AK22: =+$F22*(1-$G22)*(1/$AF22) -> 95.0685 | AL22: =+$F22*(1-$G22)*(1/$AF22) -> 95.0685 | AM22: =+$F22*(1-$G22)*(1/$AF22) -> 95.0685 | AN22: =+$F22*(1-$G22)*(1/$AF22) -> 95.0685 | AO22: =+$F22*(1-$G22)*(1/$AF22) -> 95.0685 | AP22: =+$F22*(1-$G22)*(1/$AF22) -> 95.0685 | AQ22: =+$F22*(1-$G22)*(1/$AF22) -> 95.0685 | AR22: =+X22-SUM(AG22:AQ22) -> 855.5895 | AS22: =+$F22*$G22*(1/$AF22) -> 0 | AT22: =+$F22*$G22*(1/$AF22) -> 0 | AU22: =+$F22*$G22*(1/$AF22) -> 0 | AV22: =+$F22*$G22*(1/$AF22) -> 0 | AW22: =+$F22*$G22*(1/$AF22) -> 0 | AX22: =+$F22*$G22*(1/$AF22) -> 0 | AY22: =+$F22*$G22*(1/$AF22) -> 0 | AZ22: =+$F22*$G22*(1/$AF22) -> 0 | BA22: =+$F22*$G22*(1/$AF22) -> 0 | BB22: =+$F22*$G22*(1/$AF22) -> 0 | BC22: =+$F22*$G22*(1/$AF22) -> 0 | BD22: =+Y22-SUM(AS22:BC22) -> 0
A23: 17 | B23: 16 | C23: TULET.VEEV.K.UULUS | D23: 31.12.2003 | E23: 1.12.1993 | F23: 229.44 | H23: 0 | I23: 182.44 | J23: 47 | K23: 0 | L23: 0 | M23: =+F23*H23/100 -> 0 | N23: 182.44 | O23: =+F23-N23 -> 47 | Q23: Veevarustus | R23: Vara soetus (deebet) (raha väljaminek) | T23: 15.09.2004 10.05.2012 | V23: 2015-12-31 | W23: =+O23-(F23*(H23/100)) -> 47 | X23: =+W23*(1-G23) -> 47 | Y23: =+W23-X23 -> 0 | AF23: 40 | AG23: =+$F23*(1-$G23)*(1/$AF23) -> 5.736 | AH23: =+$F23*(1-$G23)*(1/$AF23) -> 5.736 | AI23: =+$F23*(1-$G23)*(1/$AF23) -> 5.736 | AJ23: =+$F23*(1-$G23)*(1/$AF23) -> 5.736 | AK23: =+$F23*(1-$G23)*(1/$AF23) -> 5.736 | AL23: =+$F23*(1-$G23)*(1/$AF23) -> 5.736 | AM23: =+$F23*(1-$G23)*(1/$AF23) -> 5.736 | AN23: =+$F23*(1-$G23)*(1/$AF23) -> 5.736 | AO23: 1.11 | AR23: =+X23-SUM(AG23:AQ23) -> 0.002 | AS23: =+$F23*$G23*(1/$AF23) -> 0 | AT23: =+$F23*$G23*(1/$AF23) -> 0 | AU23: =+$F23*$G23*(1/$AF23) -> 0 | AV23: =+$F23*$G23*(1/$AF23) -> 0 | AW23: =+$F23*$G23*(1/$AF23) -> 0 | AX23: =+$F23*$G23*(1/$AF23) -> 0 | AY23: =+$F23*$G23*(1/$AF23) -> 0 | AZ23: =+$F23*$G23*(1/$AF23) -> 0 | BA23: =+$F23*$G23*(1/$AF23) -> 0 | BB23: =+$F23*$G23*(1/$AF23) -> 0 | BC23: =+$F23*$G23*(1/$AF23) -> 0 | BD23: =+Y23-SUM(AS23:BC23) -> 0
A24: 311 | B24: 680 | C24: TULETÕRJE VEEVÕTU KOHT Viira tee | D24: 31.12.2011 | E24: 31.12.2011 | F24: 200 | H24: 5 | I24: 20 | J24: 180 | K24: 0 | L24: 9.17 | M24: =+F24*H24/100 -> 10 | N24: 30 | O24: =+F24-N24 -> 170 | T24: 30.01.2012 10.05.2012 | V24: 2015-12-31 | W24: =+O24-(F24*(H24/100)) -> 160 | X24: =+W24*(1-G24) -> 160 | Y24: =+W24-X24 -> 0 | AF24: 40 | AG24: =+$F24*(1-$G24)*(1/$AF24) -> 5 | AH24: =+$F24*(1-$G24)*(1/$AF24) -> 5 | AI24: =+$F24*(1-$G24)*(1/$AF24) -> 5 | AJ24: =+$F24*(1-$G24)*(1/$AF24) -> 5 | AK24: =+$F24*(1-$G24)*(1/$AF24) -> 5 | AL24: =+$F24*(1-$G24)*(1/$AF24) -> 5 | AM24: =+$F24*(1-$G24)*(1/$AF24) -> 5 | AN24: =+$F24*(1-$G24)*(1/$AF24) -> 5 | AO24: =+$F24*(1-$G24)*(1/$AF24) -> 5 | AP24: =+$F24*(1-$G24)*(1/$AF24) -> 5 | AQ24: =+$F24*(1-$G24)*(1/$AF24) -> 5 | AR24: =+X24-SUM(AG24:AQ24) -> 105 | AS24: =+$F24*$G24*(1/$AF24) -> 0 | AT24: =+$F24*$G24*(1/$AF24) -> 0 | AU24: =+$F24*$G24*(1/$AF24) -> 0 | AV24: =+$F24*$G24*(1/$AF24) -> 0 | AW24: =+$F24*$G24*(1/$AF24) -> 0 | AX24: =+$F24*$G24*(1/$AF24) -> 0 | AY24: =+$F24*$G24*(1/$AF24) -> 0 | AZ24: =+$F24*$G24*(1/$AF24) -> 0 | BA24: =+$F24*$G24*(1/$AF24) -> 0 | BB24: =+$F24*$G24*(1/$AF24) -> 0 | BC24: =+$F24*$G24*(1/$AF24) -> 0 | BD24: =+Y24-SUM(AS24:BC24) -> 0
A25: 351 | B25: 667 | C25: TULETÕRJE VEEVÕTUKOHT Kivialliku | D25: 31.12.2011 | E25: 31.12.2011 | F25: 282.01 | H25: 5 | I25: 28.2 | J25: 253.81 | K25: 0 | L25: 12.93 | M25: =+F25*H25/100 -> 14.1005 | N25: 42.3 | O25: =+F25-N25 -> 239.71 | T25: 06.03.2013 06.03.2013 | V25: 2015-12-31 | W25: =+O25-(F25*(H25/100)) -> 225.6095 | X25: =+W25*(1-G25) -> 225.6095 | Y25: =+W25-X25 -> 0 | AF25: 40 | AG25: =+$F25*(1-$G25)*(1/$AF25) -> 7.05025 | AH25: =+$F25*(1-$G25)*(1/$AF25) -> 7.05025 | AI25: =+$F25*(1-$G25)*(1/$AF25) -> 7.05025 | AJ25: =+$F25*(1-$G25)*(1/$AF25) -> 7.05025 | AK25: =+$F25*(1-$G25)*(1/$AF25) -> 7.05025 | AL25: =+$F25*(1-$G25)*(1/$AF25) -> 7.05025 | AM25: =+$F25*(1-$G25)*(1/$AF25) -> 7.05025 | AN25: =+$F25*(1-$G25)*(1/$AF25) -> 7.05025 | AO25: =+$F25*(1-$G25)*(1/$AF25) -> 7.05025 | AP25: =+$F25*(1-$G25)*(1/$AF25) -> 7.05025 | AQ25: =+$F25*(1-$G25)*(1/$AF25) -> 7.05025 | AR25: =+X25-SUM(AG25:AQ25) -> 148.05675 | AS25: =+$F25*$G25*(1/$AF25) -> 0 | AT25: =+$F25*$G25*(1/$AF25) -> 0 | AU25: =+$F25*$G25*(1/$AF25) -> 0 | AV25: =+$F25*$G25*(1/$AF25) -> 0 | AW25: =+$F25*$G25*(1/$AF25) -> 0 | AX25: =+$F25*$G25*(1/$AF25) -> 0 | AY25: =+$F25*$G25*(1/$AF25) -> 0 | AZ25: =+$F25*$G25*(1/$AF25) -> 0 | BA25: =+$F25*$G25*(1/$AF25) -> 0 | BB25: =+$F25*$G25*(1/$AF25) -> 0 | BC25: =+$F25*$G25*(1/$AF25) -> 0 | BD25: =+Y25-SUM(AS25:BC25) -> 0
A26: 350 | B26: 667 | C26: TULETÕRJE VEEVÕTUKOHT Kivialliku | D26: 31.12.2010 | E26: 31.12.2010 | F26: 2736.06 | H26: 5 | I26: 410.4 | J26: 2325.66 | K26: 0 | L26: 125.4 | M26: =+F26*H26/100 -> 136.803 | N26: 547.2 | O26: =+F26-N26 -> 2188.86 | R26: Vara soetus (deebet) (raha väljaminek) | T26: 06.03.2013 06.03.2013 | V26: 2015-12-31 | W26: =+O26-(F26*(H26/100)) -> 2052.057 | X26: =+W26*(1-G26) -> 2052.057 | Y26: =+W26-X26 -> 0 | AF26: 40 | AG26: =+$F26*(1-$G26)*(1/$AF26) -> 68.4015 | AH26: =+$F26*(1-$G26)*(1/$AF26) -> 68.4015 | AI26: =+$F26*(1-$G26)*(1/$AF26) -> 68.4015 | AJ26: =+$F26*(1-$G26)*(1/$AF26) -> 68.4015 | AK26: =+$F26*(1-$G26)*(1/$AF26) -> 68.4015 | AL26: =+$F26*(1-$G26)*(1/$AF26) -> 68.4015 | AM26: =+$F26*(1-$G26)*(1/$AF26) -> 68.4015 | AN26: =+$F26*(1-$G26)*(1/$AF26) -> 68.4015 | AO26: =+$F26*(1-$G26)*(1/$AF26) -> 68.4015 | AP26: =+$F26*(1-$G26)*(1/$AF26) -> 68.4015 | AQ26: =+$F26*(1-$G26)*(1/$AF26) -> 68.4015 | AR26: =+X26-SUM(AG26:AQ26) -> 1299.6405 | AS26: =+$F26*$G26*(1/$AF26) -> 0 | AT26: =+$F26*$G26*(1/$AF26) -> 0 | AU26: =+$F26*$G26*(1/$AF26) -> 0 | AV26: =+$F26*$G26*(1/$AF26) -> 0 | AW26: =+$F26*$G26*(1/$AF26) -> 0 | AX26: =+$F26*$G26*(1/$AF26) -> 0 | AY26: =+$F26*$G26*(1/$AF26) -> 0 | AZ26: =+$F26*$G26*(1/$AF26) -> 0 | BA26: =+$F26*$G26*(1/$AF26) -> 0 | BB26: =+$F26*$G26*(1/$AF26) -> 0 | BC26: =+$F26*$G26*(1/$AF26) -> 0 | BD26: =+Y26-SUM(AS26:BC26) -> 0
A27: 293 | B27: 668 | C27: TULETÕRJE VEEVÕTUKOHT Viira tee | D27: 31.12.2010 | E27: 31.12.2010 | F27: 1335.75 | H27: 5 | I27: 200.37 | J27: 1135.38 | K27: 0 | L27: 61.22 | M27: =+F27*H27/100 -> 66.7875 | N27: 267.16 | O27: =+F27-N27 -> 1068.59 | R27: Vara soetus (deebet) (raha väljaminek) | T27: 13.01.2011 10.05.2012 | V27: 2015-12-31 | W27: =+O27-(F27*(H27/100)) -> 1001.8025 | X27: =+W27*(1-G27) -> 1001.8025 | Y27: =+W27-X27 -> 0 | AF27: 40 | AG27: =+$F27*(1-$G27)*(1/$AF27) -> 33.39375 | AH27: =+$F27*(1-$G27)*(1/$AF27) -> 33.39375 | AI27: =+$F27*(1-$G27)*(1/$AF27) -> 33.39375 | AJ27: =+$F27*(1-$G27)*(1/$AF27) -> 33.39375 | AK27: =+$F27*(1-$G27)*(1/$AF27) -> 33.39375 | AL27: =+$F27*(1-$G27)*(1/$AF27) -> 33.39375 | AM27: =+$F27*(1-$G27)*(1/$AF27) -> 33.39375 | AN27: =+$F27*(1-$G27)*(1/$AF27) -> 33.39375 | AO27: =+$F27*(1-$G27)*(1/$AF27) -> 33.39375 | AP27: =+$F27*(1-$G27)*(1/$AF27) -> 33.39375 | AQ27: =+$F27*(1-$G27)*(1/$AF27) -> 33.39375 | AR27: =+X27-SUM(AG27:AQ27) -> 634.47125 | AS27: =+$F27*$G27*(1/$AF27) -> 0 | AT27: =+$F27*$G27*(1/$AF27) -> 0 | AU27: =+$F27*$G27*(1/$AF27) -> 0 | AV27: =+$F27*$G27*(1/$AF27) -> 0 | AW27: =+$F27*$G27*(1/$AF27) -> 0 | AX27: =+$F27*$G27*(1/$AF27) -> 0 | AY27: =+$F27*$G27*(1/$AF27) -> 0 | AZ27: =+$F27*$G27*(1/$AF27) -> 0 | BA27: =+$F27*$G27*(1/$AF27) -> 0 | BB27: =+$F27*$G27*(1/$AF27) -> 0 | BC27: =+$F27*$G27*(1/$AF27) -> 0 | BD27: =+Y27-SUM(AS27:BC27) -> 0
A28: 224 | B28: 649 | C28: TULETÕRJE-VEEVÕTU KAEV Reius | D28: 31.12.2008 | E28: 31.12.2008 | F28: 837.24 | H28: 5 | I28: 209.3 | J28: 627.94 | K28: 0 | L28: 38.37 | M28: =+F28*H28/100 -> 41.862 | N28: 251.16 | O28: =+F28-N28 -> 586.08 | Q28: Veevarustus | R28: Vara soetus (deebet) (raha väljaminek) | T28: 29.01.2009 10.05.2012 | V28: 2015-12-31 | W28: =+O28-(F28*(H28/100)) -> 544.218 | X28: =+W28*(1-G28) -> 544.218 | Y28: =+W28-X28 -> 0 | AF28: 40 | AG28: =+$F28*(1-$G28)*(1/$AF28) -> 20.931 | AH28: =+$F28*(1-$G28)*(1/$AF28) -> 20.931 | AI28: =+$F28*(1-$G28)*(1/$AF28) -> 20.931 | AJ28: =+$F28*(1-$G28)*(1/$AF28) -> 20.931 | AK28: =+$F28*(1-$G28)*(1/$AF28) -> 20.931 | AL28: =+$F28*(1-$G28)*(1/$AF28) -> 20.931 | AM28: =+$F28*(1-$G28)*(1/$AF28) -> 20.931 | AN28: =+$F28*(1-$G28)*(1/$AF28) -> 20.931 | AO28: =+$F28*(1-$G28)*(1/$AF28) -> 20.931 | AP28: =+$F28*(1-$G28)*(1/$AF28) -> 20.931 | AQ28: =+$F28*(1-$G28)*(1/$AF28) -> 20.931 | AR28: =+X28-SUM(AG28:AQ28) -> 313.977 | AS28: =+$F28*$G28*(1/$AF28) -> 0 | AT28: =+$F28*$G28*(1/$AF28) -> 0 | AU28: =+$F28*$G28*(1/$AF28) -> 0 | AV28: =+$F28*$G28*(1/$AF28) -> 0 | AW28: =+$F28*$G28*(1/$AF28) -> 0 | AX28: =+$F28*$G28*(1/$AF28) -> 0 | AY28: =+$F28*$G28*(1/$AF28) -> 0 | AZ28: =+$F28*$G28*(1/$AF28) -> 0 | BA28: =+$F28*$G28*(1/$AF28) -> 0 | BB28: =+$F28*$G28*(1/$AF28) -> 0 | BC28: =+$F28*$G28*(1/$AF28) -> 0 | BD28: =+Y28-SUM(AS28:BC28) -> 0
A29: 297 | B29: 672 | C29: UULU KESKASULA VEETORUSTIK | D29: 26.10.2011 | E29: 26.10.2011 | F29: 149977.06 | G29: =+G18 -> 0.9031001673 | H29: 5 | I29: 16872.41 | J29: 133104.65 | K29: 0 | L29: 6873.95 | M29: =+F29*H29/100 -> 7498.853 | N29: 24371.26 | O29: =+F29-N29 -> 125605.8 | T29: 27.10.2011 10.05.2012 | U29: KIK 2010-2011 projekt 31, toetus 295143.43 | V29: 2016-12-31 | Z29: =+O29-(2*(F29*(H29/100))) -> 110608.094 | AA29: =+Z29*(1-G29) -> 10717.90581 | AB29: =+Z29-AA29 -> 99890.18819 | AF29: 40 | AH29: =+$F29*(1-$G29)*(1/$AF29) -> 363.3188007 | AI29: =+$F29*(1-$G29)*(1/$AF29) -> 363.3188007 | AJ29: =+$F29*(1-$G29)*(1/$AF29) -> 363.3188007 | AK29: =+$F29*(1-$G29)*(1/$AF29) -> 363.3188007 | AL29: =+$F29*(1-$G29)*(1/$AF29) -> 363.3188007 | AM29: =+$F29*(1-$G29)*(1/$AF29) -> 363.3188007 | AN29: =+$F29*(1-$G29)*(1/$AF29) -> 363.3188007 | AO29: =+$F29*(1-$G29)*(1/$AF29) -> 363.3188007 | AP29: =+$F29*(1-$G29)*(1/$AF29) -> 363.3188007 | AQ29: =+$F29*(1-$G29)*(1/$AF29) -> 363.3188007 | AR29: =+AA29-SUM(AG29:AQ29) -> 7084.717802 | AT29: =+$F29*$G29*(1/$AF29) -> 3386.107699 | AU29: =+$F29*$G29*(1/$AF29) -> 3386.107699 | AV29: =+$F29*$G29*(1/$AF29) -> 3386.107699 | AW29: =+$F29*$G29*(1/$AF29) -> 3386.107699 | AX29: =+$F29*$G29*(1/$AF29) -> 3386.107699 | AY29: =+$F29*$G29*(1/$AF29) -> 3386.107699 | AZ29: =+$F29*$G29*(1/$AF29) -> 3386.107699 | BA29: =+$F29*$G29*(1/$AF29) -> 3386.107699 | BB29: =+$F29*$G29*(1/$AF29) -> 3386.107699 | BC29: =+$F29*$G29*(1/$AF29) -> 3386.107699 | BD29: =+AB29-SUM(AS29:BC29) -> 66029.1112
A30: 283 | B30: 232 | C30: UULU KESKASULA VEETRASS | D30: 31.12.2005 | E30: 1.12.2005 | F30: 101827.23 | G30: =78801.51/(F30+F32) -> 0.5927354888 | H30: 5 | I30: 18978.62 | J30: 82848.61 | K30: 0 | L30: 4667.08 | M30: =+F30*H30/100 -> 5091.3615 | N30: 24069.98 | O30: =+F30-N30 -> 77757.25 | T30: 24.11.2010 13.02.2013 | U30: KIK 2005-2006 projekt 81, toetus 78801.51 | V30: 2015-12-31 | W30: =+O30-(F30*(H30/100)) -> 72665.8885 | X30: =+W30*(1-G30) -> 29594.23756 | Y30: =+W30-X30 -> 43071.65094 | AF30: 40 | AG30: =+$F30*(1-$G30)*(1/$AF30) -> 1036.765426 | AH30: =+$F30*(1-$G30)*(1/$AF30) -> 1036.765426 | AI30: =+$F30*(1-$G30)*(1/$AF30) -> 1036.765426 | AJ30: =+$F30*(1-$G30)*(1/$AF30) -> 1036.765426 | AK30: =+$F30*(1-$G30)*(1/$AF30) -> 1036.765426 | AL30: =+$F30*(1-$G30)*(1/$AF30) -> 1036.765426 | AM30: =+$F30*(1-$G30)*(1/$AF30) -> 1036.765426 | AN30: =+$F30*(1-$G30)*(1/$AF30) -> 1036.765426 | AO30: =+$F30*(1-$G30)*(1/$AF30) -> 1036.765426 | AP30: =+$F30*(1-$G30)*(1/$AF30) -> 1036.765426 | AQ30: =+$F30*(1-$G30)*(1/$AF30) -> 1036.765426 | AR30: =+X30-SUM(AG30:AQ30) -> 18189.81787 | AS30: =+$F30*$G30*(1/$AF30) -> 1508.915324 | AT30: =+$F30*$G30*(1/$AF30) -> 1508.915324 | AU30: =+$F30*$G30*(1/$AF30) -> 1508.915324 | AV30: =+$F30*$G30*(1/$AF30) -> 1508.915324 | AW30: =+$F30*$G30*(1/$AF30) -> 1508.915324 | AX30: =+$F30*$G30*(1/$AF30) -> 1508.915324 | AY30: =+$F30*$G30*(1/$AF30) -> 1508.915324 | AZ30: =+$F30*$G30*(1/$AF30) -> 1508.915324 | BA30: =+$F30*$G30*(1/$AF30) -> 1508.915324 | BB30: =+$F30*$G30*(1/$AF30) -> 1508.915324 | BC30: =+$F30*$G30*(1/$AF30) -> 1508.915324 | BD30: =+Y30-SUM(AS30:BC30) -> 26473.58238
A31: 203 | B31: 232 | C31: UULU KESKASULA VEETRASS | D31: 31.12.2007 | E31: 31.12.2007 | F31: 5368.58 | H31: 5 | I31: 1610.58 | J31: 3758 | K31: 0 | L31: 246.06 | M31: =+F31*H31/100 -> 268.429 | N31: 1879.01 | O31: =+F31-N31 -> 3489.57 | T31: 29.01.2008 10.05.2012 | V31: 2015-12-31 | W31: =+O31-(F31*(H31/100)) -> 3221.141 | X31: =+W31*(1-G31) -> 3221.141 | Y31: =+W31-X31 -> 0 | AF31: 40 | AG31: =+$F31*(1-$G31)*(1/$AF31) -> 134.2145 | AH31: =+$F31*(1-$G31)*(1/$AF31) -> 134.2145 | AI31: =+$F31*(1-$G31)*(1/$AF31) -> 134.2145 | AJ31: =+$F31*(1-$G31)*(1/$AF31) -> 134.2145 | AK31: =+$F31*(1-$G31)*(1/$AF31) -> 134.2145 | AL31: =+$F31*(1-$G31)*(1/$AF31) -> 134.2145 | AM31: =+$F31*(1-$G31)*(1/$AF31) -> 134.2145 | AN31: =+$F31*(1-$G31)*(1/$AF31) -> 134.2145 | AO31: =+$F31*(1-$G31)*(1/$AF31) -> 134.2145 | AP31: =+$F31*(1-$G31)*(1/$AF31) -> 134.2145 | AQ31: =+$F31*(1-$G31)*(1/$AF31) -> 134.2145 | AR31: =+X31-SUM(AG31:AQ31) -> 1744.7815 | AS31: =+$F31*$G31*(1/$AF31) -> 0 | AT31: =+$F31*$G31*(1/$AF31) -> 0 | AU31: =+$F31*$G31*(1/$AF31) -> 0 | AV31: =+$F31*$G31*(1/$AF31) -> 0 | AW31: =+$F31*$G31*(1/$AF31) -> 0 | AX31: =+$F31*$G31*(1/$AF31) -> 0 | AY31: =+$F31*$G31*(1/$AF31) -> 0 | AZ31: =+$F31*$G31*(1/$AF31) -> 0 | BA31: =+$F31*$G31*(1/$AF31) -> 0 | BB31: =+$F31*$G31*(1/$AF31) -> 0 | BC31: =+$F31*$G31*(1/$AF31) -> 0 | BD31: =+Y31-SUM(AS31:BC31) -> 0
A32: 143 | B32: 232 | C32: UULU KESKASULA VEETRASS | D32: 31.12.2006 | E32: 31.12.2006 | F32: 31118.26 | G32: =+G30 -> 0.5927354888 | H32: 5 | I32: 12447.28 | J32: 18670.98 | K32: 0 | L32: 1426.25 | M32: =+F32*H32/100 -> 1555.913 | N32: 14003.19 | O32: =+F32-N32 -> 17115.07 | Q32: Veevarustus | R32: Vara soetus (deebet) (raha väljaminek) | T32: 19.01.2007 10.05.2012 | U32: KIK 2005-2006 projekt 81, toetus 78801.51 | V32: 2015-12-31 | W32: =+O32-(F32*(H32/100)) -> 15559.157 | X32: =+W32*(1-G32) -> 6336.69247 | Y32: =+W32-X32 -> 9222.46453 | AF32: 40 | AG32: =+$F32*(1-$G32)*(1/$AF32) -> 316.8340737 | AH32: =+$F32*(1-$G32)*(1/$AF32) -> 316.8340737 | AI32: =+$F32*(1-$G32)*(1/$AF32) -> 316.8340737 | AJ32: =+$F32*(1-$G32)*(1/$AF32) -> 316.8340737 | AK32: =+$F32*(1-$G32)*(1/$AF32) -> 316.8340737 | AL32: =+$F32*(1-$G32)*(1/$AF32) -> 316.8340737 | AM32: =+$F32*(1-$G32)*(1/$AF32) -> 316.8340737 | AN32: =+$F32*(1-$G32)*(1/$AF32) -> 316.8340737 | AO32: =+$F32*(1-$G32)*(1/$AF32) -> 316.8340737 | AP32: =+$F32*(1-$G32)*(1/$AF32) -> 316.8340737 | AQ32: =+$F32*(1-$G32)*(1/$AF32) -> 316.8340737 | AR32: =+X32-SUM(AG32:AQ32) -> 2851.517659 | AS32: =+$F32*$G32*(1/$AF32) -> 461.1224263 | AT32: =+$F32*$G32*(1/$AF32) -> 461.1224263 | AU32: =+$F32*$G32*(1/$AF32) -> 461.1224263 | AV32: =+$F32*$G32*(1/$AF32) -> 461.1224263 | AW32: =+$F32*$G32*(1/$AF32) -> 461.1224263 | AX32: =+$F32*$G32*(1/$AF32) -> 461.1224263 | AY32: =+$F32*$G32*(1/$AF32) -> 461.1224263 | AZ32: =+$F32*$G32*(1/$AF32) -> 461.1224263 | BA32: =+$F32*$G32*(1/$AF32) -> 461.1224263 | BB32: =+$F32*$G32*(1/$AF32) -> 461.1224263 | BC32: =+$F32*$G32*(1/$AF32) -> 461.1224263 | BD32: =+Y32-SUM(AS32:BC32) -> 4150.117841
A33: 35 | B33: 36 | C33: UULU KESKUSE PUURKAEV | D33: 31.12.2003 | E33: 1.12.2003 | F33: 2169.99 | H33: 5 | I33: 868 | J33: 1301.99 | K33: 0 | L33: 99.46 | M33: =+F33*H33/100 -> 108.4995 | N33: 976.5 | O33: =+F33-N33 -> 1193.49 | Q33: Veevarustus | R33: Vara soetus (deebet) (raha väljaminek) | T33: 20.09.2004 10.05.2012 | V33: 2015-12-31 | W33: =+O33-(F33*(H33/100)) -> 1084.9905 | X33: =+W33*(1-G33) -> 1084.9905 | Y33: =+W33-X33 -> 0 | AF33: 40 | AG33: =+$F33*(1-$G33)*(1/$AF33) -> 54.24975 | AH33: =+$F33*(1-$G33)*(1/$AF33) -> 54.24975 | AI33: =+$F33*(1-$G33)*(1/$AF33) -> 54.24975 | AJ33: =+$F33*(1-$G33)*(1/$AF33) -> 54.24975 | AK33: =+$F33*(1-$G33)*(1/$AF33) -> 54.24975 | AL33: =+$F33*(1-$G33)*(1/$AF33) -> 54.24975 | AM33: =+$F33*(1-$G33)*(1/$AF33) -> 54.24975 | AN33: =+$F33*(1-$G33)*(1/$AF33) -> 54.24975 | AO33: =+$F33*(1-$G33)*(1/$AF33) -> 54.24975 | AP33: =+$F33*(1-$G33)*(1/$AF33) -> 54.24975 | AQ33: =+$F33*(1-$G33)*(1/$AF33) -> 54.24975 | AR33: =+X33-SUM(AG33:AQ33) -> 488.24325 | AS33: =+$F33*$G33*(1/$AF33) -> 0 | AT33: =+$F33*$G33*(1/$AF33) -> 0 | AU33: =+$F33*$G33*(1/$AF33) -> 0 | AV33: =+$F33*$G33*(1/$AF33) -> 0 | AW33: =+$F33*$G33*(1/$AF33) -> 0 | AX33: =+$F33*$G33*(1/$AF33) -> 0 | AY33: =+$F33*$G33*(1/$AF33) -> 0 | AZ33: =+$F33*$G33*(1/$AF33) -> 0 | BA33: =+$F33*$G33*(1/$AF33) -> 0 | BB33: =+$F33*$G33*(1/$AF33) -> 0 | BC33: =+$F33*$G33*(1/$AF33) -> 0 | BD33: =+Y33-SUM(AS33:BC33) -> 0
A34: 416 | B34: 721 | C34: UULU KÜLA ÜHISKANALISATSIOON PR. | D34: 31.12.2014 | E34: 31.12.2014 | F34: 4700 | G34: 1 | H34: 0 | I34: 0 | J34: 0 | K34: 0 | L34: 0 | M34: =+F34*H34/100 -> 0 | N34: 0 | O34: =+F34-N34 -> 4700 | R34: Vara soetus (deebet) (raha väljaminek) | T34: 21.04.2015 | U34: KIK 2013 -2015projekt 7177, toetus 309788,90 | V34: 2019-12-31 | AC34: =+O34 -> 4700 | AD34: =+AC34*(1-G34) -> 0 | AE34: =+AC34-AD34 -> 4700 | AF34: 40 | AI34: =+$F34*(1-$G34)*(1/$AF34) -> 0 | AJ34: =+$F34*(1-$G34)*(1/$AF34) -> 0 | AK34: =+$F34*(1-$G34)*(1/$AF34) -> 0 | AL34: =+$F34*(1-$G34)*(1/$AF34) -> 0 | AM34: =+$F34*(1-$G34)*(1/$AF34) -> 0 | AN34: =+$F34*(1-$G34)*(1/$AF34) -> 0 | AO34: =+$F34*(1-$G34)*(1/$AF34) -> 0 | AP34: =+$F34*(1-$G34)*(1/$AF34) -> 0 | AQ34: =+$F34*(1-$G34)*(1/$AF34) -> 0 | AR34: =+AD34-SUM(AG34:AQ34) -> 0 | AU34: =+$F34*$G34*(1/$AF34) -> 117.5 | AV34: =+$F34*$G34*(1/$AF34) -> 117.5 | AW34: =+$F34*$G34*(1/$AF34) -> 117.5 | AX34: =+$F34*$G34*(1/$AF34) -> 117.5 | AY34: =+$F34*$G34*(1/$AF34) -> 117.5 | AZ34: =+$F34*$G34*(1/$AF34) -> 117.5 | BA34: =+$F34*$G34*(1/$AF34) -> 117.5 | BB34: =+$F34*$G34*(1/$AF34) -> 117.5 | BC34: =+$F34*$G34*(1/$AF34) -> 117.5 | BD34: =+AE34-SUM(AS34:BC34) -> 3642.5
A35: 322 | B35: 685 | C35: UULU VEETORUSTIK Spordi kinnistu | D35: 31.12.2012 | E35: 31.12.2012 | F35: 2380 | H35: 5 | I35: 119 | J35: 2261 | K35: 0 | L35: 109.08 | M35: =+F35*H35/100 -> 119 | N35: 238 | O35: =+F35-N35 -> 2142 | Q35: Veevarustus | R35: Vara soetus (deebet) (raha väljaminek) | T35: 14.02.2013 26.02.2013 | V35: 2015-12-31 | W35: =+O35-(F35*(H35/100)) -> 2023 | X35: =+W35*(1-G35) -> 2023 | Y35: =+W35-X35 -> 0 | AF35: 40 | AG35: =+$F35*(1-$G35)*(1/$AF35) -> 59.5 | AH35: =+$F35*(1-$G35)*(1/$AF35) -> 59.5 | AI35: =+$F35*(1-$G35)*(1/$AF35) -> 59.5 | AJ35: =+$F35*(1-$G35)*(1/$AF35) -> 59.5 | AK35: =+$F35*(1-$G35)*(1/$AF35) -> 59.5 | AL35: =+$F35*(1-$G35)*(1/$AF35) -> 59.5 | AM35: =+$F35*(1-$G35)*(1/$AF35) -> 59.5 | AN35: =+$F35*(1-$G35)*(1/$AF35) -> 59.5 | AO35: =+$F35*(1-$G35)*(1/$AF35) -> 59.5 | AP35: =+$F35*(1-$G35)*(1/$AF35) -> 59.5 | AQ35: =+$F35*(1-$G35)*(1/$AF35) -> 59.5 | AR35: =+X35-SUM(AG35:AQ35) -> 1368.5 | AS35: =+$F35*$G35*(1/$AF35) -> 0 | AT35: =+$F35*$G35*(1/$AF35) -> 0 | AU35: =+$F35*$G35*(1/$AF35) -> 0 | AV35: =+$F35*$G35*(1/$AF35) -> 0 | AW35: =+$F35*$G35*(1/$AF35) -> 0 | AX35: =+$F35*$G35*(1/$AF35) -> 0 | AY35: =+$F35*$G35*(1/$AF35) -> 0 | AZ35: =+$F35*$G35*(1/$AF35) -> 0 | BA35: =+$F35*$G35*(1/$AF35) -> 0 | BB35: =+$F35*$G35*(1/$AF35) -> 0 | BC35: =+$F35*$G35*(1/$AF35) -> 0 | BD35: =+Y35-SUM(AS35:BC35) -> 0
A36: 217 | B36: 644 | C36: VEEPUHASTUSSEADMETE TRUUP Uulus | D36: 31.12.2008 | E36: 31.12.2008 | F36: 2774.09 | H36: 5 | I36: 693.5 | J36: 2080.59 | K36: 0 | L36: 127.14 | M36: =+F36*H36/100 -> 138.7045 | N36: 832.2 | O36: =+F36-N36 -> 1941.89 | R36: Vara soetus (deebet) (raha väljaminek) | T36: 29.01.2009 10.05.2012 | V36: 2015-12-31 | W36: =+O36-(F36*(H36/100)) -> 1803.1855 | X36: =+W36*(1-G36) -> 1803.1855 | Y36: =+W36-X36 -> 0 | AF36: =15*0.5+40*0.5 -> 27.5 | AG36: =+$F36*(1-$G36)*(1/$AF36) -> 100.876 | AH36: =+$F36*(1-$G36)*(1/$AF36) -> 100.876 | AI36: =+$F36*(1-$G36)*(1/$AF36) -> 100.876 | AJ36: =+$F36*(1-$G36)*(1/$AF36) -> 100.876 | AK36: =+$F36*(1-$G36)*(1/$AF36) -> 100.876 | AL36: =+$F36*(1-$G36)*(1/$AF36) -> 100.876 | AM36: =+$F36*(1-$G36)*(1/$AF36) -> 100.876 | AN36: =+$F36*(1-$G36)*(1/$AF36) -> 100.876 | AO36: =+$F36*(1-$G36)*(1/$AF36) -> 100.876 | AP36: =+$F36*(1-$G36)*(1/$AF36) -> 100.876 | AQ36: =+$F36*(1-$G36)*(1/$AF36) -> 100.876 | AR36: =+X36-SUM(AG36:AQ36) -> 693.5495 | AS36: =+$F36*$G36*(1/$AF36) -> 0 | AT36: =+$F36*$G36*(1/$AF36) -> 0 | AU36: =+$F36*$G36*(1/$AF36) -> 0 | AV36: =+$F36*$G36*(1/$AF36) -> 0 | AW36: =+$F36*$G36*(1/$AF36) -> 0 | AX36: =+$F36*$G36*(1/$AF36) -> 0 | AY36: =+$F36*$G36*(1/$AF36) -> 0 | AZ36: =+$F36*$G36*(1/$AF36) -> 0 | BA36: =+$F36*$G36*(1/$AF36) -> 0 | BB36: =+$F36*$G36*(1/$AF36) -> 0 | BC36: =+$F36*$G36*(1/$AF36) -> 0 | BD36: =+Y36-SUM(AS36:BC36) -> 0
A37: 225 | B37: 650 | C37: VEETORUSTIK ROOL1+ROOL2 | D37: 31.12.2008 | E37: 31.12.2008 | F37: 101044.25 | G37: =56772.42/F37 -> 0.5618570082 | H37: 5 | I37: 25261.05 | J37: 75783.2 | K37: 0 | L37: 4631.19 | M37: =+F37*H37/100 -> 5052.2125 | N37: 30313.26 | O37: =+F37-N37 -> 70730.99 | Q37: Veevarustus | R37: Vara soetus (deebet) (raha väljaminek) | T37: 29.01.2009 10.05.2012 | U37: KIK 2007 2008 projekt 96, toetus 56772.42 | V37: 2015-12-31 | W37: =+O37-(F37*(H37/100)) -> 65678.7775 | X37: =+W37*(1-G37) -> 28776.69607 | Y37: =+W37-X37 -> 36902.08143 | AF37: 40 | AG37: =+$F37*(1-$G37)*(1/$AF37) -> 1106.79575 | AH37: =+$F37*(1-$G37)*(1/$AF37) -> 1106.79575 | AI37: =+$F37*(1-$G37)*(1/$AF37) -> 1106.79575 | AJ37: =+$F37*(1-$G37)*(1/$AF37) -> 1106.79575 | AK37: =+$F37*(1-$G37)*(1/$AF37) -> 1106.79575 | AL37: =+$F37*(1-$G37)*(1/$AF37) -> 1106.79575 | AM37: =+$F37*(1-$G37)*(1/$AF37) -> 1106.79575 | AN37: =+$F37*(1-$G37)*(1/$AF37) -> 1106.79575 | AO37: =+$F37*(1-$G37)*(1/$AF37) -> 1106.79575 | AP37: =+$F37*(1-$G37)*(1/$AF37) -> 1106.79575 | AQ37: =+$F37*(1-$G37)*(1/$AF37) -> 1106.79575 | AR37: =+X37-SUM(AG37:AQ37) -> 16601.94282 | AS37: =+$F37*$G37*(1/$AF37) -> 1419.3105 | AT37: =+$F37*$G37*(1/$AF37) -> 1419.3105 | AU37: =+$F37*$G37*(1/$AF37) -> 1419.3105 | AV37: =+$F37*$G37*(1/$AF37) -> 1419.3105 | AW37: =+$F37*$G37*(1/$AF37) -> 1419.3105 | AX37: =+$F37*$G37*(1/$AF37) -> 1419.3105 | AY37: =+$F37*$G37*(1/$AF37) -> 1419.3105 | AZ37: =+$F37*$G37*(1/$AF37) -> 1419.3105 | BA37: =+$F37*$G37*(1/$AF37) -> 1419.3105 | BB37: =+$F37*$G37*(1/$AF37) -> 1419.3105 | BC37: =+$F37*$G37*(1/$AF37) -> 1419.3105 | BD37: =+Y37-SUM(AS37:BC37) -> 21289.66593
A38: 116 | B38: 233 | C38: VESI JA KANALIS.Postitee,Ponimetsa,Kulla,Suksum. | D38: 31.12.2005 | E38: 1.12.2005 | F38: 45131.91 | H38: 5 | I38: 18052.8 | J38: 27079.11 | K38: 0 | L38: 2068.55 | M38: =+F38*H38/100 -> 2256.5955 | N38: 20309.4 | O38: =+F38-N38 -> 24822.51 | Q38: Veevarustus | R38: Vara soetus (deebet) (raha väljaminek) | T38: 06.03.2006 10.05.2012 | V38: 2015-12-31 | W38: =+O38-(F38*(H38/100)) -> 22565.9145 | X38: =+W38*(1-G38) -> 22565.9145 | Y38: =+W38-X38 -> 0 | AF38: =15*0.5+40*0.5 -> 27.5 | AG38: =+$F38*(1-$G38)*(1/$AF38) -> 1641.160364 | AH38: =+$F38*(1-$G38)*(1/$AF38) -> 1641.160364 | AI38: =+$F38*(1-$G38)*(1/$AF38) -> 1641.160364 | AJ38: =+$F38*(1-$G38)*(1/$AF38) -> 1641.160364 | AK38: =+$F38*(1-$G38)*(1/$AF38) -> 1641.160364 | AL38: =+$F38*(1-$G38)*(1/$AF38) -> 1641.160364 | AM38: =+$F38*(1-$G38)*(1/$AF38) -> 1641.160364 | AN38: =+$F38*(1-$G38)*(1/$AF38) -> 1641.160364 | AO38: =+$F38*(1-$G38)*(1/$AF38) -> 1641.160364 | AP38: =+$F38*(1-$G38)*(1/$AF38) -> 1641.160364 | AQ38: =+$F38*(1-$G38)*(1/$AF38) -> 1641.160364 | AR38: =+X38-SUM(AG38:AQ38) -> 4513.1505 | AS38: =+$F38*$G38*(1/$AF38) -> 0 | AT38: =+$F38*$G38*(1/$AF38) -> 0 | AU38: =+$F38*$G38*(1/$AF38) -> 0 | AV38: =+$F38*$G38*(1/$AF38) -> 0 | AW38: =+$F38*$G38*(1/$AF38) -> 0 | AX38: =+$F38*$G38*(1/$AF38) -> 0 | AY38: =+$F38*$G38*(1/$AF38) -> 0 | AZ38: =+$F38*$G38*(1/$AF38) -> 0 | BA38: =+$F38*$G38*(1/$AF38) -> 0 | BB38: =+$F38*$G38*(1/$AF38) -> 0 | BC38: =+$F38*$G38*(1/$AF38) -> 0 | BD38: =+Y38-SUM(AS38:BC38) -> 0
A39: 208 | B39: 34 | C39: VÕISTE AIANDI PUMBAMAJA | D39: 31.12.2007 | E39: 31.12.2007 | F39: 6710.72 | H39: 5 | I39: 2013.24 | J39: 4697.48 | K39: 0 | L39: 307.58 | M39: =+F39*H39/100 -> 335.536 | N39: 2348.78 | O39: =+F39-N39 -> 4361.94 | Q39: Veevarustus | R39: Vara soetus (deebet) (raha väljaminek) | T39: 30.01.2008 10.05.2012 | V39: 2015-12-31 | W39: =+O39-(F39*(H39/100)) -> 4026.404 | X39: =+W39*(1-G39) -> 4026.404 | Y39: =+W39-X39 -> 0 | AF39: =15*0.5+40*0.5 -> 27.5 | AG39: =+$F39*(1-$G39)*(1/$AF39) -> 244.0261818 | AH39: =+$F39*(1-$G39)*(1/$AF39) -> 244.0261818 | AI39: =+$F39*(1-$G39)*(1/$AF39) -> 244.0261818 | AJ39: =+$F39*(1-$G39)*(1/$AF39) -> 244.0261818 | AK39: =+$F39*(1-$G39)*(1/$AF39) -> 244.0261818 | AL39: =+$F39*(1-$G39)*(1/$AF39) -> 244.0261818 | AM39: =+$F39*(1-$G39)*(1/$AF39) -> 244.0261818 | AN39: =+$F39*(1-$G39)*(1/$AF39) -> 244.0261818 | AO39: =+$F39*(1-$G39)*(1/$AF39) -> 244.0261818 | AP39: =+$F39*(1-$G39)*(1/$AF39) -> 244.0261818 | AQ39: =+$F39*(1-$G39)*(1/$AF39) -> 244.0261818 | AR39: =+X39-SUM(AG39:AQ39) -> 1342.116 | AS39: =+$F39*$G39*(1/$AF39) -> 0 | AT39: =+$F39*$G39*(1/$AF39) -> 0 | AU39: =+$F39*$G39*(1/$AF39) -> 0 | AV39: =+$F39*$G39*(1/$AF39) -> 0 | AW39: =+$F39*$G39*(1/$AF39) -> 0 | AX39: =+$F39*$G39*(1/$AF39) -> 0 | AY39: =+$F39*$G39*(1/$AF39) -> 0 | AZ39: =+$F39*$G39*(1/$AF39) -> 0 | BA39: =+$F39*$G39*(1/$AF39) -> 0 | BB39: =+$F39*$G39*(1/$AF39) -> 0 | BC39: =+$F39*$G39*(1/$AF39) -> 0 | BD39: =+Y39-SUM(AS39:BC39) -> 0
A40: 294 | B40: 669 | C40: VÕISTE SADAMA REOVEEPUMPLA+KAN.TRASSID | D40: 31.05.2011 | E40: 31.05.2011 | F40: 22571.03 | G40: =19173.74/F40 -> 0.8494844941 | H40: 5 | I40: 2986.89 | J40: 19584.14 | K40: 0 | L40: 1034.5 | M40: =+F40*H40/100 -> 1128.5515 | N40: 4115.44 | O40: =+F40-N40 -> 18455.59 | T40: 31.05.2011 10.05.2012 | U40: KIK 2010 projekt 33, toetus 19173.74 | V40: 2016-12-31 | Z40: =+O40-(2*(F40*(H40/100))) -> 16198.487 | AA40: =+Z40*(1-G40) -> 2438.123466 | AB40: =+Z40-AA40 -> 13760.36353 | AF40: =15*0.5+40*0.5 -> 27.5 | AH40: =+$F40*(1-$G40)*(1/$AF40) -> 123.5378182 | AI40: =+$F40*(1-$G40)*(1/$AF40) -> 123.5378182 | AJ40: =+$F40*(1-$G40)*(1/$AF40) -> 123.5378182 | AK40: =+$F40*(1-$G40)*(1/$AF40) -> 123.5378182 | AL40: =+$F40*(1-$G40)*(1/$AF40) -> 123.5378182 | AM40: =+$F40*(1-$G40)*(1/$AF40) -> 123.5378182 | AN40: =+$F40*(1-$G40)*(1/$AF40) -> 123.5378182 | AO40: =+$F40*(1-$G40)*(1/$AF40) -> 123.5378182 | AP40: =+$F40*(1-$G40)*(1/$AF40) -> 123.5378182 | AQ40: =+$F40*(1-$G40)*(1/$AF40) -> 123.5378182 | AR40: =+AA40-SUM(AG40:AQ40) -> 1202.745284 | AT40: =+$F40*$G40*(1/$AF40) -> 697.2269091 | AU40: =+$F40*$G40*(1/$AF40) -> 697.2269091 | AV40: =+$F40*$G40*(1/$AF40) -> 697.2269091 | AW40: =+$F40*$G40*(1/$AF40) -> 697.2269091 | AX40: =+$F40*$G40*(1/$AF40) -> 697.2269091 | AY40: =+$F40*$G40*(1/$AF40) -> 697.2269091 | AZ40: =+$F40*$G40*(1/$AF40) -> 697.2269091 | BA40: =+$F40*$G40*(1/$AF40) -> 697.2269091 | BB40: =+$F40*$G40*(1/$AF40) -> 697.2269091 | BC40: =+$F40*$G40*(1/$AF40) -> 697.2269091 | BD40: =+AB40-SUM(AS40:BC40) -> 6788.094443
A41: 295 | B41: 670 | C41: VÕISTE SOTSIAALMAJA KANALISATSIOONITRASS | D41: 31.05.2011 | E41: 31.05.2011 | F41: 4821.49 | H41: 5 | I41: 622.76 | J41: 4198.73 | K41: 0 | L41: 220.98 | M41: =+F41*H41/100 -> 241.0745 | N41: 863.83 | O41: =+F41-N41 -> 3957.66 | R41: Vara soetus (deebet) (raha väljaminek) | T41: 01.06.2011 10.05.2012 | V41: 2015-12-31 | W41: =+O41-(F41*(H41/100)) -> 3716.5855 | X41: =+W41*(1-G41) -> 3716.5855 | Y41: =+W41-X41 -> 0 | AF41: 40 | AG41: =+$F41*(1-$G41)*(1/$AF41) -> 120.53725 | AH41: =+$F41*(1-$G41)*(1/$AF41) -> 120.53725 | AI41: =+$F41*(1-$G41)*(1/$AF41) -> 120.53725 | AJ41: =+$F41*(1-$G41)*(1/$AF41) -> 120.53725 | AK41: =+$F41*(1-$G41)*(1/$AF41) -> 120.53725 | AL41: =+$F41*(1-$G41)*(1/$AF41) -> 120.53725 | AM41: =+$F41*(1-$G41)*(1/$AF41) -> 120.53725 | AN41: =+$F41*(1-$G41)*(1/$AF41) -> 120.53725 | AO41: =+$F41*(1-$G41)*(1/$AF41) -> 120.53725 | AP41: =+$F41*(1-$G41)*(1/$AF41) -> 120.53725 | AQ41: =+$F41*(1-$G41)*(1/$AF41) -> 120.53725 | AR41: =+X41-SUM(AG41:AQ41) -> 2390.67575 | AS41: =+$F41*$G41*(1/$AF41) -> 0 | AT41: =+$F41*$G41*(1/$AF41) -> 0 | AU41: =+$F41*$G41*(1/$AF41) -> 0 | AV41: =+$F41*$G41*(1/$AF41) -> 0 | AW41: =+$F41*$G41*(1/$AF41) -> 0 | AX41: =+$F41*$G41*(1/$AF41) -> 0 | AY41: =+$F41*$G41*(1/$AF41) -> 0 | AZ41: =+$F41*$G41*(1/$AF41) -> 0 | BA41: =+$F41*$G41*(1/$AF41) -> 0 | BB41: =+$F41*$G41*(1/$AF41) -> 0 | BC41: =+$F41*$G41*(1/$AF41) -> 0 | BD41: =+Y41-SUM(AS41:BC41) -> 0
A42: 318 | B42: 684 | C42: VÕISTE VEETORUSTIK Kaare tänav | D42: 31.12.2012 | E42: 31.12.2012 | F42: 4080 | H42: 5 | I42: 204 | J42: 3876 | K42: 0 | L42: 187 | M42: =+F42*H42/100 -> 204 | N42: 408 | O42: =+F42-N42 -> 3672 | Q42: Veevarustus | R42: Vara soetus (deebet) (raha väljaminek) | T42: 14.02.2013 26.02.2013 | V42: 2015-12-31 | W42: =+O42-(F42*(H42/100)) -> 3468 | X42: =+W42*(1-G42) -> 3468 | Y42: =+W42-X42 -> 0 | AF42: 40 | AG42: =+$F42*(1-$G42)*(1/$AF42) -> 102 | AH42: =+$F42*(1-$G42)*(1/$AF42) -> 102 | AI42: =+$F42*(1-$G42)*(1/$AF42) -> 102 | AJ42: =+$F42*(1-$G42)*(1/$AF42) -> 102 | AK42: =+$F42*(1-$G42)*(1/$AF42) -> 102 | AL42: =+$F42*(1-$G42)*(1/$AF42) -> 102 | AM42: =+$F42*(1-$G42)*(1/$AF42) -> 102 | AN42: =+$F42*(1-$G42)*(1/$AF42) -> 102 | AO42: =+$F42*(1-$G42)*(1/$AF42) -> 102 | AP42: =+$F42*(1-$G42)*(1/$AF42) -> 102 | AQ42: =+$F42*(1-$G42)*(1/$AF42) -> 102 | AR42: =+X42-SUM(AG42:AQ42) -> 2346 | AS42: =+$F42*$G42*(1/$AF42) -> 0 | AT42: =+$F42*$G42*(1/$AF42) -> 0 | AU42: =+$F42*$G42*(1/$AF42) -> 0 | AV42: =+$F42*$G42*(1/$AF42) -> 0 | AW42: =+$F42*$G42*(1/$AF42) -> 0 | AX42: =+$F42*$G42*(1/$AF42) -> 0 | AY42: =+$F42*$G42*(1/$AF42) -> 0 | AZ42: =+$F42*$G42*(1/$AF42) -> 0 | BA42: =+$F42*$G42*(1/$AF42) -> 0 | BB42: =+$F42*$G42*(1/$AF42) -> 0 | BC42: =+$F42*$G42*(1/$AF42) -> 0 | BD42: =+Y42-SUM(AS42:BC42) -> 0
A43: 197 | B43: 612 | C43: VÕISTE VEETRASS pr.2006..2007 | D43: 31.12.2007 | E43: 31.12.2007 | F43: 65593.36 | G43: =95446.36/(F43+F50) -> 0.8177190585 | H43: 5 | I43: 19678.02 | J43: 45915.34 | K43: 0 | L43: 3006.36 | M43: =+F43*H43/100 -> 3279.668 | N43: 22957.69 | O43: =+F43-N43 -> 42635.67 | Q43: Veevarustus | T43: 29.01.2008 10.05.2012 | U43: KIK 2006-2007 projekt 20, toetus 95446.36 | V43: 2015-12-31 | W43: =+O43-(F43*(H43/100)) -> 39356.002 | X43: =+W43*(1-G43) -> 7173.849097 | Y43: =+W43-X43 -> 32182.1529 | AF43: 40 | AG43: =+$F43*(1-$G43)*(1/$AF43) -> 298.9104854 | AH43: =+$F43*(1-$G43)*(1/$AF43) -> 298.9104854 | AI43: =+$F43*(1-$G43)*(1/$AF43) -> 298.9104854 | AJ43: =+$F43*(1-$G43)*(1/$AF43) -> 298.9104854 | AK43: =+$F43*(1-$G43)*(1/$AF43) -> 298.9104854 | AL43: =+$F43*(1-$G43)*(1/$AF43) -> 298.9104854 | AM43: =+$F43*(1-$G43)*(1/$AF43) -> 298.9104854 | AN43: =+$F43*(1-$G43)*(1/$AF43) -> 298.9104854 | AO43: =+$F43*(1-$G43)*(1/$AF43) -> 298.9104854 | AP43: =+$F43*(1-$G43)*(1/$AF43) -> 298.9104854 | AQ43: =+$F43*(1-$G43)*(1/$AF43) -> 298.9104854 | AR43: =+X43-SUM(AG43:AQ43) -> 3885.833758 | AS43: =+$F43*$G43*(1/$AF43) -> 1340.923515 | AT43: =+$F43*$G43*(1/$AF43) -> 1340.923515 | AU43: =+$F43*$G43*(1/$AF43) -> 1340.923515 | AV43: =+$F43*$G43*(1/$AF43) -> 1340.923515 | AW43: =+$F43*$G43*(1/$AF43) -> 1340.923515 | AX43: =+$F43*$G43*(1/$AF43) -> 1340.923515 | AY43: =+$F43*$G43*(1/$AF43) -> 1340.923515 | AZ43: =+$F43*$G43*(1/$AF43) -> 1340.923515 | BA43: =+$F43*$G43*(1/$AF43) -> 1340.923515 | BB43: =+$F43*$G43*(1/$AF43) -> 1340.923515 | BC43: =+$F43*$G43*(1/$AF43) -> 1340.923515 | BD43: =+Y43-SUM(AS43:BC43) -> 17431.99424
A44: 30 | B44: 31 | C44: VÄLJAOTSA KRUNTIDE VEETRASS | D44: 31.12.2003 | E44: 1.12.2003 | F44: 2162.45 | H44: 5 | I44: 940.7 | J44: 1221.75 | K44: 0 | L44: 99.11 | M44: =+F44*H44/100 -> 108.1225 | N44: 1048.82 | O44: =+F44-N44 -> 1113.63 | Q44: Veevarustus | R44: Vara soetus (deebet) (raha väljaminek) | T44: 15.09.2004 10.05.2012 | V44: 2015-12-31 | W44: =+O44-(F44*(H44/100)) -> 1005.5075 | X44: =+W44*(1-G44) -> 1005.5075 | Y44: =+W44-X44 -> 0 | AF44: 40 | AG44: =+$F44*(1-$G44)*(1/$AF44) -> 54.06125 | AH44: =+$F44*(1-$G44)*(1/$AF44) -> 54.06125 | AI44: =+$F44*(1-$G44)*(1/$AF44) -> 54.06125 | AJ44: =+$F44*(1-$G44)*(1/$AF44) -> 54.06125 | AK44: =+$F44*(1-$G44)*(1/$AF44) -> 54.06125 | AL44: =+$F44*(1-$G44)*(1/$AF44) -> 54.06125 | AM44: =+$F44*(1-$G44)*(1/$AF44) -> 54.06125 | AN44: =+$F44*(1-$G44)*(1/$AF44) -> 54.06125 | AO44: =+$F44*(1-$G44)*(1/$AF44) -> 54.06125 | AP44: =+$F44*(1-$G44)*(1/$AF44) -> 54.06125 | AQ44: =+$F44*(1-$G44)*(1/$AF44) -> 54.06125 | AR44: =+X44-SUM(AG44:AQ44) -> 410.83375 | AS44: =+$F44*$G44*(1/$AF44) -> 0 | AT44: =+$F44*$G44*(1/$AF44) -> 0 | AU44: =+$F44*$G44*(1/$AF44) -> 0 | AV44: =+$F44*$G44*(1/$AF44) -> 0 | AW44: =+$F44*$G44*(1/$AF44) -> 0 | AX44: =+$F44*$G44*(1/$AF44) -> 0 | AY44: =+$F44*$G44*(1/$AF44) -> 0 | AZ44: =+$F44*$G44*(1/$AF44) -> 0 | BA44: =+$F44*$G44*(1/$AF44) -> 0 | BB44: =+$F44*$G44*(1/$AF44) -> 0 | BC44: =+$F44*$G44*(1/$AF44) -> 0 | BD44: =+Y44-SUM(AS44:BC44) -> 0
A45: 25 | B45: 25 | C45: VÖISTE KÜLMHOONE PUMBAMAJA käärdi tn. | D45: 31.12.2003 | E45: 1.12.2001 | F45: 47930.41 | G45: 1 | H45: 5 | I45: 20458.83 | J45: 27471.58 | K45: 0 | L45: 2196.81 | M45: =+F45*H45/100 -> 2396.5205 | N45: 22855.35 | O45: =+F45-N45 -> 25075.06 | Q45: Pr. KIK Võiste vesi alga.2004 | R45: Vara soetus (deebet) (raha väljaminek) | T45: 15.09.2004 10.05.2012 | U45: KIK 2004 projekt 74, toetus 57500.64 | V45: 2015-12-31 | W45: =+O45-(F45*(H45/100)) -> 22678.5395 | X45: =+W45*(1-G45) -> 0 | Y45: =+W45-X45 -> 22678.5395 | AF45: =15*0.5+40*0.5 -> 27.5 | AG45: =+$F45*(1-$G45)*(1/$AF45) -> 0 | AH45: =+$F45*(1-$G45)*(1/$AF45) -> 0 | AI45: =+$F45*(1-$G45)*(1/$AF45) -> 0 | AJ45: =+$F45*(1-$G45)*(1/$AF45) -> 0 | AK45: =+$F45*(1-$G45)*(1/$AF45) -> 0 | AL45: =+$F45*(1-$G45)*(1/$AF45) -> 0 | AM45: =+$F45*(1-$G45)*(1/$AF45) -> 0 | AN45: =+$F45*(1-$G45)*(1/$AF45) -> 0 | AO45: =+$F45*(1-$G45)*(1/$AF45) -> 0 | AP45: =+$F45*(1-$G45)*(1/$AF45) -> 0 | AQ45: =+$F45*(1-$G45)*(1/$AF45) -> 0 | AR45: =+X45-SUM(AG45:AQ45) -> 0 | AS45: =+$F45*$G45*(1/$AF45) -> 1742.924 | AT45: =+$F45*$G45*(1/$AF45) -> 1742.924 | AU45: =+$F45*$G45*(1/$AF45) -> 1742.924 | AV45: =+$F45*$G45*(1/$AF45) -> 1742.924 | AW45: =+$F45*$G45*(1/$AF45) -> 1742.924 | AX45: =+$F45*$G45*(1/$AF45) -> 1742.924 | AY45: =+$F45*$G45*(1/$AF45) -> 1742.924 | AZ45: =+$F45*$G45*(1/$AF45) -> 1742.924 | BA45: =+$F45*$G45*(1/$AF45) -> 1742.924 | BB45: =+$F45*$G45*(1/$AF45) -> 1742.924 | BC45: =+$F45*$G45*(1/$AF45) -> 1742.924 | BD45: =+Y45-SUM(AS45:BC45) -> 3506.3755
A46: 33 | B46: 34 | C46: VÖISTE AIANDI PUMBAMAJA | D46: 31.12.2003 | E46: 1.12.2003 | F46: 1277.53 | H46: 5 | I46: 511.04 | J46: 766.49 | K46: 0 | L46: 58.56 | M46: =+F46*H46/100 -> 63.8765 | N46: 574.92 | O46: =+F46-N46 -> 702.61 | Q46: Veevarustus | R46: Vara soetus (deebet) (raha väljaminek) | T46: 20.09.2004 10.05.2012 | V46: 2015-12-31 | W46: =+O46-(F46*(H46/100)) -> 638.7335 | X46: =+W46*(1-G46) -> 638.7335 | Y46: =+W46-X46 -> 0 | AF46: =15*0.5+40*0.5 -> 27.5 | AG46: =+$F46*(1-$G46)*(1/$AF46) -> 46.45563636 | AH46: =+$F46*(1-$G46)*(1/$AF46) -> 46.45563636 | AI46: =+$F46*(1-$G46)*(1/$AF46) -> 46.45563636 | AJ46: =+$F46*(1-$G46)*(1/$AF46) -> 46.45563636 | AK46: =+$F46*(1-$G46)*(1/$AF46) -> 46.45563636 | AL46: =+$F46*(1-$G46)*(1/$AF46) -> 46.45563636 | AM46: =+$F46*(1-$G46)*(1/$AF46) -> 46.45563636 | AN46: =+$F46*(1-$G46)*(1/$AF46) -> 46.45563636 | AO46: =+$F46*(1-$G46)*(1/$AF46) -> 46.45563636 | AP46: =+$F46*(1-$G46)*(1/$AF46) -> 46.45563636 | AQ46: =+$F46*(1-$G46)*(1/$AF46) -> 46.45563636 | AR46: =+X46-SUM(AG46:AQ46) -> 127.7215 | AS46: =+$F46*$G46*(1/$AF46) -> 0 | AT46: =+$F46*$G46*(1/$AF46) -> 0 | AU46: =+$F46*$G46*(1/$AF46) -> 0 | AV46: =+$F46*$G46*(1/$AF46) -> 0 | AW46: =+$F46*$G46*(1/$AF46) -> 0 | AX46: =+$F46*$G46*(1/$AF46) -> 0 | AY46: =+$F46*$G46*(1/$AF46) -> 0 | AZ46: =+$F46*$G46*(1/$AF46) -> 0 | BA46: =+$F46*$G46*(1/$AF46) -> 0 | BB46: =+$F46*$G46*(1/$AF46) -> 0 | BC46: =+$F46*$G46*(1/$AF46) -> 0 | BD46: =+Y46-SUM(AS46:BC46) -> 0
A47: 16 | B47: 17 | C47: VÖISTE AIANDI VEEV.KOHT | D47: 31.12.2003 | E47: 1.12.1993 | F47: 171.54 | H47: 5 | I47: 171.54 | J47: 0 | K47: 0 | L47: 0 | M47: =+F47*H47/100 -> 8.577 | N47: 171.54 | O47: =+F47-N47 -> 0 | Q47: Veevarustus | R47: Vara soetus (deebet) (raha väljaminek) | T47: 15.09.2004 10.05.2012 | V47: 2015-12-31 | W47: 0 | X47: =+W47*(1-G47) -> 0 | Y47: =+W47-X47 -> 0 | AF47: 40 | AR47: =+X47-SUM(AG47:AQ47) -> 0 | BD47: =+Y47-SUM(AS47:BC47) -> 0
A48: 32 | B48: 25 | C48: VÖISTE KÜLMHOONE PUMBAMAJA käärdi tn. | D48: 31.12.2005 | E48: 1.12.2005 | F48: 11828.96 | H48: 5 | I48: 4731.6 | J48: 7097.36 | K48: 0 | L48: 542.16 | M48: =+F48*H48/100 -> 591.448 | N48: 5323.05 | O48: =+F48-N48 -> 6505.91 | Q48: Veevarustus | R48: Vara soetus (deebet) (raha väljaminek) | T48: 03.03.2006 10.05.2012 | V48: 2015-12-31 | W48: =+O48-(F48*(H48/100)) -> 5914.462 | X48: =+W48*(1-G48) -> 5914.462 | Y48: =+W48-X48 -> 0 | AF48: =15*0.5+40*0.5 -> 27.5 | AG48: =+$F48*(1-$G48)*(1/$AF48) -> 430.144 | AH48: =+$F48*(1-$G48)*(1/$AF48) -> 430.144 | AI48: =+$F48*(1-$G48)*(1/$AF48) -> 430.144 | AJ48: =+$F48*(1-$G48)*(1/$AF48) -> 430.144 | AK48: =+$F48*(1-$G48)*(1/$AF48) -> 430.144 | AL48: =+$F48*(1-$G48)*(1/$AF48) -> 430.144 | AM48: =+$F48*(1-$G48)*(1/$AF48) -> 430.144 | AN48: =+$F48*(1-$G48)*(1/$AF48) -> 430.144 | AO48: =+$F48*(1-$G48)*(1/$AF48) -> 430.144 | AP48: =+$F48*(1-$G48)*(1/$AF48) -> 430.144 | AQ48: =+$F48*(1-$G48)*(1/$AF48) -> 430.144 | AR48: =+X48-SUM(AG48:AQ48) -> 1182.878 | AS48: =+$F48*$G48*(1/$AF48) -> 0 | AT48: =+$F48*$G48*(1/$AF48) -> 0 | AU48: =+$F48*$G48*(1/$AF48) -> 0 | AV48: =+$F48*$G48*(1/$AF48) -> 0 | AW48: =+$F48*$G48*(1/$AF48) -> 0 | AX48: =+$F48*$G48*(1/$AF48) -> 0 | AY48: =+$F48*$G48*(1/$AF48) -> 0 | AZ48: =+$F48*$G48*(1/$AF48) -> 0 | BA48: =+$F48*$G48*(1/$AF48) -> 0 | BB48: =+$F48*$G48*(1/$AF48) -> 0 | BC48: =+$F48*$G48*(1/$AF48) -> 0 | BD48: =+Y48-SUM(AS48:BC48) -> 0
A49: 34 | B49: 35 | C49: VÖISTE VEETRASS pikk tn. | D49: 31.12.2003 | E49: 1.12.2003 | F49: 2434.59 | H49: 5 | I49: 973.84 | J49: 1460.75 | K49: 0 | L49: 111.59 | M49: =+F49*H49/100 -> 121.7295 | N49: 1095.57 | O49: =+F49-N49 -> 1339.02 | Q49: Veevarustus | R49: Vara soetus (deebet) (raha väljaminek) | T49: 20.09.2004 10.05.2012 | V49: 2015-12-31 | W49: =+O49-(F49*(H49/100)) -> 1217.2905 | X49: =+W49*(1-G49) -> 1217.2905 | Y49: =+W49-X49 -> 0 | AF49: 40 | AG49: =+$F49*(1-$G49)*(1/$AF49) -> 60.86475 | AH49: =+$F49*(1-$G49)*(1/$AF49) -> 60.86475 | AI49: =+$F49*(1-$G49)*(1/$AF49) -> 60.86475 | AJ49: =+$F49*(1-$G49)*(1/$AF49) -> 60.86475 | AK49: =+$F49*(1-$G49)*(1/$AF49) -> 60.86475 | AL49: =+$F49*(1-$G49)*(1/$AF49) -> 60.86475 | AM49: =+$F49*(1-$G49)*(1/$AF49) -> 60.86475 | AN49: =+$F49*(1-$G49)*(1/$AF49) -> 60.86475 | AO49: =+$F49*(1-$G49)*(1/$AF49) -> 60.86475 | AP49: =+$F49*(1-$G49)*(1/$AF49) -> 60.86475 | AQ49: =+$F49*(1-$G49)*(1/$AF49) -> 60.86475 | AR49: =+X49-SUM(AG49:AQ49) -> 547.77825 | AS49: =+$F49*$G49*(1/$AF49) -> 0 | AT49: =+$F49*$G49*(1/$AF49) -> 0 | AU49: =+$F49*$G49*(1/$AF49) -> 0 | AV49: =+$F49*$G49*(1/$AF49) -> 0 | AW49: =+$F49*$G49*(1/$AF49) -> 0 | AX49: =+$F49*$G49*(1/$AF49) -> 0 | AY49: =+$F49*$G49*(1/$AF49) -> 0 | AZ49: =+$F49*$G49*(1/$AF49) -> 0 | BA49: =+$F49*$G49*(1/$AF49) -> 0 | BB49: =+$F49*$G49*(1/$AF49) -> 0 | BC49: =+$F49*$G49*(1/$AF49) -> 0 | BD49: =+Y49-SUM(AS49:BC49) -> 0
A50: 145 | B50: 612 | C50: VÖISTE VEETRASS pr.2006/2007 | D50: 31.12.2006 | E50: 31.12.2006 | F50: 51129.32 | G50: =+G43 -> 0.8177190585 | H50: 5 | I50: 20451.76 | J50: 30677.56 | K50: 0 | L50: 2343.43 | M50: =+F50*H50/100 -> 2556.466 | N50: 23008.23 | O50: =+F50-N50 -> 28121.09 | Q50: Veevarustus | R50: Vara soetus (deebet) (raha väljaminek) | T50: 19.01.2007 10.05.2012 | U50: KIK 2006-2007 projekt 20, toetus 95446.36 | V50: 2015-12-31 | W50: =+O50-(F50*(H50/100)) -> 25564.624 | X50: =+W50*(1-G50) -> 4659.943731 | Y50: =+W50-X50 -> 20904.68027 | AF50: 40 | AG50: =+$F50*(1-$G50)*(1/$AF50) -> 232.9975146 | AH50: =+$F50*(1-$G50)*(1/$AF50) -> 232.9975146 | AI50: =+$F50*(1-$G50)*(1/$AF50) -> 232.9975146 | AJ50: =+$F50*(1-$G50)*(1/$AF50) -> 232.9975146 | AK50: =+$F50*(1-$G50)*(1/$AF50) -> 232.9975146 | AL50: =+$F50*(1-$G50)*(1/$AF50) -> 232.9975146 | AM50: =+$F50*(1-$G50)*(1/$AF50) -> 232.9975146 | AN50: =+$F50*(1-$G50)*(1/$AF50) -> 232.9975146 | AO50: =+$F50*(1-$G50)*(1/$AF50) -> 232.9975146 | AP50: =+$F50*(1-$G50)*(1/$AF50) -> 232.9975146 | AQ50: =+$F50*(1-$G50)*(1/$AF50) -> 232.9975146 | AR50: =+X50-SUM(AG50:AQ50) -> 2096.97107 | AS50: =+$F50*$G50*(1/$AF50) -> 1045.235485 | AT50: =+$F50*$G50*(1/$AF50) -> 1045.235485 | AU50: =+$F50*$G50*(1/$AF50) -> 1045.235485 | AV50: =+$F50*$G50*(1/$AF50) -> 1045.235485 | AW50: =+$F50*$G50*(1/$AF50) -> 1045.235485 | AX50: =+$F50*$G50*(1/$AF50) -> 1045.235485 | AY50: =+$F50*$G50*(1/$AF50) -> 1045.235485 | AZ50: =+$F50*$G50*(1/$AF50) -> 1045.235485 | BA50: =+$F50*$G50*(1/$AF50) -> 1045.235485 | BB50: =+$F50*$G50*(1/$AF50) -> 1045.235485 | BC50: =+$F50*$G50*(1/$AF50) -> 1045.235485 | BD50: =+Y50-SUM(AS50:BC50) -> 9407.08993
C51: Uulu projekt | F51: =+'UULU Projekt'!B2+'UULU Projekt'!B3+'UULU Projekt'!B4 -> 301721.275 | G51: =+'UULU Projekt'!C5 -> 0.8423748596 | AF51: 40 | AL51: =+F51*(1-G51)/AF51 -> 1188.971458 | AM51: =+AL51 -> 1188.971458 | AN51: =+AM51 -> 1188.971458 | AO51: =+AN51 -> 1188.971458 | AP51: =+AO51 -> 1188.971458 | AQ51: =+AP51 -> 1188.971458 | AX51: =+F51*G51/AF51 -> 6354.060417 | AY51: =+AX51 -> 6354.060417 | AZ51: =+AY51 -> 6354.060417 | BA51: =+AZ51 -> 6354.060417 | BB51: =+BA51 -> 6354.060417 | BC51: =+BB51 -> 6354.060417
A52: KOKKU | W52: =+SUM(W3:W50) -> 445863.7346 | X52: =+SUM(X3:X50) -> 259363.5881 | Y52: =+SUM(Y3:Y50) -> 186500.1465 | Z52: =+SUM(Z3:Z50) -> 257221.897 | AA52: =+SUM(AA3:AA50) -> 25793.25158 | AB52: =+SUM(AB3:AB50) -> 231428.6454 | AC52: =+SUM(AC3:AC50) -> 4700 | AD52: =+SUM(AD3:AD50) -> 0 | AE52: =+SUM(AE3:AE50) -> 4700 | AG52: =+SUM(AG3:AG50) -> 12468.72323 | AH52: =+SUM(AH3:AH50) -> 13383.9603 | AI52: =+SUM(AI3:AI50) -> 13383.9603 | AJ52: =+SUM(AJ3:AJ50) -> 13383.9603 | AK52: =+SUM(AK3:AK50) -> 13383.9603 | AL52: =+SUM(AL3:AL50) -> 13383.9603 | AM52: =+SUM(AM3:AM50) -> 13383.9603 | AN52: =+SUM(AN3:AN50) -> 13383.9603 | AO52: =+SUM(AO3:AO50) -> 13379.3343 | AP52: =+SUM(AP3:AP50) -> 13378.2243 | AQ52: =+SUM(AQ3:AQ50) -> 13378.2243 | AS52: =+SUM(AS3:AS50) -> 8382.272432 | AT52: =+SUM(AT3:AT50) -> 16458.08509 | AU52: =+SUM(AU3:AU50) -> 16575.58509 | AV52: =+SUM(AV3:AV50) -> 16575.58509 | AW52: =+SUM(AW3:AW50) -> 16575.58509 | AX52: =+SUM(AX3:AX50) -> 16575.58509 | AY52: =+SUM(AY3:AY50) -> 16575.58509 | AZ52: =+SUM(AZ3:AZ50) -> 16575.58509 | BA52: =+SUM(BA3:BA50) -> 16575.58509 | BB52: =+SUM(BB3:BB50) -> 16575.58509 | BC52: =+SUM(BC3:BC50) -> 16575.58509
A53: ÜV KOKKU | W53: =+SUM(W4:W5,W7:W9,W11:W17,W19:W33,W35:W37,W39,W42:W50)+(W18+W38)*0.5 -> 367900.1463 | X53: =+SUM(X4:X5,X7:X9,X11:X17,X19:X33,X35:X37,X39,X42:X50)+(X18+X38)*0.5 -> 181399.9999 | Y53: =+SUM(Y4:Y5,Y7:Y9,Y11:Y17,Y19:Y33,Y35:Y37,Y39,Y42:Y50)+(Y18+Y38)*0.5 -> 186500.1465 | Z53: =+SUM(Z4:Z5,Z7:Z9,Z11:Z17,Z19:Z33,Z35:Z37,Z39,Z42:Z50)+(Z18+Z38)*0.5 -> 175815.752 | AA53: =+SUM(AA4:AA5,AA7:AA9,AA11:AA17,AA19:AA33,AA35:AA37,AA39,AA42:AA50)+(AA18+AA38)*0.5 -> 17036.51696 | AB53: =+SUM(AB4:AB5,AB7:AB9,AB11:AB17,AB19:AB33,AB35:AB37,AB39,AB42:AB50)+(AB18+AB38)*0.5 -> 158779.235 | AC53: =+SUM(AC4:AC5,AC7:AC9,AC11:AC17,AC19:AC33,AC35:AC37,AC39,AC42:AC50)+(AC18+AC38)*0.5 -> 0 | AD53: =+SUM(AD4:AD5,AD7:AD9,AD11:AD17,AD19:AD33,AD35:AD37,AD39,AD42:AD50)+(AD18+AD38)*0.5 -> 0 | AE53: =+SUM(AE4:AE5,AE7:AE9,AE11:AE17,AE19:AE33,AE35:AE37,AE39,AE42:AE50)+(AE18+AE38)*0.5 -> 0 | AG53: =+SUM(AG4:AG5,AG7:AG9,AG11:AG17,AG19:AG33,AG35:AG37,AG39,AG42:AG50)+(AG18+AG38)*0.5 -> 8253.018659 | AH53: =+SUM(AH4:AH5,AH7:AH9,AH11:AH17,AH19:AH33,AH35:AH37,AH39,AH42:AH50)+(AH18+AH38)*0.5 -> 8830.527684 | AI53: =+SUM(AI4:AI5,AI7:AI9,AI11:AI17,AI19:AI33,AI35:AI37,AI39,AI42:AI50)+(AI18+AI38)*0.5 -> 8830.527684 | AJ53: =+SUM(AJ4:AJ5,AJ7:AJ9,AJ11:AJ17,AJ19:AJ33,AJ35:AJ37,AJ39,AJ42:AJ50)+(AJ18+AJ38)*0.5 -> 8830.527684 | AK53: =+SUM(AK4:AK5,AK7:AK9,AK11:AK17,AK19:AK33,AK35:AK37,AK39,AK42:AK50)+(AK18+AK38)*0.5 -> 8830.527684 | AL53: =+SUM(AL4:AL5,AL7:AL9,AL11:AL17,AL19:AL33,AL35:AL37,AL39,AL42:AL50)+(AL18+AL38)*0.5 -> 8830.527684 | AM53: =+SUM(AM4:AM5,AM7:AM9,AM11:AM17,AM19:AM33,AM35:AM37,AM39,AM42:AM50)+(AM18+AM38)*0.5 -> 8830.527684 | AN53: =+SUM(AN4:AN5,AN7:AN9,AN11:AN17,AN19:AN33,AN35:AN37,AN39,AN42:AN50)+(AN18+AN38)*0.5 -> 8830.527684 | AO53: =+SUM(AO4:AO5,AO7:AO9,AO11:AO17,AO19:AO33,AO35:AO37,AO39,AO42:AO50)+(AO18+AO38)*0.5 -> 8825.901684 | AP53: =+SUM(AP4:AP5,AP7:AP9,AP11:AP17,AP19:AP33,AP35:AP37,AP39,AP42:AP50)+(AP18+AP38)*0.5 -> 8824.791684 | AQ53: =+SUM(AQ4:AQ5,AQ7:AQ9,AQ11:AQ17,AQ19:AQ33,AQ35:AQ37,AQ39,AQ42:AQ50)+(AQ18+AQ38)*0.5 -> 8824.791684 | AS53: =+SUM(AS4:AS5,AS7:AS9,AS11:AS17,AS19:AS33,AS35:AS37,AS39,AS42:AS50)+(AS18+AS38)*0.5 -> 8382.272432 | AT53: =+SUM(AT4:AT5,AT7:AT9,AT11:AT17,AT19:AT33,AT35:AT37,AT39,AT42:AT50)+(AT18+AT38)*0.5 -> 13764.61916 | AU53: =+SUM(AU4:AU5,AU7:AU9,AU11:AU17,AU19:AU33,AU35:AU37,AU39,AU42:AU50)+(AU18+AU38)*0.5 -> 13764.61916 | AV53: =+SUM(AV4:AV5,AV7:AV9,AV11:AV17,AV19:AV33,AV35:AV37,AV39,AV42:AV50)+(AV18+AV38)*0.5 -> 13764.61916 | AW53: =+SUM(AW4:AW5,AW7:AW9,AW11:AW17,AW19:AW33,AW35:AW37,AW39,AW42:AW50)+(AW18+AW38)*0.5 -> 13764.61916 | AX53: =+SUM(AX4:AX5,AX7:AX9,AX11:AX17,AX19:AX33,AX35:AX37,AX39,AX42:AX50)+(AX18+AX38)*0.5 -> 13764.61916 | AY53: =+SUM(AY4:AY5,AY7:AY9,AY11:AY17,AY19:AY33,AY35:AY37,AY39,AY42:AY50)+(AY18+AY38)*0.5 -> 13764.61916 | AZ53: =+SUM(AZ4:AZ5,AZ7:AZ9,AZ11:AZ17,AZ19:AZ33,AZ35:AZ37,AZ39,AZ42:AZ50)+(AZ18+AZ38)*0.5 -> 13764.61916 | BA53: =+SUM(BA4:BA5,BA7:BA9,BA11:BA17,BA19:BA33,BA35:BA37,BA39,BA42:BA50)+(BA18+BA38)*0.5 -> 13764.61916 | BB53: =+SUM(BB4:BB5,BB7:BB9,BB11:BB17,BB19:BB33,BB35:BB37,BB39,BB42:BB50)+(BB18+BB38)*0.5 -> 13764.61916 | BC53: =+SUM(BC4:BC5,BC7:BC9,BC11:BC17,BC19:BC33,BC35:BC37,BC39,BC42:BC50)+(BC18+BC38)*0.5 -> 13764.61916
A54: ÜK KOKKU | W54: =+W52-W53 -> 77963.58825 | X54: =+X52-X53 -> 77963.58825 | Y54: =+Y52-Y53 -> 0 | Z54: =+Z52-Z53 -> 81406.145 | AA54: =+AA52-AA53 -> 8756.73462 | AB54: =+AB52-AB53 -> 72649.41038 | AC54: =+AC52-AC53 -> 4700 | AD54: =+AD52-AD53 -> 0 | AE54: =+AE52-AE53 -> 4700 | AG54: =+AG52-AG53 -> 4215.704568 | AH54: =+AH52-AH53 -> 4553.432611 | AI54: =+AI52-AI53 -> 4553.432611 | AJ54: =+AJ52-AJ53 -> 4553.432611 | AK54: =+AK52-AK53 -> 4553.432611 | AL54: =+AL52-AL53 -> 4553.432611 | AM54: =+AM52-AM53 -> 4553.432611 | AN54: =+AN52-AN53 -> 4553.432611 | AO54: =+AO52-AO53 -> 4553.432611 | AP54: =+AP52-AP53 -> 4553.432611 | AQ54: =+AQ52-AQ53 -> 4553.432611 | AS54: =+AS52-AS53 -> 0 | AT54: =+AT52-AT53 -> 2693.465934 | AU54: =+AU52-AU53 -> 2810.965934 | AV54: =+AV52-AV53 -> 2810.965934 | AW54: =+AW52-AW53 -> 2810.965934 | AX54: =+AX52-AX53 -> 2810.965934 | AY54: =+AY52-AY53 -> 2810.965934 | AZ54: =+AZ52-AZ53 -> 2810.965934 | BA54: =+BA52-BA53 -> 2810.965934 | BB54: =+BB52-BB53 -> 2810.965934 | BC54: =+BC52-BC53 -> 2810.965934

Sheet INV
A1: Jrk. nr. | B1: Arendus-/investeeringuprojekt | C1: Selgitus | D1: Ühik | E1: Kogus | F1: Ühik- või kogumaksumus, eurot | G1: Investeeringuprojektide maksumused EUR | I1: I Etapp | M1: II Etapp | U1: Eluiga | V1: Kulumiarvestus
G2: I etapp 2015 - 2018 | H2: II etapp 2019 - 2026 | I2: I Etapp | J2: 2016 | K2: 2017 | L2: 2018 | M2: 2019 | N2: 2020 | O2: 2021 | P2: 2022 | Q2: 2023 | R2: 2024 | S2: 2025 | T2: 2026 | V2: 2015 | W2: 2016 | X2: 2017 | Y2: 2018 | Z2: 2019 | AA2: 2020 | AB2: 2021 | AC2: 2022 | AD2: 2023 | AE2: 2024 | AF2: 2025 | AG2: 2026
A3: Reiu küla
A4: 1 | B4: Reiu reoveepumpla ja survetoru rekonstrueerimine | G4: =SUM(G5:G7) -> 277500 | H4: =SUM(H5:H7) -> 0
A5: 1.1 | B5: Reiu peapumpla rekonstrueerimine | C5: Uus plastpumpla vanas asukohas. H=3.5m D=1.6m. Pumbad 2tk a Q=5l/s, H=15m | D5: m | E5: 1 | F5: 20000 | G5: =F5*E5 -> 20000 | I5: =+ROUND(G5*(1/3),0) -> 6667 | J5: =+G5-I5 -> 13333 | U5: 15 / 40 | X5: =+SUM(I5:J5)*0.5/15+SUM(I5:J5)*0.5/40 -> 916.6666667 | Y5: =+X5 -> 916.6666667 | Z5: =+Y5 -> 916.6666667 | AA5: =+Z5 -> 916.6666667 | AB5: =+AA5 -> 916.6666667 | AC5: =+AB5 -> 916.6666667 | AD5: =+AC5 -> 916.6666667 | AE5: =+AD5 -> 916.6666667 | AF5: =+AE5 -> 916.6666667 | AG5: =+AF5 -> 916.6666667
A6: 1.2 | B6: Reiu peapumpla survetorustiku rekonstrueerimine vanas asukohas | C6: Uue torustiku PE De110mm pikkus ~0.55km, lisaks metsa raie ja juurdepääsu tagamine | D6: m | E6: 550 | F6: 105 | G6: =F6*E6 -> 57750 | I6: =+ROUND(G6*(1/3),0) -> 19250 | J6: =+G6-I6 -> 38500 | U6: 40 | X6: =+SUM(I6:J6)/U6 -> 1443.75 | Y6: =+X6 -> 1443.75 | Z6: =+Y6 -> 1443.75 | AA6: =+Z6 -> 1443.75 | AB6: =+AA6 -> 1443.75 | AC6: =+AB6 -> 1443.75 | AD6: =+AC6 -> 1443.75 | AE6: =+AD6 -> 1443.75 | AF6: =+AE6 -> 1443.75 | AG6: =+AF6 -> 1443.75
A7: 1.3 | B7: Reiu peapumpla survetorustiku rekonstrueerimine uues asukohas | C7: Uue torustiku PE De110mm pikkus ~2.35km | D7: m | E7: 2350 | F7: 85 | G7: =F7*E7 -> 199750 | I7: =+ROUND(G7*(1/3),0) -> 66583 | J7: =+G7-I7 -> 133167 | U7: 40 | X7: =+SUM(I7:J7)/U7 -> 4993.75 | Y7: =+X7 -> 4993.75 | Z7: =+Y7 -> 4993.75 | AA7: =+Z7 -> 4993.75 | AB7: =+AA7 -> 4993.75 | AC7: =+AB7 -> 4993.75 | AD7: =+AC7 -> 4993.75 | AE7: =+AD7 -> 4993.75 | AF7: =+AE7 -> 4993.75 | AG7: =+AF7 -> 4993.75
A9: Suksumetsa- Lottemaa
A10: 2 | B10: Lottemaa ja Suksumetsa reovee suunamine Pärnu ühiskanalisatsiooni | G10: =SUM(G11:G13) -> 285000 | H10: =SUM(H11:H13) -> 0
A11: 2.1 | B11: Lottemaa pumpla rajamine | C11: Uus plastpumpla H=3.5m D=1.6m. Pumbad 2tk a Q=5l/s, H=25m | D11: m | E11: 1 | F11: 20000 | G11: =F11*E11 -> 20000 | J11: =+G11 -> 20000 | U11: 15 / 40 | X11: =+SUM(I11:J11)*0.5/15+SUM(I11:J11)*0.5/40 -> 916.6666667 | Y11: =+X11 -> 916.6666667 | Z11: =+Y11 -> 916.6666667 | AA11: =+Z11 -> 916.6666667 | AB11: =+AA11 -> 916.6666667 | AC11: =+AB11 -> 916.6666667 | AD11: =+AC11 -> 916.6666667 | AE11: =+AD11 -> 916.6666667 | AF11: =+AE11 -> 916.6666667 | AG11: =+AF11 -> 916.6666667
A12: 2.2 | B12: Survetorustiku rajamine Lottemaa pumplast kuni Reiu küla pumpla survetoruni | C12: Uue torustiku PE De110mm pikkus ~3.00km | D12: m | E12: 3000 | F12: 85 | G12: =F12*E12 -> 255000 | J12: =+G12 -> 255000 | U12: 40 | X12: =+SUM(I12:J12)/U12 -> 6375 | Y12: =+X12 -> 6375 | Z12: =+Y12 -> 6375 | AA12: =+Z12 -> 6375 | AB12: =+AA12 -> 6375 | AC12: =+AB12 -> 6375 | AD12: =+AC12 -> 6375 | AE12: =+AD12 -> 6375 | AF12: =+AE12 -> 6375 | AG12: =+AF12 -> 6375
A13: 2.3 | B13: Suksumetsa Kulla tee reoveepuhasti asemele pumpla rajamine | C13: Uus plastpumpla H=3.5m D=1.2m. Pumbad 2tk a Q=2.5l/s, H=15m | D13: tk | E13: 1 | F13: 10000 | G13: =F13*E13 -> 10000 | J13: =+G13 -> 10000 | U13: 15 / 40 | X13: =+SUM(I13:J13)*0.5/15+SUM(I13:J13)*0.5/40 -> 458.3333333 | Y13: =+X13 -> 458.3333333 | Z13: =+Y13 -> 458.3333333 | AA13: =+Z13 -> 458.3333333 | AB13: =+AA13 -> 458.3333333 | AC13: =+AB13 -> 458.3333333 | AD13: =+AC13 -> 458.3333333 | AE13: =+AD13 -> 458.3333333 | AF13: =+AE13 -> 458.3333333 | AG13: =+AF13 -> 458.3333333
A14: 3 | B14: Suksumetsa reoveekogumisala ühiskanalisatsiooni laiendmaine | G14: =SUM(G15:G17) -> 0 | H14: =SUM(H15:H17) -> 142300
A15: 3.1 | B15: Suksumetsa Posti tee pumpla rajamine | C15: Uus plastpumpla H=3.5m D=1.2m. Pumbad 2tk a Q=2.5l/s, H=15m | D15: tk | E15: 1 | F15: 10000 | H15: =F15*E15 -> 10000 | M15: =+H15/7 -> 1428.571429 | N15: =+M15 -> 1428.571429 | O15: =+N15 -> 1428.571429 | P15: =+O15 -> 1428.571429 | Q15: =+P15 -> 1428.571429 | R15: =+Q15 -> 1428.571429 | S15: =+R15 -> 1428.571429 | U15: 15 / 40 | AG15: =+SUM(M15:S15)*(0.5/15+0.5/40) -> 458.3333333
A16: 3.2 | B16: Isevoolse toru rajamine | C16: Posti tee kanaliseerimata kinnistutele toru De160mm | D16: m | E16: 630 | F16: 150 | H16: =F16*E16 -> 94500 | M16: =+H16/7 -> 13500 | N16: =+M16 -> 13500 | O16: =+N16 -> 13500 | P16: =+O16 -> 13500 | Q16: =+P16 -> 13500 | R16: =+Q16 -> 13500 | S16: =+R16 -> 13500 | U16: 40 | AG16: =+SUM(M16:S16)/U16 -> 2362.5
A17: 3.3 | B17: Survetorustiku rajamine | C17: Posti tee ja Kulla tee pumpla survetorud PE De63mm | D17: m | E17: 360 | F17: 105 | H17: =F17*E17 -> 37800 | M17: =+H17/7 -> 5400 | N17: =+M17 -> 5400 | O17: =+N17 -> 5400 | P17: =+O17 -> 5400 | Q17: =+P17 -> 5400 | R17: =+Q17 -> 5400 | S17: =+R17 -> 5400 | U17: 40 | AG17: =+SUM(M17:S17)/U17 -> 945
A18: Võiste alevik
A19: 4 | B19: Võiste aleviku kanalisatsiooni rekonstrueerimine | G19: =SUM(G20:G21) -> 282500 | H19: =SUM(H20:H21) -> 0
A20: 4.1 | B20: Võiste reoveepuhasti rekonstrueerimine | C20: Olemasolev on BIO-50. Uue reostuskoormus RKA korrigeerimise alusel 330ie | D20: tk | E20: 1 | F20: 200000 | G20: =F20*E20 -> 200000 | J20: =+G20/2 -> 100000 | K20: =+G20-J20 -> 100000 | U20: 15 / 40 | Y20: =+SUM(J20:K20)*0.5/15+SUM(J20:K20)*0.5/40 -> 9166.666667 | Z20: =+Y20 -> 9166.666667 | AA20: =+Z20 -> 9166.666667 | AB20: =+AA20 -> 9166.666667 | AC20: =+AB20 -> 9166.666667 | AD20: =+AC20 -> 9166.666667 | AE20: =+AD20 -> 9166.666667 | AF20: =+AE20 -> 9166.666667 | AG20: =+AF20 -> 9166.666667
A21: 4.2 | B21: Isevoolse kanalisatsiooni rekonstrueerimine | D21: m | E21: 550 | F21: 150 | G21: =F21*E21 -> 82500 | J21: =+G21/2 -> 41250 | K21: =+G21-J21 -> 41250 | U21: 40 | Y21: =+SUM(J21:K21)/U21 -> 2062.5 | Z21: =+Y21 -> 2062.5 | AA21: =+Z21 -> 2062.5 | AB21: =+AA21 -> 2062.5 | AC21: =+AB21 -> 2062.5 | AD21: =+AC21 -> 2062.5 | AE21: =+AD21 -> 2062.5 | AF21: =+AE21 -> 2062.5 | AG21: =+AF21 -> 2062.5
A22: 5 | B22: Võiste aleviku kanalisatsiooni laiendamine | G22: =SUM(G23:G28) -> 163850 | H22: =SUM(H23:H28) -> 658750
A23: 5.1 | B23: Isevoolse kanalisatsiooni rajamine | C23: Allika, Kivi tn piirkond | D23: m | E23: 700 | F23: 150 | G23: =F23*E23 -> 105000 | J23: =+G23/2 -> 52500 | K23: =+G23-J23 -> 52500 | U23: 40 | Y23: =+SUM(J23:K23)/U23 -> 2625 | Z23: =+Y23 -> 2625 | AA23: =+Z23 -> 2625 | AB23: =+AA23 -> 2625 | AC23: =+AB23 -> 2625 | AD23: =+AC23 -> 2625 | AE23: =+AD23 -> 2625 | AF23: =+AE23 -> 2625 | AG23: =+AF23 -> 2625
A24: 5.2 | B24: Isevoolse kanalisatsiooni rajamine | C24: muud kaugemad piirkonnad läbi täiendavate pumplate | D24: m | E24: 3600 | F24: 150 | H24: =F24*E24 -> 540000 | M24: =+H24/7 -> 77142.85714 | N24: =+M24 -> 77142.85714 | O24: =+N24 -> 77142.85714 | P24: =+O24 -> 77142.85714 | Q24: =+P24 -> 77142.85714 | R24: =+Q24 -> 77142.85714 | S24: =+R24 -> 77142.85714 | U24: 40 | AG24: =+SUM(M24:S24)/U24 -> 13500
A25: 5.3 | B25: Survekanalisatsaiooni rajamine | C25: Allika tn | D25: m | E25: 370 | F25: 105 | G25: =F25*E25 -> 38850 | J25: =+G25/2 -> 19425 | K25: =+G25-J25 -> 19425 | U25: 40 | Y25: =+SUM(J25:K25)/U25 -> 971.25 | Z25: =+Y25 -> 971.25 | AA25: =+Z25 -> 971.25 | AB25: =+AA25 -> 971.25 | AC25: =+AB25 -> 971.25 | AD25: =+AC25 -> 971.25 | AE25: =+AD25 -> 971.25 | AF25: =+AE25 -> 971.25 | AG25: =+AF25 -> 971.25
A26: 5.4 | B26: Survekanalisatsaiooni rajamine | C26: muud kaugemad piirkonnad | D26: m | E26: 750 | F26: 105 | H26: =F26*E26 -> 78750 | M26: =+H26/7 -> 11250 | N26: =+M26 -> 11250 | O26: =+N26 -> 11250 | P26: =+O26 -> 11250 | Q26: =+P26 -> 11250 | R26: =+Q26 -> 11250 | S26: =+R26 -> 11250 | U26: 40 | AG26: =+SUM(M26:S26)/U26 -> 1968.75
A27: 5.5 | B27: Uue reoveepumpla rajamine | C27: Alllika tn. Uus plastpumpla H=3.5m D=1.6m. Pumbad 2tk a Q=5l/s, H=5m | D27: tk | E27: 1 | F27: 20000 | G27: =F27*E27 -> 20000 | J27: =+G27/2 -> 10000 | K27: =+G27-J27 -> 10000 | U27: 15 / 40 | Y27: =+SUM(J27:K27)*0.5/15+SUM(J27:K27)*0.5/40 -> 916.6666667 | Z27: =+Y27 -> 916.6666667 | AA27: =+Z27 -> 916.6666667 | AB27: =+AA27 -> 916.6666667 | AC27: =+AB27 -> 916.6666667 | AD27: =+AC27 -> 916.6666667 | AE27: =+AD27 -> 916.6666667 | AF27: =+AE27 -> 916.6666667 | AG27: =+AF27 -> 916.6666667
A28: 5.6 | B28: Uue reoveepumpla rajamine | C28: muud kaugeamad piirkonnad. Uus plastpumpla H=3.5m D=1.6m. Pumbad 2tk a Q=5l/s, H=5m | D28: tk | E28: 2 | F28: 20000 | H28: =F28*E28 -> 40000 | M28: =+H28/7 -> 5714.285714 | N28: =+M28 -> 5714.285714 | O28: =+N28 -> 5714.285714 | P28: =+O28 -> 5714.285714 | Q28: =+P28 -> 5714.285714 | R28: =+Q28 -> 5714.285714 | S28: =+R28 -> 5714.285714 | U28: 15 / 40 | AG28: =+SUM(M28:S28)*(0.5/15+0.5/40) -> 1833.333333
A29: 6 | B29: Võiste aleviku veevarustuse rekonstrueerimine | G29: =G30 -> 237500
A30: 6.1 | B30: Veetorusiku rekonstrueerimine | C30: Kõik ol.olevad vanad ühisveevärgi torustikud. Ued torud PE De32...63mm | D30: m | E30: 1900 | F30: 125 | G30: =F30*E30 -> 237500 | J30: =+G30/2 -> 118750 | K30: =+G30-J30 -> 118750 | U30: 40 | Y30: =+SUM(J30:K30)/U30 -> 5937.5 | Z30: =+Y30 -> 5937.5 | AA30: =+Z30 -> 5937.5 | AB30: =+AA30 -> 5937.5 | AC30: =+AB30 -> 5937.5 | AD30: =+AC30 -> 5937.5 | AE30: =+AD30 -> 5937.5 | AF30: =+AE30 -> 5937.5 | AG30: =+AF30 -> 5937.5
A31: 7 | B31: Võiste aleviku veevarustuse laiendamine | G31: =SUM(G32:G33) -> 56250 | H31: =SUM(H32:H33) -> 68750
A32: 7.1 | B32: Veetorustiku rajamine | C32: Allika, Mäe tn. PE De32...63mm | D32: m | E32: 450 | F32: 125 | G32: =F32*E32 -> 56250 | J32: =+G32/2 -> 28125 | K32: =+G32-J32 -> 28125 | U32: 40 | Y32: =+SUM(J32:K32)/U32 -> 1406.25 | Z32: =+Y32 -> 1406.25 | AA32: =+Z32 -> 1406.25 | AB32: =+AA32 -> 1406.25 | AC32: =+AB32 -> 1406.25 | AD32: =+AC32 -> 1406.25 | AE32: =+AD32 -> 1406.25 | AF32: =+AE32 -> 1406.25 | AG32: =+AF32 -> 1406.25
A33: 7.2 | B33: Veetorustiku rajamine | C33: Kaare tn piirkond. PE De32...63mm | D33: m | E33: 550 | F33: 125 | H33: =F33*E33 -> 68750 | M33: =+H33/7 -> 9821.428571 | N33: =+M33 -> 9821.428571 | O33: =+N33 -> 9821.428571 | P33: =+O33 -> 9821.428571 | Q33: =+P33 -> 9821.428571 | R33: =+Q33 -> 9821.428571 | S33: =+R33 -> 9821.428571 | U33: 40 | AG33: =+SUM(M33:S33)/U33 -> 1718.75
A34: Uulu küla
A35: 8 | B35: Uulu kanalisatsiooni rekonstrueerimine | G35: =SUM(G36) -> 285000 | H35: =SUM(H36) -> 0
A36: 8.1 | B36: Uulu reoveepuhasti rekonstrueerimine | C36: Olemasolev on BIO-50 + BIO-25. Uue reostuskoormus RKA kohaselt 410ie. | D36: tk | E36: 1 | F36: 285000 | G36: =F36*E36 -> 285000 | J36: =+G36/2 -> 142500 | K36: =+G36-J36 -> 142500 | U36: 15 / 40 | Y36: =+SUM(J36:K36)*0.5/15+SUM(J36:K36)*0.5/40 -> 13062.5 | Z36: =+Y36 -> 13062.5 | AA36: =+Z36 -> 13062.5 | AB36: =+AA36 -> 13062.5 | AC36: =+AB36 -> 13062.5 | AD36: =+AC36 -> 13062.5 | AE36: =+AD36 -> 13062.5 | AF36: =+AE36 -> 13062.5 | AG36: =+AF36 -> 13062.5
A37: 9 | B37: Uulu veevarustuse rekonstrueerimine | G37: =G38 -> 36000 | H37: =H38 -> 0
A38: 9.1 | B38: Õunaia puurkaevpumpla rekonstrueerimine | C38: Veetöötlusseadmete paigaldamine ja pumba vahetus | D38: tk | E38: 1 | F38: 36000 | G38: =F38*E38 -> 36000 | J38: =+G38/2 -> 18000 | K38: =+G38-J38 -> 18000 | U38: 15 / 40 | Y38: =+SUM(J38:K38)*0.5/15+SUM(J38:K38)*0.5/40 -> 1650 | Z38: =+Y38 -> 1650 | AA38: =+Z38 -> 1650 | AB38: =+AA38 -> 1650 | AC38: =+AB38 -> 1650 | AD38: =+AC38 -> 1650 | AE38: =+AD38 -> 1650 | AF38: =+AE38 -> 1650 | AG38: =+AF38 -> 1650
A39: Pihla elamurajoon
A40: 10 | B40: Pihla reoveepuhasti rekonstrueerimine | G40: =SUM(G41:G43) -> 130000 | H40: =SUM(H41:H43) -> 0
A41: 10.1 | B41: Pihla reoveepuhasti rekonstrueerimine, sh | C41: Olemasolev on kõrgvee ajal uputatud | D41: tk | E41: 1 | F41: 100000 | G41: =F41*E41 -> 100000 | J41: =+G41/2 -> 50000 | K41: =+G41-J41 -> 50000 | U41: 15 / 40 | Y41: =+SUM(J41:K41)*0.5/15+SUM(J41:K41)*0.5/40 -> 4583.333333 | Z41: =+Y41 -> 4583.333333 | AA41: =+Z41 -> 4583.333333 | AB41: =+AA41 -> 4583.333333 | AC41: =+AB41 -> 4583.333333 | AD41: =+AC41 -> 4583.333333 | AE41: =+AD41 -> 4583.333333 | AF41: =+AE41 -> 4583.333333 | AG41: =+AF41 -> 4583.333333
A42: 10.2 | B42: Uue reoveepumpla rajamine | C42: Uus plastpumpla H=3.5m D=1.2m. Pumbad 2tk a Q=2.5l/s, H=2m | D42: tk | E42: 1 | F42: 10000 | G42: =F42*E42 -> 10000 | J42: =+G42/2 -> 5000 | K42: =+G42-J42 -> 5000 | U42: 15 / 40 | Y42: =+SUM(J42:K42)*0.5/15+SUM(J42:K42)*0.5/40 -> 458.3333333 | Z42: =+Y42 -> 458.3333333 | AA42: =+Z42 -> 458.3333333 | AB42: =+AA42 -> 458.3333333 | AC42: =+AB42 -> 458.3333333 | AD42: =+AC42 -> 458.3333333 | AE42: =+AD42 -> 458.3333333 | AF42: =+AE42 -> 458.3333333 | AG42: =+AF42 -> 458.3333333
